Workbook

Sheet Spreadsheet9.1
L8: Discount factors
B9: Parameters | F9: Time | G9: Interest rate | H9: Fixed leg | I9: Floating leg | J9: Swap MtM | L9: 0.25 | M9: 0.5 | N9: 0.75 | O9: 1 | P9: 1.25 | Q9: 1.5 | R9: 1.75 | S9: 2 | T9: 2.25 | U9: 2.5 | V9: 2.75 | W9: 3 | X9: 3.25 | Y9: 3.5 | Z9: 3.75 | AA9: 4 | AB9: 4.25 | AC9: 4.5 | AD9: 4.75 | AE9: 5 | AF9: 5.25 | AG9: 5.5 | AH9: 5.75 | AI9: 6 | AJ9: 6.25 | AK9: 6.5 | AL9: 6.75 | AM9: 7 | AN9: 7.25 | AO9: 7.5 | AP9: 7.75 | AQ9: 8 | AR9: 8.25 | AS9: 8.5 | AT9: 8.75 | AU9: 9 | AV9: 9.25 | AW9: 9.5 | AX9: 9.75 | AY9: 10
B10: Spot interest rate | C10: 0.05 | E10: 0 | F10: 0 | G10: =IR0 -> 0.05 | H10: =SwapRate*SUM(OFFSET(L10,0,0,1,40-E10))*0.25 -> 0.3918657679 | I10: =1-OFFSET(L10,0,40-E10-1,1,1) -> 0.3883502339 | J10: =H10-I10 -> 0.003515533968 | L10: =L$50*EXP(-L$51*$G10) -> 0.9875780529 | M10: 0.9753118695 | N10: 0.9632008222 | O10: 0.951244143 | P10: 0.9394409363 | Q10: 0.9277901921 | R10: 0.9162907975 | S10: 0.9049415474 | T10: 0.8937411547 | U10: 0.8826882591 | V10: 0.8717814363 | W10: 0.8610192054 | X10: 0.8504000365 | Y10: 0.8399223569 | Z10: 0.8295845581 | AA10: 0.8193850005 | AB10: 0.8093220195 | AC10: 0.7993939297 | AD10: 0.7895990295 | AE10: 0.7799356053 | AF10: 0.7704019346 | AG10: 0.7609962902 | AH10: 0.7517169423 | AI10: 0.7425621622 | AJ10: 0.733530224 | AK10: 0.7246194075 | AL10: 0.7158279999 | AM10: 0.7071542979 | AN10: 0.6985966092 | AO10: 0.6901532541 | AP10: 0.6818225666 | AQ10: 0.6736028962 | AR10: 0.6654926081 | AS10: 0.657490085 | AT10: 0.6495937272 | AU10: 0.6418019537 | AV10: 0.6341132027 | AW10: 0.6265259323 | AX10: 0.6190386205 | AY10: 0.6116497661
B11: Mean reversion (a) | C11: 0.1 | E11: =E10+1 -> 1 | F11: =F10+0.25 -> 0.25 | G11: =G10+MeanRev*(b_Param-G10)*0.25+NORMSINV(RAND())*SQRT(0.25)*Volatility -> 0.05545896169 | H11: 0.3770723236 | I11: 0.4016542096 | J11: -0.02458188592 | L11: =L$50*EXP(-L$51*$G11) -> 0.9862478697 | M11: 0.9727186848 | N11: 0.9594090028 | O11: 0.9463153487 | P11: 0.9334342257 | Q11: 0.9207621241 | R11: 0.9082955299 | S11: 0.8960309317 | T11: 0.8839648281 | U11: 0.8720937332 | V11: 0.8604141821 | W11: 0.8489227358 | X11: 0.8376159857 | Y11: 0.8264905565 | Z11: 0.8155431105 | AA11: 0.8047703499 | AB11: 0.7941690194 | AC11: 0.7837359085 | AD11: 0.7734678533 | AE11: 0.7633617379 | AF11: 0.7534144957 | AG11: 0.7436231109 | AH11: 0.7339846187 | AI11: 0.7244961062 | AJ11: 0.7151547132 | AK11: 0.7059576317 | AL11: 0.6969021068 | AM11: 0.6879854365 | AN11: 0.6792049714 | AO11: 0.6705581146 | AP11: 0.6620423216 | AQ11: 0.6536550995 | AR11: 0.6453940071 | AS11: 0.6372566537 | AT11: 0.6292406994 | AU11: 0.6213438534 | AV11: 0.6135638741 | AW11: 0.6058985684 | AX11: 0.5983457904
B12: Equilibrium (b) | C12: 0.05 | E12: 2 | F12: 0.5 | G12: 0.06346765866 | H12: 0.3597731752 | I12: 0.4231406129 | J12: -0.06336743778 | L12: =L$50*EXP(-L$51*$G12) -> 0.984299635 | M12: 0.9689267652 | N12: 0.9538731228 | O12: 0.939130625 | P12: 0.9246913754 | Q12: 0.9105476638 | R12: 0.896691966 | S12: 0.8831169426 | T12: 0.8698154382 | U12: 0.856780479 | V12: 0.8440052714 | W12: 0.831483199 | X12: 0.8192078207 | Y12: 0.8071728675 | Z12: 0.7953722392 | AA12: 0.7838000022 | AB12: 0.7724503854 | AC12: 0.7613177771 | AD12: 0.7503967218 | AE12: 0.7396819165 | AF12: 0.7291682073 | AG12: 0.7188505856 | AH12: 0.708724185 | AI12: 0.6987842774 | AJ12: 0.6890262696 | AK12: 0.6794456999 | AL12: 0.6700382342 | AM12: 0.6607996631 | AN12: 0.6517258981 | AO12: 0.6428129685 | AP12: 0.6340570178 | AQ12: 0.6254543008 | AR12: 0.6170011803 | AS12: 0.6086941237 | AT12: 0.6005297004 | AU12: 0.5925045784 | AV12: 0.5846155216 | AW12: 0.5768593871
B13: Volatility (s) | C13: 0.01 | E13: 3 | F13: 0.75 | G13: 0.06272778294 | H13: 0.3534228078 | I13: 0.4127683823 | J13: -0.05934557451 | L13: =L$50*EXP(-L$51*$G13) -> 0.9844794593 | M13: 0.9692764574 | N13: 0.9543832077 | O13: 0.9397920854 | P13: 0.9254956302 | Q13: 0.9114865469 | R13: 0.8977577061 | S13: 0.8843021447 | T13: 0.8711130648 | U13: 0.8581838334 | V13: 0.8455079811 | W13: 0.8330792002 | X13: 0.8208913432 | Y13: 0.8089384208 | Z13: 0.7972145992 | AA13: 0.785714198 | AB13: 0.7744316876 | AC13: 0.763361686 | AD13: 0.7524989564 | AE13: 0.7418384042 | AF13: 0.7313750738 | AG13: 0.7211041457 | AH13: 0.7110209334 | AI13: 0.7011208801 | AJ13: 0.691399556 | AK13: 0.6818526548 | AL13: 0.6724759906 | AM13: 0.6632654953 | AN13: 0.6542172149 | AO13: 0.6453273067 | AP13: 0.6365920367 | AQ13: 0.6280077758 | AR13: 0.6195709979 | AS13: 0.6112782763 | AT13: 0.603126281 | AU13: 0.5951117763 | AV13: 0.5872316177
B14: Swap rate | C14: 0.05 | E14: 4 | F14: 1 | G14: 0.06495790357 | H14: 0.3435953003 | I14: 0.4127121733 | J14: -0.06911687299 | L14: =L$50*EXP(-L$51*$G14) -> 0.9839375357 | M14: 0.9682228041 | N14: 0.9528465459 | O14: 0.9377997356 | P14: 0.92307358 | Q14: 0.9086595164 | R14: 0.8945492095 | S14: 0.8807345489 | T14: 0.8672076459 | U14: 0.8539608292 | V14: 0.8409866418 | W14: 0.8282778366 | X14: 0.8158273723 | Y14: 0.8036284091 | Z14: 0.791674304 | AA14: 0.7799586067 | AB14: 0.7684750546 | AC14: 0.7572175685 | AD14: 0.7461802481 | AE14: 0.7353573668 | AF14: 0.724743368 | AG14: 0.7143328595 | AH14: 0.7041206101 | AI14: 0.6941015441 | AJ14: 0.6842707376 | AK14: 0.674623414 | AL14: 0.6651549395 | AM14: 0.6558608191 | AN14: 0.6467366926 | AO14: 0.6377783301 | AP14: 0.6289816289 | AQ14: 0.6203426086 | AR14: 0.6118574083 | AS14: 0.6035222824 | AT14: 0.595333597 | AU14: 0.5872878267
E15: 5 | F15: 1.25 | G15: 0.06015233331 | H15: 0.3414298111 | I15: 0.3877473519 | J15: -0.0463175408 | L15: =L$50*EXP(-L$51*$G15) -> 0.9851056699 | M15: 0.9704946933 | N15: 0.9561609017 | O15: 0.9420982132 | P15: 0.9283006379 | Q15: 0.9147622822 | R15: 0.9014773526 | S15: 0.8884401592 | T15: 0.8756451177 | U15: 0.8630867513 | V15: 0.8507596929 | W15: 0.838658685 | X15: 0.8267785814 | Y15: 0.8151143466 | Z15: 0.8036610561 | AA15: 0.7924138963 | AB15: 0.7813681634 | AC15: 0.7705192628 | AD15: 0.7598627081 | AE15: 0.74939412 | AF15: 0.7391092248 | AG15: 0.7290038532 | AH15: 0.7190739383 | AI15: 0.7093155144 | AJ15: 0.6997247148 | AK15: 0.6902977705 | AL15: 0.6810310081 | AM15: 0.6719208477 | AN15: 0.6629638011 | AO15: 0.6541564703 | AP15: 0.6454955446 | AQ15: 0.6369777996 | AR15: 0.6286000944 | AS15: 0.6203593702 | AT15: 0.6122526481
E16: 6 | F16: 1.5 | G16: 0.06796295834 | H16: 0.3257561618 | I16: 0.4067733905 | J16: -0.08101722864 | L16: =L$50*EXP(-L$51*$G16) -> 0.9832077733 | M16: 0.966804833 | N16: 0.9507798292 | O16: 0.9351217521 | P16: 0.919819925 | Q16: 0.9048639971 | R16: 0.8902439358 | S16: 0.8759500194 | T16: 0.8619728291 | U16: 0.8483032412 | V16: 0.8349324194 | W16: 0.8218518068 | X16: 0.8090531183 | Y16: 0.7965283325 | Z16: 0.7842696844 | AA16: 0.7722696578 | AB16: 0.7605209773 | AC16: 0.7490166017 | AD16: 0.7377497163 | AE16: 0.7267137258 | AF16: 0.7159022476 | AG16: 0.7053091051 | AH16: 0.6949283206 | AI16: 0.6847541094 | AJ16: 0.6747808732 | AK16: 0.6650031941 | AL16: 0.6554158285 | AM16: 0.6460137014 | AN16: 0.6367919008 | AO16: 0.6277456722 | AP16: 0.6188704135 | AQ16: 0.6101616693 | AR16: 0.6016151266 | AS16: 0.5932266095
E17: 7 | F17: 1.75 | G17: 0.06550589009 | H17: 0.3207320713 | I17: 0.3900232352 | J17: -0.06929116391 | L17: =L$50*EXP(-L$51*$G17) -> 0.9838044195 | M17: 0.9679640752 | N17: 0.9524693353 | O17: 0.937310821 | P17: 0.9224794032 | Q17: 0.9079661998 | R17: 0.8937625724 | S17: 0.8798601223 | T17: 0.8662506868 | U17: 0.8529263346 | V17: 0.8398793611 | W17: 0.8271022841 | X17: 0.814587839 | Y17: 0.8023289735 | Z17: 0.7903188426 | AA17: 0.7785508042 | AB17: 0.767018413 | AC17: 0.7557154165 | AD17: 0.7446357491 | AE17: 0.7337735276 | AF17: 0.7231230457 | AG17: 0.7126787697 | AH17: 0.7024353329 | AI17: 0.6923875315 | AJ17: 0.6825303192 | AK17: 0.672858803 | AL17: 0.6633682386 | AM17: 0.6540540255 | AN17: 0.6449117032 | AO17: 0.6359369466 | AP17: 0.6271255619 | AQ17: 0.6184734824 | AR17: 0.6099767648
E18: 8 | F18: 2 | G18: 0.05726025692 | H18: 0.3209400604 | I18: 0.3527965927 | J18: -0.03185653223 | L18: =L$50*EXP(-L$51*$G18) -> 0.985809342 | M18: 0.9718645247 | N18: 0.9581610933 | O18: 0.9446946032 | P18: 0.931460629 | Q18: 0.918454772 | R18: 0.905672667 | S18: 0.893109988 | T18: 0.8807624536 | U18: 0.8686258319 | V18: 0.856695944 | W18: 0.8449686678 | X18: 0.8334399408 | Y18: 0.8221057628 | Z18: 0.8109621979 | AA18: 0.8000053761 | AB18: 0.7892314952 | AC18: 0.7786368211 | AD18: 0.7682176894 | AE18: 0.7579705055 | AF18: 0.7478917452 | AG18: 0.7379779546 | AH18: 0.7282257503 | AI18: 0.718631819 | AJ18: 0.7091929176 | AK18: 0.6999058719 | AL18: 0.6907675769 | AM18: 0.6817749956 | AN18: 0.6729251584 | AO18: 0.6642151622 | AP18: 0.6556421694 | AQ18: 0.6472034073
E19: 9 | F19: 2.25 | G19: 0.05226219805 | H19: 0.3174937619 | I19: 0.3264450985 | J19: -0.008951336652 | L19: =L$50*EXP(-L$51*$G19) -> 0.9870266064 | M19: 0.9742364139 | N19: 0.9616276743 | O19: 0.9491985395 | P19: 0.9369470747 | Q19: 0.9248712695 | R19: 0.9129690481 | S19: 0.9012382795 | T19: 0.8896767859 | U19: 0.8782823512 | V19: 0.8670527278 | W19: 0.855985644 | X19: 0.8450788099 | Y19: 0.8343299229 | Z19: 0.823736673 | AA19: 0.8132967475 | AB19: 0.803007835 | AC19: 0.7928676293 | AD19: 0.782873833 | AE19: 0.7730241602 | AF19: 0.7633163396 | AG19: 0.7537481169 | AH19: 0.744317257 | AI19: 0.7350215459 | AJ19: 0.7258587923 | AK19: 0.7168268296 | AL19: 0.7079235167 | AM19: 0.6991467394 | AN19: 0.6904944113 | AO19: 0.6819644748 | AP19: 0.6735549015
E20: 10 | F20: 2.5 | G20: 0.06126191268 | H20: 0.3011736911 | I20: 0.3496621077 | J20: -0.04848841656 | L20: =L$50*EXP(-L$51*$G20) -> 0.9848358312 | M20: 0.9699696539 | N20: 0.9553946133 | O20: 0.9411039726 | P20: 0.9270911173 | Q20: 0.9133495582 | R20: 0.8998729338 | S20: 0.8866550122 | T20: 0.8736896924 | U20: 0.8609710052 | V20: 0.8484931135 | W20: 0.8362503119 | X20: 0.8242370271 | Y20: 0.8124478162 | Z20: 0.8008773664 | AA20: 0.7895204935 | AB20: 0.7783721407 | AC20: 0.7674273765 | AD20: 0.7566813934 | AE20: 0.7461295058 | AF20: 0.7357671479 | AG20: 0.7255898715 | AH20: 0.7155933443 | AI20: 0.705773347 | AJ20: 0.6961257712 | AK20: 0.6866466173 | AL20: 0.6773319917 | AM20: 0.6681781047 | AN20: 0.659181268 | AO20: 0.6503378923
E21: 11 | F21: 2.75 | G21: 0.06289195332 | H21: 0.2917107582 | I21: 0.3463364021 | J21: -0.05462564386 | L21: =L$50*EXP(-L$51*$G21) -> 0.9844395554 | M21: 0.9691988536 | N21: 0.9542700018 | O21: 0.9396452743 | P21: 0.9253171145 | Q21: 0.9112781354 | R21: 0.8975211207 | S21: 0.884039024 | T21: 0.8708249685 | U21: 0.857872246 | V21: 0.8451743153 | W21: 0.8327248006 | X21: 0.8205174894 | Y21: 0.8085463306 | Z21: 0.7968054315 | AA21: 0.7852890556 | AB21: 0.7739916199 | AC21: 0.7629076916 | AD21: 0.7520319856 | AE21: 0.7413593609 | AF21: 0.7308848182 | AG21: 0.7206034961 | AH21: 0.7105106682 | AI21: 0.7006017398 | AJ21: 0.6908722449 | AK21: 0.6813178426 | AL21: 0.6719343145 | AM21: 0.6627175608 | AN21: 0.6536635979
E22: 12 | F22: 3 | G22: 0.06445663925 | H22: 0.2823326741 | I22: 0.3424820667 | J22: -0.06014939255 | L22: =L$50*EXP(-L$51*$G22) -> 0.9840593179 | M22: 0.968459534 | N22: 0.9531917257 | O22: 0.9382471879 | P22: 0.9236174315 | Q22: 0.9092941832 | R22: 0.8952693829 | S22: 0.8815351815 | T22: 0.8680839388 | U22: 0.8549082199 | V22: 0.8420007923 | W22: 0.8293546227 | X22: 0.8169628727 | Y22: 0.8048188957 | Z22: 0.7929162323 | AA22: 0.7812486069 | AB22: 0.769809923 | AC22: 0.7585942593 | AD22: 0.7475958659 | AE22: 0.7368091591 | AF22: 0.7262287183 | AG22: 0.7158492808 | AH22: 0.7056657384 | AI22: 0.6956731328 | AJ22: 0.6858666514 | AK22: 0.6762416239 | AL22: 0.6667935175 | AM22: 0.6575179333
E23: 13 | F23: 3.25 | G23: 0.07009378221 | H23: 0.2700482488 | I23: 0.35140345 | J23: -0.08135520121 | L23: =L$50*EXP(-L$51*$G23) -> 0.9826906415 | M23: 0.9658006368 | N23: 0.9493170788 | O23: 0.933227483 | P23: 0.9175197753 | Q23: 0.9021822812 | R23: 0.887203714 | S23: 0.8725731634 | T23: 0.8582800844 | U23: 0.8443142859 | V23: 0.8306659198 | W23: 0.8173254702 | X23: 0.8042837427 | Y23: 0.7915318537 | Z23: 0.7790612208 | AA23: 0.7668635522 | AB23: 0.7549308373 | AC23: 0.7432553371 | AD23: 0.731829575 | AE23: 0.7206463277 | AF23: 0.7096986165 | AG23: 0.6989796992 | AH23: 0.6884830612 | AI23: 0.6782024079 | AJ23: 0.6681316571 | AK23: 0.6582649311 | AL23: 0.64859655
E24: 14 | F24: 3.5 | G24: 0.06770858572 | H24: 0.2635560142 | I24: 0.3341878135 | J24: -0.07063179928 | L24: =L$50*EXP(-L$51*$G24) -> 0.9832695254 | M24: 0.9669247813 | N24: 0.9509545994 | O24: 0.9353481422 | P24: 0.9200948964 | Q24: 0.905184666 | R24: 0.8906075655 | S24: 0.8763540125 | T24: 0.8624147203 | U24: 0.8487806905 | V24: 0.8354432058 | W24: 0.8223938221 | X24: 0.8096243612 | Y24: 0.7971269035 | Z24: 0.7848937803 | AA24: 0.7729175668 | AB24: 0.7611910745 | AC24: 0.7497073446 | AD24: 0.7384596407 | AE24: 0.7274414419 | AF24: 0.716646436 | AG24: 0.7060685135 | AH24: 0.6957017605 | AI24: 0.6855404526 | AJ24: 0.6755790491 | AK24: 0.6658121865
E25: 15 | F25: 3.75 | G25: 0.06336907402 | H25: 0.258030424 | I25: 0.3106579732 | J25: -0.05262754922 | L25: =L$50*EXP(-L$51*$G25) -> 0.9843235938 | M25: 0.9689733526 | N25: 0.9539410732 | O25: 0.9392187343 | P25: 0.9247984978 | Q25: 0.9106727093 | R25: 0.8968338973 | S25: 0.8832747729 | T25: 0.8699882286 | U25: 0.8569673362 | V25: 0.8442053454 | W25: 0.8316956813 | X25: 0.8194319419 | Y25: 0.8074078957 | Z25: 0.7956174781 | AA25: 0.7840547894 | AB25: 0.7727140907 | AC25: 0.7615898011 | AD25: 0.7506764943 | AE25: 0.739968895 | AF25: 0.7294618759 | AG25: 0.7191504537 | AH25: 0.7090297859 | AI25: 0.6990951674 | AJ25: 0.6893420268
E26: 16 | F26: 4 | G26: 0.0584565524 | H26: 0.2524285089 | I26: 0.2852365799 | J26: -0.03280807103 | L26: =L$50*EXP(-L$51*$G26) -> 0.98551821 | M26: 0.9712976653 | N26: 0.9573332154 | O26: 0.9436197505 | P26: 0.9301522093 | Q26: 0.9169255847 | R26: 0.90393493 | S26: 0.8911753632 | T26: 0.8786420719 | U26: 0.866330316 | V26: 0.8542354315 | W26: 0.8423528323 | X26: 0.8306780128 | Y26: 0.8192065492 | Z26: 0.807934101 | AA26: 0.7968564116 | AB26: 0.7859693091 | AC26: 0.7752687066 | AD26: 0.7647506024 | AE26: 0.7544110797 | AF26: 0.7442463064 | AG26: 0.7342525346 | AH26: 0.7244260997 | AI26: 0.7147634201
E27: 17 | F27: 4.25 | G27: 0.06437061906 | H27: 0.2401053549 | I27: 0.2940687669 | J27: -0.05396341206 | L27: =L$50*EXP(-L$51*$G27) -> 0.984080218 | M27: 0.9685001642 | N27: 0.9532509734 | O27: 0.938323995 | P27: 0.9237107922 | Q27: 0.9094031407 | R27: 0.8953930276 | S27: 0.8816726484 | T27: 0.8682344053 | U27: 0.8550709038 | V27: 0.84217495 | W27: 0.8295395468 | X27: 0.8171578908 | Y27: 0.8050233681 | Z27: 0.793129551 | AA27: 0.7814701936 | AB27: 0.770039228 | AC27: 0.7588307599 | AD27: 0.7478390649 | AE27: 0.737058584 | AF27: 0.7264839198 | AG27: 0.7161098319 | AH27: 0.7059312331
E28: 18 | F28: 4.5 | G28: 0.06020218516 | H28: 0.2335009809 | I28: 0.2711498763 | J28: -0.03764889541 | L28: =L$50*EXP(-L$51*$G28) -> 0.9850935449 | M28: 0.9704710979 | N28: 0.9561264602 | O28: 0.9420535208 | P28: 0.928246262 | Q28: 0.9146987636 | R28: 0.901405207 | S28: 0.888359878 | T28: 0.8755571693 | U28: 0.8629915824 | V28: 0.8506577288 | W28: 0.8385503315 | X28: 0.8266642249 | Y28: 0.8149943555 | Z28: 0.8035357815 | AA28: 0.7922836726 | AB28: 0.7812333092 | AC28: 0.7703800817 | AD28: 0.7597194895 | AE28: 0.7492471394 | AF28: 0.7389587448 | AG28: 0.7288501237
E29: 19 | F29: 4.75 | G29: 0.06318081854 | H29: 0.2229155031 | I29: 0.269977011 | J29: -0.04706150786 | L29: =L$50*EXP(-L$51*$G29) -> 0.9843693466 | M29: 0.9690623213 | N29: 0.9540708436 | O29: 0.9393870092 | P29: 0.9250030915 | Q29: 0.9109115416 | R29: 0.8971049892 | S29: 0.8835762413 | T29: 0.8703182814 | U29: 0.8573242686 | V29: 0.844587535 | W29: 0.8321015845 | X29: 0.8198600901 | Y29: 0.8078568915 | Z29: 0.7960859921 | AA29: 0.7845415567 | AB29: 0.7732179079 | AC29: 0.7621095234 | AD29: 0.7512110326 | AE29: 0.7405172135 | AF29: 0.730022989
E30: 20 | F30: 5 | G30: 0.06512680834 | H30: 0.2129055957 | I30: 0.2651311808 | J30: -0.05222558514 | L30: =L$50*EXP(-L$51*$G30) -> 0.9838965036 | M30: 0.9681430492 | N30: 0.9527302631 | O30: 0.9376490113 | P30: 0.9228903973 | Q30: 0.9084457604 | R30: 0.8943066721 | S30: 0.8804649336 | T30: 0.8669125717 | U30: 0.8536418353 | V30: 0.8406451913 | W30: 0.8279153204 | X30: 0.8154451125 | Y30: 0.8032276625 | Z30: 0.7912562652 | AA30: 0.7795244114 | AB30: 0.7680257822 | AC30: 0.7567542452 | AD30: 0.7457038491 | AE30: 0.7348688192
E31: 21 | F31: 5.25 | G31: 0.06574043718 | H31: 0.2034639101 | I31: 0.256024344 | J31: -0.05256043387 | L31: =L$50*EXP(-L$51*$G31) -> 0.9837474492 | M31: 0.9678533561 | N31: 0.9523079288 | O31: 0.9371016356 | P31: 0.9222252028 | Q31: 0.9076696108 | R31: 0.8934260904 | S31: 0.879486119 | T31: 0.8658414157 | U31: 0.8524839372 | V31: 0.8394058727 | W31: 0.8265996387 | X31: 0.8140578745 | Y31: 0.8017734364 | Z31: 0.7897393927 | AA31: 0.7779490188 | AB31: 0.766395791 | AC31: 0.7550733822 | AD31: 0.743975656
E32: 22 | F32: 5.5 | G32: 0.06300584056 | H32: 0.1952107952 | I32: 0.2374070919 | J32: -0.04219629667 | L32: =L$50*EXP(-L$51*$G32) -> 0.9844118745 | M32: 0.9691450225 | N32: 0.9541914773 | O32: 0.9395434429 | P32: 0.9251932958 | Q32: 0.9111335855 | R32: 0.8973570347 | S32: 0.8838565396 | T32: 0.8706251682 | U32: 0.8576561601 | V32: 0.8449429242 | W32: 0.8324790373 | X32: 0.820258242 | Y32: 0.8082744439 | Z32: 0.7965217096 | AA32: 0.7849942636 | AB32: 0.7736864858 | AC32: 0.7625929081
E33: 23 | F33: 5.75 | G33: 0.06997734748 | H33: 0.1832621597 | I33: 0.2447647644 | J33: -0.06150260462 | L33: =L$50*EXP(-L$51*$G33) -> 0.9827188921 | M33: 0.9658554822 | N33: 0.9493969498 | O33: 0.9333308925 | P33: 0.9176453138 | Q33: 0.9023286129 | R33: 0.8873695725 | S33: 0.8727573484 | T33: 0.858481458 | U33: 0.8445317693 | V33: 0.8308984903 | W33: 0.817572158 | X33: 0.8045436282 | Y33: 0.7918040653 | Z33: 0.7793449317 | AA33: 0.7671579785 | AB33: 0.7552352356
E34: 24 | F34: 6 | G34: 0.07543141955 | H34: 0.1721359342 | I34: 0.2465129984 | J34: -0.07437706422 | L34: =L$50*EXP(-L$51*$G34) -> 0.9813964386 | M34: 0.9632897376 | N34: 0.945662813 | O34: 0.9284992346 | P34: 0.9117832013 | Q34: 0.895499517 | R34: 0.8796335675 | S34: 0.8641712977 | T34: 0.8490991902 | U34: 0.8344042439 | V34: 0.820073954 | W34: 0.8060962921 | X34: 0.7924596876 | Y34: 0.7791530095 | Z34: 0.7661655488 | AA34: 0.7534870016
E35: 25 | F35: 6.25 | G35: 0.08001903465 | H35: 0.1614568843 | I35: 0.2447473694 | J35: -0.08329048512 | L35: =L$50*EXP(-L$51*$G35) -> 0.9802854537 | M35: 0.9611368764 | N35: 0.9425332718 | O35: 0.9244545274 | P35: 0.9068813758 | Q35: 0.889795357 | R35: 0.8731787829 | S35: 0.8570147032 | T35: 0.8412868728 | U35: 0.82597972 | V35: 0.8110783174 | W35: 0.7965683527 | X35: 0.7824361018 | Y35: 0.7686684027 | Z35: 0.7552526306
E36: 26 | F36: 6.5 | G36: 0.08057666555 | H36: 0.151880314 | I36: 0.2325963607 | J36: -0.08071604668 | L36: =L$50*EXP(-L$51*$G36) -> 0.9801504977 | M36: 0.9608755213 | N36: 0.9421535784 | O36: 0.9239640903 | P36: 0.9062873513 | Q36: 0.8891044898 | R36: 0.8723974305 | S36: 0.856148859 | T36: 0.8403421877 | U36: 0.8249615227 | V36: 0.8099916332 | W36: 0.7954179218 | X36: 0.7812263955 | Y36: 0.7674036393
E37: 27 | F37: 6.75 | G37: 0.06868877896 | H37: 0.1448763417 | I37: 0.1925746376 | J37: -0.04769829588 | L37: =L$50*EXP(-L$51*$G37) -> 0.9830315926 | M37: 0.9664626574 | N37: 0.950281321 | O37: 0.9344760775 | P37: 0.9190357803 | Q37: 0.9039496326 | R37: 0.8892071796 | S37: 0.8747982989 | T37: 0.860713192 | U37: 0.846942375 | V37: 0.8334766702 | W37: 0.8203071968 | X37: 0.8074253624
E38: 28 | F38: 7 | G38: 0.07182986069 | H38: 0.1341813647 | I38: 0.1863439052 | J38: -0.05216254051 | L38: =L$50*EXP(-L$51*$G38) -> 0.9822695119 | M38: 0.9649832438 | N38: 0.9481269738 | O38: 0.9316869735 | P38: 0.9156499923 | Q38: 0.9000032428 | R38: 0.8847343851 | S38: 0.8698315125 | T38: 0.8552831368 | U38: 0.8410781745 | V38: 0.8272059325 | W38: 0.8136560948
E39: 29 | F39: 7.25 | G39: 0.07023752212 | H39: 0.1242734335 | I39: 0.1696211011 | J39: -0.0453476676 | L39: =L$50*EXP(-L$51*$G39) -> 0.9826557669 | M39: 0.9657329338 | N39: 0.9492184865 | O39: 0.9330998387 | P39: 0.9173648204 | Q39: 0.902001666 | R39: 0.8869990026 | S39: 0.8723458386 | T39: 0.8580315516 | U39: 0.8440458775 | V39: 0.8303788989
E40: 30 | F40: 7.5 | G40: 0.06553095516 | H40: 0.1145563825 | I40: 0.1471209535 | J40: -0.03256457106 | L40: =L$50*EXP(-L$51*$G40) -> 0.9837983312 | M40: 0.9679522425 | N40: 0.9524520852 | O40: 0.937288464 | P40: 0.9224522345 | Q40: 0.9079345 | R40: 0.8937266079 | S40: 0.8798201466 | T40: 0.8662069405 | U40: 0.8528790465
E41: 31 | F41: 7.75 | G41: 0.07469279381 | H41: 0.1028237294 | I41: 0.1496362302 | J41: -0.04681250078 | L41: =L$50*EXP(-L$51*$G41) -> 0.9815754295 | M41: 0.9636368079 | N41: 0.9461676529 | O41: 0.9291521018 | P41: 0.9125748889 | Q41: 0.8964213229 | R41: 0.8806772661 | S41: 0.8653291128 | T41: 0.8503637698
E42: 32 | F42: 8 | G42: 0.075078396 | H42: 0.09215763825 | I42: 0.1352755221 | J42: -0.04311788383 | L42: =L$50*EXP(-L$51*$G42) -> 0.9814819826 | M42: 0.963455603 | N42: 0.9459040658 | O42: 0.9288112129 | P42: 0.9121614999 | Q42: 0.8959399726 | R42: 0.8801322451 | S42: 0.8647244779
E43: 33 | F43: 8.25 | G43: 0.07651693776 | H43: 0.08124055861 | I43: 0.1218980554 | J43: -0.04065749677 | L43: =L$50*EXP(-L$51*$G43) -> 0.9811334444 | M43: 0.962779894 | N43: 0.944921366 | O43: 0.9275405835 | P43: 0.9106209473 | Q43: 0.8941465089 | R43: 0.8781019446
E44: 34 | F44: 8.5 | G44: 0.08084496267 | H44: 0.0700163562 | I44: 0.1112277211 | J44: -0.04121136494 | L44: =L$50*EXP(-L$51*$G44) -> 0.9800855719 | M44: 0.9607497989 | N44: 0.9419709482 | O44: 0.9237282153 | P44: 0.9060016825 | Q44: 0.8887722789
E45: 35 | F45: 8.75 | G45: 0.07304162414 | H45: 0.05923307951 | I45: 0.08565283696 | J45: -0.02641975745 | L45: =L$50*EXP(-L$51*$G45) -> 0.9819756751 | M45: =M$50*EXP(-M$51*$G45) -> 0.9644131227 | N45: =N$50*EXP(-N$51*$G45) -> 0.947297178 | O45: =O$50*EXP(-O$51*$G45) -> 0.9306132221 | P45: =P$50*EXP(-P$51*$G45) -> 0.914347163
E46: 36 | F46: 9 | G46: 0.06737625548 | H46: 0.04796573372 | I46: 0.06435600341 | J46: -0.0163902697 | L46: =L$50*EXP(-L$51*$G46) -> 0.9833502086 | M46: =M$50*EXP(-M$51*$G46) -> 0.9670815126 | N46: =N$50*EXP(-N$51*$G46) -> 0.9511829798 | O46: =O$50*EXP(-O$51*$G46) -> 0.9356439966
E47: 37 | F47: 9.25 | G47: 0.06954987325 | H47: 0.03623212158 | I47: 0.05030975705 | J47: -0.01407763547 | L47: =L$50*EXP(-L$51*$G47) -> 0.9828226175 | M47: =M$50*EXP(-M$51*$G47) -> 0.9660568663 | N47: =N$50*EXP(-N$51*$G47) -> 0.9496902429
E48: 38 | F48: 9.5 | G48: 0.06163411747 | H48: 0.02443173657 | I48: 0.03020640525 | J48: -0.005774668674 | L48: =L$50*EXP(-L$51*$G48) -> 0.9847453312 | M48: =M$50*EXP(-M$51*$G48) -> 0.9697935948
E49: 39 | F49: 9.75 | G49: 0.06030142497 | H49: 0.0123133676 | I49: 0.01493059198 | J49: -0.00261722438 | L49: =L$50*EXP(-L$51*$G49) -> 0.985069408
E50: 40 | F50: 10 | G50: 0.06296839909 | H50: 0 | I50: 0 | J50: 0 | K50: A | L50: =EXP(((L51-L9)*(MeanRev^2*b_Param-Volatility^2/2))/MeanRev^2-(Volatility^2*L51^2/(4*MeanRev))) -> 0.9998453115 | M50: 0.9993874824 | N50: 0.9986358374 | O50: 0.9975996494 | P50: 0.9962881255 | Q50: 0.9947103934 | R50: 0.99287549 | S50: 0.99079235 | T50: 0.9884697969 | U50: 0.9859165334 | V50: 0.9831411338 | W50: 0.9801520374 | X50: 0.9769575415 | Y50: 0.9735657969 | Z50: 0.9699848023 | AA50: 0.966222401 | AB50: 0.962286277 | AC50: 0.9581839526 | AD50: 0.9539227858 | AE50: 0.9495099687 | AF50: 0.9449525263 | AG50: 0.9402573155 | AH50: 0.9354310249 | AI50: 0.9304801742 | AJ50: 0.9254111152 | AK50: 0.9202300319 | AL50: 0.9149429414 | AM50: 0.9095556953 | AN50: 0.9040739808 | AO50: 0.8985033224 | AP50: 0.8928490836 | AQ50: 0.887116469 | AR50: 0.8813105265 | AS50: 0.8754361489 | AT50: 0.8694980773 | AU50: 0.8635009026 | AV50: 0.8574490687 | AW50: 0.8513468749 | AX50: 0.8451984787 | AY50: 0.8390078984
K51: B | L51: =(1-EXP(-MeanRev*L9))/MeanRev -> 0.2469008797 | M51: 0.487705755 | N51: 0.7225651367 | O51: 0.9516258196 | P51: 1.175030974 | Q51: 1.392920236 | R51: 1.605429792 | S51: 1.812692469 | T51: 2.014837812 | U51: 2.211992169 | V51: 2.404278768 | W51: 2.591817793 | X51: 2.774726464 | Y51: 2.953119103 | Z51: 3.127107212 | AA51: 3.29679954 | AB51: 3.462302149 | AC51: 3.623718484 | AD51: 3.781149435 | AE51: 3.934693403 | AF51: 4.084446356 | AG51: 4.230501896 | AH51: 4.372951312 | AI51: 4.511883639 | AJ51: 4.647385715 | AK51: 4.779542232 | AL51: 4.908435794 | AM51: 5.034146962 | AN51: 5.15675431 | AO51: 5.276334473 | AP51: 5.39296219 | AQ51: 5.506710359 | AR51: 5.617650075 | AS51: 5.725850681 | AT51: 5.831379803 | AU51: 5.934303403 | AV51: 6.034685809 | AW51: 6.132589765 | AX51: 6.228076464 | AY51: 6.321205588
C52: EE | D52: PFE (90%) | E52: Simulations
B53: 0 | C53: =SUMIF(E53:IT53,">0")/250 -> 0 | D53: =SMALL(E53:IT53,90%*250) -> 
B54: 0.25 | C54: 0
B55: 0.5 | C55: 0
B56: 0.75 | C56: 0
B57: 1 | C57: 0
B58: 1.25 | C58: 0
B59: 1.5 | C59: 0
B60: 1.75 | C60: 0
B61: 2 | C61: 0
B62: 2.25 | C62: 0
B63: 2.5 | C63: 0
B64: 2.75 | C64: 0
B65: 3 | C65: 0
B66: 3.25 | C66: 0
B67: 3.5 | C67: 0
B68: 3.75 | C68: 0
B69: 4 | C69: 0
B70: 4.25 | C70: 0
B71: 4.5 | C71: 0
B72: 4.75 | C72: 0
B73: 5 | C73: 0
B74: 5.25 | C74: 0
B75: 5.5 | C75: 0
B76: 5.75 | C76: 0
B77: 6 | C77: 0
B78: 6.25 | C78: 0
B79: 6.5 | C79: 0
B80: 6.75 | C80: 0
B81: 7 | C81: 0
B82: 7.25 | C82: 0
B83: 7.5 | C83: 0
B84: 7.75 | C84: 0
B85: 8 | C85: 0
B86: 8.25 | C86: 0
B87: 8.5 | C87: 0
B88: 8.75 | C88: 0
B89: 9 | C89: 0
B90: 9.25 | C90: 0
B91: 9.5 | C91: 0
B92: 9.75 | C92: 0
B93: 10 | C93: 0

Sheet Spreadsheet9.2
B9: Trade Details
B10: Base case | C10: 100m IRS Payer GBP 5Y
B11: Trade 1 | C11: 100m IRS Payer GBP 6Y | E11: FALSE
B12: Trade 2 | C12: 100m IRS Payer EUR 5Y | E12: TRUE
B13: Trade 3 | C13: 100m IRS Receiver EUR 5Y | E13: FALSE
B14: Trade 4 | C14: 25m CCS GBPUSD 5Y | E14: FALSE
B15: Trade 5 | C15: 100m IRS Payer GBP 5Y (off market) | E15: FALSE
B17: EE | C17: 0 | D17: 0.002747252747 | E17: 0.02747252747 | F17: 0.05494505495 | G17: 0.08241758242 | H17: 0.1648351648 | I17: 0.2472527473 | J17: 0.3296703297 | K17: 0.4120879121 | L17: 0.4945054945 | M17: 0.5769230769 | N17: 0.6593406593 | O17: 0.7417582418 | P17: 0.8241758242 | Q17: 0.9065934066 | R17: 0.989010989 | S17: 1.071428571 | T17: 1.153846154 | U17: 1.236263736 | V17: 1.318681319 | W17: 1.401098901 | X17: 1.483516484 | Y17: 1.565934066 | Z17: 1.648351648 | AA17: 1.730769231 | AB17: 1.813186813 | AC17: 1.895604396 | AD17: 1.978021978 | AE17: 2.06043956 | AF17: 2.142857143 | AG17: 2.225274725 | AH17: 2.307692308 | AI17: 2.39010989 | AJ17: 2.472527473 | AK17: 2.554945055 | AL17: 2.637362637 | AM17: 2.71978022 | AN17: 2.802197802 | AO17: 2.884615385 | AP17: 2.967032967 | AQ17: 3.049450549 | AR17: 3.131868132 | AS17: 3.214285714 | AT17: 3.296703297 | AU17: 3.379120879 | AV17: 3.461538462 | AW17: 3.543956044 | AX17: 3.626373626 | AY17: 3.708791209 | AZ17: 3.791208791 | BA17: 3.873626374 | BB17: 3.956043956 | BC17: 4.038461538 | BD17: 4.120879121 | BE17: 4.203296703 | BF17: 4.285714286 | BG17: 4.368131868 | BH17: 4.450549451 | BI17: 4.532967033 | BJ17: 4.615384615 | BK17: 4.697802198 | BL17: 4.78021978 | BM17: 4.862637363 | BN17: 4.945054945 | BO17: 5
B18: =C10 -> 100m IRS Payer GBP 5Y | C18: =SUMIF(C35:C1034,">0")/1000 -> 0 | D18: =SUMIF(D35:D1034,">0")/1000 -> 59010.0624 | E18: =SUMIF(E35:E1034,">0")/1000 -> 177226.7561 | F18: 243779.1054 | G18: 282573.5507 | H18: 365844.8589 | I18: 396985.5586 | J18: 425266.9343 | K18: 468766.1378 | L18: 474727.5954 | M18: 592890.9878 | N18: 608683.4963 | O18: 588225.2716 | P18: 609065.2635 | Q18: 583600.4593 | R18: 550812.2625 | S18: 640739.0275 | T18: 631950.0945 | U18: 654252.3079 | V18: 660782.2386 | W18: 678056.1411 | X18: 686624.7191 | Y18: 782327.102 | Z18: 797259.609 | AA18: 795533.0994 | AB18: 784195.0631 | AC18: 784195.3239 | AD18: 783748.63 | AE18: 844533.8463 | AF18: 858732.3994 | AG18: 862139.168 | AH18: 867607.4399 | AI18: 807474.9201 | AJ18: 762892.5951 | AK18: 800793.5899 | AL18: 803561.6757 | AM18: 797131.554 | AN18: 784725.562 | AO18: 739187.3674 | AP18: 693290.8596 | AQ18: 709449.9934 | AR18: 662723.7567 | AS18: 581227.1266 | AT18: 507464.0201 | AU18: 446027.0619 | AV18: 366332.6592 | AW18: 363976.4848 | AX18: 301814.4897 | AY18: 246492.0099 | AZ18: 185009.9266 | BA18: 134877.1863 | BB18: 85146.5379 | BC18: 92727.4613 | BD18: 69202.9191 | BE18: 50657.4796 | BF18: 37811.952 | BG18: 26630.8285 | BH18: 14925.1836 | BI18: 7925.4485 | BJ18: 7817.1039 | BK18: 7667.4475 | BL18: 7534.8761 | BM18: 7347.8597 | BN18: 7024.9434 | BO18: 6756.4947
B19: =IF(COUNTIF(E11:E14,TRUE)=1,OFFSET(C11,MATCH(TRUE,E11:E14,FALSE)-1,0,1,1),"Netting set") -> 100m IRS Payer EUR 5Y | C19: =SUMIF(C5045:C6044,">0")/1000 -> 0 | D19: =SUMIF(D5045:D6044,">0")/1000 -> 58797.0668 | E19: =SUMIF(E5045:E6044,">0")/1000 -> 157230.8242 | F19: 220567.8335 | G19: 263869.8907 | H19: 346611.1423 | I19: 374879.3133 | J19: 449226.3341 | K19: 485547.5696 | L19: 503550.7463 | M19: 538825.0149 | N19: 519345.7757 | O19: 497786.3753 | P19: 521552.4769 | Q19: 528224.9401 | R19: 529024.6718 | S19: 575246.1186 | T19: 565218.178 | U19: 559351.7692 | V19: 581368.0069 | W19: 561355.1945 | X19: 561087.2305 | Y19: 605509.7771 | Z19: 602123.1022 | AA19: 605538.504 | AB19: 628297.0194 | AC19: 609852.8546 | AD19: 606290.2702 | AE19: 618676.3035 | AF19: 623538.6214 | AG19: 608693.9972 | AH19: 609872.6203 | AI19: 599996.3807 | AJ19: 584637.2197 | AK19: 591139.6063 | AL19: 584682.4128 | AM19: 563888.4845 | AN19: 572823.4442 | AO19: 564425.805 | AP19: 565026.0365 | AQ19: 561425.6451 | AR19: 525836.7544 | AS19: 487606.8224 | AT19: 467891.8291 | AU19: 431767.3877 | AV19: 384110.2431 | AW19: 360761.7951 | AX19: 317276.0953 | AY19: 280117.163 | AZ19: 262525.4073 | BA19: 246570.5502 | BB19: 230682.9545 | BC19: 234422.7456 | BD19: 171049.7342 | BE19: 115802.3088 | BF19: 90952.2737 | BG19: 63386.3257 | BH19: 42215.241 | BI19: 27222.0109 | BJ19: 21460.3073 | BK19: 18737.1097 | BL19: 9524.4119 | BM19: 9540.5734 | BN19: 9558.0637 | BO19: 9570.0848
B20: Both (with netting) | C20: =SUMIF(C6047:C7046,">0")/1000 -> 0 | D20: =SUMIF(D6047:D7046,">0")/1000 -> 101393.7021 | E20: =SUMIF(E6047:E7046,">0")/1000 -> 281963.3427 | F20: 397349.5322 | G20: 463297.8557 | H20: 606390.1135 | I20: 629100.271 | J20: 718723.1745 | K20: 780214.6535 | L20: 785259.9906 | M20: 940062.6388 | N20: 927129.3365 | O20: 887388.5099 | P20: 942260.1191 | Q20: 917082.8275 | R20: 867634.5608 | S20: 991659.0963 | T20: 971206.3664 | U20: 999083.9254 | V20: 1017159.856 | W20: 1009964.302 | X20: 1029488.669 | Y20: 1166983.66 | Z20: 1185996.217 | AA20: 1185941.068 | AB20: 1200043.99 | AC20: 1177157.889 | AD20: 1176399.99 | AE20: 1242445.738 | AF20: 1268001.96 | AG20: 1251982.127 | AH20: 1259544.388 | AI20: 1189737.853 | AJ20: 1135038.904 | AK20: 1188885.401 | AL20: 1186574.037 | AM20: 1155224.488 | AN20: 1156867.469 | AO20: 1101251.717 | AP20: 1048771.736 | AQ20: 1073619.149 | AR20: 1008559.965 | AS20: 906048.7524 | AT20: 828212.1692 | AU20: 746252.115 | AV20: 631246.068 | AW20: 630955.6806 | AX20: 539563.2928 | AY20: 454427.1631 | AZ20: 379975.913 | BA20: 307225.7039 | BB20: 229414.3618 | BC20: 269171.497 | BD20: 183276.0046 | BE20: 116735.6162 | BF20: 78121.5156 | BG20: 48930.5669 | BH20: 27063.8986 | BI20: 16508.2734 | BJ20: 14530.5465 | BK20: 13424.9402 | BL20: 8662.2564 | BM20: 8493.7481 | BN20: 8203.6304 | BO20: 7951.8907
B21: Both (without netting) | C21: =C19+C18 -> 0 | D21: =D19+D18 -> 117807.1292 | E21: =E19+E18 -> 334457.5803 | F21: 464346.9389 | G21: 546443.4414 | H21: 712456.0012 | I21: 771864.8719 | J21: 874493.2684 | K21: 954313.7074 | L21: 978278.3417 | M21: 1131716.003 | N21: 1128029.272 | O21: 1086011.647 | P21: 1130617.74 | Q21: 1111825.399 | R21: 1079836.934 | S21: 1215985.146 | T21: 1197168.273 | U21: 1213604.077 | V21: 1242150.246 | W21: 1239411.336 | X21: 1247711.95 | Y21: 1387836.879 | Z21: 1399382.711 | AA21: 1401071.603 | AB21: 1412492.082 | AC21: 1394048.179 | AD21: 1390038.9 | AE21: 1463210.15 | AF21: 1482271.021 | AG21: 1470833.165 | AH21: 1477480.06 | AI21: 1407471.301 | AJ21: 1347529.815 | AK21: 1391933.196 | AL21: 1388244.088 | AM21: 1361020.038 | AN21: 1357549.006 | AO21: 1303613.172 | AP21: 1258316.896 | AQ21: 1270875.639 | AR21: 1188560.511 | AS21: 1068833.949 | AT21: 975355.8492 | AU21: 877794.4496 | AV21: 750442.9023 | AW21: 724738.2799 | AX21: 619090.585 | AY21: 526609.1729 | AZ21: 447535.3339 | BA21: 381447.7365 | BB21: 315829.4924 | BC21: 327150.2069 | BD21: 240252.6533 | BE21: 166459.7884 | BF21: 128764.2257 | BG21: 90017.1542 | BH21: 57140.4246 | BI21: 35147.4594 | BJ21: 29277.4112 | BK21: 26404.5572 | BL21: 17059.288 | BM21: 16888.4331 | BN21: 16583.0071 | BO21: 16326.5795
B23: NEE | C23: 0 | D23: 0.002747252747 | E23: 0.02747252747 | F23: 0.05494505495 | G23: 0.08241758242 | H23: 0.1648351648 | I23: 0.2472527473 | J23: 0.3296703297 | K23: 0.4120879121 | L23: 0.4945054945 | M23: 0.5769230769 | N23: 0.6593406593 | O23: 0.7417582418 | P23: 0.8241758242 | Q23: 0.9065934066 | R23: 0.989010989 | S23: 1.071428571 | T23: 1.153846154 | U23: 1.236263736 | V23: 1.318681319 | W23: 1.401098901 | X23: 1.483516484 | Y23: 1.565934066 | Z23: 1.648351648 | AA23: 1.730769231 | AB23: 1.813186813 | AC23: 1.895604396 | AD23: 1.978021978 | AE23: 2.06043956 | AF23: 2.142857143 | AG23: 2.225274725 | AH23: 2.307692308 | AI23: 2.39010989 | AJ23: 2.472527473 | AK23: 2.554945055 | AL23: 2.637362637 | AM23: 2.71978022 | AN23: 2.802197802 | AO23: 2.884615385 | AP23: 2.967032967 | AQ23: 3.049450549 | AR23: 3.131868132 | AS23: 3.214285714 | AT23: 3.296703297 | AU23: 3.379120879 | AV23: 3.461538462 | AW23: 3.543956044 | AX23: 3.626373626 | AY23: 3.708791209 | AZ23: 3.791208791 | BA23: 3.873626374 | BB23: 3.956043956 | BC23: 4.038461538 | BD23: 4.120879121 | BE23: 4.203296703 | BF23: 4.285714286 | BG23: 4.368131868 | BH23: 4.450549451 | BI23: 4.532967033 | BJ23: 4.615384615 | BK23: 4.697802198 | BL23: 4.78021978 | BM23: 4.862637363 | BN23: 4.945054945 | BO23: 5
B24: =B18 -> 100m IRS Payer GBP 5Y | C24: =SUMIF(C35:C1034,"<0")/1000 -> 0 | D24: =SUMIF(D35:D1034,"<0")/1000 -> -57887.8213 | E24: -188199.7293 | F24: -276216.7743 | G24: -353598.8616 | H24: -494582.8329 | I24: -647326.5257 | J24: -783631.0906 | K24: -929204.1053 | L24: -1045824.55 | M24: -941814.715 | N24: -1025800.408 | O24: -1132470.312 | P24: -1212253.57 | Q24: -1295452.85 | R24: -1356457.941 | S24: -1218967.749 | T24: -1260741.883 | U24: -1345095.235 | V24: -1407224.091 | W24: -1457366.359 | X24: -1505900.681 | Y24: -1388468.161 | Z24: -1442317.457 | AA24: -1461684.367 | AB24: -1493965.454 | AC24: -1522258.036 | AD24: -1559444.547 | AE24: -1410826.312 | AF24: -1403653.631 | AG24: -1402686.648 | AH24: -1401174.094 | AI24: -1391894.724 | AJ24: -1411478.501 | AK24: -1279512.715 | AL24: -1276262.084 | AM24: -1269530.879 | AN24: -1248093.408 | AO24: -1236253.933 | AP24: -1235003.542 | AQ24: -1010415.365 | AR24: -930269.6373 | AS24: -866957.4984 | AT24: -807238.2963 | AU24: -757989.4358 | AV24: -728544.6956 | AW24: -509204.742 | AX24: -444337.1097 | AY24: -376745.7826 | AZ24: -330362.2899 | BA24: -306422.7592 | BB24: -313117.8817 | BC24: -137879.8494 | BD24: -182589.0864 | BE24: -233949.1771 | BF24: -292048.1503 | BG24: -354890.2752 | BH24: -427395.6229 | BI24: -222940.0948 | BJ24: -225778.3187 | BK24: -228638.4945 | BL24: -231491.2305 | BM24: -234311.7469 | BN24: -237389.6513 | BO24: -239604.5015
B25: =B19 -> 100m IRS Payer EUR 5Y | C25: =SUMIF(C5045:C6044,"<0")/1000 -> 0 | D25: =SUMIF(D5045:D6044,"<0")/1000 -> -54500.1924 | E25: -180726.7752 | F25: -261840.329 | G25: -348769.7349 | H25: -514273.3284 | I25: -623526.5062 | J25: -657123.339 | K25: -776426.9538 | L25: -843395.7639 | M25: -892056.5449 | N25: -978929.2349 | O25: -1046250.564 | P25: -1072399.967 | Q25: -1149312.029 | R25: -1204100.765 | S25: -1197956.472 | T25: -1257882.086 | U25: -1261420.893 | V25: -1258888.432 | W25: -1290338.259 | X25: -1304491.099 | Y25: -1291850.553 | Z25: -1328678.897 | AA25: -1322190.35 | AB25: -1283809.916 | AC25: -1319049.683 | AD25: -1306797.672 | AE25: -1281963.548 | AF25: -1281811.945 | AG25: -1256141.417 | AH25: -1199992.427 | AI25: -1221891.508 | AJ25: -1193120.838 | AK25: -1146752.882 | AL25: -1155554.381 | AM25: -1136348.746 | AN25: -1068240.074 | AO25: -1066396.538 | AP25: -1045299.357 | AQ25: -925958.0956 | AR25: -827437.8139 | AS25: -756684.6948 | AT25: -633377.3992 | AU25: -541918.9771 | AV25: -472856.4111 | AW25: -353745.4027 | AX25: -272058.3047 | AY25: -213547.1265 | AZ25: -118341.307 | BA25: -72758.4824 | BB25: -50656.6101 | BC25: -20525.2115 | BD25: -37699.2172 | BE25: -72122.6582 | BF25: -48961.5514 | BG25: -72949.0116 | BH25: -113988.5879 | BI25: -80324.0741 | BJ25: -107097.5139 | BK25: -143110.4198 | BL25: -85694.8658 | BM25: -85802.0318 | BN25: -85886.2596 | BO25: -85930.0421
B26: Both (with netting) | C26: =SUMIF(C6047:C7046,"<0")/1000 -> 0 | D26: =SUMIF(D6047:D7046,"<0")/1000 -> -95974.5866 | E26: -316432.2669 | F26: -471059.6966 | G26: -619223.0108 | H26: -902790.2736 | I26: -1128088.431 | J26: -1284984.336 | K26: -1531532.005 | L26: -1696201.963 | M26: -1642217.896 | N26: -1803829.707 | O26: -1980097.739 | P26: -2096295.915 | Q26: -2250022.308 | R26: -2348356.332 | S26: -2192598.172 | T26: -2292662.063 | U26: -2391995.976 | V26: -2441122.134 | W26: -2518257.584 | X26: -2592168.499 | Y26: -2459465.495 | Z26: -2557609.86 | AA26: -2568744.181 | AB26: -2565327.277 | AC26: -2624417.429 | AD26: -2652603.309 | AE26: -2472025.448 | AF26: -2471196.516 | AG26: -2439977.026 | AH26: -2383230.848 | AI26: -2396052.784 | AJ26: -2392108.427 | AK26: -2223217.802 | AL26: -2230146.414 | AM26: -2200084.074 | AN26: -2115651.945 | AO26: -2100289.016 | AP26: -2070757.739 | AQ26: -1739116.971 | AR26: -1577706.905 | AS26: -1460856.997 | AT26: -1293472.016 | AU26: -1168366.078 | AV26: -1082204.272 | AW26: -769167.5454 | AX26: -636868.1222 | AY26: -518110.8993 | AZ26: -381144.176 | BA26: -304959.209 | BB26: -277359.3612 | BC26: -100426.351 | BD26: -163311.6549 | BE26: -256347.6631 | BF26: -290366.9916 | BG26: -386752.6995 | BH26: -511307.6848 | BI26: -284624.9829 | BJ26: -318128.9679 | BK26: -358769.2973 | BL26: -308789.0647 | BM26: -311719.0937 | BN26: -314896.5342 | BO26: -317159.8548
B27: Both (without netting) | C27: =C25+C24 -> 0 | D27: =D25+D24 -> -112388.0137 | E27: -368926.5045 | F27: -538057.1033 | G27: -702368.5965 | H27: -1008856.161 | I27: -1270853.032 | J27: -1440754.43 | K27: -1705631.059 | L27: -1889220.314 | M27: -1833871.26 | N27: -2004729.643 | O27: -2178720.876 | P27: -2284653.536 | Q27: -2444764.88 | R27: -2560558.706 | S27: -2416924.221 | T27: -2518623.969 | U27: -2606516.128 | V27: -2666112.523 | W27: -2747704.618 | X27: -2810391.78 | Y27: -2680318.714 | Z27: -2770996.354 | AA27: -2783874.717 | AB27: -2777775.369 | AC27: -2841307.719 | AD27: -2866242.219 | AE27: -2692789.861 | AF27: -2685465.576 | AG27: -2658828.064 | AH27: -2601166.521 | AI27: -2613786.232 | AJ27: -2604599.339 | AK27: -2426265.597 | AL27: -2431816.466 | AM27: -2405879.625 | AN27: -2316333.482 | AO27: -2302650.471 | AP27: -2280302.899 | AQ27: -1936373.461 | AR27: -1757707.451 | AS27: -1623642.193 | AT27: -1440615.695 | AU27: -1299908.413 | AV27: -1201401.107 | AW27: -862950.1447 | AX27: -716395.4144 | AY27: -590292.9091 | AZ27: -448703.5969 | BA27: -379181.2416 | BB27: -363774.4918 | BC27: -158405.0609 | BD27: -220288.3036 | BE27: -306071.8353 | BF27: -341009.7017 | BG27: -427839.2868 | BH27: -541384.2108 | BI27: -303264.1689 | BJ27: -332875.8326 | BK27: -371748.9143 | BL27: -317186.0963 | BM27: -320113.7787 | BN27: -323275.9109 | BO27: -325534.5436
C30: Path Num -> | D30: 3
B31: =B24 -> 100m IRS Payer GBP 5Y | C31: =OFFSET(C35,PathRef-1,0,1,1) -> 0 | D31: -50520.1 | E31: 199459.4 | F31: 167087.6 | G31: 795577.4 | H31: 308669 | I31: 783949.3 | J31: 561332.3 | K31: 1542688.4 | L31: 3070137.8 | M31: 2432851.7 | N31: 2229304.3 | O31: 2184155.1 | P31: 2171667.3 | Q31: 3462316.8 | R31: 2688970.8 | S31: 3425912.6 | T31: 2585342.2 | U31: 3022372.3 | V31: 3500113.8 | W31: 1807639.3 | X31: 3224134.6 | Y31: 2477853.3 | Z31: 3480356.4 | AA31: 3111356.6 | AB31: 5364117.1 | AC31: 4844547.8 | AD31: 3191666 | AE31: 2713925.2 | AF31: 1859671.7 | AG31: 2359863.5 | AH31: 2747028.4 | AI31: =OFFSET(AI35,PathRef-1,0,1,1) -> 2649343 | AJ31: 3680868.1 | AK31: 2864943.2 | AL31: 3324693.3 | AM31: 5385897.1 | AN31: 3883461.5 | AO31: 4187594.1 | AP31: 4027302.8 | AQ31: 3346809.9 | AR31: 3121447.5 | AS31: 2227784.9 | AT31: 1934507.2 | AU31: 1227376.2 | AV31: 863002.1 | AW31: 1143334.5 | AX31: 838631.5 | AY31: 567008.2 | AZ31: 588348.1 | BA31: 609857.9 | BB31: 450493.5 | BC31: 371618 | BD31: 359395.9 | BE31: 334217.9 | BF31: 356607.5 | BG31: 353329.2 | BH31: 210146.8 | BI31: 146414.5 | BJ31: 149476.2 | BK31: 148366.4 | BL31: 147617.3 | BM31: 146064 | BN31: 141621.9 | BO31: 136896.3
B32: =B19 -> 100m IRS Payer EUR 5Y | C32: =OFFSET(C5045,PathRef-1,0,1,1) -> 0 | D32: 66124.4 | E32: 522389.8 | F32: 228200.9 | G32: 924872 | H32: 1926126.4 | I32: 2187326.3 | J32: 1310398.4 | K32: 2118316.4 | L32: 2660740.3 | M32: 2779160.5 | N32: 1496119.2 | O32: 300663.9 | P32: -70051.4 | Q32: 350506.3 | R32: 13618.6 | S32: 98195 | T32: -687545.3 | U32: -341370.3 | V32: 841650.1 | W32: 249393.2 | X32: -93331.5 | Y32: 188603.6 | Z32: 181627.2 | AA32: -107399.1 | AB32: 1318005.2 | AC32: 317166.8 | AD32: -87765.1 | AE32: 783818.8 | AF32: 156287.5 | AG32: 786056.5 | AH32: 1053036.9 | AI32: =OFFSET(AI5045,PathRef-1,0,1,1) -> 1758954.3 | AJ32: 1497369.1 | AK32: 1468184.8 | AL32: 1510701.5 | AM32: 2571257.3 | AN32: 1780950.3 | AO32: 1714197.4 | AP32: 1491570 | AQ32: 1355564.6 | AR32: 1362152.8 | AS32: 1050800.1 | AT32: 1027771.4 | AU32: 1053379.5 | AV32: 976762.9 | AW32: 989279.3 | AX32: 1130130.9 | AY32: 1359490.6 | AZ32: 1021976.7 | BA32: 892632.6 | BB32: 737129.7 | BC32: 584937.8 | BD32: 457856.4 | BE32: 361548.4 | BF32: 283313.4 | BG32: 237044.5 | BH32: 153309.7 | BI32: 101406 | BJ32: 56637.1 | BK32: 32235.5 | BL32: 23166.1 | BM32: 23192.8 | BN32: 23228.7 | BO32: 23258.9
B34: Payer Swap GBP 5Y (base case)
B35: Simulation 1 | C35: 0 | D35: -36955 | E35: -374152 | F35: 117159.7 | G35: 909186.7 | H35: 1534020.6 | I35: 1137467.6 | J35: 2021828.6 | K35: 2557736.4 | L35: 1894767.5 | M35: 2433712.9 | N35: 1827461.8 | O35: 3529123.7 | P35: 3405879.4 | Q35: 2849321.4 | R35: 2895649.2 | S35: 2406252.4 | T35: 4528896 | U35: 3433361.6 | V35: 2342940 | W35: 1723545.8 | X35: 1407299.3 | Y35: 1324854.7 | Z35: 721898.3 | AA35: -183213.6 | AB35: 573238.7 | AC35: -115578.6 | AD35: 967466.1 | AE35: 1966808.7 | AF35: 2663352.8 | AG35: 2587673 | AH35: 1112627.6 | AI35: 925289.9 | AJ35: 8207.1 | AK35: -246934.2 | AL35: 52668.4 | AM35: 325649.5 | AN35: 744026.1 | AO35: 2392728.2 | AP35: 1516930.4 | AQ35: 2458926.7 | AR35: 1809706.7 | AS35: 1924356.5 | AT35: 2018256.2 | AU35: 2736019.6 | AV35: 3158256.4 | AW35: 2445303.1 | AX35: 2179040.6 | AY35: 1701292.7 | AZ35: 1215249.8 | BA35: 757070.7 | BB35: 516786.5 | BC35: 404902.9 | BD35: 335378.1 | BE35: 245994.2 | BF35: 210653.9 | BG35: 191883 | BH35: 94392.1 | BI35: 103415 | BJ35: 101568.4 | BK35: 97616.8 | BL35: 95424.3 | BM35: 93599.5 | BN35: 87783 | BO35: 83229.8
B36: Simulation 2 | C36: 0 | D36: 124822.8 | E36: 762379.7 | F36: -198990.3 | G36: -390051.9 | H36: -437064.6 | I36: 9045.6 | J36: -877936.3 | K36: -1132394.4 | L36: -1448857.2 | M36: -1204110.6 | N36: -1164773.6 | O36: -1334907.5 | P36: -1816289.9 | Q36: -2147278 | R36: -1889255.1 | S36: -1831723.3 | T36: -1997383.7 | U36: -2285311.1 | V36: -2321976.1 | W36: -2416530.7 | X36: -2677442.7 | Y36: -2852893 | Z36: -2593613.2 | AA36: -2482892.1 | AB36: -2439859.7 | AC36: -2292308.2 | AD36: -2560781.1 | AE36: -2642291.7 | AF36: -2663638.4 | AG36: -2637293.2 | AH36: -2481944.1 | AI36: -2275907.1 | AJ36: -2392863.9 | AK36: -2495487.7 | AL36: -2548921.4 | AM36: -2366036.1 | AN36: -2203192.9 | AO36: -2007401.9 | AP36: -1953191.3 | AQ36: -1743603.3 | AR36: -1719279 | AS36: -1487200.1 | AT36: -1272203.1 | AU36: -1136001.6 | AV36: -987584.1 | AW36: -860084.8 | AX36: -804817.5 | AY36: -576765.5 | AZ36: -398439.2 | BA36: -244409.7 | BB36: -140551.5 | BC36: -974.9 | BD36: -67762.9 | BE36: -147270.2 | BF36: -184277.2 | BG36: -263913 | BH36: -369083.6 | BI36: -214335.2 | BJ36: -216619.5 | BK36: -221075.2 | BL36: -225494.1 | BM36: -229518.6 | BN36: -232757 | BO36: -235081.8
B37: Simulation 3 | C37: 0 | D37: -50520.1 | E37: 199459.4 | F37: 167087.6 | G37: 795577.4 | H37: 308669 | I37: 783949.3 | J37: 561332.3 | K37: 1542688.4 | L37: 3070137.8 | M37: 2432851.7 | N37: 2229304.3 | O37: 2184155.1 | P37: 2171667.3 | Q37: 3462316.8 | R37: 2688970.8 | S37: 3425912.6 | T37: 2585342.2 | U37: 3022372.3 | V37: 3500113.8 | W37: 1807639.3 | X37: 3224134.6 | Y37: 2477853.3 | Z37: 3480356.4 | AA37: 3111356.6 | AB37: 5364117.1 | AC37: 4844547.8 | AD37: 3191666 | AE37: 2713925.2 | AF37: 1859671.7 | AG37: 2359863.5 | AH37: 2747028.4 | AI37: 2649343 | AJ37: 3680868.1 | AK37: 2864943.2 | AL37: 3324693.3 | AM37: 5385897.1 | AN37: 3883461.5 | AO37: 4187594.1 | AP37: 4027302.8 | AQ37: 3346809.9 | AR37: 3121447.5 | AS37: 2227784.9 | AT37: 1934507.2 | AU37: 1227376.2 | AV37: 863002.1 | AW37: 1143334.5 | AX37: 838631.5 | AY37: 567008.2 | AZ37: 588348.1 | BA37: 609857.9 | BB37: 450493.5 | BC37: 371618 | BD37: 359395.9 | BE37: 334217.9 | BF37: 356607.5 | BG37: 353329.2 | BH37: 210146.8 | BI37: 146414.5 | BJ37: 149476.2 | BK37: 148366.4 | BL37: 147617.3 | BM37: 146064 | BN37: 141621.9 | BO37: 136896.3
B38: Simulation 4 | C38: 0 | D38: 39279 | E38: 524640.2 | F38: 1067318.9 | G38: 1355681.2 | H38: 161702.5 | I38: -217751.9 | J38: -1394015.9 | K38: -1098062.8 | L38: -1478594.3 | M38: -1040347.7 | N38: -1717270.5 | O38: -1616850.1 | P38: -467889.9 | Q38: 98389.2 | R38: 41866.2 | S38: -240092.2 | T38: 234354.4 | U38: -963854.7 | V38: -1052879.5 | W38: -1398496.1 | X38: -1640259.5 | Y38: -1839529 | Z38: -2179045.1 | AA38: -1973588.1 | AB38: -1841365.9 | AC38: -2068301.7 | AD38: -2063517.7 | AE38: -2308380.5 | AF38: -2579235.2 | AG38: -2444123.9 | AH38: -2193155.2 | AI38: -2373198.8 | AJ38: -2194700.7 | AK38: -1930518 | AL38: -2064834.6 | AM38: -1854449.1 | AN38: -1709545.5 | AO38: -1626062.6 | AP38: -1624496.2 | AQ38: -1459790.8 | AR38: -1185981.6 | AS38: -1073475.8 | AT38: -877361.7 | AU38: -742921.1 | AV38: -729713.6 | AW38: -669645.9 | AX38: -492806.3 | AY38: -308138.3 | AZ38: -51226.6 | BA38: 65894.9 | BB38: 115664.1 | BC38: 154713.4 | BD38: 122103 | BE38: 66928.5 | BF38: -6453.3 | BG38: -50768.3 | BH38: -58014.7 | BI38: -37938.7 | BJ38: -39428.3 | BK38: -38392.3 | BL38: -40170.1 | BM38: -39938.8 | BN38: -44612.3 | BO38: -46953.5
B39: Simulation 5 | C39: 0 | D39: 174497.7 | E39: 490605.8 | F39: 587718.6 | G39: 854639.1 | H39: 1620092.2 | I39: 2156077.2 | J39: 1909058 | K39: 1591558 | L39: 1413110.4 | M39: 1922397.9 | N39: 4786889.7 | O39: 4403110.8 | P39: 4975421.7 | Q39: 4709106.9 | R39: 3694149.3 | S39: 3086964.9 | T39: 2454422.2 | U39: 3402682 | V39: 3542866.3 | W39: 1779786.1 | X39: 2004322.9 | Y39: 3361718.4 | Z39: 5217041.1 | AA39: 4169192.8 | AB39: 4094540 | AC39: 4222135.5 | AD39: 3357856.4 | AE39: 3871339.7 | AF39: 4405332.3 | AG39: 4288540.8 | AH39: 5372247.7 | AI39: 5445376.7 | AJ39: 4817622.4 | AK39: 2062712.5 | AL39: 1189614.9 | AM39: 1311197 | AN39: 434232.5 | AO39: 227788.9 | AP39: 925440.2 | AQ39: 83786 | AR39: -433861 | AS39: -477325 | AT39: -125654.2 | AU39: -228158.8 | AV39: -410785.5 | AW39: -180868.3 | AX39: 136985.3 | AY39: 260273.6 | AZ39: 263476.3 | BA39: 288024.6 | BB39: 195951.4 | BC39: 200714.7 | BD39: 121543.7 | BE39: -583.8 | BF39: -103225.3 | BG39: -157549.4 | BH39: -307764.2 | BI39: -174067 | BJ39: -177716.8 | BK39: -181450.1 | BL39: -186443.9 | BM39: -191380.8 | BN39: -195664.8 | BO39: -198953
B40: Simulation 6 | C40: 0 | D40: -9433.1 | E40: 38262.9 | F40: -411040.6 | G40: -254180.7 | H40: -95177.4 | I40: -649381.9 | J40: -931642.4 | K40: -1190649.5 | L40: -1918914.4 | M40: -1840387.1 | N40: -2021659.3 | O40: -1702301.7 | P40: -1210660.2 | Q40: -1826912.4 | R40: -1635125.2 | S40: -1341731.9 | T40: -1798325.3 | U40: -1916391.4 | V40: -2347300.7 | W40: -2219023.4 | X40: -1937255.1 | Y40: -1871710.3 | Z40: -1638007.4 | AA40: -1731649.6 | AB40: -1826320.8 | AC40: -1359831.4 | AD40: -1596276.6 | AE40: -1384053.4 | AF40: -1564274 | AG40: -1328363.3 | AH40: -1282972.5 | AI40: -1398939.5 | AJ40: -1605146.6 | AK40: -1376863.7 | AL40: -1030517.9 | AM40: -576380 | AN40: -979505.6 | AO40: -712563.2 | AP40: -603053.6 | AQ40: -106028.6 | AR40: 236202.1 | AS40: 725939.6 | AT40: 834880.7 | AU40: 869921.2 | AV40: 462128.1 | AW40: 156077.1 | AX40: 159632.1 | AY40: 242693.2 | AZ40: 298898.6 | BA40: 190197.4 | BB40: 53126.6 | BC40: 160128.2 | BD40: 87012.5 | BE40: 31955 | BF40: -37921.5 | BG40: -135026.4 | BH40: -209763.9 | BI40: -138980.3 | BJ40: -142015.3 | BK40: -145357.6 | BL40: -148646.3 | BM40: -151836.3 | BN40: -155646.5 | BO40: -158492.3
B41: Simulation 7 | C41: 0 | D41: 36861.3 | E41: 259707.8 | F41: 240166.8 | G41: 11773.7 | H41: -1049069.6 | I41: -819144.3 | J41: -802264.2 | K41: -1688349.6 | L41: -1001958.2 | M41: -70848.8 | N41: -720113.1 | O41: -626703.9 | P41: 46519.1 | Q41: -538710.2 | R41: -637130.7 | S41: -969358.8 | T41: -1668618.5 | U41: -2405103.9 | V41: -3001197.2 | W41: -3149342.5 | X41: -3421403 | Y41: -3031521.3 | Z41: -2976211.4 | AA41: -3001679.7 | AB41: -2964325.7 | AC41: -3224148.4 | AD41: -3073898.2 | AE41: -2603888.8 | AF41: -2616804.9 | AG41: -2798623.5 | AH41: -2272946.5 | AI41: -2639940.2 | AJ41: -2732700 | AK41: -2346178.1 | AL41: -2534397.3 | AM41: -2507514.4 | AN41: -2795588.8 | AO41: -2542904.8 | AP41: -2714668.9 | AQ41: -2132761.7 | AR41: -1918679.3 | AS41: -2003537.7 | AT41: -1838092.6 | AU41: -1821782.8 | AV41: -1643725.3 | AW41: -950924.8 | AX41: -1012153.3 | AY41: -998737.3 | AZ41: -1051724.3 | BA41: -1056053.9 | BB41: -1088958 | BC41: -649392.1 | BD41: -698262.7 | BE41: -771404.6 | BF41: -797821 | BG41: -893098.8 | BH41: -956452 | BI41: -481706.8 | BJ41: -484380.3 | BK41: -487379.9 | BL41: -489517.9 | BM41: -493027.3 | BN41: -496599.5 | BO41: -497381.7
B42: Simulation 8 | C42: 0 | D42: -189682 | E42: -353039.7 | F42: -150862.1 | G42: -485131.4 | H42: -1265239 | I42: -1092837 | J42: -812069.7 | K42: -212370.6 | L42: -467560.4 | M42: 250435 | N42: 1051749.6 | O42: 2206929.8 | P42: 1944924.1 | Q42: 1516367.5 | R42: 1739472.8 | S42: 1354257.2 | T42: 1743199.9 | U42: 3741668.1 | V42: 4253529.9 | W42: 4760845.2 | X42: 4065339.9 | Y42: 4411873.6 | Z42: 3619155.7 | AA42: 1216333.3 | AB42: 175979 | AC42: -696309.2 | AD42: -1371000.4 | AE42: -528603 | AF42: -662908.1 | AG42: -196458.1 | AH42: 240014.3 | AI42: -360874.6 | AJ42: -592242.3 | AK42: -1118508.1 | AL42: -1615223 | AM42: -1424009 | AN42: -1887742.3 | AO42: -1665748 | AP42: -1734865.4 | AQ42: -1565202.5 | AR42: -1351044.1 | AS42: -1383256.3 | AT42: -1195263 | AU42: -1165641.5 | AV42: -1146283.1 | AW42: -766179.2 | AX42: -714772.1 | AY42: -718533.5 | AZ42: -669611.3 | BA42: -583190.4 | BB42: -588398.9 | BC42: -303902.8 | BD42: -328795.4 | BE42: -405123.5 | BF42: -492958.2 | BG42: -568629.9 | BH42: -600108.4 | BI42: -298112.7 | BJ42: -299349.8 | BK42: -300309.5 | BL42: -304441.4 | BM42: -307425.4 | BN42: -309694.7 | BO42: -309996.7
B43: Simulation 9 | C43: 0 | D43: 296814.3 | E43: -312531.2 | F43: 270788.5 | G43: 451811.4 | H43: 755876.5 | I43: 2512492.2 | J43: 3062294.4 | K43: 2591791.8 | L43: 2834901 | M43: 4954467 | N43: 2589599.8 | O43: 1083430.3 | P43: 2755802.3 | Q43: 984727.3 | R43: 174807.1 | S43: 1308035.6 | T43: 2095943.7 | U43: 2668962.5 | V43: 2881824.6 | W43: 2572617.7 | X43: 2997801.6 | Y43: 1496365.6 | Z43: 1338619.7 | AA43: 3427473.2 | AB43: 4502334.2 | AC43: 2402007 | AD43: 3488162.4 | AE43: 3712846.4 | AF43: 2544795.8 | AG43: 3598152.2 | AH43: 2146141.2 | AI43: 1569634.9 | AJ43: 965384.8 | AK43: 711363.7 | AL43: 36216 | AM43: 86512.1 | AN43: 161211.1 | AO43: -1003883.5 | AP43: -595425.8 | AQ43: -126912.6 | AR43: 226908.2 | AS43: 212049.3 | AT43: 373271.1 | AU43: 291493.2 | AV43: 182202.1 | AW43: 393303 | AX43: 139715.3 | AY43: 290441.1 | AZ43: 52705.3 | BA43: -112746.1 | BB43: -126838.8 | BC43: 91649.1 | BD43: 56765 | BE43: -20558.5 | BF43: -142314.4 | BG43: -272851.3 | BH43: -352877.1 | BI43: -210986.2 | BJ43: -214523.8 | BK43: -218492.3 | BL43: -222473.4 | BM43: -225846.6 | BN43: -230150.9 | BO43: -233356.1
B44: Simulation 10 | C44: 0 | D44: -105943.3 | E44: 13246.7 | F44: -262034.1 | G44: -949933.9 | H44: -1413699.1 | I44: -1229936.3 | J44: -593442.4 | K44: -465756.3 | L44: -1685512.3 | M44: -1327131.6 | N44: -1311897.4 | O44: -2010432.1 | P44: -1895230.6 | Q44: -1885535.5 | R44: -1599755.5 | S44: -134912.8 | T44: 299154.1 | U44: 1085069.2 | V44: 800769 | W44: 1103952.4 | X44: 1052959.4 | Y44: 2873002.7 | Z44: 1373823.7 | AA44: 2086625.5 | AB44: 2021127.3 | AC44: 3559691.1 | AD44: 3887237.8 | AE44: 4918526.7 | AF44: 6359142.2 | AG44: 5065752.3 | AH44: 3360926.3 | AI44: 3728746.2 | AJ44: 3038959.3 | AK44: 2030334.9 | AL44: 2012062.9 | AM44: 1717398.5 | AN44: 651269.8 | AO44: -608416.8 | AP44: -1110899.8 | AQ44: -906671.1 | AR44: -859141.7 | AS44: -564167.9 | AT44: -429725.3 | AU44: -447142.4 | AV44: -676721 | AW44: -447550.8 | AX44: -443342.9 | AY44: -294910.4 | AZ44: -150354.5 | BA44: -98382.3 | BB44: -174435.1 | BC44: -21009.9 | BD44: -86976.5 | BE44: -175890.4 | BF44: -256661.4 | BG44: -291952.8 | BH44: -371278.9 | BI44: -194589.7 | BJ44: -196208.9 | BK44: -199992.9 | BL44: -203083.4 | BM44: -207234.7 | BN44: -209976 | BO44: -211911.8
B45: Simulation 11 | C45: 0 | D45: -97290.1 | E45: 232578.7 | F45: 369603.9 | G45: 396003.8 | H45: 874729.9 | I45: -673971.6 | J45: -983585.4 | K45: -1482490 | L45: -1742503.2 | M45: -1429930.6 | N45: -2271721.1 | O45: -2195831.9 | P45: -2550124.6 | Q45: -2432433.8 | R45: -2089016 | S45: -1923086.2 | T45: -2398050.3 | U45: -2697312 | V45: -3176528.5 | W45: -2797646.3 | X45: -3059625.8 | Y45: -2873475.6 | Z45: -2931177.7 | AA45: -2982408.4 | AB45: -2981467.6 | AC45: -2709204.9 | AD45: -2412262.4 | AE45: -2170996.5 | AF45: -1885071.2 | AG45: -1959635.3 | AH45: -1835977 | AI45: -2020216.6 | AJ45: -2046501.7 | AK45: -2045847.1 | AL45: -1976980 | AM45: -2005033.3 | AN45: -2052263.9 | AO45: -1963377.4 | AP45: -1718938.1 | AQ45: -1068089.6 | AR45: -723700.1 | AS45: -823274.6 | AT45: -876005.4 | AU45: -885300.6 | AV45: -622565.7 | AW45: -448506.8 | AX45: -489370.6 | AY45: -202776.1 | AZ45: -139437.2 | BA45: -134670.2 | BB45: 2024 | BC45: 189423 | BD45: 136177.8 | BE45: 23944.4 | BF45: -32713.8 | BG45: -135936.2 | BH45: -252658.1 | BI45: -130190.9 | BJ45: -136033 | BK45: -140135.7 | BL45: -144303.8 | BM45: -147065.2 | BN45: -150968.1 | BO45: -153949.4
B46: Simulation 12 | C46: 0 | D46: -191571.5 | E46: 355851.8 | F46: 370062.4 | G46: 629154.2 | H46: 954901.4 | I46: 287293.1 | J46: -1347875.9 | K46: -1500274.6 | L46: -2382340.2 | M46: -2116779.6 | N46: -1786694.1 | O46: -1704731.4 | P46: -1975879.3 | Q46: -1809071.1 | R46: -2178962.5 | S46: -1961349.9 | T46: -1889155.7 | U46: -2667709 | V46: -2504955.4 | W46: -2125148.6 | X46: -2443234.2 | Y46: -1445155.5 | Z46: -87070.9 | AA46: 1562850.1 | AB46: 2931937.8 | AC46: 3683292.4 | AD46: 3020250.3 | AE46: 1099334.7 | AF46: 862117.1 | AG46: -990593.9 | AH46: -1100941.7 | AI46: -483525.3 | AJ46: -1567616.1 | AK46: -1838854.5 | AL46: -1783484.5 | AM46: -2086168.4 | AN46: -1812138 | AO46: -2038037.7 | AP46: -1868887.6 | AQ46: -1408795 | AR46: -1512427.7 | AS46: -1248104.4 | AT46: -1084762.2 | AU46: -968400 | AV46: -1076024.7 | AW46: -814567.9 | AX46: -592900 | AY46: -660925.3 | AZ46: -542091.1 | BA46: -429252.5 | BB46: -425012.4 | BC46: -232653.7 | BD46: -322222.5 | BE46: -363132.1 | BF46: -387312 | BG46: -451103.4 | BH46: -510103 | BI46: -262147.4 | BJ46: -265339.2 | BK46: -268996.2 | BL46: -270772.9 | BM46: -273146.1 | BN46: -276330.7 | BO46: -277547.4
B47: Simulation 13 | C47: 0 | D47: -12594 | E47: 126492.4 | F47: -210200.7 | G47: -606157.8 | H47: -649294.6 | I47: -1261992.5 | J47: -889049.5 | K47: -804298.7 | L47: -1098543.1 | M47: -1070233.8 | N47: -131609.1 | O47: -1583628.2 | P47: -2083364.3 | Q47: -2365111.9 | R47: -2304021.8 | S47: -1143999.4 | T47: -470175.1 | U47: 500925.8 | V47: -600286.3 | W47: -197302.5 | X47: 38581.3 | Y47: 606385.3 | Z47: -162554.2 | AA47: -928972.8 | AB47: -892714.9 | AC47: -515017.5 | AD47: -1097525.7 | AE47: -1253290.8 | AF47: -1278797.8 | AG47: -1499830.5 | AH47: -1063489.9 | AI47: -1345356.5 | AJ47: -1728113.3 | AK47: -1643587.8 | AL47: -949083.1 | AM47: -1385951 | AN47: -1630823.8 | AO47: -2203506.2 | AP47: -2179106.7 | AQ47: -1500640.6 | AR47: -1280940.3 | AS47: -1150036.3 | AT47: -982761.4 | AU47: -1130353.9 | AV47: -1116613.3 | AW47: -678816.4 | AX47: -567113.2 | AY47: -301762.6 | AZ47: -132351.5 | BA47: -231626.3 | BB47: -246605.7 | BC47: -33193.2 | BD47: -97826.5 | BE47: -212244 | BF47: -283130.2 | BG47: -363553.1 | BH47: -498759.8 | BI47: -271612.5 | BJ47: -276311.4 | BK47: -282358.3 | BL47: -286221.5 | BM47: -288690.1 | BN47: -291080.7 | BO47: -293181.4
B48: Simulation 14 | C48: 0 | D48: 44635.6 | E48: -111499.2 | F48: 125984.8 | G48: 808784.6 | H48: 768661.1 | I48: 1831969.3 | J48: 634866.6 | K48: 2152479.6 | L48: 752022.4 | M48: 2083171.8 | N48: 2659736.4 | O48: 3397173.5 | P48: 4226280.3 | Q48: 3931157.8 | R48: 4791292.9 | S48: 5538892.4 | T48: 4088596.5 | U48: 4111546.8 | V48: 4046152.6 | W48: 2618257.3 | X48: 1614358.5 | Y48: 2611770.7 | Z48: 3624901.5 | AA48: 2739100.5 | AB48: 2502477.2 | AC48: 2750645.9 | AD48: 2466979.4 | AE48: 1800988.1 | AF48: 2617476.8 | AG48: 1513273.1 | AH48: 564415 | AI48: 630578.7 | AJ48: 472560.5 | AK48: -134492.7 | AL48: -256902.9 | AM48: -371260.6 | AN48: 1079064.4 | AO48: 1279104.7 | AP48: 1141609.6 | AQ48: 1110306.1 | AR48: 92203.8 | AS48: 71990.5 | AT48: 895898.1 | AU48: 462476.8 | AV48: 636363.6 | AW48: 899433.8 | AX48: 410387.4 | AY48: 133761.2 | AZ48: 34790.5 | BA48: -150627.2 | BB48: -446005.1 | BC48: -168961.7 | BD48: -236765.1 | BE48: -300756 | BF48: -399430.1 | BG48: -529029.9 | BH48: -598771.9 | BI48: -278893 | BJ48: -282194.5 | BK48: -287315.9 | BL48: -292709.4 | BM48: -297460.8 | BN48: -301283.8 | BO48: -303651.4
B49: Simulation 15 | C49: 0 | D49: 6997.3 | E49: -140236 | F49: -67394.7 | G49: -195485.1 | H49: 479040.3 | I49: -1050094.5 | J49: -1823203.7 | K49: -1172611.4 | L49: -1101259.2 | M49: -2132108.8 | N49: -1784755.6 | O49: -2024671.1 | P49: -1928538.9 | Q49: -2503473.4 | R49: -2299647.4 | S49: -1807648.4 | T49: -2581013.1 | U49: -2561324.5 | V49: -2871201.1 | W49: -2743231.9 | X49: -3113772.2 | Y49: -3050145.1 | Z49: -3142424.5 | AA49: -3084927.1 | AB49: -2961947 | AC49: -3170235.8 | AD49: -3121221.3 | AE49: -3104504.2 | AF49: -3072860.4 | AG49: -2905215.9 | AH49: -2835429.8 | AI49: -2811665.5 | AJ49: -2855092.3 | AK49: -2779749.3 | AL49: -2728209.1 | AM49: -2564603.6 | AN49: -2430112 | AO49: -2331065 | AP49: -2255770.4 | AQ49: -1935411.2 | AR49: -1866996.4 | AS49: -1704810.3 | AT49: -1521393.9 | AU49: -1416302.7 | AV49: -1355114.5 | AW49: -1064279.1 | AX49: -994749.3 | AY49: -817360.1 | AZ49: -660725 | BA49: -509471 | BB49: -380669.3 | BC49: -61755.5 | BD49: -161114.8 | BE49: -181693 | BF49: -271503.3 | BG49: -358559.6 | BH49: -433884.4 | BI49: -195077.8 | BJ49: -199012.6 | BK49: -201661 | BL49: -205703.3 | BM49: -210040.2 | BN49: -216048.1 | BO49: -218636.5
B50: Simulation 16 | C50: 0 | D50: 221509.2 | E50: 533457.6 | F50: 396585 | G50: 1080982.3 | H50: 1714312.7 | I50: 218390.5 | J50: 532415.8 | K50: 1730286.8 | L50: 1818524.7 | M50: 778765.1 | N50: 1463619.5 | O50: 1584822.7 | P50: 955372.1 | Q50: 595268.1 | R50: 1115771.6 | S50: 1211639.4 | T50: 3400337.7 | U50: 2496041.6 | V50: 4737175.7 | W50: 5020490.5 | X50: 7743973.6 | Y50: 11406616.8 | Z50: 12261844.6 | AA50: 16126268.8 | AB50: 15505731.3 | AC50: 12005986.9 | AD50: 15914731.4 | AE50: 16369645.2 | AF50: 18358916.4 | AG50: 19089119.3 | AH50: 19874448.3 | AI50: 17699057.2 | AJ50: 20758086.9 | AK50: 23901777.8 | AL50: 22301082.9 | AM50: 16746494.8 | AN50: 15005502.2 | AO50: 14797373.4 | AP50: 13665352.7 | AQ50: 13469168.7 | AR50: 11609986 | AS50: 9485879.6 | AT50: 8964549.1 | AU50: 8965997.2 | AV50: 7793871.8 | AW50: 6974543.1 | AX50: 7115305.2 | AY50: 5726984.8 | AZ50: 3764860 | BA50: 2243463.1 | BB50: 1156895 | BC50: 544818.9 | BD50: 375374.9 | BE50: 186986.1 | BF50: 12607.5 | BG50: -139921.1 | BH50: -309692.6 | BI50: -159911.6 | BJ50: -165454.9 | BK50: -170174 | BL50: -173766.2 | BM50: -178215.8 | BN50: -183069.2 | BO50: -185857.1
B51: Simulation 17 | C51: 0 | D51: -78460.2 | E51: -360951.4 | F51: -310948.3 | G51: 570245.4 | H51: -71691.8 | I51: -1242852.2 | J51: -445149.5 | K51: -333148.5 | L51: -760951.7 | M51: -499190.1 | N51: -563197.6 | O51: -1272225.2 | P51: -811459.9 | Q51: -1260714.2 | R51: -1992800.1 | S51: -1656524.7 | T51: -1556941.3 | U51: -1475875 | V51: -1489934.4 | W51: -1603721.6 | X51: -1213057.2 | Y51: -312988.3 | Z51: 58989.5 | AA51: 877961.2 | AB51: 807607 | AC51: 1598752.1 | AD51: 2599281.3 | AE51: 2616438.5 | AF51: 3004778.3 | AG51: 4267864 | AH51: 1844113.8 | AI51: 3697174.6 | AJ51: 2278912.8 | AK51: 3319356.8 | AL51: 3796403.9 | AM51: 3914630.8 | AN51: 3996320 | AO51: 4705667.7 | AP51: 4984234 | AQ51: 4789219.8 | AR51: 3279076.9 | AS51: 3753071.2 | AT51: 2749088.5 | AU51: 2280753.1 | AV51: 2241019 | AW51: 1914222.5 | AX51: 1570561.7 | AY51: 1262986 | AZ51: 1481869.2 | BA51: 1031421.6 | BB51: 1002237.5 | BC51: 842030.1 | BD51: 794171.8 | BE51: 780836.7 | BF51: 685796.6 | BG51: 576761.4 | BH51: 418674.4 | BI51: 175840.2 | BJ51: 174593.5 | BK51: 170633.1 | BL51: 168474.9 | BM51: 167009 | BN51: 161534.3 | BO51: 156072.4
B52: Simulation 18 | C52: 0 | D52: -56826.6 | E52: -1548572.3 | F52: -1198695.5 | G52: -1228425.4 | H52: -29357.7 | I52: -431745.6 | J52: -693254.5 | K52: -670341.4 | L52: -849687.5 | M52: 227703.8 | N52: -822650.9 | O52: 206490.1 | P52: 732024.6 | Q52: -101443.5 | R52: -376678.4 | S52: -338402 | T52: -66447.6 | U52: -1022801.6 | V52: -1770898.8 | W52: -1248702.2 | X52: -1475360.3 | Y52: -1626910 | Z52: -1107121.6 | AA52: -1586337.3 | AB52: -1983656.1 | AC52: -2323653.7 | AD52: -1877851.9 | AE52: -1453931.3 | AF52: -1660513.1 | AG52: -605123.3 | AH52: -1509456 | AI52: -999136.9 | AJ52: -1116416.3 | AK52: -1005885.6 | AL52: -927576.6 | AM52: -229503.8 | AN52: -855272.4 | AO52: -1166541 | AP52: -1333170.8 | AQ52: -1217241 | AR52: -975397.2 | AS52: -1073709.9 | AT52: -1257881.3 | AU52: -1235915.5 | AV52: -1157411 | AW52: -663414.5 | AX52: -681790.2 | AY52: -551300 | AZ52: -546381.7 | BA52: -497414.6 | BB52: -519247.6 | BC52: -261472.4 | BD52: -334911.1 | BE52: -427696.8 | BF52: -485838 | BG52: -569199.1 | BH52: -622613.9 | BI52: -355703.7 | BJ52: -359345.1 | BK52: -361168.8 | BL52: -363032.9 | BM52: -366938.1 | BN52: -368951.9 | BO52: -370213.6
B53: Simulation 19 | C53: 0 | D53: 66288.8 | E53: -183065.4 | F53: -620790.8 | G53: -1009369.4 | H53: -727979.7 | I53: -787523.3 | J53: -1018841.8 | K53: -612323.3 | L53: -758853 | M53: -335423.5 | N53: -78223.9 | O53: 255097 | P53: 567941.5 | Q53: 762837.8 | R53: -176735.3 | S53: -686330.5 | T53: -58285.6 | U53: -1217367 | V53: -1310884.1 | W53: -1061238.1 | X53: -1892073.1 | Y53: -1703621.2 | Z53: -2227771.9 | AA53: -889916 | AB53: 244629.3 | AC53: 415569.3 | AD53: 2013802.2 | AE53: 1246903.7 | AF53: 482970.7 | AG53: 1077196.5 | AH53: 1056810.8 | AI53: 116116.5 | AJ53: 350643.1 | AK53: 348043.5 | AL53: -358357.2 | AM53: -646409.6 | AN53: -465126.7 | AO53: 41319.3 | AP53: -362584.4 | AQ53: -242762.6 | AR53: -354145.5 | AS53: -399089 | AT53: -586592.1 | AU53: -475808 | AV53: -269377.9 | AW53: 475881.8 | AX53: 322980.1 | AY53: 199349.6 | AZ53: 176200.7 | BA53: -4863 | BB53: -192807.1 | BC53: -35780.6 | BD53: -129219.2 | BE53: -228896.1 | BF53: -359041.2 | BG53: -450975.4 | BH53: -530168.1 | BI53: -282252.4 | BJ53: -285849.7 | BK53: -289850.7 | BL53: -292684.6 | BM53: -298139.6 | BN53: -302094.3 | BO53: -304320.1
B54: Simulation 20 | C54: 0 | D54: 102942.2 | E54: -214716.2 | F54: -76251.7 | G54: -634498.9 | H54: 958509 | I54: 1081885.2 | J54: 727852.7 | K54: -24519.5 | L54: -959255.1 | M54: -786369.5 | N54: -363585.7 | O54: -95247.5 | P54: 1528366.6 | Q54: 1678635.6 | R54: 95192.8 | S54: 451260.2 | T54: -199200.5 | U54: -755859.5 | V54: -416816.2 | W54: -1098615.3 | X54: -1418419 | Y54: -1582837.6 | Z54: -1496892 | AA54: -1042229.6 | AB54: -884787.5 | AC54: -744748.9 | AD54: -437567.5 | AE54: 259176.7 | AF54: -71024.6 | AG54: -557365 | AH54: -1081733.7 | AI54: -1176160.7 | AJ54: -2039379.7 | AK54: -1528588.6 | AL54: -1652312.8 | AM54: -1443686.8 | AN54: -2098768 | AO54: -2272796 | AP54: -2014494.9 | AQ54: -1644257 | AR54: -1533768.2 | AS54: -1611220.1 | AT54: -1304208.3 | AU54: -1166450.6 | AV54: -1282265.4 | AW54: -712740.7 | AX54: -471740.6 | AY54: -307407.4 | AZ54: -388356.8 | BA54: -471023.7 | BB54: -535091.2 | BC54: -174174.7 | BD54: -244824.1 | BE54: -324770.7 | BF54: -445927.9 | BG54: -501341.1 | BH54: -573384.9 | BI54: -283605.7 | BJ54: -286670.3 | BK54: -287962.3 | BL54: -292235 | BM54: -295895.1 | BN54: -298134.9 | BO54: -300515.1
B55: Simulation 21 | C55: 0 | D55: -37484.2 | E55: -368124.6 | F55: -803616.8 | G55: -452974 | H55: -980032.5 | I55: -366951.9 | J55: -1395309.7 | K55: -1554999.2 | L55: -1900966.6 | M55: -2145163.6 | N55: -1686464.3 | O55: -2216134.4 | P55: -1582850.5 | Q55: -2940378.3 | R55: -2764746.9 | S55: -2162026.9 | T55: -1643485.3 | U55: -1172257 | V55: -1915790.7 | W55: -1832450 | X55: -1581724.3 | Y55: -1056073.1 | Z55: 21764.2 | AA55: -37373 | AB55: -1340660.2 | AC55: -1804188.8 | AD55: -2078394.3 | AE55: -1780592.1 | AF55: -1995573.8 | AG55: -1973360.5 | AH55: -2261263.6 | AI55: -2369140 | AJ55: -2319611.1 | AK55: -2116789.1 | AL55: -2380016.2 | AM55: -2453480.8 | AN55: -2391909.9 | AO55: -2276475.1 | AP55: -2254022.3 | AQ55: -1848502.2 | AR55: -1714792.1 | AS55: -1691463.8 | AT55: -1614726.3 | AU55: -1446054.5 | AV55: -1413922.2 | AW55: -1086741.9 | AX55: -991192.5 | AY55: -852797.2 | AZ55: -764037.8 | BA55: -726596.1 | BB55: -708716.1 | BC55: -400967.7 | BD55: -407007 | BE55: -485737.4 | BF55: -549156.3 | BG55: -589665.4 | BH55: -627468.8 | BI55: -314772.6 | BJ55: -316012.8 | BK55: -319059.1 | BL55: -321760.2 | BM55: -324412.3 | BN55: -328239.6 | BO55: -330854.4
B56: Simulation 22 | C56: 0 | D56: -52260.6 | E56: -557206.7 | F56: -321251.7 | G56: -527150.4 | H56: -700120.9 | I56: -1516280.6 | J56: -2286870.2 | K56: -1471030.7 | L56: -2147931.4 | M56: -1888439.4 | N56: -2464386.8 | O56: -2121681.5 | P56: -793310.1 | Q56: -974350.9 | R56: -918197.6 | S56: -228260.9 | T56: -557981.2 | U56: 108202.9 | V56: 1081033.3 | W56: 701380.3 | X56: 1400945.4 | Y56: 3275989.3 | Z56: 2512278.6 | AA56: 3052143.7 | AB56: 2330785.8 | AC56: 1588797.7 | AD56: 1328992.8 | AE56: 1356340.2 | AF56: 813670.9 | AG56: -317337.5 | AH56: -654785.4 | AI56: -525094.4 | AJ56: -455176.1 | AK56: 565675.1 | AL56: -345296.8 | AM56: 163697 | AN56: -515351.8 | AO56: -43497.4 | AP56: -799159.4 | AQ56: -147591.1 | AR56: 785819.5 | AS56: 714208.8 | AT56: 846413.1 | AU56: 1232669.3 | AV56: 442644.1 | AW56: 557547.8 | AX56: 637270.9 | AY56: 450050.9 | AZ56: 385755.5 | BA56: -44156.2 | BB56: -440062.8 | BC56: -286018 | BD56: -386472 | BE56: -496653.9 | BF56: -549561.6 | BG56: -602699.5 | BH56: -680860.5 | BI56: -353221.7 | BJ56: -356150.2 | BK56: -359749 | BL56: -362012.6 | BM56: -365235.3 | BN56: -367913.6 | BO56: -368887.5
B57: Simulation 23 | C57: 0 | D57: 128768.9 | E57: -133717.4 | F57: -561733.2 | G57: -994944.3 | H57: -2323482.6 | I57: -1612923.4 | J57: -1962586.3 | K57: -1587208.1 | L57: -2221631.8 | M57: -1342064.7 | N57: -105682.2 | O57: 773680.2 | P57: 462878.6 | Q57: 794754.2 | R57: -307216.5 | S57: -644495.9 | T57: -886889.4 | U57: -1110970.6 | V57: -1664322.2 | W57: -1111753.9 | X57: -1252826.4 | Y57: -1463126.3 | Z57: -1138481.1 | AA57: -757691.1 | AB57: -1220315.9 | AC57: -728720.1 | AD57: -1531304.8 | AE57: -1621630.6 | AF57: -2248137.9 | AG57: -2484680.2 | AH57: -2145362.1 | AI57: -2049709.2 | AJ57: -2415070.9 | AK57: -2044028.8 | AL57: -1946115.3 | AM57: -1980942.4 | AN57: -1835557.2 | AO57: -2096322.3 | AP57: -1644250.7 | AQ57: -1150370.3 | AR57: -724475.4 | AS57: -1001619.4 | AT57: -988880.2 | AU57: -1012852.5 | AV57: -876872.1 | AW57: -577358.6 | AX57: -661236.1 | AY57: -682302.2 | AZ57: -615553.3 | BA57: -583510.3 | BB57: -653492.2 | BC57: -409893.8 | BD57: -433721 | BE57: -484479 | BF57: -506180.5 | BG57: -561220.2 | BH57: -632363 | BI57: -317927.7 | BJ57: -320177.2 | BK57: -322584.2 | BL57: -324091 | BM57: -326089.9 | BN57: -328031.4 | BO57: -329816.7
B58: Simulation 24 | C58: 0 | D58: -123432.9 | E58: 143024.2 | F58: 1182135.4 | G58: 1145613 | H58: 1052041.5 | I58: -320889.3 | J58: -27273.2 | K58: -1527711.8 | L58: -2025235.2 | M58: -2029322.9 | N58: -1698425.2 | O58: -1917687.9 | P58: -1721211.6 | Q58: -903500.2 | R58: 729465.1 | S58: 1729119.5 | T58: 1639061.3 | U58: 1819609.4 | V58: 1676362.6 | W58: 2271399.2 | X58: -209444.6 | Y58: 671131.7 | Z58: 456135.3 | AA58: 1388747.1 | AB58: 2245630.9 | AC58: 2883545.4 | AD58: 2826604.3 | AE58: 3064022.1 | AF58: 3346021.7 | AG58: 3401915.9 | AH58: 1590355.3 | AI58: 743724.2 | AJ58: 1597404 | AK58: 2636895.9 | AL58: 2707217.8 | AM58: 3891825.7 | AN58: 2561274.3 | AO58: 2404847.9 | AP58: 3298493.7 | AQ58: 2128337.7 | AR58: 1999767.7 | AS58: 1734200.7 | AT58: 1182248.7 | AU58: 1594442.9 | AV58: 812937.4 | AW58: 598730.1 | AX58: 471069.8 | AY58: 533284.1 | AZ58: 358947.9 | BA58: 309011.1 | BB58: 114498 | BC58: 235222.2 | BD58: 229860.2 | BE58: 179862 | BF58: 147114 | BG58: 35970.2 | BH58: -88412.9 | BI58: -70365.5 | BJ58: -71354.3 | BK58: -73306.4 | BL58: -77772.5 | BM58: -79873.5 | BN58: -83960 | BO58: -87115.6
B59: Simulation 25 | C59: 0 | D59: 28886.8 | E59: -423588.9 | F59: 25017.2 | G59: 1092588.7 | H59: 712564.2 | I59: -111696.5 | J59: -766155.4 | K59: -292697.1 | L59: -498258 | M59: -1086108.4 | N59: -470089.3 | O59: -967506.3 | P59: -1237137.1 | Q59: -1963357.9 | R59: -2215156.7 | S59: -1844717.5 | T59: -2116422 | U59: -1731785.4 | V59: -946420.6 | W59: -1440089 | X59: -1995088.9 | Y59: -2019466.2 | Z59: -1761708.5 | AA59: -1164925.2 | AB59: -1741457.5 | AC59: -894270.6 | AD59: -1221199.4 | AE59: -1449414.4 | AF59: -1900280.9 | AG59: -1804304.9 | AH59: -1523247.6 | AI59: -1370273.8 | AJ59: -1797308.1 | AK59: -1467007.7 | AL59: -1586396.8 | AM59: -1590185.2 | AN59: -1710032.6 | AO59: -1719123.7 | AP59: -1520940.5 | AQ59: -1213094.1 | AR59: -1031956.9 | AS59: -839216.6 | AT59: -713547.5 | AU59: -597564.1 | AV59: -616751.4 | AW59: -355965.5 | AX59: -73601.5 | AY59: 100538.6 | AZ59: 252406.1 | BA59: 412891 | BB59: 361047.3 | BC59: 405705.5 | BD59: 392024.6 | BE59: 391082.2 | BF59: 307608 | BG59: 253312.9 | BH59: 168429.9 | BI59: 96226.4 | BJ59: 96501.9 | BK59: 95125.8 | BL59: 94438.5 | BM59: 91425.1 | BN59: 86924 | BO59: 83526.7
B60: Simulation 26 | C60: 0 | D60: 78297.4 | E60: -343970.7 | F60: -282195.5 | G60: -14346.2 | H60: -840936.8 | I60: -2222435.7 | J60: -1908858.1 | K60: -1267500.3 | L60: -1885168.6 | M60: -1153044.2 | N60: -2000919 | O60: -2140187.1 | P60: -2421089.3 | Q60: -1594858 | R60: -2435828.7 | S60: -2597542.9 | T60: -2670632.4 | U60: -2588056.4 | V60: -2797777.6 | W60: -2753511.7 | X60: -2783350 | Y60: -2547036.6 | Z60: -2657550 | AA60: -2880889.4 | AB60: -2972968.3 | AC60: -2893182 | AD60: -2936511.5 | AE60: -2624301.9 | AF60: -2541070.7 | AG60: -2342510 | AH60: -2588293 | AI60: -2499495.9 | AJ60: -2492658.5 | AK60: -2206687.7 | AL60: -2015753.3 | AM60: -1912376 | AN60: -2060408.1 | AO60: -1974611 | AP60: -1860790 | AQ60: -1565950.5 | AR60: -1182806 | AS60: -957320.8 | AT60: -1010593.5 | AU60: -796410.4 | AV60: -713085.3 | AW60: -443598 | AX60: -277465.3 | AY60: -202324 | AZ60: -71651.9 | BA60: 45828.9 | BB60: 44785.9 | BC60: 113531.4 | BD60: 99024 | BE60: 57276.2 | BF60: 59667 | BG60: 59157.2 | BH60: -48507.9 | BI60: -43386.5 | BJ60: -43133.7 | BK60: -43592.6 | BL60: -43854.6 | BM60: -45119.1 | BN60: -49445.3 | BO60: -52683.4
B61: Simulation 27 | C61: 0 | D61: 79458.7 | E61: -252405.6 | F61: -472185.7 | G61: -573194.8 | H61: -1399216.8 | I61: -1435908.6 | J61: -1487137.3 | K61: -2668949.9 | L61: -2378830.8 | M61: -2229377.7 | N61: -1346695.5 | O61: -723832.3 | P61: -353547.2 | Q61: 228895.5 | R61: 501012.1 | S61: 1115244.7 | T61: 232364.8 | U61: -550488.9 | V61: 96640.5 | W61: 933641 | X61: 1074700.5 | Y61: 1561259.1 | Z61: 1160267.1 | AA61: 2775763.4 | AB61: 2090442.7 | AC61: 3443801.7 | AD61: 3543805 | AE61: 5239976.8 | AF61: 3891592.2 | AG61: 4283691.6 | AH61: 3305237.9 | AI61: 3143037.8 | AJ61: 2356998.4 | AK61: 2675228.3 | AL61: 2944131.4 | AM61: 2974344.2 | AN61: 2627311 | AO61: 3238844.7 | AP61: 2738544.1 | AQ61: 1637655.9 | AR61: 1647703.9 | AS61: 828185 | AT61: 1262296.2 | AU61: 788141.7 | AV61: 658066.3 | AW61: 1108245.3 | AX61: 420874.5 | AY61: 365341.2 | AZ61: 170721.5 | BA61: 180337.6 | BB61: -25.3 | BC61: 28944.7 | BD61: -67202.2 | BE61: -135555.3 | BF61: -176837.6 | BG61: -246665.5 | BH61: -353984.3 | BI61: -162499.7 | BJ61: -164052.2 | BK61: -166732.7 | BL61: -168866.1 | BM61: -172634.5 | BN61: -176476.4 | BO61: -181805.6
B62: Simulation 28 | C62: 0 | D62: -130005.8 | E62: -129070.8 | F62: -100438.7 | G62: -428522.2 | H62: 126256.2 | I62: 1846.4 | J62: -1341658.2 | K62: -1832504.3 | L62: -2147833.8 | M62: -1957965.2 | N62: -2231904 | O62: -2731015 | P62: -2048873 | Q62: -2373578 | R62: -1989781.5 | S62: -1291689.3 | T62: -2177252.8 | U62: -1990515.4 | V62: -2394231.9 | W62: -2397603.1 | X62: -2764285.3 | Y62: -2529417.3 | Z62: -2597021.8 | AA62: -2841270.2 | AB62: -2848688.8 | AC62: -2723250 | AD62: -2614321.4 | AE62: -2565142.5 | AF62: -2601297.7 | AG62: -2560289.9 | AH62: -2392024.2 | AI62: -2293734.7 | AJ62: -2246570.4 | AK62: -2317030.2 | AL62: -2133212.3 | AM62: -2015525.6 | AN62: -1801275.5 | AO62: -1674200.7 | AP62: -1590676.3 | AQ62: -1498185.2 | AR62: -1319618.8 | AS62: -1126303.9 | AT62: -914161.1 | AU62: -822483.3 | AV62: -735229.7 | AW62: -629257.5 | AX62: -395102.6 | AY62: -116792.7 | AZ62: -3187.6 | BA62: 128123.8 | BB62: 189557.6 | BC62: 332467.4 | BD62: 160093.3 | BE62: 41328.9 | BF62: -63536.9 | BG62: -151994.3 | BH62: -240731.1 | BI62: -148881.5 | BJ62: -150650.4 | BK62: -155044.5 | BL62: -159522.8 | BM62: -163048.2 | BN62: -168988 | BO62: -171877.8
B63: Simulation 29 | C63: 0 | D63: -69001.6 | E63: -479387 | F63: -686095.5 | G63: -459007.3 | H63: -1027449.6 | I63: -957124.5 | J63: -894035.3 | K63: -2135073.1 | L63: -2248284.9 | M63: -1922064.8 | N63: -2091299.4 | O63: -2571221.2 | P63: -2790906.5 | Q63: -3230395.7 | R63: -3558595.5 | S63: -3088999.2 | T63: -3138769.8 | U63: -3003859.3 | V63: -2890585.8 | W63: -2955233.8 | X63: -2931488.3 | Y63: -2642411.5 | Z63: -2867954.1 | AA63: -2870319.7 | AB63: -3016578.1 | AC63: -2958294.4 | AD63: -2950730.3 | AE63: -2710831.6 | AF63: -2770530.8 | AG63: -2900888.3 | AH63: -2859949.4 | AI63: -2778886.6 | AJ63: -2742255.3 | AK63: -2563376.3 | AL63: -2634760.3 | AM63: -2587110.6 | AN63: -2412116 | AO63: -2366984.7 | AP63: -2380767.7 | AQ63: -2165833.5 | AR63: -2012577.5 | AS63: -1917465 | AT63: -1822431 | AU63: -1693717.3 | AV63: -1647088.7 | AW63: -1296313.3 | AX63: -1165835.5 | AY63: -1072194.8 | AZ63: -1025240 | BA63: -881458.5 | BB63: -801860.9 | BC63: -421262.4 | BD63: -446760.6 | BE63: -523086.2 | BF63: -569207.9 | BG63: -599549.7 | BH63: -686025.8 | BI63: -349068.8 | BJ63: -350596.4 | BK63: -354024.1 | BL63: -355872.8 | BM63: -358601.7 | BN63: -361404.7 | BO63: -363161.6
B64: Simulation 30 | C64: 0 | D64: -52051.4 | E64: 334484.9 | F64: 164941.5 | G64: 59313.3 | H64: 605495 | I64: 598514.1 | J64: 1370918.3 | K64: 2520256.2 | L64: 2025214.6 | M64: 623679.9 | N64: 1130345 | O64: 1647882 | P64: 1786260.9 | Q64: 2047745.4 | R64: 2221550.2 | S64: 2624149.2 | T64: 1756773.3 | U64: 2074433.8 | V64: 2216917.4 | W64: 2122027.7 | X64: 1799068.2 | Y64: 1411991.3 | Z64: 835236.2 | AA64: 1311041.9 | AB64: 2048192.5 | AC64: 1608125.2 | AD64: 2950736.9 | AE64: 2703575.6 | AF64: 4911857.7 | AG64: 3734410.2 | AH64: 3558281.4 | AI64: 1369174.6 | AJ64: 1266827.6 | AK64: 361073.4 | AL64: 402312.3 | AM64: 583820 | AN64: 1009958.1 | AO64: 1179141.4 | AP64: 1333545 | AQ64: 715118 | AR64: -302231.6 | AS64: -467389.6 | AT64: -812043.8 | AU64: -925252.8 | AV64: -1023913.3 | AW64: -583568.1 | AX64: -668442 | AY64: -602757 | AZ64: -556406.5 | BA64: -691095.3 | BB64: -773700.8 | BC64: -473317.5 | BD64: -514225.6 | BE64: -570141.2 | BF64: -665105 | BG64: -740432.6 | BH64: -808183.3 | BI64: -439461.9 | BJ64: -442132 | BK64: -445221.6 | BL64: -449523.6 | BM64: -452248.9 | BN64: -454278.9 | BO64: -456138
B65: Simulation 31 | C65: 0 | D65: 110348.5 | E65: 604894.5 | F65: 281885.1 | G65: 607459.4 | H65: -804448.1 | I65: -1729519.4 | J65: -1774878.5 | K65: -993566.6 | L65: -1051073.5 | M65: 232395.9 | N65: -316785.4 | O65: -352260.8 | P65: -872347.4 | Q65: -929521.2 | R65: -1923687.2 | S65: -1800561.6 | T65: -1733707.6 | U65: -2087169.2 | V65: -2194467.1 | W65: -2379506.2 | X65: -2527861.2 | Y65: -2124772 | Z65: -2630146.5 | AA65: -2726514.5 | AB65: -2842973.9 | AC65: -2871540.5 | AD65: -2897312.7 | AE65: -2468848.2 | AF65: -2537076.1 | AG65: -2645250.8 | AH65: -2506480.3 | AI65: -2366020.7 | AJ65: -2324125.1 | AK65: -2366972 | AL65: -2443815.9 | AM65: -2394915 | AN65: -2292473.8 | AO65: -2119890.5 | AP65: -2005477.9 | AQ65: -1667013.7 | AR65: -1634746 | AS65: -1476624.3 | AT65: -1434926.9 | AU65: -1380695.7 | AV65: -1333166.3 | AW65: -1097717.3 | AX65: -1029173.1 | AY65: -877076.5 | AZ65: -765168.9 | BA65: -660668.9 | BB65: -571093.6 | BC65: -245100.4 | BD65: -378741.3 | BE65: -467994.2 | BF65: -554386.1 | BG65: -588051.9 | BH65: -652958 | BI65: -362736 | BJ65: -366197 | BK65: -370487.2 | BL65: -374230.4 | BM65: -377198.9 | BN65: -381031.6 | BO65: -383932.7
B66: Simulation 32 | C66: 0 | D66: 206235.2 | E66: 573055.9 | F66: 455408.3 | G66: 526258.3 | H66: 517578.2 | I66: 722953.3 | J66: -265319.1 | K66: -1463400 | L66: -536506.1 | M66: -250868.2 | N66: -598217.2 | O66: -1677727.6 | P66: -1796669.2 | Q66: -2372740 | R66: -2065354.9 | S66: -2058198.4 | T66: -2401162.9 | U66: -2681731.2 | V66: -2878643.5 | W66: -3316104.8 | X66: -3197337.9 | Y66: -3196274.5 | Z66: -3428622 | AA66: -3467616.8 | AB66: -3457873.2 | AC66: -3329260.3 | AD66: -3045067.1 | AE66: -2702945.3 | AF66: -2804461.8 | AG66: -2758197.9 | AH66: -2736218.6 | AI66: -2739722.1 | AJ66: -2685793.8 | AK66: -2512530 | AL66: -2296496.7 | AM66: -2167923 | AN66: -2024594.9 | AO66: -1925305.1 | AP66: -1884103.5 | AQ66: -1417428.2 | AR66: -1135086.2 | AS66: -1037902.5 | AT66: -999777.3 | AU66: -1001386 | AV66: -979795.1 | AW66: -867619.2 | AX66: -723716.6 | AY66: -555888.4 | AZ66: -436241.8 | BA66: -336275.5 | BB66: -276161.3 | BC66: -109484.3 | BD66: -144882.3 | BE66: -184399.5 | BF66: -229617.5 | BG66: -305117.7 | BH66: -397610.1 | BI66: -210900 | BJ66: -213117.5 | BK66: -215814.6 | BL66: -219577.1 | BM66: -223020.5 | BN66: -227407.8 | BO66: -230791.7
B67: Simulation 33 | C67: 0 | D67: 230055.6 | E67: 383909 | F67: 1014547.2 | G67: 994864.6 | H67: 1081118 | I67: 760111.7 | J67: 407464.7 | K67: -250116.4 | L67: 664875.9 | M67: 2082597.5 | N67: 1204852.2 | O67: -355900.8 | P67: -225699 | Q67: -729271.7 | R67: -1089446 | S67: -2455595.7 | T67: -2822708.9 | U67: -3149435 | V67: -3577501.8 | W67: -3502448.8 | X67: -3475989.9 | Y67: -3056650.4 | Z67: -3221417.5 | AA67: -3080077.5 | AB67: -2942211.2 | AC67: -3044845.6 | AD67: -3053990.1 | AE67: -2809052.9 | AF67: -2876986 | AG67: -2885367.5 | AH67: -2747056.4 | AI67: -2646057.2 | AJ67: -2466565.2 | AK67: -2050249.6 | AL67: -2117968 | AM67: -2276887.3 | AN67: -2352041.1 | AO67: -2299447.4 | AP67: -2371774.1 | AQ67: -1776107.9 | AR67: -1579892.6 | AS67: -1653052.2 | AT67: -1633235.1 | AU67: -1564225.1 | AV67: -1419768 | AW67: -810214 | AX67: -684673.7 | AY67: -554331.2 | AZ67: -586312.9 | BA67: -609367.3 | BB67: -663074.5 | BC67: -349954.7 | BD67: -495382.2 | BE67: -608256.2 | BF67: -709486.1 | BG67: -791881.5 | BH67: -890269.2 | BI67: -477850.7 | BJ67: -481564.4 | BK67: -485224.1 | BL67: -488215.1 | BM67: -492710.6 | BN67: -497283.2 | BO67: -499914.1
B68: Simulation 34 | C68: 0 | D68: 186973.2 | E68: -663432.9 | F68: 276787.3 | G68: 572167.5 | H68: -397413.8 | I68: -2033219.2 | J68: -2163460.4 | K68: -1484731.3 | L68: -2203233.7 | M68: -2559596.1 | N68: -1932130.7 | O68: -2270121.8 | P68: -1710943.4 | Q68: -2272383.5 | R68: -3198005.6 | S68: -2566547.4 | T68: -2467280.4 | U68: -1793173.4 | V68: -2035332.7 | W68: -1819162.4 | X68: -2414635 | Y68: -2319447.1 | Z68: -1896963.3 | AA68: -2007103 | AB68: -2338239.9 | AC68: -3047533.1 | AD68: -3094410.6 | AE68: -2864835.7 | AF68: -3172044.3 | AG68: -3106170.3 | AH68: -2914590.4 | AI68: -2888282.4 | AJ68: -2823685.4 | AK68: -2625562.8 | AL68: -2545753.7 | AM68: -2553433.3 | AN68: -2449858.1 | AO68: -2379733.1 | AP68: -2290670.6 | AQ68: -2011910 | AR68: -1861359.4 | AS68: -1679369.6 | AT68: -1610430.8 | AU68: -1509155.5 | AV68: -1456352.9 | AW68: -1190877.3 | AX68: -1117787.8 | AY68: -975404.2 | AZ68: -824286.6 | BA68: -753924.4 | BB68: -656782.3 | BC68: -327006.3 | BD68: -452426.3 | BE68: -526397.4 | BF68: -541976.4 | BG68: -600616.3 | BH68: -629091.2 | BI68: -304469.1 | BJ68: -307848.1 | BK68: -311938.2 | BL68: -314981 | BM68: -316743.3 | BN68: -319253.8 | BO68: -321608
B69: Simulation 35 | C69: 0 | D69: -213264.1 | E69: -685402.4 | F69: -884244.2 | G69: -804592.1 | H69: -1463461.2 | I69: -2685975.7 | J69: -3200194.4 | K69: -2895776.5 | L69: -2514088.1 | M69: -2131463.9 | N69: -2701010.2 | O69: -2795163.9 | P69: -3194520.8 | Q69: -2631994.1 | R69: -1952708.9 | S69: -2213443.6 | T69: -2547564.8 | U69: -3224489.9 | V69: -3242380.3 | W69: -3096398.2 | X69: -3325093.2 | Y69: -2946041.8 | Z69: -2764755.7 | AA69: -2321022.7 | AB69: -2765275.9 | AC69: -2683249.9 | AD69: -2658403.6 | AE69: -2795299.9 | AF69: -2739383.2 | AG69: -2715308.1 | AH69: -2831873.5 | AI69: -2723698.5 | AJ69: -2746263.4 | AK69: -2750454 | AL69: -2651592.3 | AM69: -2513176.9 | AN69: -2376909 | AO69: -2307920.1 | AP69: -2232266.5 | AQ69: -1970207.1 | AR69: -1821274.5 | AS69: -1617465.8 | AT69: -1501350.2 | AU69: -1449446.8 | AV69: -1407848.9 | AW69: -1107514.9 | AX69: -1071728 | AY69: -877286.8 | AZ69: -779463.3 | BA69: -637042.6 | BB69: -574328.5 | BC69: -278774.8 | BD69: -299700.3 | BE69: -361065.7 | BF69: -386516 | BG69: -453109.1 | BH69: -519358.6 | BI69: -250321.8 | BJ69: -251648.4 | BK69: -255079.1 | BL69: -258430.5 | BM69: -262139.4 | BN69: -265527.9 | BO69: -267156.1
B70: Simulation 36 | C70: 0 | D70: -67561.6 | E70: 1069407.9 | F70: 778985.2 | G70: 271841.6 | H70: 1315189.5 | I70: 1613026.8 | J70: 335385.1 | K70: 1744995.5 | L70: 2013988.1 | M70: 2157443.6 | N70: 527848.7 | O70: 472549.2 | P70: -1233826.6 | Q70: -1293667.8 | R70: -1617430.8 | S70: -1381776.2 | T70: -1513742.6 | U70: -1578004.5 | V70: -1472619.2 | W70: -1781331 | X70: -1946123.4 | Y70: -2029082.3 | Z70: -2198956.6 | AA70: -2737899.9 | AB70: -2758421.2 | AC70: -2211063.2 | AD70: -2073966.8 | AE70: -1286534.9 | AF70: -1041289.5 | AG70: -1683834.2 | AH70: -1336985.2 | AI70: -1132978.1 | AJ70: -1368928.2 | AK70: -894790.2 | AL70: -1062721.1 | AM70: -1631740 | AN70: -1031162.9 | AO70: -864428.6 | AP70: -1413819.6 | AQ70: -702384.2 | AR70: -943816.6 | AS70: -846873.5 | AT70: -1032788.3 | AU70: -1076922.2 | AV70: -772537.5 | AW70: -435902.6 | AX70: -299797 | AY70: -242476.9 | AZ70: -189591.8 | BA70: -15988.7 | BB70: 110478.5 | BC70: 285680.9 | BD70: 183145.8 | BE70: 117253.9 | BF70: 45135.1 | BG70: -16888.4 | BH70: -96665.8 | BI70: -62825.3 | BJ70: -67449.7 | BK70: -72684.3 | BL70: -77359 | BM70: -81906.1 | BN70: -84182.9 | BO70: -86295
B71: Simulation 37 | C71: 0 | D71: 123300.4 | E71: -156594.1 | F71: 1102471.9 | G71: 1143434.5 | H71: 486809.9 | I71: -67878.2 | J71: 35058.8 | K71: 293073.4 | L71: -969455.1 | M71: -62926.6 | N71: 110783.2 | O71: 580111.6 | P71: 809122.7 | Q71: 552502.5 | R71: 1487068.6 | S71: 2146227.5 | T71: 1136700.5 | U71: -241023.2 | V71: -1004016 | W71: -1614936.5 | X71: -898863.2 | Y71: -1227283.5 | Z71: -1379959.8 | AA71: -1300904.1 | AB71: -1407733 | AC71: -1621671.6 | AD71: -2369060.1 | AE71: -2517068.3 | AF71: -2686731 | AG71: -2756421.1 | AH71: -2648819.9 | AI71: -2597055.3 | AJ71: -2597228.6 | AK71: -2351013.2 | AL71: -2271998.9 | AM71: -2237333.9 | AN71: -2229689.4 | AO71: -2057793.1 | AP71: -1798039.7 | AQ71: -1217221.2 | AR71: -1118243.8 | AS71: -389921.3 | AT71: -528903.5 | AU71: -443994.9 | AV71: -27756.3 | AW71: 74885.6 | AX71: 92567 | AY71: 22230.4 | AZ71: -102201 | BA71: -215438.6 | BB71: -171254.7 | BC71: -44999.1 | BD71: -132694.7 | BE71: -259121.9 | BF71: -352571.7 | BG71: -400687.5 | BH71: -492071 | BI71: -231963.6 | BJ71: -236169.6 | BK71: -240102.2 | BL71: -244286.7 | BM71: -247821.5 | BN71: -252105.6 | BO71: -253678.5
B72: Simulation 38 | C72: 0 | D72: -177531.7 | E72: -128042.7 | F72: -116208.3 | G72: 217349.3 | H72: -921000.2 | I72: -671987.7 | J72: -1231820.2 | K72: -1422081.3 | L72: -582170.9 | M72: -353860.9 | N72: 1009740 | O72: 1480440 | P72: 3126466.6 | Q72: 3699129.6 | R72: 2995429.7 | S72: 3740345.1 | T72: 3900512.5 | U72: 3476990.6 | V72: 3982997 | W72: 3910773.3 | X72: 2459928.3 | Y72: 863142.6 | Z72: 626413.7 | AA72: 468179.7 | AB72: 333242.7 | AC72: -75198.7 | AD72: -1309558.2 | AE72: -299841.9 | AF72: -624126.4 | AG72: -1134085.6 | AH72: -815237.1 | AI72: -1031180.6 | AJ72: -785068.1 | AK72: -212810 | AL72: 557938.4 | AM72: 243716.1 | AN72: 655651 | AO72: 1590832.5 | AP72: 1538846.1 | AQ72: 2340214.5 | AR72: 2273839.4 | AS72: 2159198.3 | AT72: 2298324.7 | AU72: 1822383.2 | AV72: 890512.1 | AW72: 973431 | AX72: 516846.8 | AY72: 531326.4 | AZ72: 430515.7 | BA72: 123629.5 | BB72: 1918 | BC72: -5875.3 | BD72: -55176.2 | BE72: -147218.6 | BF72: -205009.2 | BG72: -292275.2 | BH72: -390549.8 | BI72: -221768.6 | BJ72: -223526.8 | BK72: -225272.1 | BL72: -228539.4 | BM72: -233227.6 | BN72: -236446.9 | BO72: -238530.6
B73: Simulation 39 | C73: 0 | D73: 303812.2 | E73: -37015.4 | F73: 346744.7 | G73: -262655.8 | H73: 570468.2 | I73: 625785.4 | J73: 570858.1 | K73: -457804.6 | L73: 63334.1 | M73: -1186143.1 | N73: -1424094.4 | O73: -2383219.7 | P73: -2167800.5 | Q73: -2500571 | R73: -2640810.5 | S73: -1923153.5 | T73: -2711554.7 | U73: -2559257.8 | V73: -2568414.6 | W73: -2654786.4 | X73: -2561503.1 | Y73: -1985775.3 | Z73: -2682753.4 | AA73: -2847228.2 | AB73: -2874310.1 | AC73: -2820315.8 | AD73: -2562040.5 | AE73: -2188734.1 | AF73: -1912564.9 | AG73: -2168243.4 | AH73: -2002588.4 | AI73: -1660875.6 | AJ73: -1983389.8 | AK73: -1855069.7 | AL73: -1891401.3 | AM73: -1881268 | AN73: -2229617.1 | AO73: -2202473.2 | AP73: -2004496.2 | AQ73: -1703816.8 | AR73: -1554654.2 | AS73: -1535877.9 | AT73: -1450224.1 | AU73: -1247313.4 | AV73: -1139485.2 | AW73: -617856.1 | AX73: -609932.2 | AY73: -513134.7 | AZ73: -443398.2 | BA73: -431103.1 | BB73: -496675.4 | BC73: -176468.4 | BD73: -255274.3 | BE73: -300856 | BF73: -433967.8 | BG73: -522601.5 | BH73: -588746.6 | BI73: -316930.7 | BJ73: -320315.4 | BK73: -325270.1 | BL73: -329517 | BM73: -333428.3 | BN73: -336494.2 | BO73: -338203.7
B74: Simulation 40 | C74: 0 | D74: 70188.1 | E74: -311408 | F74: -766762.6 | G74: -1038019.8 | H74: -858287.4 | I74: -265956.1 | J74: 255546.4 | K74: -620815.1 | L74: 914908.4 | M74: 1162865.7 | N74: 1939613.2 | O74: 1800096.4 | P74: 2324724.3 | Q74: 3021987.5 | R74: 2279979.4 | S74: 3167031.7 | T74: 2191509.8 | U74: 2783435.4 | V74: 2528672.8 | W74: 2564643.4 | X74: 2040398.3 | Y74: 2218147 | Z74: 2513906.6 | AA74: 3678008.9 | AB74: 4318885.1 | AC74: 5921022.5 | AD74: 5068791.1 | AE74: 5961569.8 | AF74: 5407410.8 | AG74: 5401154.1 | AH74: 3230223 | AI74: 3234177.6 | AJ74: 4937288.6 | AK74: 2825470.8 | AL74: 2618685.3 | AM74: 2238349.1 | AN74: 2484206.5 | AO74: 2322788.6 | AP74: 1620302.4 | AQ74: 1901809.7 | AR74: 1625265.1 | AS74: 1151049.4 | AT74: 881759.4 | AU74: 615114.4 | AV74: 663858.9 | AW74: 457817.7 | AX74: 130120 | AY74: 8144 | AZ74: 8203.1 | BA74: 18143 | BB74: -61628.4 | BC74: 76654.9 | BD74: -14011.2 | BE74: -74671.2 | BF74: -152368.4 | BG74: -272014.4 | BH74: -380040.2 | BI74: -208560.8 | BJ74: -209824.7 | BK74: -212841.9 | BL74: -216180.8 | BM74: -219942.8 | BN74: -223941.1 | BO74: -226651.7
B75: Simulation 41 | C75: 0 | D75: -28962.1 | E75: -242075.8 | F75: 103522.4 | G75: -456245.4 | H75: -187460.5 | I75: -624566 | J75: -771572.8 | K75: -376479 | L75: 304339.1 | M75: -130430 | N75: -222523.6 | O75: 2489.3 | P75: -401882.6 | Q75: -975491.1 | R75: -1966744.3 | S75: -404225 | T75: -135265.6 | U75: 52855.3 | V75: -253447.5 | W75: -1149944.7 | X75: -2161030.6 | Y75: -2153315.5 | Z75: -2405548.4 | AA75: -2866123.9 | AB75: -2869959.2 | AC75: -2745556.7 | AD75: -2638241.1 | AE75: -2408997.4 | AF75: -2116297.6 | AG75: -1735778.2 | AH75: -1534481.5 | AI75: -1307114.6 | AJ75: -1324157.9 | AK75: -1144378.5 | AL75: -847769.6 | AM75: -407159.1 | AN75: -268968.6 | AO75: -546208.9 | AP75: -267625.4 | AQ75: -516808.1 | AR75: -204863.2 | AS75: -236796.5 | AT75: 11004.7 | AU75: 101150.1 | AV75: -241694.3 | AW75: -143987.8 | AX75: -96028.1 | AY75: -211908.7 | AZ75: -292548.8 | BA75: -304818.8 | BB75: -321743.5 | BC75: -148390.6 | BD75: -197714.2 | BE75: -229401.8 | BF75: -312204.1 | BG75: -411096.1 | BH75: -471111.9 | BI75: -256466.2 | BJ75: -258064.5 | BK75: -260202.8 | BL75: -264466.5 | BM75: -268105.3 | BN75: -270381.4 | BO75: -272875.7
B76: Simulation 42 | C76: 0 | D76: 101644.6 | E76: -88080.3 | F76: -464920.5 | G76: -585793.5 | H76: -169919.8 | I76: 495004.5 | J76: 1088334.7 | K76: -750853.1 | L76: -214478.1 | M76: 1143890.3 | N76: 428780.7 | O76: 400867.7 | P76: -369342.6 | Q76: 27506.6 | R76: -1734453.8 | S76: -1668816.7 | T76: -2040487.9 | U76: -2033527.1 | V76: -2488098.4 | W76: -2851519 | X76: -2546233.6 | Y76: -2475522 | Z76: -2915114 | AA76: -3194075.5 | AB76: -3324863.5 | AC76: -3396773.1 | AD76: -3295618.9 | AE76: -3242150.5 | AF76: -3277550.2 | AG76: -3102656.7 | AH76: -3024013.4 | AI76: -2935263.3 | AJ76: -2875771.3 | AK76: -2796398.4 | AL76: -2798497.5 | AM76: -2608070.5 | AN76: -2451357.1 | AO76: -2310111.8 | AP76: -2227502.6 | AQ76: -1925944.7 | AR76: -1831411.9 | AS76: -1620821.2 | AT76: -1498845.1 | AU76: -1410606.3 | AV76: -1345119.9 | AW76: -1043177.3 | AX76: -834761.1 | AY76: -667788.3 | AZ76: -546609 | BA76: -453408.6 | BB76: -422889.9 | BC76: -102369.8 | BD76: -110174.3 | BE76: -129787 | BF76: -181264 | BG76: -244149.4 | BH76: -274486.8 | BI76: -86021.1 | BJ76: -86952.5 | BK76: -87351.5 | BL76: -88088.3 | BM76: -89349.7 | BN76: -92145.4 | BO76: -95188.5
B77: Simulation 43 | C77: 0 | D77: 20826.1 | E77: -465279.3 | F77: -408877.7 | G77: -227863.8 | H77: -428038.9 | I77: -388430.9 | J77: -543343.5 | K77: -33683.3 | L77: -301719.4 | M77: -303023.4 | N77: 957856.6 | O77: 376362.1 | P77: 292663.2 | Q77: 478484.1 | R77: -747907.8 | S77: -1653026.3 | T77: -895291.3 | U77: -1339489.7 | V77: -1466923.9 | W77: -1886204.9 | X77: -1976548.2 | Y77: -1513572.9 | Z77: -1114151 | AA77: -1646250.6 | AB77: -1227302.1 | AC77: -1493808 | AD77: -1741637.3 | AE77: -1549897.4 | AF77: -1099690.8 | AG77: -774613.7 | AH77: -1323305.3 | AI77: -904577.8 | AJ77: -39746.8 | AK77: 466879.8 | AL77: 857514.2 | AM77: 673381.7 | AN77: 126317.8 | AO77: -479024.3 | AP77: -1076974.9 | AQ77: -794942.7 | AR77: -900846.6 | AS77: -739038.5 | AT77: -963106.6 | AU77: -1231849.9 | AV77: -1199723.1 | AW77: -682371.9 | AX77: -652215.6 | AY77: -810241.4 | AZ77: -928748.8 | BA77: -936884.8 | BB77: -959677.8 | BC77: -539270.9 | BD77: -609364.1 | BE77: -661824.2 | BF77: -739951.6 | BG77: -832541.7 | BH77: -877565.8 | BI77: -446613.2 | BJ77: -449093.9 | BK77: -451128.5 | BL77: -454360.2 | BM77: -458631.4 | BN77: -461580.4 | BO77: -463613.5
B78: Simulation 44 | C78: 0 | D78: -115458.6 | E78: 154541 | F78: 22343.6 | G78: -48949.6 | H78: 492747.4 | I78: 715541.6 | J78: 1295317 | K78: 1562622.7 | L78: 1256650.8 | M78: -266168.2 | N78: -1051807.7 | O78: -1779878.4 | P78: -1300657.2 | Q78: -769125.7 | R78: 726901.1 | S78: 362807.3 | T78: -113107.6 | U78: 507480.5 | V78: 80438 | W78: -375944.4 | X78: -1098471.3 | Y78: -1399827.6 | Z78: -1116965 | AA78: -1710983.4 | AB78: -1893222.1 | AC78: -1669420.8 | AD78: -1396203 | AE78: -1587125.7 | AF78: -1279343.2 | AG78: -1570174.3 | AH78: -1540942.6 | AI78: -1684124.2 | AJ78: -1836912.4 | AK78: -2083626.2 | AL78: -1932136.6 | AM78: -2031476.2 | AN78: -2050162.7 | AO78: -1648429.5 | AP78: -1462435.4 | AQ78: -1284310.6 | AR78: -522054.2 | AS78: -735280.4 | AT78: -584121.7 | AU78: -295760 | AV78: -545771.6 | AW78: -221294.8 | AX78: -139589.2 | AY78: -232372 | AZ78: -302022.1 | BA78: -265196.3 | BB78: -329660.5 | BC78: -196920.5 | BD78: -226480.7 | BE78: -316962.7 | BF78: -380722.5 | BG78: -446855.2 | BH78: -555078.7 | BI78: -344873.8 | BJ78: -348158.1 | BK78: -350829.5 | BL78: -354418.5 | BM78: -356819.9 | BN78: -359226.6 | BO78: -361310.9
B79: Simulation 45 | C79: 0 | D79: -81189.4 | E79: -447750.8 | F79: -767030.1 | G79: -749305.4 | H79: -1576437.1 | I79: -1869496.3 | J79: -1914976.1 | K79: -949450.2 | L79: -846737.6 | M79: -633474.6 | N79: -138790.5 | O79: -926839.4 | P79: -179263.6 | Q79: 344051.4 | R79: 136589.1 | S79: -330780.4 | T79: 17524 | U79: 19795.7 | V79: 332623.9 | W79: 677728.6 | X79: 2542175.6 | Y79: 368828.7 | Z79: 295359.1 | AA79: -43002.5 | AB79: 114996.3 | AC79: 1153553.7 | AD79: 1171797.9 | AE79: 1721282.7 | AF79: 2310743.6 | AG79: 1566559.8 | AH79: 1238820.8 | AI79: 334206.4 | AJ79: -194305.4 | AK79: -651402.1 | AL79: -308679.6 | AM79: -55804.2 | AN79: -373211.1 | AO79: -356084.7 | AP79: -542850.2 | AQ79: -521010.5 | AR79: -558467 | AS79: -533927.3 | AT79: -519248.4 | AU79: -554803.7 | AV79: -459494.7 | AW79: -325942.7 | AX79: -331876.1 | AY79: -371710.6 | AZ79: -270488.9 | BA79: -256288.2 | BB79: -184997.1 | BC79: 44135.1 | BD79: -34274.5 | BE79: -115468.8 | BF79: -232420.7 | BG79: -319919 | BH79: -376689.8 | BI79: -221832.8 | BJ79: -226360.2 | BK79: -228978.5 | BL79: -232893.7 | BM79: -236527.8 | BN79: -241277 | BO79: -244324.3
B80: Simulation 46 | C80: 0 | D80: -184486.6 | E80: -784953.3 | F80: -676840 | G80: -304139.5 | H80: 198109.3 | I80: 625462.9 | J80: 290350.9 | K80: -172749.1 | L80: 405718.8 | M80: 966255.5 | N80: 1523576.3 | O80: 1559703.4 | P80: 3974272 | Q80: 3180850.5 | R80: 3420169.7 | S80: 3970402.9 | T80: 3505882.2 | U80: 3829205.4 | V80: 5154179.8 | W80: 7761654.1 | X80: 8805783.3 | Y80: 8972454.5 | Z80: 7338166.2 | AA80: 10243949.5 | AB80: 10035968.8 | AC80: 10132473.6 | AD80: 9464589.7 | AE80: 9623665.3 | AF80: 8809517.6 | AG80: 9069268.3 | AH80: 8911063.4 | AI80: 6288580.7 | AJ80: 6210808.2 | AK80: 5626131.6 | AL80: 4585068.6 | AM80: 3952407.2 | AN80: 5115339.2 | AO80: 3981291.4 | AP80: 4103982.4 | AQ80: 5135414.8 | AR80: 6030673.8 | AS80: 6823011.5 | AT80: 5507956.4 | AU80: 4779856.8 | AV80: 3919945.3 | AW80: 3793399.5 | AX80: 2207563.8 | AY80: 1574700.2 | AZ80: 1228425.3 | BA80: 682320.1 | BB80: 315768.5 | BC80: 320494.9 | BD80: 96526.3 | BE80: -38346.1 | BF80: -217289.9 | BG80: -367981.2 | BH80: -477107.2 | BI80: -263330.3 | BJ80: -269881.8 | BK80: -275215.2 | BL80: -280055.9 | BM80: -285238.7 | BN80: -289484.5 | BO80: -292161.2
B81: Simulation 47 | C81: 0 | D81: 371165.4 | E81: 103142.5 | F81: -441575.7 | G81: -394959.8 | H81: 11286.7 | I81: 188181.3 | J81: -924436.4 | K81: -935156.7 | L81: -1625287.6 | M81: -1527276.5 | N81: -353786.8 | O81: 364650.1 | P81: 55312.5 | Q81: -589167.8 | R81: -1583894 | S81: -1035638.5 | T81: -660413.8 | U81: -1031981.4 | V81: -1690815.2 | W81: -2151849.4 | X81: -2552146.5 | Y81: -2364577.5 | Z81: -2970436.2 | AA81: -3245153.5 | AB81: -3515148.6 | AC81: -3562019.6 | AD81: -3535949.8 | AE81: -3417607.4 | AF81: -3432744.9 | AG81: -3352790.1 | AH81: -3275105.7 | AI81: -3181936.2 | AJ81: -3136448.7 | AK81: -2986569.5 | AL81: -2967240.7 | AM81: -2818972.4 | AN81: -2704565.7 | AO81: -2590704.1 | AP81: -2487154.1 | AQ81: -2126006 | AR81: -2066563.7 | AS81: -1928231.7 | AT81: -1799060.5 | AU81: -1707253.7 | AV81: -1641874.1 | AW81: -1279362.1 | AX81: -1203125.5 | AY81: -1023733.6 | AZ81: -878736.6 | BA81: -787752.6 | BB81: -748029 | BC81: -357376.8 | BD81: -392748.5 | BE81: -429696.1 | BF81: -473685.2 | BG81: -531175.5 | BH81: -616362.4 | BI81: -313728.8 | BJ81: -315427.8 | BK81: -317258.9 | BL81: -320014.5 | BM81: -322853.8 | BN81: -326119.4 | BO81: -328261.6
B82: Simulation 48 | C82: 0 | D82: 202745.3 | E82: -298519.9 | F82: -123953.6 | G82: 252692.5 | H82: 493149.1 | I82: 494596.9 | J82: 406634.4 | K82: -1128819.4 | L82: -1200477.2 | M82: -1629562.6 | N82: -1115879 | O82: -1022612.7 | P82: -898609.5 | Q82: -1031792.5 | R82: -1041677.1 | S82: 196352.5 | T82: 289032.4 | U82: 252531.6 | V82: -762229.9 | W82: -1153425.7 | X82: -439929.3 | Y82: 285688.5 | Z82: 418108.9 | AA82: 547917.2 | AB82: 1535127.5 | AC82: -439339.3 | AD82: -181758.8 | AE82: 189680.8 | AF82: 697038 | AG82: -86325.5 | AH82: -437013.8 | AI82: -620482.2 | AJ82: -578118.6 | AK82: 80136 | AL82: -711343 | AM82: -555568.5 | AN82: 273065.2 | AO82: 829793.4 | AP82: 2242686.1 | AQ82: 3567574.7 | AR82: 1888353.3 | AS82: 2823542.7 | AT82: 2635438.8 | AU82: 2142491.3 | AV82: 1717269.1 | AW82: 1397019.4 | AX82: 846032.3 | AY82: 810907 | AZ82: 622367.2 | BA82: 308791.6 | BB82: 10391.2 | BC82: 129673.9 | BD82: 94549.8 | BE82: 35062.1 | BF82: -43882.9 | BG82: -194472.9 | BH82: -320134 | BI82: -138741.7 | BJ82: -140353.9 | BK82: -143404.7 | BL82: -146919.5 | BM82: -151047.7 | BN82: -154994.9 | BO82: -158753.4
B83: Simulation 49 | C83: 0 | D83: 138490.9 | E83: -98660 | F83: -143985.8 | G83: -344010.9 | H83: -47485.4 | I83: -430574.2 | J83: 205703.9 | K83: -289528.1 | L83: -765627.9 | M83: 582462.8 | N83: 1411481.7 | O83: 915229.8 | P83: 674385.3 | Q83: 1314055 | R83: 410482.7 | S83: 1014419.8 | T83: 408457.6 | U83: 1827414.5 | V83: 1268631.3 | W83: 2032691.4 | X83: 790226.5 | Y83: -473323.5 | Z83: -234398.3 | AA83: -120817.7 | AB83: -15924.5 | AC83: -14630.9 | AD83: 100618.2 | AE83: 866977.6 | AF83: 1033519.3 | AG83: -405170.2 | AH83: -1094332.4 | AI83: -915998.9 | AJ83: -1156833.6 | AK83: -763294.2 | AL83: -297580.7 | AM83: 1086323.3 | AN83: 810113.3 | AO83: 784026.1 | AP83: 730704.8 | AQ83: 218296.7 | AR83: 407226.6 | AS83: 482569.7 | AT83: -79819.6 | AU83: -182926 | AV83: -275384.6 | AW83: -264184.3 | AX83: -245650.3 | AY83: -180591.9 | AZ83: -77999.6 | BA83: -62554.1 | BB83: -61592.5 | BC83: 88213.9 | BD83: 35740.1 | BE83: -20266.6 | BF83: -60553.2 | BG83: -125103.8 | BH83: -208219.9 | BI83: -107027.2 | BJ83: -111263.6 | BK83: -114417 | BL83: -115649.3 | BM83: -118670.1 | BN83: -121462.5 | BO83: -124918.9
B84: Simulation 50 | C84: 0 | D84: 111059.5 | E84: 253245.9 | F84: -23677.6 | G84: 641176.9 | H84: -9201.1 | I84: -1103696.8 | J84: 508430 | K84: -207859.5 | L84: -782985.3 | M84: -38915.5 | N84: 544341.9 | O84: -153264.3 | P84: -563912.6 | Q84: -953767.6 | R84: -884406.9 | S84: -532924.1 | T84: -158299.3 | U84: -1020576.1 | V84: 109899.6 | W84: -380426.4 | X84: -703624.7 | Y84: -310821 | Z84: -931078 | AA84: -779432 | AB84: -345668.5 | AC84: -1211825.2 | AD84: -2204248.7 | AE84: -2308029.8 | AF84: -1879111.5 | AG84: -2024092.8 | AH84: -2221168.9 | AI84: -2652628.2 | AJ84: -2651303.1 | AK84: -2336561 | AL84: -2260772.8 | AM84: -2249367.3 | AN84: -1875749.5 | AO84: -1775679.9 | AP84: -1872941.8 | AQ84: -1710528.5 | AR84: -1626318.7 | AS84: -1522215.9 | AT84: -1386860.1 | AU84: -1265352.9 | AV84: -1218222.8 | AW84: -948240.6 | AX84: -773641.2 | AY84: -552779.2 | AZ84: -354120.9 | BA84: -223155.2 | BB84: -142219.6 | BC84: -7517.7 | BD84: 56330.2 | BE84: 74321.7 | BF84: 87954.6 | BG84: -15855.4 | BH84: -93117.7 | BI84: -108989.9 | BJ84: -105912.5 | BK84: -105330.2 | BL84: -106576.6 | BM84: -107768.5 | BN84: -111324.3 | BO84: -114265.6
B85: Simulation 51 | C85: 0 | D85: -77061.1 | E85: -785206.1 | F85: -1007996.1 | G85: -991997.3 | H85: -1577076.5 | I85: -1635271.7 | J85: -1902933.8 | K85: -1481014.6 | L85: -1635252.5 | M85: -810497.2 | N85: -608237.2 | O85: -971500.2 | P85: -1867231.9 | Q85: -1657393.7 | R85: -2697814.8 | S85: -2359291.6 | T85: -3036704.4 | U85: -3379081.8 | V85: -3580606.7 | W85: -3586796.6 | X85: -3898139.2 | Y85: -3488583.8 | Z85: -3660589.7 | AA85: -3496444.4 | AB85: -3379809 | AC85: -3179382.7 | AD85: -3185993.8 | AE85: -2996271.8 | AF85: -3105449.2 | AG85: -2928894.8 | AH85: -2844136.8 | AI85: -2532899.7 | AJ85: -2526395.2 | AK85: -2232528.4 | AL85: -2329687.4 | AM85: -2203584.4 | AN85: -2207120.6 | AO85: -2026458 | AP85: -1935739.7 | AQ85: -1640671.8 | AR85: -1524417.2 | AS85: -1343538.6 | AT85: -1242661.5 | AU85: -1045252.2 | AV85: -941212 | AW85: -563859.5 | AX85: -492114.7 | AY85: -361762.5 | AZ85: -254413.4 | BA85: -271824.5 | BB85: -265159 | BC85: -127448.6 | BD85: -133816.2 | BE85: -183186.2 | BF85: -206904.2 | BG85: -328412 | BH85: -394808.2 | BI85: -222149.2 | BJ85: -224645.8 | BK85: -227100 | BL85: -229693.9 | BM85: -233727.4 | BN85: -236269.8 | BO85: -238438.4
B86: Simulation 52 | C86: 0 | D86: -170970.5 | E86: -70381.6 | F86: 405749.2 | G86: 671623.6 | H86: 1056440 | I86: 1844637.5 | J86: 2262145.7 | K86: 3079856.6 | L86: 2098468.8 | M86: 1384973.6 | N86: 1419987.6 | O86: 2409032.2 | P86: 1476564.1 | Q86: 948019.9 | R86: -438044.3 | S86: -1117434.3 | T86: -1536039.3 | U86: -2070650.5 | V86: -2295413.6 | W86: -2712431.6 | X86: -2458438 | Y86: -2775960.2 | Z86: -2944892.7 | AA86: -2692569.7 | AB86: -2546617 | AC86: -2163255.1 | AD86: -2138925.4 | AE86: -1648039 | AF86: -1091617.5 | AG86: 36510.9 | AH86: -221015.7 | AI86: -60578.1 | AJ86: -308178.2 | AK86: 339022.5 | AL86: 793104.6 | AM86: 2011230.3 | AN86: 2330427.3 | AO86: 3063481.7 | AP86: 2499072.2 | AQ86: 4138467.9 | AR86: 4972931.9 | AS86: 3388414 | AT86: 2712686.3 | AU86: 3100072.1 | AV86: 3342637.7 | AW86: 2435860.1 | AX86: 2359099.5 | AY86: 2551288.6 | AZ86: 1985206 | BA86: 1719618.2 | BB86: 896368.3 | BC86: 491949.6 | BD86: 361657 | BE86: 222367 | BF86: 74186.2 | BG86: -60812.7 | BH86: -153836.1 | BI86: -98953.7 | BJ86: -102976.6 | BK86: -106522.9 | BL86: -108102.3 | BM86: -112337.9 | BN86: -116926.9 | BO86: -121376.1
B87: Simulation 53 | C87: 0 | D87: -2557.6 | E87: -315178.4 | F87: 237903.7 | G87: -60860.3 | H87: 383809.9 | I87: 502940.5 | J87: 1687670.1 | K87: 1870747.4 | L87: 1799246.8 | M87: 3052017 | N87: 2377727.3 | O87: 1948755 | P87: 2644268.7 | Q87: 2446105.6 | R87: 1980706.7 | S87: 663694.9 | T87: 38525.9 | U87: -140954.5 | V87: -1278967.9 | W87: -1785308.4 | X87: -2278790.5 | Y87: -1260734.3 | Z87: -1372042.5 | AA87: -1169341.4 | AB87: -858974.8 | AC87: -1315876.9 | AD87: -1335092.1 | AE87: -1185081.4 | AF87: -1304039.1 | AG87: -1043890.9 | AH87: -1129271.2 | AI87: -1374566.3 | AJ87: -1458800.7 | AK87: -1298807 | AL87: -1355135.4 | AM87: -1350353.9 | AN87: -1324798 | AO87: -1604677.8 | AP87: -1628529.8 | AQ87: -1374773.6 | AR87: -1482709 | AS87: -1195079.1 | AT87: -1173205.1 | AU87: -928209.3 | AV87: -1182793.8 | AW87: -783416.2 | AX87: -677331.5 | AY87: -533252.1 | AZ87: -368929.8 | BA87: -345443.4 | BB87: -331497.5 | BC87: -28534.1 | BD87: -73772.7 | BE87: -102578.1 | BF87: -133203.2 | BG87: -189820 | BH87: -257936.6 | BI87: -70410.5 | BJ87: -73499.6 | BK87: -76322.1 | BL87: -79450.7 | BM87: -82430 | BN87: -88669.1 | BO87: -91824.1
B88: Simulation 54 | C88: 0 | D88: 125086.5 | E88: 206302.8 | F88: 358799.2 | G88: -118048.7 | H88: -585898.4 | I88: -734458.3 | J88: -1355766.3 | K88: -1226310.6 | L88: -636306.7 | M88: -1756634.2 | N88: -1756341.4 | O88: -1843777.3 | P88: -1727005.7 | Q88: -802676.1 | R88: -550060.3 | S88: -73717.7 | T88: -962234.2 | U88: -261213.8 | V88: -1045725.8 | W88: -469078.6 | X88: -367067.6 | Y88: 750287.6 | Z88: -63582 | AA88: -1503598 | AB88: -889264.4 | AC88: 167926.6 | AD88: 389786.3 | AE88: 661767.6 | AF88: -454854.1 | AG88: -608590.9 | AH88: -535951.4 | AI88: -837457.5 | AJ88: -1163454.5 | AK88: -1541932.3 | AL88: -1646132.2 | AM88: -1565978.2 | AN88: -1643305.9 | AO88: -1563249.4 | AP88: -1734199.9 | AQ88: -1305704.7 | AR88: -1210081.8 | AS88: -1181379.9 | AT88: -1114033.8 | AU88: -962996.2 | AV88: -937501.1 | AW88: -512737.5 | AX88: -416095.5 | AY88: -402618.7 | AZ88: -331367.7 | BA88: -335703.4 | BB88: -340118.3 | BC88: -73761.4 | BD88: -47874.5 | BE88: -101725.1 | BF88: -189045.9 | BG88: -299959.5 | BH88: -429160.9 | BI88: -251109.3 | BJ88: -253818.9 | BK88: -256248 | BL88: -261277.9 | BM88: -264764.6 | BN88: -268164.2 | BO88: -270767.4
B89: Simulation 55 | C89: 0 | D89: -111583.1 | E89: -688084 | F89: -1554380 | G89: -1737568.7 | H89: -1316570.3 | I89: -1780232.6 | J89: -1701629.3 | K89: -505560.2 | L89: -778120.6 | M89: -1924957 | N89: -1169720.4 | O89: -611495.9 | P89: -391875.5 | Q89: -84359.4 | R89: -297618.2 | S89: 236856.8 | T89: -3138.9 | U89: -721155.3 | V89: -497159.9 | W89: -25055.7 | X89: 87691 | Y89: 493012.5 | Z89: 964775.1 | AA89: -425478.7 | AB89: 587584.8 | AC89: 647800.3 | AD89: 130340.3 | AE89: 568624.7 | AF89: 435633.8 | AG89: -707626.3 | AH89: 255605.2 | AI89: 1063962 | AJ89: 567551.3 | AK89: 1024891.3 | AL89: 186710.8 | AM89: -15669.6 | AN89: 243475.8 | AO89: -757999.6 | AP89: -331788.9 | AQ89: -370229.7 | AR89: -309967.5 | AS89: 90547.2 | AT89: 352549.2 | AU89: 621503.5 | AV89: 537885.8 | AW89: 425170.3 | AX89: 657621.1 | AY89: 603095.1 | AZ89: 616614 | BA89: 709275.3 | BB89: 736520.6 | BC89: 643730.4 | BD89: 583235.6 | BE89: 421891.7 | BF89: 349810.5 | BG89: 254002.4 | BH89: 190040.8 | BI89: 72963.1 | BJ89: 72329.7 | BK89: 71091.7 | BL89: 69178.4 | BM89: 64187.5 | BN89: 59679.6 | BO89: 55003.9
B90: Simulation 56 | C90: 0 | D90: -293302.9 | E90: -81226.9 | F90: 431706.3 | G90: -41250 | H90: 101738.6 | I90: 591446.1 | J90: 430740.6 | K90: -117308.9 | L90: -69617.9 | M90: 479192.2 | N90: 702618.7 | O90: 1340923 | P90: -505747.7 | Q90: -761725 | R90: -485030.1 | S90: -278420.4 | T90: 195654.2 | U90: 4990.3 | V90: 1272934.1 | W90: 402883.4 | X90: -238241.5 | Y90: -46897.4 | Z90: 1072443.7 | AA90: 772717.7 | AB90: -200013.9 | AC90: -343401 | AD90: -109516.8 | AE90: -257570.6 | AF90: -251816 | AG90: -1291150.9 | AH90: -1076192.3 | AI90: -1450369.8 | AJ90: -1792664.1 | AK90: -1699049.8 | AL90: -1676441.7 | AM90: -1836628.6 | AN90: -1988646.3 | AO90: -1814271.9 | AP90: -1655148.4 | AQ90: -1420555.9 | AR90: -1255851.1 | AS90: -1203795.2 | AT90: -1038663.1 | AU90: -927552.4 | AV90: -820060.3 | AW90: -673846.6 | AX90: -460039.3 | AY90: -264952.8 | AZ90: -82663.1 | BA90: -9244.4 | BB90: 99696.4 | BC90: 201449.6 | BD90: 182525.7 | BE90: 128508.2 | BF90: 36606.8 | BG90: -33964.3 | BH90: -90918.9 | BI90: -59766.1 | BJ90: -59608.7 | BK90: -60588.5 | BL90: -62652.9 | BM90: -66178 | BN90: -70478.4 | BO90: -72954.3
B91: Simulation 57 | C91: 0 | D91: -23002.4 | E91: -180212.8 | F91: -612772.2 | G91: -825667.3 | H91: -755581.3 | I91: -1276465.6 | J91: -866832.4 | K91: -1756974.9 | L91: -1304216.5 | M91: -381935.7 | N91: 449788.3 | O91: 665372.3 | P91: 395082.5 | Q91: 314659.6 | R91: 789645.6 | S91: 701426.1 | T91: -264009.2 | U91: -317561 | V91: -1178358.3 | W91: -2209513.6 | X91: -2083668.3 | Y91: -1396868.7 | Z91: -1864456 | AA91: -1887413.7 | AB91: -1472373.7 | AC91: -1502387.4 | AD91: -1632435.7 | AE91: -2146347.7 | AF91: -2084756.1 | AG91: -2274366.7 | AH91: -2479513.8 | AI91: -2459366.9 | AJ91: -2424355.8 | AK91: -2207759.7 | AL91: -2198287.6 | AM91: -2378364.7 | AN91: -2307401.6 | AO91: -2279820 | AP91: -2284588.7 | AQ91: -1989668.2 | AR91: -1827811.2 | AS91: -1670594.3 | AT91: -1572110.8 | AU91: -1586037.2 | AV91: -1507494.1 | AW91: -1255030.8 | AX91: -1162276.2 | AY91: -1008455.7 | AZ91: -939373.6 | BA91: -845741.7 | BB91: -822458.2 | BC91: -484255 | BD91: -544882.4 | BE91: -588441.3 | BF91: -624263.3 | BG91: -684902 | BH91: -702941 | BI91: -358390.5 | BJ91: -361983.7 | BK91: -363301.3 | BL91: -365496 | BM91: -368663.9 | BN91: -372148.7 | BO91: -374566.8
B92: Simulation 58 | C92: 0 | D92: 121257.1 | E92: 702612.8 | F92: 912084.6 | G92: 197736.4 | H92: 23339.9 | I92: -1179163.5 | J92: -747097.7 | K92: -1542759.1 | L92: -2421958.6 | M92: -1784826.6 | N92: -1273880.5 | O92: -2092190.3 | P92: -2578181 | Q92: -2676392 | R92: -3091165.9 | S92: -2271298.5 | T92: -2404734.3 | U92: -2076228.9 | V92: -1453399.5 | W92: -2253430.8 | X92: -2900450.4 | Y92: -2469767.3 | Z92: -2690509.2 | AA92: -3101607.6 | AB92: -3095745.7 | AC92: -3320236.1 | AD92: -3241065.3 | AE92: -2915603.9 | AF92: -2872847.8 | AG92: -2929209.6 | AH92: -3009537.9 | AI92: -2859610 | AJ92: -2796916.6 | AK92: -2450525.5 | AL92: -2489040.9 | AM92: -2284236.9 | AN92: -2436473.8 | AO92: -2420402.7 | AP92: -2394694.3 | AQ92: -1914939.3 | AR92: -1705089.8 | AS92: -1636152.7 | AT92: -1523826 | AU92: -1476234.5 | AV92: -1379723.5 | AW92: -1021609.4 | AX92: -913849.5 | AY92: -662207.3 | AZ92: -575954.5 | BA92: -464979.9 | BB92: -441192.5 | BC92: -138541 | BD92: -254978 | BE92: -346991.1 | BF92: -430093.2 | BG92: -541406.6 | BH92: -631607.7 | BI92: -393912.4 | BJ92: -398188.1 | BK92: -402342.9 | BL92: -405213.7 | BM92: -409131.8 | BN92: -412049.2 | BO92: -413953.2
B93: Simulation 59 | C93: 0 | D93: -76921.4 | E93: 178889.7 | F93: 122184.6 | G93: -210206.9 | H93: -333473.1 | I93: -741108.9 | J93: -1225645.1 | K93: -1257833.9 | L93: -2271456 | M93: -1326020.6 | N93: -1828565.9 | O93: -1803658.9 | P93: -2242923.7 | Q93: -1806403.3 | R93: -2520081.9 | S93: -2808574.5 | T93: -2419717.8 | U93: -2572305.9 | V93: -2837390.8 | W93: -2907547.4 | X93: -3269811.5 | Y93: -2872658.9 | Z93: -2476139.8 | AA93: -1869117.3 | AB93: -2032871.3 | AC93: -2146430.2 | AD93: -2034165.3 | AE93: -2139751.4 | AF93: -2362771.3 | AG93: -2380440.1 | AH93: -2554632.6 | AI93: -2296034.2 | AJ93: -2293315.8 | AK93: -1906837.5 | AL93: -1364205.3 | AM93: -400632.9 | AN93: -99522.1 | AO93: -1102215.2 | AP93: -1769844.2 | AQ93: -1280642 | AR93: -1053669.2 | AS93: -1137627.6 | AT93: -858695 | AU93: -860138.1 | AV93: -898293.2 | AW93: -506765.2 | AX93: -478019.8 | AY93: -510065.3 | AZ93: -442311.1 | BA93: -482300 | BB93: -484884.8 | BC93: -212333.3 | BD93: -289089.9 | BE93: -381778.4 | BF93: -425421 | BG93: -487353.5 | BH93: -544146.6 | BI93: -266434.3 | BJ93: -269765 | BK93: -272230.5 | BL93: -276029.5 | BM93: -278946.4 | BN93: -281005.2 | BO93: -282735.2
B94: Simulation 60 | C94: 0 | D94: 15437 | E94: 145434.2 | F94: 293676.8 | G94: 357788.9 | H94: -282317.8 | I94: 192709.8 | J94: 170573.7 | K94: 719036.3 | L94: 437868.8 | M94: 80845.5 | N94: -115280.1 | O94: 922096.3 | P94: 729612.8 | Q94: 1229110.3 | R94: 1394299.6 | S94: 1571380.9 | T94: 1151853.9 | U94: 1764822.9 | V94: 1926581 | W94: 3877618.3 | X94: 2635969.5 | Y94: 1733185.5 | Z94: 1425737.1 | AA94: 1976829.6 | AB94: 1985888.2 | AC94: 470929.5 | AD94: 277345.1 | AE94: 1573083.1 | AF94: 1675983.4 | AG94: 2037894.4 | AH94: 1595948.5 | AI94: 85988.2 | AJ94: -634792.3 | AK94: -349359 | AL94: -625951.1 | AM94: -598205.6 | AN94: -843094.1 | AO94: -1264748.3 | AP94: -1219431.5 | AQ94: -943028 | AR94: -705019.4 | AS94: -472940.3 | AT94: -433024.9 | AU94: -270886.3 | AV94: 18653.1 | AW94: 132062.7 | AX94: 323472.5 | AY94: 354362.8 | AZ94: 377756.7 | BA94: 550477.9 | BB94: 660666.4 | BC94: 620376.3 | BD94: 504776.1 | BE94: 426655.1 | BF94: 371874.1 | BG94: 232005.2 | BH94: 49297.8 | BI94: 2685.1 | BJ94: -1968.8 | BK94: -10895.4 | BL94: -14397.3 | BM94: -17492 | BN94: -23394.7 | BO94: -26838.7
B95: Simulation 61 | C95: 0 | D95: 58497.8 | E95: -352199.8 | F95: -739909.3 | G95: 208091.6 | H95: 930848 | I95: 264206.3 | J95: 177765.4 | K95: 923295.9 | L95: 535164.1 | M95: -669314.2 | N95: -1682449.8 | O95: -2000558.4 | P95: -1470665.3 | Q95: -2481166.3 | R95: -2551838.6 | S95: -2042685.7 | T95: -2024426.1 | U95: -2234487.3 | V95: -2365091.6 | W95: -1645570.7 | X95: -1480758.4 | Y95: -471586.5 | Z95: -487740 | AA95: -535804.7 | AB95: -810020.5 | AC95: -741045.5 | AD95: -468848.1 | AE95: -1004399.1 | AF95: -1375990.6 | AG95: -1137972.3 | AH95: -1456949.9 | AI95: -1022122.1 | AJ95: -1272762.1 | AK95: -1238901.8 | AL95: -702045.8 | AM95: -378269.3 | AN95: -421429.5 | AO95: 231066.7 | AP95: 985723.3 | AQ95: 1556532.8 | AR95: 1224820.5 | AS95: 1084219 | AT95: 739501.5 | AU95: 783572.6 | AV95: 217829.9 | AW95: 614153 | AX95: 403380.8 | AY95: 404267.5 | AZ95: 375815.6 | BA95: 257634.3 | BB95: -69650.5 | BC95: 48948.4 | BD95: -564.8 | BE95: -64410.9 | BF95: -168433.5 | BG95: -285355.9 | BH95: -395355.6 | BI95: -243162.8 | BJ95: -245621.9 | BK95: -247235.1 | BL95: -251000.4 | BM95: -255711.4 | BN95: -259369.1 | BO95: -261224.9
B96: Simulation 62 | C96: 0 | D96: 128214.9 | E96: -742556.6 | F96: -998315.5 | G96: -1161025.2 | H96: -715138.4 | I96: -1184152.1 | J96: -2013986.1 | K96: -2044996 | L96: -2663891.5 | M96: -2095429.7 | N96: -1533243.2 | O96: -1042995.9 | P96: -1453534.3 | Q96: -928905 | R96: -906383.7 | S96: -2122150.1 | T96: -1441614.5 | U96: -532002.2 | V96: 187177.4 | W96: -302375 | X96: -1299015.6 | Y96: -1448141.7 | Z96: -1982680.7 | AA96: -2754055.2 | AB96: -2778199 | AC96: -1891566.2 | AD96: -1606176.6 | AE96: -549651.6 | AF96: -1007907.2 | AG96: -1163855.6 | AH96: -1148561.7 | AI96: -996996 | AJ96: -832204.2 | AK96: -929366.6 | AL96: -364321.6 | AM96: 18671.3 | AN96: 168012.9 | AO96: -625566.4 | AP96: -835073.4 | AQ96: -295969.5 | AR96: 137321.9 | AS96: 101707.4 | AT96: 362763 | AU96: 386880.1 | AV96: -181653.4 | AW96: 254116.5 | AX96: 195756.2 | AY96: 292476.7 | AZ96: 80429.8 | BA96: 14545.3 | BB96: -173988.4 | BC96: -58523.2 | BD96: -108076.4 | BE96: -205881.9 | BF96: -277182.3 | BG96: -351141.2 | BH96: -430419.7 | BI96: -207819.1 | BJ96: -211885.4 | BK96: -214148.3 | BL96: -218401.7 | BM96: -222736.5 | BN96: -226491.5 | BO96: -229710.7
B97: Simulation 63 | C97: 0 | D97: -104374.2 | E97: 655014.7 | F97: 391422.1 | G97: 165451.9 | H97: -357043.6 | I97: -470419.8 | J97: -1392268.8 | K97: -1003086.9 | L97: -1541508.8 | M97: -908151.7 | N97: 197852.8 | O97: 966006.7 | P97: 1038523.4 | Q97: 686680.1 | R97: 255033.5 | S97: 552583.2 | T97: -1037145 | U97: -558701.7 | V97: -269515.1 | W97: -1166618.2 | X97: -1682328.4 | Y97: -2180538.9 | Z97: -2312438.6 | AA97: -1388442.1 | AB97: -2200730.8 | AC97: -1876927.9 | AD97: -2489712.5 | AE97: -1812321.5 | AF97: -1790794.4 | AG97: -1847024.8 | AH97: -2436661.6 | AI97: -2380226.8 | AJ97: -2007601 | AK97: -1414787.4 | AL97: -1034153.1 | AM97: -1198571.6 | AN97: -1462547.4 | AO97: -1609414.3 | AP97: -2332041.9 | AQ97: -1896385.7 | AR97: -1804241.3 | AS97: -1722331.8 | AT97: -1624768.1 | AU97: -1498948.4 | AV97: -1470353 | AW97: -856139.2 | AX97: -719215.1 | AY97: -616527.2 | AZ97: -616619.4 | BA97: -598429.1 | BB97: -573265.1 | BC97: -240584.4 | BD97: -325412.8 | BE97: -409094.7 | BF97: -469447.6 | BG97: -541459.3 | BH97: -633616.7 | BI97: -326558 | BJ97: -329417.5 | BK97: -333230.5 | BL97: -335985.8 | BM97: -338800.6 | BN97: -341375.2 | BO97: -343903.4
B98: Simulation 64 | C98: 0 | D98: 62501.4 | E98: -221249.6 | F98: -388708 | G98: 111029.7 | H98: 820178.7 | I98: 809822.6 | J98: 1392460.1 | K98: 165342.1 | L98: 1862962.8 | M98: 1169399.1 | N98: 1104115.3 | O98: 1657865.8 | P98: 2707495.5 | Q98: 4012862.1 | R98: 3715060.1 | S98: 2516006.4 | T98: 2690945.2 | U98: 1891122.1 | V98: 2522580.5 | W98: 2129751.9 | X98: 3041697.1 | Y98: 3944434.4 | Z98: 3684950.5 | AA98: 4253652.2 | AB98: 3632303.5 | AC98: 4143774.2 | AD98: 5741326.2 | AE98: 5592113.8 | AF98: 5397326.5 | AG98: 6712927.7 | AH98: 4428836.9 | AI98: 2439354.3 | AJ98: 2426816.1 | AK98: 1317764.8 | AL98: 424844.9 | AM98: 119213.6 | AN98: 239822.4 | AO98: 1351045.9 | AP98: 1701184.6 | AQ98: 1681577.4 | AR98: 1072387.3 | AS98: 912012.6 | AT98: 739052 | AU98: 1221119 | AV98: 855406.2 | AW98: 1243115.3 | AX98: 879144.3 | AY98: 990435.8 | AZ98: 957631.4 | BA98: 516368.9 | BB98: 201836.5 | BC98: 239861.2 | BD98: 92002 | BE98: -57406.4 | BF98: -206114.4 | BG98: -327731.7 | BH98: -425053.1 | BI98: -202862.6 | BJ98: -206944.6 | BK98: -210049.5 | BL98: -214039.3 | BM98: -219243.6 | BN98: -223415.1 | BO98: -226343.9
B99: Simulation 65 | C99: 0 | D99: -92215.1 | E99: -326476.8 | F99: -521037.1 | G99: -813317.4 | H99: -1658197.2 | I99: -1854968.4 | J99: -1186049.5 | K99: -1419482.2 | L99: -758657.3 | M99: 363896.6 | N99: -276279.3 | O99: -838612.5 | P99: -1373901.3 | Q99: -1651393.4 | R99: -1572585.3 | S99: -1369023.7 | T99: -1529375.2 | U99: -2401090.8 | V99: -2408945.2 | W99: -2304487.7 | X99: -1967063.3 | Y99: -2304642.2 | Z99: -2517217.1 | AA99: -2496339.9 | AB99: -2464327.2 | AC99: -2581228.8 | AD99: -2632598.4 | AE99: -2856109.5 | AF99: -2661058.9 | AG99: -2551101.2 | AH99: -2436530.3 | AI99: -2376220.5 | AJ99: -2326337.5 | AK99: -2463559.7 | AL99: -2452417.1 | AM99: -2245774.8 | AN99: -1978520.7 | AO99: -1764983.3 | AP99: -1632434.1 | AQ99: -1554114.3 | AR99: -1424373.9 | AS99: -1108681.7 | AT99: -958305.3 | AU99: -779057.8 | AV99: -608388.3 | AW99: -518022.6 | AX99: -504400.3 | AY99: -198052 | AZ99: 97889.8 | BA99: 268345.5 | BB99: 396336.8 | BC99: 424310.4 | BD99: 422673.3 | BE99: 353035.5 | BF99: 322037.2 | BG99: 276370.8 | BH99: 215184.9 | BI99: 85135.9 | BJ99: 84812.9 | BK99: 85856.4 | BL99: 84175.4 | BM99: 83037.4 | BN99: 78736.1 | BO99: 74670.9
B100: Simulation 66 | C100: 0 | D100: 141315.7 | E100: 623393.9 | F100: 1260520.6 | G100: 1268066.7 | H100: 2006209.6 | I100: 1335284.7 | J100: 1042311.1 | K100: 499777.5 | L100: -270272.2 | M100: 87641.5 | N100: -1038624.2 | O100: -1541439 | P100: -2039987 | Q100: -2209764.4 | R100: -2020520.6 | S100: -1752134.3 | T100: -1386856.4 | U100: -2156037.6 | V100: -2065619.6 | W100: -1532900.9 | X100: -1958672.9 | Y100: -1819525.1 | Z100: -1888606.9 | AA100: -1541772.3 | AB100: -761392.6 | AC100: -1126988.6 | AD100: -1328569.9 | AE100: -1452679.8 | AF100: -1694402.6 | AG100: -2181617.1 | AH100: -2018434.9 | AI100: -1915179.6 | AJ100: -1713502.4 | AK100: -969597.1 | AL100: -1075885.4 | AM100: -1632172.3 | AN100: -1670909.7 | AO100: -1534009.5 | AP100: -1765914.5 | AQ100: -1476254.4 | AR100: -1193714.5 | AS100: -1010641 | AT100: -884476.8 | AU100: -817949.3 | AV100: -744189.5 | AW100: -625121 | AX100: -333646.8 | AY100: -98328.4 | AZ100: 9440.3 | BA100: 256558.3 | BB100: 280745.8 | BC100: 330143.2 | BD100: 361450.1 | BE100: 381137.8 | BF100: 377201.2 | BG100: 309076.7 | BH100: 227097.6 | BI100: 131549.5 | BJ100: 134662 | BK100: 134849.9 | BL100: 134262.6 | BM100: 129671.9 | BN100: 126054.2 | BO100: 122480
B101: Simulation 67 | C101: 0 | D101: -128897.2 | E101: 484696.2 | F101: 258698.4 | G101: 327790.9 | H101: 2001486.5 | I101: 1290346.7 | J101: 1186484.5 | K101: 260572.6 | L101: 131892.3 | M101: -677149.9 | N101: -463026.6 | O101: -264504.2 | P101: -13269.5 | Q101: -602757.7 | R101: -651302.7 | S101: -360500.1 | T101: 838468.5 | U101: -403737.9 | V101: -827381 | W101: -495434.4 | X101: -715058 | Y101: -179557.9 | Z101: -74248.7 | AA101: 103150.5 | AB101: 176113.9 | AC101: -868277 | AD101: -717205.6 | AE101: -697646.8 | AF101: -219958 | AG101: -882978.2 | AH101: -1319945.9 | AI101: -788933 | AJ101: -170521.5 | AK101: -122078.3 | AL101: -1775765.2 | AM101: -1047731.4 | AN101: -1203932.2 | AO101: -1707300.2 | AP101: -1935180.1 | AQ101: -1595377.6 | AR101: -1502891 | AS101: -1393445.8 | AT101: -1408663.9 | AU101: -1124588.8 | AV101: -987507 | AW101: -587751.7 | AX101: -378960.5 | AY101: -480839.2 | AZ101: -537814 | BA101: -463617.5 | BB101: -549935.5 | BC101: -224512.4 | BD101: -342447.9 | BE101: -456172.9 | BF101: -551860.8 | BG101: -580745.4 | BH101: -672570.8 | BI101: -319682.4 | BJ101: -324648.9 | BK101: -328687.3 | BL101: -333025.9 | BM101: -334742.8 | BN101: -338388.8 | BO101: -341541.5
B102: Simulation 68 | C102: 0 | D102: 66931.7 | E102: 26871.1 | F102: 549536 | G102: 402879.6 | H102: 2063546.4 | I102: 2282172.6 | J102: 3038809 | K102: 3134943.9 | L102: 2457585.7 | M102: 3199076.7 | N102: 2307655.5 | O102: 1825577.9 | P102: 714120.6 | Q102: 710101.7 | R102: 407372 | S102: -725988.1 | T102: -1009164.7 | U102: -1663919.8 | V102: -2601091 | W102: -2036243.5 | X102: -1642674.2 | Y102: -1675846.5 | Z102: -1905120.5 | AA102: -1969603.8 | AB102: -1277825.7 | AC102: -321598.4 | AD102: -1045848.5 | AE102: -428742.6 | AF102: -611293.7 | AG102: -362112 | AH102: -77443.8 | AI102: 658589.4 | AJ102: -3998.1 | AK102: -852002.6 | AL102: -698701 | AM102: -731693.3 | AN102: -885425.9 | AO102: -1277883.9 | AP102: -1405166.1 | AQ102: -1145584.3 | AR102: -913518.8 | AS102: -827981.6 | AT102: -746869.3 | AU102: -517253.3 | AV102: -333502.5 | AW102: -1235.9 | AX102: -66427.2 | AY102: -10433.2 | AZ102: -74004.9 | BA102: 22925.3 | BB102: -4934.7 | BC102: 161172.3 | BD102: 70918.1 | BE102: 36945.7 | BF102: -1079.8 | BG102: -67531 | BH102: -149466 | BI102: -90334.5 | BJ102: -91555.5 | BK102: -95426.2 | BL102: -97396.7 | BM102: -99725.7 | BN102: -99896.2 | BO102: -103878.5
B103: Simulation 69 | C103: 0 | D103: -1678.4 | E103: -420751.9 | F103: -358614.8 | G103: -617217 | H103: -1385059.1 | I103: -954720.1 | J103: -1092685.9 | K103: -1840208.7 | L103: -2700096 | M103: -2190098.5 | N103: -2251182.7 | O103: -2102915.1 | P103: -2554454.3 | Q103: -2093237 | R103: -1903197 | S103: -1597160.3 | T103: -1762219.6 | U103: -2013536 | V103: -2841679.2 | W103: -2415182.5 | X103: -2727444.7 | Y103: -2867840 | Z103: -3218917.6 | AA103: -3149375.2 | AB103: -2960564.9 | AC103: -2889199.8 | AD103: -2801470.4 | AE103: -2521418.8 | AF103: -2641874.1 | AG103: -2557968.8 | AH103: -2476425.2 | AI103: -2450858.7 | AJ103: -2361205.2 | AK103: -2313529.3 | AL103: -2186148.6 | AM103: -2031402.4 | AN103: -1592630.5 | AO103: -1373686.5 | AP103: -1831344.7 | AQ103: -1346263.2 | AR103: -1143006.6 | AS103: -1037173.8 | AT103: -815660.4 | AU103: -543562.8 | AV103: -557599.6 | AW103: -64465.4 | AX103: -87730.6 | AY103: 67558 | AZ103: 151472.1 | BA103: 54242.1 | BB103: -64387.7 | BC103: 153880.2 | BD103: 113870.9 | BE103: -41260 | BF103: -159095.6 | BG103: -222685.8 | BH103: -324336.5 | BI103: -185542.8 | BJ103: -188940.9 | BK103: -193798.1 | BL103: -198243.6 | BM103: -201295.3 | BN103: -205768.3 | BO103: -206839.9
B104: Simulation 70 | C104: 0 | D104: -132526 | E104: -542818.6 | F104: -973146.1 | G104: -109937.1 | H104: 1511658.7 | I104: 1752402.2 | J104: 3086992.7 | K104: 3261178.4 | L104: 1740844.9 | M104: 1008393.2 | N104: 852739.9 | O104: 307946.1 | P104: -23388.8 | Q104: -578085.1 | R104: -676229.1 | S104: -645449.3 | T104: 299278.2 | U104: 209171.4 | V104: 1866347.3 | W104: 1617355.3 | X104: 3705624.1 | Y104: 4599831.1 | Z104: 5354419.5 | AA104: 3101788.8 | AB104: 4548552.4 | AC104: 4344744.6 | AD104: 3465709.8 | AE104: 1865460.6 | AF104: 2127172.6 | AG104: 1013041 | AH104: 1745889.1 | AI104: 2885730 | AJ104: 2428286.9 | AK104: 1628484.6 | AL104: 362952.4 | AM104: -512612.3 | AN104: -586357.4 | AO104: 108560.8 | AP104: 91467.9 | AQ104: 354333.4 | AR104: 867849.8 | AS104: 544474.5 | AT104: 380405.1 | AU104: 761677.2 | AV104: 476488 | AW104: 652826 | AX104: 848213.7 | AY104: 913673.9 | AZ104: 689148 | BA104: 480552 | BB104: 289957.5 | BC104: 222146.7 | BD104: 184868.7 | BE104: 98531.9 | BF104: 57134.9 | BG104: -44336.7 | BH104: -123326.8 | BI104: -68764.7 | BJ104: -71459.2 | BK104: -73950.8 | BL104: -76108.5 | BM104: -79273.1 | BN104: -82283.5 | BO104: -85710.6
B105: Simulation 71 | C105: 0 | D105: 25914.1 | E105: 82526.1 | F105: -639193.8 | G105: -212128.1 | H105: 50052.2 | I105: -862110.8 | J105: -985432.8 | K105: -1479764.9 | L105: -1431838.6 | M105: -1082897.1 | N105: -1587212.8 | O105: -1234927 | P105: -820571.3 | Q105: -1881531 | R105: -2258468.9 | S105: -1409464.4 | T105: -1053748.3 | U105: -718686.3 | V105: -1320411.4 | W105: -1025155.3 | X105: -1760234.8 | Y105: -1305894.7 | Z105: -1927821.1 | AA105: -2326408.8 | AB105: -2181188.6 | AC105: -1756308.7 | AD105: -1817056.7 | AE105: -1562687.7 | AF105: -1556828.5 | AG105: -1696496 | AH105: -2110284.9 | AI105: -2406139.9 | AJ105: -2384062.3 | AK105: -2386648.2 | AL105: -2409145.5 | AM105: -2359802.7 | AN105: -2166991.3 | AO105: -2007364 | AP105: -1977937.9 | AQ105: -1763545.1 | AR105: -1483720.6 | AS105: -1286054.3 | AT105: -1218496.2 | AU105: -1216806.4 | AV105: -1186047.8 | AW105: -980545 | AX105: -855850.9 | AY105: -711388.7 | AZ105: -579847.6 | BA105: -402333.8 | BB105: -371258 | BC105: -88430.8 | BD105: -167588.2 | BE105: -226439.9 | BF105: -277704.3 | BG105: -322467.1 | BH105: -419224.3 | BI105: -212054.2 | BJ105: -214675.9 | BK105: -217559.3 | BL105: -222440.1 | BM105: -225250.7 | BN105: -229610.8 | BO105: -231397
B106: Simulation 72 | C106: 0 | D106: -39088.8 | E106: -363643.6 | F106: -883570.9 | G106: -1409194.9 | H106: -1949659 | I106: -2527666.9 | J106: -3137397.5 | K106: -1728995.3 | L106: -1750732.6 | M106: -966011.4 | N106: -463992.8 | O106: -615250 | P106: -1430566.1 | Q106: -353397.1 | R106: -236322.9 | S106: -43060.9 | T106: -333827.8 | U106: -442367.5 | V106: -1045218.2 | W106: -1332027.7 | X106: -1368112.9 | Y106: -939352.6 | Z106: 195678.2 | AA106: -254587.4 | AB106: -702859 | AC106: -700617.7 | AD106: -1071086.7 | AE106: -970253.7 | AF106: -1230561.9 | AG106: -1078760.9 | AH106: -1430926.8 | AI106: -1956892.8 | AJ106: -1714877.1 | AK106: -1275969 | AL106: -1075818.5 | AM106: -1493775.7 | AN106: -1372877 | AO106: -1257880.2 | AP106: -1305099.5 | AQ106: -739638.9 | AR106: -752493.8 | AS106: -870328.8 | AT106: -609246.7 | AU106: -172709.8 | AV106: 149628.7 | AW106: 74806.3 | AX106: 112348.6 | AY106: -13348.2 | AZ106: 26934.4 | BA106: -18536.9 | BB106: -74721.8 | BC106: 146506 | BD106: 79583.1 | BE106: -21182 | BF106: -111735.7 | BG106: -151526.9 | BH106: -240147 | BI106: -94380.9 | BJ106: -96930.4 | BK106: -99001.6 | BL106: -102903.2 | BM106: -108115.7 | BN106: -112248.7 | BO106: -114888.1
B107: Simulation 73 | C107: 0 | D107: -121073.9 | E107: 479482.2 | F107: -132885 | G107: -481592.8 | H107: -1406093.2 | I107: -1445878 | J107: -497791.3 | K107: -1568168.8 | L107: -2317719.3 | M107: -2183043 | N107: -2815648.9 | O107: -2876111.5 | P107: -3124019.6 | Q107: -3888219.2 | R107: -3653220.1 | S107: -3352052.5 | T107: -3292311.2 | U107: -3688899.6 | V107: -3517968.5 | W107: -3426839.9 | X107: -3660001.7 | Y107: -3683070.9 | Z107: -3685158.9 | AA107: -3362848.9 | AB107: -3227828.5 | AC107: -3114512.7 | AD107: -3382849 | AE107: -3251440.6 | AF107: -3263812.9 | AG107: -3174322.4 | AH107: -2970402.1 | AI107: -2898435 | AJ107: -2868817.2 | AK107: -2729306.7 | AL107: -2696304.8 | AM107: -2591411.7 | AN107: -2446659.1 | AO107: -2279582.6 | AP107: -2257644.3 | AQ107: -1963695.5 | AR107: -1788392.6 | AS107: -1649793.4 | AT107: -1525817.8 | AU107: -1411214.7 | AV107: -1322949.2 | AW107: -987469.8 | AX107: -797226.6 | AY107: -708468.2 | AZ107: -665034.3 | BA107: -574466 | BB107: -542929.2 | BC107: -261661.3 | BD107: -334526.4 | BE107: -407689.9 | BF107: -518538.9 | BG107: -611508.8 | BH107: -703880 | BI107: -392463 | BJ107: -396527 | BK107: -400668.1 | BL107: -404339.8 | BM107: -407770 | BN107: -411307.4 | BO107: -412882.9
B108: Simulation 74 | C108: 0 | D108: -102436.6 | E108: 220695.2 | F108: 601117.4 | G108: 446693.1 | H108: 777871 | I108: 919685.4 | J108: 1471015.3 | K108: 1070142.5 | L108: -716528.5 | M108: -142925.8 | N108: -598636 | O108: -866737.3 | P108: -1305764.7 | Q108: -1099164.4 | R108: -1748171 | S108: -1822781.6 | T108: -1950301.4 | U108: -1985164.1 | V108: -1927699.7 | W108: -1864997.9 | X108: -1409885.9 | Y108: -1412888.3 | Z108: -1082201.9 | AA108: -1094292 | AB108: -967657.4 | AC108: -1505966.5 | AD108: -1667478.5 | AE108: -1688168.8 | AF108: -1745811.6 | AG108: -1923956.4 | AH108: -1806431.4 | AI108: -1968642.8 | AJ108: -1950412.7 | AK108: -1620422.8 | AL108: -1594567.1 | AM108: -1879124.9 | AN108: -1731509.8 | AO108: -1624088.9 | AP108: -1676816.7 | AQ108: -1148462.3 | AR108: -1108892.6 | AS108: -952860.6 | AT108: -814440.3 | AU108: -787240.4 | AV108: -752559.5 | AW108: -490702.6 | AX108: -279894.2 | AY108: -48179.6 | AZ108: 89395.4 | BA108: 185855.4 | BB108: 130862.9 | BC108: 185882 | BD108: 133181.7 | BE108: 91710.2 | BF108: 77608.6 | BG108: 139 | BH108: -64874.8 | BI108: -45916.9 | BJ108: -49614.1 | BK108: -52930.1 | BL108: -58104.6 | BM108: -60173.3 | BN108: -64441 | BO108: -67220.3
B109: Simulation 75 | C109: 0 | D109: 176840.2 | E109: 617197.3 | F109: 458609.4 | G109: 611656.1 | H109: 983063 | I109: 2457127.1 | J109: 2069856.8 | K109: 3285727.3 | L109: 3430213.3 | M109: 3043665.5 | N109: 2026463.5 | O109: 829762.4 | P109: 58282.1 | Q109: -621677.7 | R109: -1224483.2 | S109: -792903.2 | T109: -1851992.9 | U109: -1359840 | V109: -1640044.4 | W109: -1648953.9 | X109: -1587849.6 | Y109: -1200344.6 | Z109: -971895.9 | AA109: -752542.9 | AB109: -755964.8 | AC109: -1558683.5 | AD109: -796749.5 | AE109: -906196.9 | AF109: -1358615.3 | AG109: -1858224.6 | AH109: -2270146.9 | AI109: -2091062.3 | AJ109: -2167021.7 | AK109: -1909030.7 | AL109: -1547831.4 | AM109: -1795101.8 | AN109: -2022324 | AO109: -1932835.6 | AP109: -1951187.8 | AQ109: -1632830.3 | AR109: -1617623.5 | AS109: -1429345.2 | AT109: -1307367.4 | AU109: -1132660.5 | AV109: -1024555.2 | AW109: -766525.1 | AX109: -606951.5 | AY109: -416274.5 | AZ109: -172613.5 | BA109: -46121.5 | BB109: -48348.3 | BC109: 98673.5 | BD109: -9648.2 | BE109: -91953.8 | BF109: -201220 | BG109: -297849.5 | BH109: -371195.5 | BI109: -234861.4 | BJ109: -241127.5 | BK109: -244098.4 | BL109: -247737.7 | BM109: -250463.8 | BN109: -253078.6 | BO109: -256343.5
B110: Simulation 76 | C110: 0 | D110: -91235.6 | E110: 1150512 | F110: 1485518.1 | G110: 2356430.8 | H110: 2878202.8 | I110: 964830.4 | J110: -717829 | K110: -1091880.5 | L110: -333169.5 | M110: -441663.3 | N110: -449994.2 | O110: -1575500.8 | P110: -511625 | Q110: -1457625.2 | R110: -2254068.5 | S110: -2281161.1 | T110: -3335563.5 | U110: -3660878.5 | V110: -3880994.9 | W110: -3880905 | X110: -3932360.7 | Y110: -3993458 | Z110: -3992910.8 | AA110: -3837211.7 | AB110: -3688437 | AC110: -3530220.2 | AD110: -3489317.1 | AE110: -2956136.4 | AF110: -2941563.5 | AG110: -2534408.3 | AH110: -2636588.9 | AI110: -2001406.2 | AJ110: -1326249.8 | AK110: -1150612.3 | AL110: -1442657.4 | AM110: -1677613.5 | AN110: -958287.2 | AO110: -397097.2 | AP110: -215075.9 | AQ110: 403744.2 | AR110: 876292.6 | AS110: 1031830.3 | AT110: 1218643.1 | AU110: 1142633.6 | AV110: 819537.8 | AW110: 1121003.9 | AX110: 1354085 | AY110: 1230357.3 | AZ110: 1142361.3 | BA110: 856539.2 | BB110: 256359.9 | BC110: 136132.4 | BD110: 126781.3 | BE110: 46193.6 | BF110: -29238.6 | BG110: -49364.7 | BH110: -133186.1 | BI110: -36316.3 | BJ110: -35625 | BK110: -37131.9 | BL110: -39981.2 | BM110: -42184.7 | BN110: -47510.7 | BO110: -50577.8
B111: Simulation 77 | C111: 0 | D111: 53441.9 | E111: 159646.6 | F111: -506511.9 | G111: -1025841.1 | H111: -565693.5 | I111: -1282036.9 | J111: -987809.1 | K111: -1917389 | L111: -1047228.9 | M111: -470287.9 | N111: -1349607.4 | O111: -1516698.5 | P111: -2154470.3 | Q111: -1657035.2 | R111: -481292.5 | S111: 325366.3 | T111: 985460 | U111: -452564.6 | V111: -940133.8 | W111: -271757 | X111: -538671.5 | Y111: -625303.2 | Z111: -1989542.8 | AA111: -2074147.6 | AB111: -2129459.3 | AC111: -2131987 | AD111: -2267738.4 | AE111: -2226241.8 | AF111: -2280311.3 | AG111: -2708449.3 | AH111: -2563914.8 | AI111: -2357660 | AJ111: -2332672.2 | AK111: -2051483.1 | AL111: -2042207.9 | AM111: -2180786 | AN111: -2061761.6 | AO111: -2019301.3 | AP111: -2005402 | AQ111: -1834238.2 | AR111: -1640010.3 | AS111: -1470624.6 | AT111: -1351708.9 | AU111: -1286310 | AV111: -1229712.9 | AW111: -1009968 | AX111: -892987.4 | AY111: -679425.6 | AZ111: -548824.6 | BA111: -448597 | BB111: -348543.2 | BC111: -89952.8 | BD111: -90751.6 | BE111: -110043.5 | BF111: -173266.8 | BG111: -246977.3 | BH111: -345578.2 | BI111: -148689.3 | BJ111: -149833.7 | BK111: -153257.9 | BL111: -155396.1 | BM111: -159670.5 | BN111: -163264.7 | BO111: -165362.4
B112: Simulation 78 | C112: 0 | D112: -51247.1 | E112: -461511.5 | F112: -501701.5 | G112: -304894.8 | H112: -1918859.6 | I112: -1863234.4 | J112: -2288511.7 | K112: -2458547.6 | L112: -3745554.4 | M112: -3984582.5 | N112: -3487023.9 | O112: -3774277.5 | P112: -3842844.3 | Q112: -3756963.8 | R112: -3889142.1 | S112: -3245437.1 | T112: -3028660.6 | U112: -3474359.5 | V112: -3179867.8 | W112: -3451359.3 | X112: -3561724 | Y112: -3137261.2 | Z112: -3317254.3 | AA112: -3276643.3 | AB112: -3184923.4 | AC112: -2980969 | AD112: -3065936.5 | AE112: -2905931.5 | AF112: -2820868 | AG112: -2692736.4 | AH112: -2867443 | AI112: -2905037.7 | AJ112: -3023785.5 | AK112: -2839954.1 | AL112: -2719393.7 | AM112: -2668787.9 | AN112: -2668939.5 | AO112: -2576497 | AP112: -2560160.9 | AQ112: -2238786.2 | AR112: -2144547.9 | AS112: -1994330.7 | AT112: -1910305.2 | AU112: -1741970.9 | AV112: -1674794.5 | AW112: -1283161.2 | AX112: -1114111.6 | AY112: -999918.2 | AZ112: -903819.1 | BA112: -828667.3 | BB112: -730167.8 | BC112: -378669.9 | BD112: -344081.9 | BE112: -398939.8 | BF112: -435360.2 | BG112: -501759.7 | BH112: -580093.7 | BI112: -332545.4 | BJ112: -334121.2 | BK112: -336829.5 | BL112: -339191.8 | BM112: -341839.3 | BN112: -344516.4 | BO112: -346598.4
B113: Simulation 79 | C113: 0 | D113: -171922.1 | E113: 32399.5 | F113: -202729.6 | G113: -193703 | H113: -1373211.3 | I113: -506486.2 | J113: -775260.7 | K113: -463802.9 | L113: -413127 | M113: -420214.4 | N113: -1261459.9 | O113: -811636.8 | P113: -515857.4 | Q113: -447833.4 | R113: -765287.9 | S113: 7799.2 | T113: -752649.9 | U113: -563267.8 | V113: -989957.6 | W113: -1373490.8 | X113: -1245675.2 | Y113: -668333.5 | Z113: -884844.5 | AA113: -250683.3 | AB113: -823947.1 | AC113: -1377022.8 | AD113: -1312681.7 | AE113: -983723.6 | AF113: -1283067.3 | AG113: -832621.5 | AH113: -1349156.1 | AI113: -1222719.2 | AJ113: -1149847 | AK113: -548899.7 | AL113: -340192.6 | AM113: -597769.9 | AN113: -637901.8 | AO113: -379234.5 | AP113: -648695.6 | AQ113: -185529.4 | AR113: -228210.4 | AS113: -406964.6 | AT113: -450993.4 | AU113: -440265.7 | AV113: -265851.7 | AW113: -123131.3 | AX113: 20489.6 | AY113: 159507.8 | AZ113: 301554.7 | BA113: 185810.7 | BB113: 198028.1 | BC113: 267302.5 | BD113: 302235.9 | BE113: 253452.3 | BF113: 220044.6 | BG113: 74094.2 | BH113: 5224.9 | BI113: 35867.2 | BJ113: 35472.9 | BK113: 34182.2 | BL113: 30730.5 | BM113: 25620.6 | BN113: 20958.9 | BO113: 18460.1
B114: Simulation 80 | C114: 0 | D114: -106000.1 | E114: 374378 | F114: 903798.5 | G114: 1047857.8 | H114: 769741.5 | I114: 2219170.5 | J114: 3395290.7 | K114: 3532913.7 | L114: 2991614.4 | M114: 2732713.9 | N114: 2391112.4 | O114: 532078.7 | P114: 232406.3 | Q114: -306273.8 | R114: -506781 | S114: -773284.1 | T114: -1375131.5 | U114: -1902190.9 | V114: -2296697.6 | W114: -2443580.6 | X114: -2331998.6 | Y114: -2216553.8 | Z114: -2203680.1 | AA114: -2311092.7 | AB114: -2261903.6 | AC114: -2336841.5 | AD114: -2190871 | AE114: -2411611.8 | AF114: -2038133.4 | AG114: -1954338.8 | AH114: -1921331.9 | AI114: -1484223.5 | AJ114: -1638693.7 | AK114: -1614952 | AL114: -1507664.8 | AM114: -1284711.8 | AN114: -1395426.8 | AO114: -1791297.5 | AP114: -1401542.6 | AQ114: -1194388.7 | AR114: -1075374.8 | AS114: -720274.8 | AT114: -485314.8 | AU114: -286628.3 | AV114: -423078.5 | AW114: 75624.1 | AX114: 367416.7 | AY114: 473481.6 | AZ114: 121400.8 | BA114: -2689.6 | BB114: -122601.5 | BC114: 36628.9 | BD114: -57539.1 | BE114: -153542.4 | BF114: -183085.5 | BG114: -215224.5 | BH114: -307622.7 | BI114: -163714.9 | BJ114: -167505.6 | BK114: -172429.6 | BL114: -173823 | BM114: -176163.8 | BN114: -181391.7 | BO114: -183587.3
B115: Simulation 81 | C115: 0 | D115: 305573 | E115: 779480.3 | F115: 361219.9 | G115: 692455.3 | H115: -86090 | I115: -457717.7 | J115: -588471.7 | K115: -515431.1 | L115: -820890.1 | M115: -558788.5 | N115: -860906.8 | O115: -273591.5 | P115: -1172902 | Q115: -1305267.7 | R115: -2586621.6 | S115: -1733820.9 | T115: -806009.3 | U115: 485014.1 | V115: 968962.1 | W115: 1098684.7 | X115: -251684.6 | Y115: -461059.6 | Z115: 155498.8 | AA115: -702240.3 | AB115: 671106.5 | AC115: 599337.8 | AD115: 448798.5 | AE115: -212952.7 | AF115: -519919.7 | AG115: -1095712.1 | AH115: -606266 | AI115: -981504.9 | AJ115: -1314047.3 | AK115: -1459261.2 | AL115: -1593457 | AM115: -1653091.1 | AN115: -1814295.9 | AO115: -1775087.2 | AP115: -1667205.8 | AQ115: -1458019.2 | AR115: -1372193.8 | AS115: -1191566.6 | AT115: -1067552.7 | AU115: -954181.5 | AV115: -931646.7 | AW115: -807775.5 | AX115: -663619.5 | AY115: -449022 | AZ115: -275368 | BA115: -173096.1 | BB115: -110620.2 | BC115: 87084.6 | BD115: 66336.1 | BE115: 37075 | BF115: -31467.4 | BG115: -121827.8 | BH115: -203352.6 | BI115: -90310.9 | BJ115: -91806.4 | BK115: -94210.9 | BL115: -97213.4 | BM115: -98652 | BN115: -101538 | BO115: -102693.2
B116: Simulation 82 | C116: 0 | D116: -17523.4 | E116: 67750.9 | F116: 243494.7 | G116: -13610 | H116: -174062.4 | I116: 10071.7 | J116: -564915.7 | K116: -143764.4 | L116: 1071151.3 | M116: 1676017.6 | N116: 3074467.4 | O116: 2619864.4 | P116: 2205130.4 | Q116: 3325160.4 | R116: 3151505 | S116: 3679122.5 | T116: 3428733.8 | U116: 3554239.3 | V116: 3393581.6 | W116: 3177150.4 | X116: 3383141.8 | Y116: 4700183.5 | Z116: 3915062.8 | AA116: 2300177.2 | AB116: 1841739.7 | AC116: 2000848.9 | AD116: 1086559 | AE116: 783728.7 | AF116: 1342317 | AG116: 2348777.2 | AH116: 1092568 | AI116: 652246.3 | AJ116: 1025397.6 | AK116: 323516.6 | AL116: 841304.6 | AM116: 2859167.1 | AN116: 2560514.1 | AO116: 3903259.6 | AP116: 3736419 | AQ116: 4084216.8 | AR116: 5089265.8 | AS116: 4978027.1 | AT116: 5043455.1 | AU116: 4267351.7 | AV116: 2790359.3 | AW116: 2328751 | AX116: 1737574.6 | AY116: 1107372.8 | AZ116: 917991.8 | BA116: 793164.4 | BB116: 426448.8 | BC116: 296132.3 | BD116: 218954.3 | BE116: 149203.6 | BF116: 83992.7 | BG116: 19779.3 | BH116: -38935.8 | BI116: -25876.4 | BJ116: -29721.1 | BK116: -31518.7 | BL116: -33408.3 | BM116: -35987.9 | BN116: -39649.1 | BO116: -42473.8
B117: Simulation 83 | C117: 0 | D117: -224653.5 | E117: -782001.9 | F117: -244855.4 | G117: 232262.1 | H117: 1101488 | I117: 2602913.3 | J117: 2928126.4 | K117: 4134983 | L117: 3956535.5 | M117: 4530850.4 | N117: 5968165.5 | O117: 7834575.1 | P117: 7567144.5 | Q117: 7160729.5 | R117: 7216859 | S117: 5340316.4 | T117: 4406814.7 | U117: 5147313 | V117: 4453799.5 | W117: 3483587.9 | X117: 3365422.7 | Y117: 3591584.3 | Z117: 2864140.6 | AA117: 1986060.9 | AB117: 2599598.2 | AC117: 2441875.1 | AD117: 2568867.3 | AE117: 1619008.8 | AF117: 1623651 | AG117: 2070749.1 | AH117: 1449493.5 | AI117: 1931358.1 | AJ117: 1517936.3 | AK117: 1834882.9 | AL117: 1433659 | AM117: 1061119.1 | AN117: 815582 | AO117: 715582.2 | AP117: 2062095 | AQ117: 1251510.7 | AR117: 443100.8 | AS117: 1302750.7 | AT117: 327716.8 | AU117: 25941 | AV117: -48741.7 | AW117: 901786.9 | AX117: 403665.6 | AY117: 542144.8 | AZ117: 253191.6 | BA117: -81199.8 | BB117: -282082.1 | BC117: -52682.3 | BD117: -150932.8 | BE117: -249261.1 | BF117: -354051.3 | BG117: -449758.9 | BH117: -537190.8 | BI117: -315356.9 | BJ117: -316728.4 | BK117: -319161.9 | BL117: -321978.4 | BM117: -326565.1 | BN117: -331343.8 | BO117: -333030.4
B118: Simulation 84 | C118: 0 | D118: -282799.2 | E118: 192813 | F118: 566701.2 | G118: 722920.2 | H118: 167284.4 | I118: 575585 | J118: 2152664.2 | K118: 4999011.4 | L118: 4438917.9 | M118: 2891298.5 | N118: 3917538.3 | O118: 2983290.2 | P118: 1931278.3 | Q118: 3560716.1 | R118: 4009545.3 | S118: 4822593.4 | T118: 6032956.6 | U118: 7603189.3 | V118: 7056006.1 | W118: 7342696.3 | X118: 5461453.3 | Y118: 3838640.9 | Z118: 1884474.4 | AA118: 1888844 | AB118: 1698271 | AC118: 2290707.2 | AD118: 528119.1 | AE118: -341625.8 | AF118: -958008.7 | AG118: -384723.7 | AH118: -672216.9 | AI118: -1675391.3 | AJ118: -1991940.1 | AK118: -1537701.1 | AL118: -1800455.8 | AM118: -1836239.4 | AN118: -1662355.7 | AO118: -2100720.1 | AP118: -2450627 | AQ118: -1995164.1 | AR118: -2071782.3 | AS118: -2078736.4 | AT118: -2010156.4 | AU118: -1968165.8 | AV118: -1956179.2 | AW118: -1506438 | AX118: -1370351.5 | AY118: -1277209.6 | AZ118: -1236966 | BA118: -1195451.3 | BB118: -1183168.5 | BC118: -675756 | BD118: -768259.4 | BE118: -857853.6 | BF118: -962651.8 | BG118: -1010514.7 | BH118: -1069374.9 | BI118: -551150 | BJ118: -555379.9 | BK118: -558898.7 | BL118: -562240.5 | BM118: -565263 | BN118: -567205.5 | BO118: -568678.2
B119: Simulation 85 | C119: 0 | D119: -124822.5 | E119: -145563.1 | F119: -103996.9 | G119: 439516.7 | H119: 175002 | I119: -168623.1 | J119: 1869555.6 | K119: 2035308.7 | L119: 2977549 | M119: 2452359.7 | N119: 2069998.6 | O119: 1478297.8 | P119: 321667.7 | Q119: 157188.2 | R119: -1105331.5 | S119: -803161.8 | T119: -1708108.2 | U119: -2063110.1 | V119: -2079530.2 | W119: -2330391.7 | X119: -1822506.1 | Y119: -1756904.8 | Z119: -1521214.3 | AA119: -1229052.3 | AB119: -2453483 | AC119: -2662696.8 | AD119: -2117377.9 | AE119: -2375764.3 | AF119: -2426291.8 | AG119: -2451622.8 | AH119: -2579868.1 | AI119: -2601655 | AJ119: -2525482.5 | AK119: -2187546.6 | AL119: -2158879.8 | AM119: -2382654.2 | AN119: -2403311.1 | AO119: -2331053.1 | AP119: -2286492.9 | AQ119: -1874822.8 | AR119: -1768574.4 | AS119: -1542774.9 | AT119: -1431538.7 | AU119: -1372383.7 | AV119: -1194201.9 | AW119: -812142.2 | AX119: -569960.7 | AY119: -512138.7 | AZ119: -413825 | BA119: -286179.2 | BB119: -239677.1 | BC119: -62279.4 | BD119: -89955.7 | BE119: -158776.5 | BF119: -245335.3 | BG119: -319680.2 | BH119: -361302.5 | BI119: -211228.6 | BJ119: -215280 | BK119: -217705.9 | BL119: -219852.6 | BM119: -222193.1 | BN119: -224077.5 | BO119: -226185.6
B120: Simulation 86 | C120: 0 | D120: -242639.6 | E120: 331639.1 | F120: -13613.7 | G120: 212439.9 | H120: 521033.3 | I120: 1341294.2 | J120: 744122.1 | K120: 1380207.9 | L120: 775404.9 | M120: 949308.7 | N120: 433707.8 | O120: -230608.7 | P120: -324867.4 | Q120: -369273.9 | R120: -1219953.3 | S120: -224831.4 | T120: -922513.7 | U120: -1304814.4 | V120: -2348620.7 | W120: -2626009 | X120: -2576267.6 | Y120: -2384782.8 | Z120: -2288611.8 | AA120: -2147887.2 | AB120: -2698284.8 | AC120: -2685723.3 | AD120: -3013656.7 | AE120: -2486500.9 | AF120: -2473603.3 | AG120: -2401659.5 | AH120: -2386027.7 | AI120: -2331159.4 | AJ120: -2356483.2 | AK120: -2142514.4 | AL120: -2301815.4 | AM120: -2269442.2 | AN120: -2201670.5 | AO120: -2057974.1 | AP120: -1940826 | AQ120: -1575625.1 | AR120: -1541053.3 | AS120: -1375957.5 | AT120: -1235340.5 | AU120: -1105802.5 | AV120: -1028751.2 | AW120: -862055.4 | AX120: -776353.8 | AY120: -515984.9 | AZ120: -303390.3 | BA120: -176078.9 | BB120: -118700.5 | BC120: 82979.4 | BD120: 2647.2 | BE120: -55155.4 | BF120: -124077.8 | BG120: -144582.3 | BH120: -252362.1 | BI120: -160121.7 | BJ120: -165167.7 | BK120: -169363.7 | BL120: -172910.4 | BM120: -175660.4 | BN120: -180001.8 | BO120: -182731.3
B121: Simulation 87 | C121: 0 | D121: 77130.6 | E121: -482444.1 | F121: -168154.3 | G121: -573256.8 | H121: -727624.9 | I121: -986176 | J121: -292535.3 | K121: -1361165.2 | L121: -464943.6 | M121: -521311.7 | N121: -810714.1 | O121: -1962991.2 | P121: -2696009.3 | Q121: -2890811.7 | R121: -2929033 | S121: -2402698.4 | T121: -2568891.1 | U121: -2957729.2 | V121: -2865666.9 | W121: -2940587.9 | X121: -2961217 | Y121: -2647931.7 | Z121: -2687094.8 | AA121: -2606270 | AB121: -2735705.3 | AC121: -2756616.3 | AD121: -2442352.2 | AE121: -1988784.8 | AF121: -1721370.5 | AG121: -1714652.3 | AH121: -1925602.4 | AI121: -1910888.4 | AJ121: -1955753.6 | AK121: -2107423.6 | AL121: -1938810.4 | AM121: -1991278.2 | AN121: -1871242.6 | AO121: -1776064.6 | AP121: -1762229.2 | AQ121: -1566770.7 | AR121: -1329001.1 | AS121: -1222926.5 | AT121: -1082564.7 | AU121: -1027341.3 | AV121: -1004230.4 | AW121: -925198.9 | AX121: -775262.4 | AY121: -628235.1 | AZ121: -499130.8 | BA121: -390315.7 | BB121: -297125.1 | BC121: -77553.9 | BD121: -127266.9 | BE121: -168474.8 | BF121: -229588 | BG121: -278768.8 | BH121: -377178.2 | BI121: -168785.2 | BJ121: -170835.6 | BK121: -172799.3 | BL121: -174068.2 | BM121: -176803.1 | BN121: -180039.3 | BO121: -182403.7
B122: Simulation 88 | C122: 0 | D122: -291464.8 | E122: -701133.2 | F122: -880160.2 | G122: -774191 | H122: 90330 | I122: 138063.2 | J122: 355489.8 | K122: 91970.8 | L122: 1135531.4 | M122: 566431.8 | N122: -163224.8 | O122: -999011.3 | P122: -751957.2 | Q122: -1198744.2 | R122: -1620546.1 | S122: -1472068 | T122: -1540738.9 | U122: -1213031.7 | V122: -1082680.1 | W122: -1147948.3 | X122: -979621.6 | Y122: -755754.8 | Z122: -157593 | AA122: -175950.9 | AB122: 1043455.8 | AC122: 117582.6 | AD122: -826935.1 | AE122: -1584349.1 | AF122: -1809243.6 | AG122: -1876461.3 | AH122: -1941706.4 | AI122: -2180517.3 | AJ122: -2382795.8 | AK122: -2298843.4 | AL122: -2347575.4 | AM122: -2580277.4 | AN122: -2540249.9 | AO122: -2413087.6 | AP122: -2396914.4 | AQ122: -2089307.6 | AR122: -1982546.9 | AS122: -1784401.4 | AT122: -1653273 | AU122: -1530888.1 | AV122: -1452657.7 | AW122: -1145251 | AX122: -1029134.3 | AY122: -901250.8 | AZ122: -778863.2 | BA122: -668879 | BB122: -586150.1 | BC122: -283686.4 | BD122: -335248.1 | BE122: -350806.2 | BF122: -367015.9 | BG122: -370133 | BH122: -374059.7 | BI122: -153985.7 | BJ122: -153477.5 | BK122: -156732.8 | BL122: -159453.8 | BM122: -161076.2 | BN122: -163995.3 | BO122: -166264.4
B123: Simulation 89 | C123: 0 | D123: 15222.6 | E123: 646277.9 | F123: 811157.2 | G123: 406585.8 | H123: -291454.2 | I123: -301926.7 | J123: 220847.1 | K123: -1003585.2 | L123: -785696.8 | M123: -282216.4 | N123: -1063269.7 | O123: -1396925.3 | P123: -2089127.8 | Q123: -2613650.8 | R123: -2450403.7 | S123: -2650854.1 | T123: -2514939.5 | U123: -3010116.6 | V123: -2889832.6 | W123: -2345997.4 | X123: -2421106.1 | Y123: -1861284.7 | Z123: -2008279.4 | AA123: -1254778 | AB123: -1654660.5 | AC123: -1557169.9 | AD123: -1099488.6 | AE123: -1682040.1 | AF123: -1400227.5 | AG123: -1455627.7 | AH123: -1637980.2 | AI123: -1789501.2 | AJ123: -1806476.4 | AK123: -1237642.5 | AL123: -1543594.5 | AM123: -1024373.5 | AN123: -1464803.6 | AO123: -1489823.8 | AP123: -1555923 | AQ123: -1137648.7 | AR123: -1081107.4 | AS123: -893575.8 | AT123: -769048.2 | AU123: -571484.9 | AV123: -490520.9 | AW123: -161818.7 | AX123: 104034.2 | AY123: 329528.1 | AZ123: 502762.3 | BA123: 554260.8 | BB123: 550713.9 | BC123: 578430.4 | BD123: 581730.9 | BE123: 514206.6 | BF123: 415177.8 | BG123: 314932.7 | BH123: 188500.5 | BI123: 70156.8 | BJ123: 66154.5 | BK123: 61555 | BL123: 59588.8 | BM123: 57917.7 | BN123: 54038.9 | BO123: 49076.4
B124: Simulation 90 | C124: 0 | D124: -65691.3 | E124: 317434 | F124: 84291.3 | G124: 497479.7 | H124: -598641 | I124: -104344.4 | J124: 823087.3 | K124: 1569483 | L124: 1853268.8 | M124: 1928770.7 | N124: 1518435.9 | O124: 794593.8 | P124: 852181.5 | Q124: 654872.7 | R124: 1068330.1 | S124: 2669228.2 | T124: 3719387 | U124: 5175443.3 | V124: 4319089.6 | W124: 5373097.4 | X124: 6864734.8 | Y124: 7778267.3 | Z124: 10110539.2 | AA124: 11043333.9 | AB124: 14514553.2 | AC124: 15026224.7 | AD124: 11363003.5 | AE124: 14177610.3 | AF124: 15941800 | AG124: 19254464.2 | AH124: 21742831 | AI124: 17531598.4 | AJ124: 16211298.1 | AK124: 14933681.5 | AL124: 18079804.1 | AM124: 17789145.3 | AN124: 21097424.1 | AO124: 16906732.1 | AP124: 14472887.3 | AQ124: 14654493.4 | AR124: 11204203.3 | AS124: 7913078.8 | AT124: 6226884.3 | AU124: 5559634.8 | AV124: 4246341.1 | AW124: 4584094.6 | AX124: 2949075.4 | AY124: 2011033.2 | AZ124: 1671739.9 | BA124: 1295673 | BB124: 419292.9 | BC124: 166428 | BD124: 153027.9 | BE124: 37678.7 | BF124: -144094.9 | BG124: -331126.4 | BH124: -499698.7 | BI124: -337520 | BJ124: -341037.8 | BK124: -345170.7 | BL124: -348353.7 | BM124: -352511.4 | BN124: -355854.9 | BO124: -357625.9
B125: Simulation 91 | C125: 0 | D125: -46026.9 | E125: -125451.4 | F125: -311120.4 | G125: -572215 | H125: -2281923.4 | I125: -2045863.4 | J125: -1510181.5 | K125: -1060802 | L125: -644751.2 | M125: -763273.8 | N125: -668674.1 | O125: -358474 | P125: -470547.8 | Q125: -1075790.3 | R125: -739981.1 | S125: 114418.7 | T125: -1423618.6 | U125: -1883440.3 | V125: -2533840.9 | W125: -2704059.4 | X125: -2355885 | Y125: -2618825.7 | Z125: -2633453.9 | AA125: -2471186 | AB125: -2356654.1 | AC125: -2723466.3 | AD125: -2427696.3 | AE125: -2322987.3 | AF125: -2286491.9 | AG125: -2628624.8 | AH125: -2689872.2 | AI125: -2777430.8 | AJ125: -2825833.7 | AK125: -2745110.9 | AL125: -2736337.1 | AM125: -2616397.8 | AN125: -2442759.9 | AO125: -2341756.2 | AP125: -2216658.9 | AQ125: -1859212.1 | AR125: -1633785 | AS125: -1527237 | AT125: -1387195.2 | AU125: -1299045.8 | AV125: -1270545.6 | AW125: -912356.9 | AX125: -803263.3 | AY125: -680914.4 | AZ125: -559770.7 | BA125: -479731.5 | BB125: -484579.8 | BC125: -259286.5 | BD125: -373150.3 | BE125: -410356.3 | BF125: -468571.1 | BG125: -537080.9 | BH125: -616543.8 | BI125: -350616.3 | BJ125: -354320.5 | BK125: -357072.1 | BL125: -360893.5 | BM125: -363644.9 | BN125: -366023.9 | BO125: -367006.1
B126: Simulation 92 | C126: 0 | D126: 148092.1 | E126: -677509 | F126: -1237690 | G126: -1315557.4 | H126: -2094387.3 | I126: -3109243.9 | J126: -3528555.1 | K126: -3372218.5 | L126: -3541760.8 | M126: -3881632.5 | N126: -4065712.6 | O126: -4108451.6 | P126: -3922029.1 | Q126: -3866368.9 | R126: -3889821.8 | S126: -3852807.5 | T126: -4179002.3 | U126: -3976804.7 | V126: -3759685.5 | W126: -3928315.3 | X126: -3925990.9 | Y126: -3813877.5 | Z126: -3805453.8 | AA126: -3672891.8 | AB126: -3455027.1 | AC126: -3270435.9 | AD126: -3297135.7 | AE126: -3168830.3 | AF126: -3175624.7 | AG126: -3057168.7 | AH126: -3051671.1 | AI126: -2861644.2 | AJ126: -2766916.3 | AK126: -2622439.1 | AL126: -2441729.6 | AM126: -2246533.3 | AN126: -2337386.5 | AO126: -2330325.7 | AP126: -2301335.1 | AQ126: -1990994.2 | AR126: -1739478.7 | AS126: -1666831.2 | AT126: -1554795.2 | AU126: -1456387.5 | AV126: -1391127.4 | AW126: -1151354.2 | AX126: -1048761 | AY126: -890414.2 | AZ126: -743740.4 | BA126: -681360.1 | BB126: -630817.6 | BC126: -359446 | BD126: -357420.4 | BE126: -393013.4 | BF126: -444336.8 | BG126: -490337.3 | BH126: -548122.5 | BI126: -309019.7 | BJ126: -310248.9 | BK126: -313021.9 | BL126: -314323.3 | BM126: -317356.6 | BN126: -318610.3 | BO126: -320575.1
B127: Simulation 93 | C127: 0 | D127: -63782.6 | E127: 356777.6 | F127: -170207.4 | G127: 136956.7 | H127: -836676.6 | I127: -1101565.2 | J127: 700916.4 | K127: 35583 | L127: 742039.7 | M127: 2948717.4 | N127: 2672286.4 | O127: 2000629.7 | P127: 1838563.8 | Q127: 1927443.7 | R127: 1383925.1 | S127: 950421.7 | T127: 1777689 | U127: 688756.4 | V127: 192185.3 | W127: 490158.7 | X127: 974259 | Y127: 2008636.6 | Z127: 3006929.4 | AA127: 1476562.6 | AB127: 368469.6 | AC127: 1023966.6 | AD127: 219215.4 | AE127: 1066189.5 | AF127: 456714.4 | AG127: 468827.8 | AH127: 242607.4 | AI127: 409967.8 | AJ127: 917979.6 | AK127: 2486724.5 | AL127: 2398747.5 | AM127: 3358577.3 | AN127: 2171308.4 | AO127: 3547892.5 | AP127: 2114554.7 | AQ127: 2960772.3 | AR127: 3845118.6 | AS127: 3014127.1 | AT127: 2939147.8 | AU127: 1929452.7 | AV127: 1204683.8 | AW127: 1501120.2 | AX127: 1448078.9 | AY127: 1006793.5 | AZ127: 421172.7 | BA127: 187124.2 | BB127: -204708.9 | BC127: -84509.6 | BD127: -166448 | BE127: -260306 | BF127: -361705.4 | BG127: -468592.2 | BH127: -543513.8 | BI127: -265736.4 | BJ127: -271421.6 | BK127: -274893.3 | BL127: -278995.2 | BM127: -281078.3 | BN127: -283665.1 | BO127: -285885.6
B128: Simulation 94 | C128: 0 | D128: 65015.9 | E128: -261115 | F128: -585477.7 | G128: -1154804.4 | H128: -1158552.3 | I128: -860485.1 | J128: -1241710 | K128: -781837 | L128: -459609.1 | M128: 683973.7 | N128: 1001700.6 | O128: 789506 | P128: 757292.8 | Q128: 991169 | R128: 1987346.4 | S128: 3234841.7 | T128: 2692136.6 | U128: 3275857 | V128: 3663303.8 | W128: 4908067.7 | X128: 3460132.7 | Y128: 3673077.9 | Z128: 2989249.2 | AA128: 2854917.8 | AB128: 2025710.5 | AC128: 2309291.6 | AD128: 3507764.9 | AE128: 5070560.2 | AF128: 4869505.4 | AG128: 4314721.9 | AH128: 3650738.4 | AI128: 2802950 | AJ128: 2623700.5 | AK128: 2012680.3 | AL128: 1502455.4 | AM128: 1411887.9 | AN128: 850434.5 | AO128: 515932.1 | AP128: -24862.6 | AQ128: 675510.8 | AR128: 594162 | AS128: 79047 | AT128: 279404.6 | AU128: 326935 | AV128: -59072 | AW128: 31386.3 | AX128: 179187.1 | AY128: 96429 | AZ128: -7816.1 | BA128: -86919 | BB128: -136064 | BC128: 109443 | BD128: -24834.8 | BE128: -160731.7 | BF128: -289457.4 | BG128: -370626.8 | BH128: -498348.9 | BI128: -290601.8 | BJ128: -296734.9 | BK128: -301294.8 | BL128: -305300.4 | BM128: -308200 | BN128: -311198.6 | BO128: -313578.9
B129: Simulation 95 | C129: 0 | D129: -71524 | E129: 502172.9 | F129: 447451.9 | G129: -476943.5 | H129: -1207142.8 | I129: -867012.1 | J129: 653388 | K129: 155629.8 | L129: -1109848 | M129: -795082.7 | N129: -970195.8 | O129: -247878.3 | P129: -357620.7 | Q129: 108281.7 | R129: -688404 | S129: 1140438.7 | T129: 1843118.2 | U129: 896682.6 | V129: 430743.9 | W129: -238270.1 | X129: -700582.2 | Y129: 713031.3 | Z129: 1410226.6 | AA129: 1050030.4 | AB129: 1468127.2 | AC129: -97885.2 | AD129: -637225.5 | AE129: -262933.3 | AF129: -538709.1 | AG129: -207998.2 | AH129: -467861 | AI129: -448920.9 | AJ129: 138462.4 | AK129: 243468.1 | AL129: 1554468.6 | AM129: 1882231.5 | AN129: 1724453.4 | AO129: 346924.9 | AP129: 1017423.5 | AQ129: 762283.6 | AR129: 304388.9 | AS129: 463803.4 | AT129: 276317.4 | AU129: -73666 | AV129: 16926.6 | AW129: 344510 | AX129: 432663 | AY129: 323027.8 | AZ129: 242676 | BA129: 113569.2 | BB129: 33221.9 | BC129: 99660.7 | BD129: 112221.5 | BE129: 34641.6 | BF129: -40134.7 | BG129: -124752.1 | BH129: -213273 | BI129: -151408.5 | BJ129: -154013.4 | BK129: -157040.4 | BL129: -160356.7 | BM129: -161901.6 | BN129: -165064.4 | BO129: -167637.4
B130: Simulation 96 | C130: 0 | D130: 99948.6 | E130: -287212.1 | F130: -399765 | G130: -761861.6 | H130: -1017263.7 | I130: -1747081.8 | J130: -1898499.5 | K130: -1594072 | L130: -1689613 | M130: -1629240.6 | N130: -1757741.9 | O130: -1860618.7 | P130: -1368722.3 | Q130: -2014824.7 | R130: -2305514.1 | S130: -2207950.4 | T130: -2606120.2 | U130: -3019808.7 | V130: -2881014.7 | W130: -2811831.5 | X130: -2559894 | Y130: -2322064.2 | Z130: -2402227.9 | AA130: -2588037.8 | AB130: -2085200.8 | AC130: -2056026.5 | AD130: -2022434.1 | AE130: -2348060.5 | AF130: -2501230.6 | AG130: -2391886 | AH130: -2304517.9 | AI130: -2400618.8 | AJ130: -2407827.7 | AK130: -2489731 | AL130: -2419341.6 | AM130: -2428401.7 | AN130: -2198962.6 | AO130: -2123759.6 | AP130: -2099850 | AQ130: -1662437.5 | AR130: -1558139.8 | AS130: -1408719.8 | AT130: -1306232.9 | AU130: -1191056.4 | AV130: -1120424.8 | AW130: -836451.3 | AX130: -635747.6 | AY130: -606170.4 | AZ130: -528787.7 | BA130: -480644.2 | BB130: -411326.9 | BC130: -201767.2 | BD130: -234366 | BE130: -283417.8 | BF130: -322029.3 | BG130: -380690.2 | BH130: -470957.4 | BI130: -230957.7 | BJ130: -233248.2 | BK130: -234636.8 | BL130: -236266.1 | BM130: -239681.8 | BN130: -243489.1 | BO130: -246161.5
B131: Simulation 97 | C131: 0 | D131: -113817.8 | E131: -19496.2 | F131: -503158.2 | G131: 232687.2 | H131: 877282.1 | I131: 848592.4 | J131: 586829 | K131: -553813.2 | L131: -1947533.1 | M131: -1929153.7 | N131: -2001345.3 | O131: -2108766 | P131: -2333233.9 | Q131: -1874679.1 | R131: -1453972.3 | S131: -1239239.7 | T131: -1058480.6 | U131: -1444581.3 | V131: -1451611.2 | W131: -1538539.6 | X131: -1544072.1 | Y131: -636476.6 | Z131: -363439.3 | AA131: -239316.1 | AB131: -153858.6 | AC131: -625590 | AD131: 255073.3 | AE131: 1579635.1 | AF131: 2346521.4 | AG131: 879975.9 | AH131: 1417270.8 | AI131: 3050861.6 | AJ131: 3269443.3 | AK131: 6349303.1 | AL131: 8315518.6 | AM131: 5983247.2 | AN131: 5635510.7 | AO131: 4229762.1 | AP131: 4467641.6 | AQ131: 4462287.6 | AR131: 4454189.5 | AS131: 4287602.9 | AT131: 2754313.5 | AU131: 3046040.8 | AV131: 2995451 | AW131: 3248387.6 | AX131: 3029180.8 | AY131: 2032793 | AZ131: 1780263.6 | BA131: 1211319.8 | BB131: 513485.5 | BC131: 311989.7 | BD131: 244440 | BE131: 119397.4 | BF131: 14691.7 | BG131: -95119.3 | BH131: -221590.5 | BI131: -133389.5 | BJ131: -136904.3 | BK131: -141030.7 | BL131: -145893.3 | BM131: -150230.7 | BN131: -155305.4 | BO131: -158427.5
B132: Simulation 98 | C132: 0 | D132: 33860 | E132: 298579.8 | F132: 542566 | G132: 135120.3 | H132: 306269.5 | I132: -1226636.6 | J132: -1464858.6 | K132: -2444217.8 | L132: -2070555.5 | M132: -2400052 | N132: -2197252 | O132: -878528 | P132: 16863.6 | Q132: 340885.4 | R132: -1316599.6 | S132: -1747493.3 | T132: -2640247.9 | U132: -2706176 | V132: -2888165.2 | W132: -2769130.5 | X132: -2950349.3 | Y132: -2584774.1 | Z132: -2458875.6 | AA132: -2333582.9 | AB132: -2505120.2 | AC132: -2679129.6 | AD132: -3041499.6 | AE132: -2732687.5 | AF132: -2635866.9 | AG132: -2439694.1 | AH132: -2406068.1 | AI132: -2437414.2 | AJ132: -2458706.5 | AK132: -2359435.2 | AL132: -2253900.8 | AM132: -2218639.8 | AN132: -2101934.9 | AO132: -2065490.7 | AP132: -1998954.5 | AQ132: -1803539.5 | AR132: -1668420.5 | AS132: -1516326.9 | AT132: -1302243.9 | AU132: -1232864.7 | AV132: -1106854.4 | AW132: -906951.6 | AX132: -810997.5 | AY132: -575028.7 | AZ132: -415149 | BA132: -371304.8 | BB132: -306985.8 | BC132: -80676.1 | BD132: -135025.5 | BE132: -159641.8 | BF132: -232260.6 | BG132: -307322.9 | BH132: -354649.1 | BI132: -150485.4 | BJ132: -152094.6 | BK132: -155004.5 | BL132: -157583.7 | BM132: -162240.3 | BN132: -164905.2 | BO132: -166753.5
B133: Simulation 99 | C133: 0 | D133: -242725.4 | E133: -950490.6 | F133: -1327781.4 | G133: -1723716.6 | H133: -1701671.6 | I133: -1354240.3 | J133: -1864203.6 | K133: -1269573.1 | L133: -1654506.2 | M133: -1709160.3 | N133: -1310329.9 | O133: -1070662.9 | P133: -916609.7 | Q133: 149559.4 | R133: 449818.3 | S133: 1154206.5 | T133: 1391997.7 | U133: 1638806.8 | V133: 2928022.5 | W133: 2267527.4 | X133: 1954389.1 | Y133: 1762437.7 | Z133: 2869419.9 | AA133: 4336183.9 | AB133: 3622138.5 | AC133: 4384553.5 | AD133: 4054068 | AE133: 2720041.5 | AF133: 3280927.3 | AG133: 2259150.9 | AH133: 3425878.6 | AI133: 4361696.3 | AJ133: 4005406.2 | AK133: 4194109 | AL133: 4238900 | AM133: 3462608.9 | AN133: 2565931.1 | AO133: 3207459.8 | AP133: 3305136.8 | AQ133: 5327709.8 | AR133: 5440414.9 | AS133: 5199952.1 | AT133: 6371742.8 | AU133: 6446056.3 | AV133: 7549281 | AW133: 6036360 | AX133: 4999452.1 | AY133: 4141131.1 | AZ133: 2691734.1 | BA133: 2021137.9 | BB133: 890926.7 | BC133: 509072.6 | BD133: 345402.1 | BE133: 279823.4 | BF133: 130447.7 | BG133: -51073.4 | BH133: -246551.4 | BI133: -188108 | BJ133: -195433.2 | BK133: -201149.7 | BL133: -206289.6 | BM133: -209956.7 | BN133: -213919.8 | BO133: -215825.8
B134: Simulation 100 | C134: 0 | D134: 133932.7 | E134: -127085.3 | F134: 128598.3 | G134: 1146657.1 | H134: 1909521.5 | I134: 1255482.5 | J134: 462629.1 | K134: 619776.4 | L134: 95310.3 | M134: 1618744.9 | N134: 2074673.4 | O134: 2200985 | P134: 2142740.9 | Q134: 1697051.1 | R134: 1804938.2 | S134: 3143559.7 | T134: 3805931.7 | U134: 3351674.1 | V134: 5233227.4 | W134: 6223254.3 | X134: 8109837.5 | Y134: 10959782 | Z134: 11940590.3 | AA134: 13039088.2 | AB134: 10600941 | AC134: 8540737.2 | AD134: 6510537.7 | AE134: 7904809 | AF134: 8336601.6 | AG134: 6973002.4 | AH134: 7083486.7 | AI134: 8622637.9 | AJ134: 8770203.7 | AK134: 8040170.2 | AL134: 8945752.9 | AM134: 9558274 | AN134: 9219753.2 | AO134: 12204362.4 | AP134: 12876483.9 | AQ134: 12823884.8 | AR134: 10881355.5 | AS134: 11281856.9 | AT134: 9036597.4 | AU134: 8393573 | AV134: 6465048.6 | AW134: 3760672.5 | AX134: 2835436.4 | AY134: 2166375.9 | AZ134: 1033431.5 | BA134: 530426.6 | BB134: -110896.2 | BC134: -279516.1 | BD134: -334905.5 | BE134: -462117.7 | BF134: -570925.7 | BG134: -657837.6 | BH134: -742725.2 | BI134: -378774.4 | BJ134: -381435.4 | BK134: -383365.2 | BL134: -385858.8 | BM134: -388838.5 | BN134: -391740.4 | BO134: -393532.8
B135: Simulation 101 | C135: 0 | D135: 83007.1 | E135: -759207.9 | F135: -84530.9 | G135: 400613.7 | H135: -476522.1 | I135: -59859.4 | J135: -673015.5 | K135: -823979.3 | L135: -491232.8 | M135: -186019.6 | N135: -174845.3 | O135: -1023567 | P135: -936207 | Q135: -1843644.9 | R135: -1622024.7 | S135: -1255797.7 | T135: -648178.2 | U135: -709531.8 | V135: -1482545.7 | W135: -1637336 | X135: -1990435.1 | Y135: -1327772.6 | Z135: -1197036.5 | AA135: -1322823.4 | AB135: -709868.3 | AC135: -24451.3 | AD135: -470991 | AE135: 898922.6 | AF135: 821969.7 | AG135: -458302.1 | AH135: -696443.7 | AI135: -733290 | AJ135: 55096.5 | AK135: 1665732.4 | AL135: 933321 | AM135: 804923.8 | AN135: 828771.1 | AO135: 1169097.5 | AP135: 1262363.4 | AQ135: 920500.7 | AR135: 655803 | AS135: 268252.5 | AT135: 387800.9 | AU135: 399755.6 | AV135: 50129.9 | AW135: 138163.2 | AX135: 114115.9 | AY135: 60645.2 | AZ135: 79060.9 | BA135: 190881.2 | BB135: 191630.8 | BC135: 269529.2 | BD135: 192533.6 | BE135: 93331.4 | BF135: 34800.8 | BG135: -67046.7 | BH135: -140826.7 | BI135: -100542.5 | BJ135: -105404.3 | BK135: -110804.3 | BL135: -113853.6 | BM135: -115030.7 | BN135: -118967.6 | BO135: -123211.5
B136: Simulation 102 | C136: 0 | D136: -91857.8 | E136: -877036.6 | F136: -958010 | G136: -1384009 | H136: -1545906.8 | I136: -2516846.9 | J136: -2001890.5 | K136: -1552183.1 | L136: -1138932 | M136: -660164.3 | N136: -2029490.8 | O136: -2381615.1 | P136: -1849015.5 | Q136: -1638041.8 | R136: -1299057.7 | S136: -2366252.3 | T136: -2058223.4 | U136: -2659436.9 | V136: -3198325 | W136: -3402789.5 | X136: -2944723.3 | Y136: -2986939.6 | Z136: -2884248.1 | AA136: -2952141.4 | AB136: -3145264.9 | AC136: -3361064.1 | AD136: -3304691.3 | AE136: -2840334.5 | AF136: -2916737 | AG136: -2864673.9 | AH136: -2837329.7 | AI136: -2892390 | AJ136: -2858501.4 | AK136: -2619121.5 | AL136: -2666169.3 | AM136: -2499591.6 | AN136: -2424888.8 | AO136: -2365402.1 | AP136: -2210185.2 | AQ136: -1957595.4 | AR136: -1781868.3 | AS136: -1631877.6 | AT136: -1527842.5 | AU136: -1448394.7 | AV136: -1434366.2 | AW136: -1171354.9 | AX136: -968204.3 | AY136: -834649.9 | AZ136: -750951.6 | BA136: -706686.1 | BB136: -660869 | BC136: -312966.9 | BD136: -322069.1 | BE136: -349196.1 | BF136: -424441.7 | BG136: -479722.4 | BH136: -549153.9 | BI136: -276253.5 | BJ136: -277631.2 | BK136: -279891.9 | BL136: -283709.3 | BM136: -288612.7 | BN136: -290636.2 | BO136: -292452.2
B137: Simulation 103 | C137: 0 | D137: 41935.9 | E137: -167143.5 | F137: -532805.8 | G137: -451447.1 | H137: 171512.9 | I137: -408354.4 | J137: -833007.7 | K137: -1825686.1 | L137: -1316748.7 | M137: -2001718.3 | N137: -1654013.3 | O137: -2609804.5 | P137: -2787207.1 | Q137: -1846922.4 | R137: -2155541.9 | S137: -2603469.9 | T137: -2600213.9 | U137: -2776422.3 | V137: -1593651 | W137: -1478177 | X137: -1370348.4 | Y137: -1070818.4 | Z137: -1333516.6 | AA137: -1044455.8 | AB137: -729117.8 | AC137: -1311907.9 | AD137: -1413924.5 | AE137: -892587.2 | AF137: -1041378.6 | AG137: -394744.3 | AH137: -101242.3 | AI137: -470593 | AJ137: -1138018.1 | AK137: -1259116.9 | AL137: -1450649.6 | AM137: -1829182.6 | AN137: -1535563 | AO137: -1717365 | AP137: -1842608.5 | AQ137: -1728866.9 | AR137: -1676023.3 | AS137: -1501829.2 | AT137: -1325671.4 | AU137: -1294599.8 | AV137: -1260068.9 | AW137: -933461.2 | AX137: -827860.2 | AY137: -747135.8 | AZ137: -642572.2 | BA137: -536633.7 | BB137: -546583.3 | BC137: -267208.6 | BD137: -318198.4 | BE137: -377037.9 | BF137: -434281.2 | BG137: -463197.8 | BH137: -530053.4 | BI137: -255702 | BJ137: -258984.2 | BK137: -262744.3 | BL137: -263905.9 | BM137: -264212.4 | BN137: -267786.9 | BO137: -269742.8
B138: Simulation 104 | C138: 0 | D138: 49797.8 | E138: -58038.5 | F138: -815822.8 | G138: -1198562.9 | H138: -364544.3 | I138: -422342.6 | J138: -401290.6 | K138: -226888 | L138: 29883.7 | M138: -615344.3 | N138: -766687.3 | O138: -1030338.6 | P138: -1195491 | Q138: -1915385.9 | R138: -1910270.5 | S138: -2079161.7 | T138: -1537551.8 | U138: -1694647.8 | V138: -1249302.7 | W138: -1300074.2 | X138: -1721856.2 | Y138: -2133624.3 | Z138: -2205034.4 | AA138: -2476731 | AB138: -2660351 | AC138: -2631746.1 | AD138: -2916040.6 | AE138: -2599291.3 | AF138: -2397778.9 | AG138: -2194297.2 | AH138: -2453373.8 | AI138: -2656886.2 | AJ138: -2663626.6 | AK138: -2557038.4 | AL138: -2512909.5 | AM138: -2403020.9 | AN138: -2273671.6 | AO138: -2170713.9 | AP138: -2098274.4 | AQ138: -1773724.4 | AR138: -1585359.8 | AS138: -1389855 | AT138: -1250244 | AU138: -1062525.6 | AV138: -987987.7 | AW138: -671012.3 | AX138: -513712.6 | AY138: -371988.3 | AZ138: -180139.3 | BA138: -87346.7 | BB138: -98476.1 | BC138: 60198.9 | BD138: 23948.8 | BE138: -19712.5 | BF138: -65901.9 | BG138: -136298.2 | BH138: -181806.5 | BI138: -91005.8 | BJ138: -94870.5 | BK138: -94387.4 | BL138: -96282.6 | BM138: -100242.6 | BN138: -105125.5 | BO138: -108519.3
B139: Simulation 105 | C139: 0 | D139: -117425.9 | E139: 247894.1 | F139: 345734.7 | G139: 275967 | H139: 1286922.4 | I139: 2283197.4 | J139: 1973063.2 | K139: 2375994.4 | L139: 1725712.3 | M139: 2445888.7 | N139: 3689024.7 | O139: 3283420.1 | P139: 4352522.8 | Q139: 5075506.6 | R139: 4944488.6 | S139: 4284931 | T139: 3815181.4 | U139: 3436155.4 | V139: 1293930.1 | W139: 1280620.8 | X139: 602317.1 | Y139: 236311.8 | Z139: -382388.8 | AA139: 90862.9 | AB139: 908111.3 | AC139: -564728 | AD139: -639569.5 | AE139: -1040302.4 | AF139: -1399511.5 | AG139: -1307827.4 | AH139: -1636282.1 | AI139: -1520431.6 | AJ139: -1381457.2 | AK139: -688622 | AL139: -866200.5 | AM139: -1006500.7 | AN139: -1308840.6 | AO139: -1575794.3 | AP139: -1719684.5 | AQ139: -1514004 | AR139: -1418629.3 | AS139: -1405292.9 | AT139: -1194629 | AU139: -1186293.2 | AV139: -1131173.1 | AW139: -1006263.2 | AX139: -841976.5 | AY139: -721379.5 | AZ139: -632130.4 | BA139: -518429.7 | BB139: -488414.9 | BC139: -272795.7 | BD139: -344832.2 | BE139: -431062.4 | BF139: -480874.2 | BG139: -514774.5 | BH139: -571204.6 | BI139: -304890.8 | BJ139: -308181.7 | BK139: -310810.2 | BL139: -315050.9 | BM139: -317680.9 | BN139: -319430.5 | BO139: -321753.6
B140: Simulation 106 | C140: 0 | D140: -92790.7 | E140: -693968 | F140: -873250.6 | G140: -945077 | H140: -1378876.5 | I140: -1384871.2 | J140: -1557809 | K140: -2027706.7 | L140: -2414374.2 | M140: -3108752.4 | N140: -2792458.2 | O140: -2688469.2 | P140: -2787483.7 | Q140: -2987282.9 | R140: -2775188.9 | S140: -2159283.6 | T140: -2513764.9 | U140: -2662748.4 | V140: -2788759.7 | W140: -2542037.7 | X140: -2864804 | Y140: -2622970 | Z140: -2545560.2 | AA140: -2844072.7 | AB140: -2831054.2 | AC140: -2867011.6 | AD140: -2632842 | AE140: -2119118.7 | AF140: -2370118.1 | AG140: -2314613 | AH140: -2392612.7 | AI140: -2308648.5 | AJ140: -2251876.8 | AK140: -1953585.2 | AL140: -1930079.4 | AM140: -2109306.2 | AN140: -2144601.4 | AO140: -2185614.2 | AP140: -2134648.9 | AQ140: -1814592.8 | AR140: -1782400.1 | AS140: -1647820.8 | AT140: -1512187.4 | AU140: -1414245.3 | AV140: -1369236 | AW140: -1142268 | AX140: -1080473.1 | AY140: -903615.9 | AZ140: -748471.1 | BA140: -652827 | BB140: -553147.1 | BC140: -236468.8 | BD140: -283730.8 | BE140: -308234.5 | BF140: -335242.6 | BG140: -403342 | BH140: -440059.5 | BI140: -235829.1 | BJ140: -237387.4 | BK140: -240628.1 | BL140: -243162 | BM140: -244383.4 | BN140: -246798.2 | BO140: -248752.5
B141: Simulation 107 | C141: 0 | D141: -176873 | E141: -256730.1 | F141: 302636.6 | G141: 219652 | H141: 260789.1 | I141: -478935 | J141: 706513.1 | K141: 1811075.7 | L141: 2632392.9 | M141: 2108026.7 | N141: 1813441.4 | O141: 698545 | P141: -490743.3 | Q141: -1199568.9 | R141: -468479.9 | S141: -459359.3 | T141: -434303.1 | U141: -581260.5 | V141: -1190378.3 | W141: -660079.5 | X141: -912409.3 | Y141: -1104502.8 | Z141: -1183875.8 | AA141: -1268272.2 | AB141: 112961 | AC141: -609535 | AD141: -927872.4 | AE141: -513857 | AF141: -365972.1 | AG141: -572050.2 | AH141: -222429.7 | AI141: -1086890.6 | AJ141: -1392579.1 | AK141: -1379556.6 | AL141: -580694.2 | AM141: -813700.5 | AN141: -239857.7 | AO141: -440514.7 | AP141: -799737.2 | AQ141: -883855.5 | AR141: -1014032.1 | AS141: -1012405.6 | AT141: -823535.6 | AU141: -497005.9 | AV141: -417422.7 | AW141: -77018.5 | AX141: 333879.2 | AY141: 413307.3 | AZ141: 527034.4 | BA141: 548745.3 | BB141: 449486.8 | BC141: 402377.3 | BD141: 390394.4 | BE141: 358976.5 | BF141: 302249.5 | BG141: 250379.4 | BH141: 139286.3 | BI141: -11695.7 | BJ141: -12461.8 | BK141: -14428.9 | BL141: -17547.6 | BM141: -19873.1 | BN141: -23006.5 | BO141: -25570.4
B142: Simulation 108 | C142: 0 | D142: 224727.6 | E142: 244490 | F142: -59769.6 | G142: 107773.6 | H142: 280211.4 | I142: -505016.2 | J142: 23801.1 | K142: 177413.2 | L142: -846137.1 | M142: -1608487.4 | N142: -1817742.4 | O142: -1333302.3 | P142: -1089861.6 | Q142: -1750196.4 | R142: -890585.9 | S142: -935630.9 | T142: -1653077.5 | U142: -1578214.6 | V142: -2224387 | W142: -1534574 | X142: -1985358.3 | Y142: -1818014.9 | Z142: -2022129.3 | AA142: -2085297.1 | AB142: -2950998.7 | AC142: -2781306.5 | AD142: -2791456.6 | AE142: -2484435 | AF142: -2709176.7 | AG142: -2883415.5 | AH142: -2715845.4 | AI142: -2637213.2 | AJ142: -2747346.9 | AK142: -2799816.3 | AL142: -2773457.9 | AM142: -2678120.9 | AN142: -2542703.4 | AO142: -2389356.8 | AP142: -2331705.8 | AQ142: -2046390 | AR142: -1793414.1 | AS142: -1651496.3 | AT142: -1593036.6 | AU142: -1542199.5 | AV142: -1471090.7 | AW142: -1170022.2 | AX142: -992623.7 | AY142: -767447.4 | AZ142: -615574.3 | BA142: -543527.5 | BB142: -415842.1 | BC142: -131714 | BD142: -186577 | BE142: -243374.6 | BF142: -300863.3 | BG142: -373659.5 | BH142: -429484.7 | BI142: -222956.9 | BJ142: -225663.3 | BK142: -229270.6 | BL142: -232872.6 | BM142: -235141.4 | BN142: -237131.4 | BO142: -239458.9
B143: Simulation 109 | C143: 0 | D143: -77243.3 | E143: -622840.2 | F143: -919877.3 | G143: -1162727.3 | H143: -1261230.9 | I143: -1212898.3 | J143: -1576297.4 | K143: -1615764.4 | L143: -1428456 | M143: -1566743.6 | N143: -1296880 | O143: -1914984.1 | P143: -2051026.5 | Q143: -1698295 | R143: -1328248.5 | S143: -1838245 | T143: -1592259.8 | U143: -930759.7 | V143: -1843885.2 | W143: -2202343.7 | X143: -2331629.3 | Y143: -2096603 | Z143: -1921526.9 | AA143: -1309904.2 | AB143: -1429156.2 | AC143: -1582466.2 | AD143: -1690833.6 | AE143: -1706246.9 | AF143: -2056582.1 | AG143: -2043257 | AH143: -1159427.6 | AI143: -718973.1 | AJ143: -1074838.1 | AK143: -1039792.2 | AL143: -1405638.9 | AM143: -1184732.8 | AN143: -1148681.5 | AO143: -645643.9 | AP143: -473332.5 | AQ143: -462361.2 | AR143: -436323.1 | AS143: -826970.3 | AT143: -749970.7 | AU143: -511356.4 | AV143: -589843.4 | AW143: -425716.4 | AX143: -330382.2 | AY143: -349958.4 | AZ143: -251873.2 | BA143: -191406.1 | BB143: -221660.3 | BC143: -9475.5 | BD143: -77038.3 | BE143: -170449.1 | BF143: -230803.1 | BG143: -281556 | BH143: -349017.4 | BI143: -161846.7 | BJ143: -163958.3 | BK143: -168248.3 | BL143: -170054.7 | BM143: -172363.5 | BN143: -176436.6 | BO143: -178108.9
B144: Simulation 110 | C144: 0 | D144: 111683.7 | E144: -52267.8 | F144: -314186.1 | G144: -670304 | H144: -1701373.7 | I144: -709507.5 | J144: -1701154.5 | K144: -1884433.1 | L144: -2790259.4 | M144: -2425802.6 | N144: -2729616.1 | O144: -2170296.1 | P144: -2703848 | Q144: -2849731.6 | R144: -2777457.3 | S144: -2832382.5 | T144: -2982026.4 | U144: -3341808.4 | V144: -3452364.3 | W144: -3380286.7 | X144: -3126163.2 | Y144: -3148715.6 | Z144: -3312895.7 | AA144: -3336797.8 | AB144: -3168074.5 | AC144: -3154108.7 | AD144: -3184883.9 | AE144: -2660591.5 | AF144: -2768347.6 | AG144: -2874389.7 | AH144: -2689444.9 | AI144: -2774274.1 | AJ144: -2650667.7 | AK144: -2390792.1 | AL144: -2490523.2 | AM144: -2461918.1 | AN144: -2286965.2 | AO144: -2231495.8 | AP144: -2118477.7 | AQ144: -1787714.8 | AR144: -1521406.5 | AS144: -1385999.1 | AT144: -1254277.6 | AU144: -1171158.9 | AV144: -1087402.1 | AW144: -842342.4 | AX144: -649411.3 | AY144: -462274.6 | AZ144: -281612.7 | BA144: -187104.7 | BB144: -195026.1 | BC144: -45065.7 | BD144: -83300.3 | BE144: -159405.4 | BF144: -201147.6 | BG144: -282210.6 | BH144: -383385.8 | BI144: -240293.2 | BJ144: -244585.9 | BK144: -249435.3 | BL144: -253371.8 | BM144: -256713.5 | BN144: -260587.1 | BO144: -262800.8
B145: Simulation 111 | C145: 0 | D145: 219505.7 | E145: -182996.6 | F145: -532781.3 | G145: 398941.1 | H145: -690279.7 | I145: -2163660.2 | J145: -2933192.5 | K145: -2339134.2 | L145: -2989382.4 | M145: -2534904.1 | N145: -2688589.9 | O145: -2022834.2 | P145: -2828764.6 | Q145: -2632688.6 | R145: -2491679.8 | S145: -2377095.8 | T145: -1828627.3 | U145: -2286496.4 | V145: -2513889.2 | W145: -2312676.6 | X145: -2084222.8 | Y145: -1710619.8 | Z145: -2022148.8 | AA145: -2237523.5 | AB145: -2155923.1 | AC145: -2291294.8 | AD145: -2480116.2 | AE145: -2415932.3 | AF145: -2460822.6 | AG145: -2335064.1 | AH145: -2283462.8 | AI145: -2094375.9 | AJ145: -2056844.4 | AK145: -2017731.4 | AL145: -2079068.3 | AM145: -1833767.9 | AN145: -1722233.9 | AO145: -1566320.3 | AP145: -1507862.8 | AQ145: -1423503.2 | AR145: -1301157.1 | AS145: -1050505.6 | AT145: -833228.9 | AU145: -701922.3 | AV145: -613814.3 | AW145: -629777.5 | AX145: -436980.3 | AY145: -226089.8 | AZ145: -15108.6 | BA145: 131714 | BB145: 158671.8 | BC145: 252098 | BD145: 183864.9 | BE145: 124116.9 | BF145: 38042.2 | BG145: -71193.4 | BH145: -139013.4 | BI145: -79236.5 | BJ145: -82323.5 | BK145: -86646.7 | BL145: -91268 | BM145: -95318.4 | BN145: -99500 | BO145: -100957.8
B146: Simulation 112 | C146: 0 | D146: 93725.5 | E146: -273705.8 | F146: -1139486.9 | G146: -1769363 | H146: -2434589.5 | I146: -2156795 | J146: -2491380 | K146: -2268902 | L146: -2983421.5 | M146: -3026668.4 | N146: -2378536.6 | O146: -2535947 | P146: -2716335.9 | Q146: -2946393.1 | R146: -3109533 | S146: -2951629.3 | T146: -3324974.2 | U146: -3477459.5 | V146: -3599933.2 | W146: -3741630.1 | X146: -3600520.9 | Y146: -3125804.8 | Z146: -2756038 | AA146: -3024903.1 | AB146: -2573038.8 | AC146: -3228648.7 | AD146: -3355064.7 | AE146: -3087911.2 | AF146: -3136281.6 | AG146: -2980645.6 | AH146: -2910319.2 | AI146: -2546522.6 | AJ146: -2317305.3 | AK146: -1742615.3 | AL146: -1479211.7 | AM146: -1409148.9 | AN146: -1955517.5 | AO146: -1481609.9 | AP146: -1185443.4 | AQ146: -750354.5 | AR146: -933563.7 | AS146: -459108.4 | AT146: -613719.9 | AU146: -803687.8 | AV146: -871411.5 | AW146: -426285.2 | AX146: -502881.1 | AY146: -220049.4 | AZ146: -355391.6 | BA146: -323978.7 | BB146: -447029.6 | BC146: -214407.7 | BD146: -287476.5 | BE146: -336495.7 | BF146: -418235.4 | BG146: -497611.8 | BH146: -556212.5 | BI146: -293667.3 | BJ146: -297367.3 | BK146: -298601.5 | BL146: -301689.5 | BM146: -305469 | BN146: -308483.4 | BO146: -310824.2
B147: Simulation 113 | C147: 0 | D147: 162615.2 | E147: 935792.4 | F147: 495153.5 | G147: 187367 | H147: -275175.9 | I147: -1100200.7 | J147: -971018.8 | K147: -1109329.8 | L147: -1677707 | M147: -385397.9 | N147: -364343.1 | O147: 102785 | P147: 17930.6 | Q147: 270303.2 | R147: 17647.7 | S147: -512233 | T147: -319922.3 | U147: 28216.1 | V147: 487415.8 | W147: -29063 | X147: 376549.1 | Y147: 337323.9 | Z147: 171660.5 | AA147: -287256.5 | AB147: 41820.9 | AC147: -1199878.7 | AD147: -1197894 | AE147: -1423564.1 | AF147: -1625272.8 | AG147: -1488105.4 | AH147: -1234998.1 | AI147: -1499751.5 | AJ147: -1330099.7 | AK147: -1211238.2 | AL147: -1649608.1 | AM147: -1896968 | AN147: -1734659.5 | AO147: -2103552.7 | AP147: -2124620 | AQ147: -1794398.7 | AR147: -1521925.8 | AS147: -1319031 | AT147: -1349886.5 | AU147: -1311150.8 | AV147: -1183002.6 | AW147: -792187.6 | AX147: -729787.7 | AY147: -680190.1 | AZ147: -576587.5 | BA147: -512226.5 | BB147: -487341.4 | BC147: -227554.2 | BD147: -286006.6 | BE147: -348640.8 | BF147: -432846.7 | BG147: -509863.9 | BH147: -581121.7 | BI147: -316230.8 | BJ147: -318580 | BK147: -320955.3 | BL147: -324587.2 | BM147: -328147.7 | BN147: -331709.4 | BO147: -333766.1
B148: Simulation 114 | C148: 0 | D148: -225.1 | E148: 579235 | F148: 762300.7 | G148: 1248807.7 | H148: 935444.3 | I148: -17885.6 | J148: -422645.2 | K148: -772854.2 | L148: -454413.2 | M148: -583275.8 | N148: -736411.7 | O148: -349006.1 | P148: -879505.9 | Q148: -1187013.4 | R148: -2003024.4 | S148: -1828247.9 | T148: -2206216.9 | U148: -962665.8 | V148: -58187.8 | W148: -760106.9 | X148: -230466.8 | Y148: -348665.9 | Z148: 30637.4 | AA148: -359752.5 | AB148: -160665.2 | AC148: -905502.8 | AD148: -506556.7 | AE148: 434690.5 | AF148: 638220.7 | AG148: 1091065.2 | AH148: 1872945.2 | AI148: 1616146.2 | AJ148: 1482538.1 | AK148: 1367071.1 | AL148: 983095.9 | AM148: 1240505.3 | AN148: 1534043.5 | AO148: 808081.4 | AP148: 209130.8 | AQ148: 1205025 | AR148: 954021.7 | AS148: 1552538.7 | AT148: 504920.7 | AU148: 599721.3 | AV148: 344657.5 | AW148: 711805.9 | AX148: 534389.1 | AY148: 473014.3 | AZ148: 152187.3 | BA148: 16517.3 | BB148: -178201.1 | BC148: -52976.2 | BD148: -120568.7 | BE148: -213548 | BF148: -264892.8 | BG148: -359813.6 | BH148: -450425.4 | BI148: -263144.5 | BJ148: -265049.4 | BK148: -267249 | BL148: -271486.8 | BM148: -275092.8 | BN148: -278954.7 | BO148: -280516.2
B149: Simulation 115 | C149: 0 | D149: -102936.8 | E149: -20880.2 | F149: 506894.8 | G149: 943842 | H149: 503240 | I149: 735838.8 | J149: 131610.6 | K149: 1084894.5 | L149: 400678.9 | M149: -171989.9 | N149: 267728.8 | O149: -136961 | P149: 384756.8 | Q149: 1248563.3 | R149: 603636.6 | S149: 1247256.9 | T149: 1572018.4 | U149: 2812279 | V149: 3322968.8 | W149: 3218575.6 | X149: 2577229.9 | Y149: 3373406.8 | Z149: 3160032.4 | AA149: 2670248.4 | AB149: 1726686.7 | AC149: 1841430.6 | AD149: 2230009.9 | AE149: 1430856.3 | AF149: 2083425.6 | AG149: 2557562.3 | AH149: 1630145 | AI149: 1419190.4 | AJ149: 2276009.9 | AK149: 2069914.6 | AL149: 1061554.3 | AM149: 1321443.6 | AN149: 1033338 | AO149: 944143 | AP149: 941340.8 | AQ149: 1542172.1 | AR149: 1204064.7 | AS149: 1211041.8 | AT149: 709383.5 | AU149: 345714.8 | AV149: 307885.1 | AW149: 402424.6 | AX149: 267585 | AY149: 341998.1 | AZ149: 329345.3 | BA149: 198385 | BB149: 14488.6 | BC149: 65027.9 | BD149: 13001.9 | BE149: -32658.8 | BF149: -101475.6 | BG149: -157694.4 | BH149: -255805.6 | BI149: -147517.9 | BJ149: -149299.6 | BK149: -150254 | BL149: -154091.1 | BM149: -155515.1 | BN149: -160677.5 | BO149: -162957.1
B150: Simulation 116 | C150: 0 | D150: 201522.5 | E150: 134062.9 | F150: 161508.2 | G150: 123706.8 | H150: 522690 | I150: 766345.4 | J150: 1876698.5 | K150: 2705446.9 | L150: 2814414.1 | M150: 2536595.2 | N150: 2473006.6 | O150: 3856395.1 | P150: 3267496.2 | Q150: 3477508.5 | R150: 4266260.8 | S150: 2932124.6 | T150: -86418.9 | U150: -1262569.4 | V150: -935870.6 | W150: -1599315.3 | X150: -1960743.2 | Y150: -1378303.7 | Z150: -1014567.4 | AA150: -1242396.5 | AB150: -1380164.9 | AC150: -817512.2 | AD150: -382109.8 | AE150: 1235866.5 | AF150: 1252991.8 | AG150: 686216.2 | AH150: -42001.5 | AI150: 241041.7 | AJ150: -70433 | AK150: 724562.4 | AL150: 690660.3 | AM150: 993664.1 | AN150: 15420.1 | AO150: 467027.2 | AP150: 2352028.7 | AQ150: 3438200.4 | AR150: 1419277.5 | AS150: 898335.3 | AT150: 208599.9 | AU150: 516644.4 | AV150: 668406.2 | AW150: 770626.2 | AX150: 368073.4 | AY150: 69972.8 | AZ150: -193149.9 | BA150: -435406.2 | BB150: -652408.1 | BC150: -324255.9 | BD150: -396794.8 | BE150: -499796 | BF150: -576889.4 | BG150: -672977.6 | BH150: -746275.8 | BI150: -405761.4 | BJ150: -409206.2 | BK150: -412632.3 | BL150: -416135.2 | BM150: -418828.8 | BN150: -422326.2 | BO150: -424183.4
B151: Simulation 117 | C151: 0 | D151: 98527.4 | E151: -215857.7 | F151: -234646.7 | G151: -881583.2 | H151: -154473.2 | I151: -550595.5 | J151: -908279.1 | K151: -853578.3 | L151: -1171497.1 | M151: -1538234.7 | N151: -2458991.6 | O151: -2554446.3 | P151: -3252284.8 | Q151: -2919440.4 | R151: -2847127.7 | S151: -1948377.7 | T151: -567188.8 | U151: -1191354.8 | V151: 226789.7 | W151: 1025713.2 | X151: 843096.4 | Y151: 2033735.8 | Z151: 2094587.3 | AA151: 1315527.6 | AB151: 1923005.4 | AC151: 2263313.1 | AD151: 3362473.4 | AE151: 3100014.5 | AF151: 2989863.5 | AG151: 2923382.1 | AH151: 2708639.5 | AI151: 3230548.5 | AJ151: 2200936.8 | AK151: 2804663.6 | AL151: 2287606.1 | AM151: 1948027.1 | AN151: 1410715.4 | AO151: 1693792.7 | AP151: 796796.7 | AQ151: 1547213.4 | AR151: 1520917.1 | AS151: 1582557.1 | AT151: 608855 | AU151: 94221.6 | AV151: 31728.1 | AW151: 275838.2 | AX151: 16211.5 | AY151: -146779.8 | AZ151: -295173.4 | BA151: -366336.4 | BB151: -559258 | BC151: -321284.2 | BD151: -386846 | BE151: -483187.6 | BF151: -586474.1 | BG151: -662715.3 | BH151: -751906.7 | BI151: -405186.6 | BJ151: -409360 | BK151: -412357.7 | BL151: -415906.8 | BM151: -419782.5 | BN151: -423011.3 | BO151: -424203.6
B152: Simulation 118 | C152: 0 | D152: 43714 | E152: 601254.7 | F152: 690488.7 | G152: 258051.2 | H152: -215532.2 | I152: -1070259.6 | J152: -2318312 | K152: -2142321.5 | L152: -2198009 | M152: -1567741.5 | N152: -2388145.6 | O152: -1777793 | P152: -2331215 | Q152: -1659952.8 | R152: -1800060.3 | S152: -1577563.9 | T152: -1438382.8 | U152: -1562973.1 | V152: -1897081.8 | W152: -1445298.2 | X152: -1880780.8 | Y152: -1705150.8 | Z152: -1833876.6 | AA152: -1963347.8 | AB152: -1982305.8 | AC152: -2074657.9 | AD152: -2882650.2 | AE152: -2136666.8 | AF152: -2214849.9 | AG152: -2076858.7 | AH152: -2287767.6 | AI152: -2259155.5 | AJ152: -2014559.1 | AK152: -1984777.6 | AL152: -1821920.8 | AM152: -1445174.3 | AN152: -1025252.2 | AO152: -605005.8 | AP152: -1091550.2 | AQ152: -1106753.5 | AR152: -708133.3 | AS152: -601517.8 | AT152: -401593.8 | AU152: -636011.5 | AV152: -779953.5 | AW152: -582882.5 | AX152: -451451.3 | AY152: -454611.2 | AZ152: -488706 | BA152: -487666.5 | BB152: -500284.6 | BC152: -241117.8 | BD152: -339242.8 | BE152: -464994.7 | BF152: -571540.6 | BG152: -677589.4 | BH152: -762440.1 | BI152: -387032 | BJ152: -391863.4 | BK152: -396056 | BL152: -402469.7 | BM152: -407160.3 | BN152: -410085.3 | BO152: -411378.9
B153: Simulation 119 | C153: 0 | D153: -54228.8 | E153: -119767.1 | F153: -1699.6 | G153: -443819.5 | H153: -1023608.6 | I153: -475924.7 | J153: -1472648.5 | K153: -344387.1 | L153: -152695.5 | M153: -349731.2 | N153: 152785.4 | O153: 1193939.2 | P153: 88566.7 | Q153: -639760.1 | R153: -1245430.4 | S153: -860925 | T153: -1246867.9 | U153: -2075912.3 | V153: -2236585.1 | W153: -2540870.7 | X153: -3091715.7 | Y153: -3172072.5 | Z153: -3216478.6 | AA153: -3345534.4 | AB153: -3243863.1 | AC153: -3367998.7 | AD153: -3462965.8 | AE153: -3319169.7 | AF153: -3208235.6 | AG153: -3102386.7 | AH153: -2965972.3 | AI153: -2900807.5 | AJ153: -2781519.9 | AK153: -2474213.9 | AL153: -2157779.1 | AM153: -1948403.9 | AN153: -1868119.3 | AO153: -2034781.3 | AP153: -1958383.5 | AQ153: -1579054.8 | AR153: -1507131.9 | AS153: -1414556.4 | AT153: -1386974.4 | AU153: -1322544 | AV153: -1246534.2 | AW153: -853211.1 | AX153: -688633.5 | AY153: -561462.7 | AZ153: -443750.4 | BA153: -288459.7 | BB153: -227817.1 | BC153: 60233.7 | BD153: -47659.8 | BE153: -139128.1 | BF153: -261881.7 | BG153: -353855.4 | BH153: -447334.6 | BI153: -248517.6 | BJ153: -256029.2 | BK153: -261757.6 | BL153: -264869.5 | BM153: -269980.4 | BN153: -273514.8 | BO153: -276992.8
B154: Simulation 120 | C154: 0 | D154: -79937.5 | E154: 432327.2 | F154: 1460595.7 | G154: 2184378.3 | H154: 1852501.5 | I154: 1250538.1 | J154: 1613518.5 | K154: 1615147.4 | L154: -247918.9 | M154: 672701.2 | N154: 116624 | O154: 340090.5 | P154: -258532.4 | Q154: -648175.4 | R154: -7009.8 | S154: -80989 | T154: -447798.4 | U154: -727495.8 | V154: 470490.3 | W154: 267309.8 | X154: 458965.9 | Y154: 3260141 | Z154: 2692846.2 | AA154: 4020561.1 | AB154: 3152846.6 | AC154: 3119629.5 | AD154: 2845217.9 | AE154: 2300189.4 | AF154: 1542449.7 | AG154: 1945957.9 | AH154: 1540423.2 | AI154: 1398800.6 | AJ154: 1386746.4 | AK154: 1904476.9 | AL154: 2377283.7 | AM154: 1514782.2 | AN154: 1235310.3 | AO154: 2275713.7 | AP154: 3696803.8 | AQ154: 2694146 | AR154: 2818476 | AS154: 2517348.8 | AT154: 1847922.4 | AU154: 1969253.4 | AV154: 1784497.5 | AW154: 2259570.9 | AX154: 1356235.3 | AY154: 818210.8 | AZ154: 456623.3 | BA154: 83185.8 | BB154: -80834.7 | BC154: -73609.6 | BD154: -81971.9 | BE154: -138291.1 | BF154: -217732.8 | BG154: -305371.2 | BH154: -393538.6 | BI154: -215757.9 | BJ154: -218430.6 | BK154: -221850.9 | BL154: -224950 | BM154: -229296 | BN154: -232415 | BO154: -234973.6
B155: Simulation 121 | C155: 0 | D155: -140522.9 | E155: 13952.1 | F155: 774812.7 | G155: 1040808.4 | H155: 1211826.5 | I155: -14664 | J155: -108625 | K155: -240575.1 | L155: -2039266.8 | M155: -1379369.1 | N155: -2571968.4 | O155: -3090331.6 | P155: -3027491.1 | Q155: -3027569.6 | R155: -2826431.7 | S155: -2442454.5 | T155: -1675083 | U155: -1361532.6 | V155: -1538480.3 | W155: -2154139.3 | X155: -1490928.2 | Y155: -1103119.4 | Z155: -2050261.9 | AA155: -2331739.8 | AB155: -2575366.7 | AC155: -2526299 | AD155: -2886665.6 | AE155: -2479234.4 | AF155: -1619841.2 | AG155: -1545572.5 | AH155: -1208752.8 | AI155: -1981422.4 | AJ155: -2489893.7 | AK155: -2231261.3 | AL155: -2255270.9 | AM155: -2561909.3 | AN155: -2345667.2 | AO155: -2238068.1 | AP155: -2272394.8 | AQ155: -1697830.3 | AR155: -1410757.6 | AS155: -1530820.9 | AT155: -1549719.8 | AU155: -1343826.1 | AV155: -1315904.6 | AW155: -815106.6 | AX155: -769805.6 | AY155: -761386.8 | AZ155: -798390.6 | BA155: -822526.3 | BB155: -855214.1 | BC155: -505483.9 | BD155: -599669 | BE155: -680176 | BF155: -772557.3 | BG155: -823716.4 | BH155: -883054.3 | BI155: -470317.4 | BJ155: -474038.8 | BK155: -477197.5 | BL155: -480124.9 | BM155: -482111.9 | BN155: -484671.7 | BO155: -486546.2
B156: Simulation 122 | C156: 0 | D156: -125317.4 | E156: 330896.6 | F156: -119035.7 | G156: -239957.1 | H156: -478940.5 | I156: -805641.1 | J156: -47854.4 | K156: -808440.3 | L156: 463607.8 | M156: 941322.2 | N156: -273742.1 | O156: -1217881.1 | P156: -1953225.5 | Q156: -2012848.6 | R156: -1797982.7 | S156: -1891747.1 | T156: -1546806.4 | U156: -1804839.3 | V156: -1617471.2 | W156: -2140618.3 | X156: -1818518.8 | Y156: -1440688.8 | Z156: -1183733.7 | AA156: -1261366.9 | AB156: -809709.5 | AC156: -781182.7 | AD156: -1016040.8 | AE156: -651852.6 | AF156: -1384942.8 | AG156: -1967595.9 | AH156: -1597473.4 | AI156: -2214698.7 | AJ156: -2240405.1 | AK156: -1540159.4 | AL156: -1774411.2 | AM156: -1689414.3 | AN156: -1924568.3 | AO156: -2074900.8 | AP156: -2288890.3 | AQ156: -1753639.4 | AR156: -1492944 | AS156: -1506574.1 | AT156: -1567818.7 | AU156: -1423990.6 | AV156: -1132037.4 | AW156: -403189.2 | AX156: -461276.3 | AY156: -364627.9 | AZ156: -529628.5 | BA156: -636445.5 | BB156: -781467.8 | BC156: -455028.3 | BD156: -514069.9 | BE156: -567666.8 | BF156: -662411.6 | BG156: -750194.9 | BH156: -850063.1 | BI156: -465050.9 | BJ156: -466874.3 | BK156: -468846.5 | BL156: -472952.1 | BM156: -475171.6 | BN156: -477812.3 | BO156: -479452.3
B157: Simulation 123 | C157: 0 | D157: -47941.9 | E157: 726666.9 | F157: 1112377.7 | G157: 257633 | H157: 930726.5 | I157: 664431.6 | J157: 918949.7 | K157: 1883516.6 | L157: 2092327.2 | M157: 762245.2 | N157: 619124.3 | O157: 926559.7 | P157: 1076695.9 | Q157: -320950 | R157: -1611192.2 | S157: -1616019.2 | T157: -1777524.2 | U157: -1556191.7 | V157: -1525661.2 | W157: -356774.7 | X157: -772110.6 | Y157: 504620.5 | Z157: 466322.1 | AA157: 493037.9 | AB157: 472010.5 | AC157: 492958.4 | AD157: -71679.8 | AE157: -726500 | AF157: -1550163.1 | AG157: -1145226.9 | AH157: -1208348.1 | AI157: -974783.2 | AJ157: -582975.8 | AK157: -355534.9 | AL157: 1252645.3 | AM157: 1673436.5 | AN157: 1305249.7 | AO157: 1093918.5 | AP157: 875716.5 | AQ157: 606660.1 | AR157: 679950.2 | AS157: 749850.1 | AT157: 554975.9 | AU157: 1240902.6 | AV157: 825092 | AW157: 140465.2 | AX157: 181720.2 | AY157: 32960.9 | AZ157: -8670.2 | BA157: -76323.1 | BB157: -161800.6 | BC157: 28372.2 | BD157: -13579.9 | BE157: -108152.7 | BF157: -222615.5 | BG157: -314222.4 | BH157: -401189.5 | BI157: -232456.8 | BJ157: -235013.2 | BK157: -239288.4 | BL157: -243560.6 | BM157: -246278.2 | BN157: -248839.4 | BO157: -252051.9
B158: Simulation 124 | C158: 0 | D158: -76363.2 | E158: -49963.8 | F158: -737077.9 | G158: -1287843.1 | H158: -970246.6 | I158: -170561.4 | J158: -782234.8 | K158: -1667889 | L158: -1576881.5 | M158: -1974158.5 | N158: -2523690.9 | O158: -1971805.4 | P158: -2717427.1 | Q158: -2391757.6 | R158: -2072282.2 | S158: -2734281.7 | T158: -3129173.4 | U158: -2369790.5 | V158: -1712568.2 | W158: -2845992 | X158: -2187010.9 | Y158: -1549592 | Z158: -2172230.4 | AA158: -2293548.2 | AB158: -1683047.9 | AC158: -2139685.5 | AD158: -1696663.7 | AE158: -1309372.2 | AF158: -1357918.6 | AG158: -1819189 | AH158: -1968847.6 | AI158: -1608967.7 | AJ158: -1977855.3 | AK158: -923693.4 | AL158: -754833.9 | AM158: -569072.2 | AN158: -534272.4 | AO158: -83981.6 | AP158: -245807 | AQ158: 649070.8 | AR158: 610271.9 | AS158: -92952.6 | AT158: -214848.9 | AU158: 85738.3 | AV158: 187000.9 | AW158: 162589.7 | AX158: -174366.6 | AY158: -271848.4 | AZ158: -346729.9 | BA158: -435428.2 | BB158: -483177.8 | BC158: -274581.5 | BD158: -371238.8 | BE158: -471701 | BF158: -550481 | BG158: -669797.2 | BH158: -761474 | BI158: -368910.8 | BJ158: -374794.5 | BK158: -380154.4 | BL158: -384099.3 | BM158: -387617.7 | BN158: -390964.7 | BO158: -393526.8
B159: Simulation 125 | C159: 0 | D159: 274738.1 | E159: 653737.4 | F159: 521879.2 | G159: 1165617.8 | H159: 1163903.6 | I159: 246934.9 | J159: 1071744.3 | K159: -286897.2 | L159: -541877.7 | M159: 1163181.5 | N159: 774948.4 | O159: 519101 | P159: 1029617.2 | Q159: 194409.4 | R159: 2148452.3 | S159: 1799340.4 | T159: 529915.5 | U159: 129707.2 | V159: 301293.2 | W159: 241512.9 | X159: -237432.2 | Y159: 230530.2 | Z159: -433789.9 | AA159: -659679.7 | AB159: -1065162 | AC159: -1644320 | AD159: -1916904.9 | AE159: -1339531.1 | AF159: -1343494.3 | AG159: -2068298.6 | AH159: -2140857.3 | AI159: -1553860.4 | AJ159: -1488474.6 | AK159: -354627.6 | AL159: -720734 | AM159: -618352.4 | AN159: -795957.3 | AO159: -334690.3 | AP159: -260388.7 | AQ159: -396131.1 | AR159: -886468.4 | AS159: -953439.4 | AT159: -1248916.1 | AU159: -1217712 | AV159: -1098602.5 | AW159: -855918.5 | AX159: -797387.2 | AY159: -750284.8 | AZ159: -641737 | BA159: -531211.6 | BB159: -483697.8 | BC159: -220680.1 | BD159: -306977.6 | BE159: -387361.9 | BF159: -452566.8 | BG159: -537726.9 | BH159: -612043.7 | BI159: -330737.4 | BJ159: -334034.2 | BK159: -336309.7 | BL159: -338764.4 | BM159: -341283.3 | BN159: -344665.1 | BO159: -347285.7
B160: Simulation 126 | C160: 0 | D160: 26223.5 | E160: 215672.2 | F160: 483515.3 | G160: 693493.8 | H160: -463078.8 | I160: -1683881.5 | J160: -1555970.2 | K160: -1394789.7 | L160: -1471125.2 | M160: -1215251.3 | N160: -2210120.7 | O160: -2931135.8 | P160: -2812479.1 | Q160: -2807872.1 | R160: -3493363.6 | S160: -3071305.6 | T160: -3337028.3 | U160: -3379193.2 | V160: -3068374.3 | W160: -3368064.2 | X160: -3187244.7 | Y160: -2879578 | Z160: -2323770.1 | AA160: -1768588.7 | AB160: -1213882.7 | AC160: -1604006 | AD160: -1449997 | AE160: -1330913 | AF160: -1175719.5 | AG160: -1423647.3 | AH160: -641424 | AI160: -615471.4 | AJ160: 43036.1 | AK160: 915156.7 | AL160: 1860697.8 | AM160: 3262789.3 | AN160: 4431785.4 | AO160: 5664615.8 | AP160: 4422253 | AQ160: 3609757.1 | AR160: 3666944.2 | AS160: 3046032.8 | AT160: 3007447.5 | AU160: 2561954 | AV160: 2000673.9 | AW160: 2006050.2 | AX160: 1822856.8 | AY160: 1512102.2 | AZ160: 1541604.4 | BA160: 1188470.1 | BB160: 931373.5 | BC160: 592097 | BD160: 534538 | BE160: 441618.4 | BF160: 354235.8 | BG160: 249386.4 | BH160: 149445.6 | BI160: 91879.1 | BJ160: 89865.9 | BK160: 87094.4 | BL160: 85087.1 | BM160: 82369.3 | BN160: 77854.5 | BO160: 73273.7
B161: Simulation 127 | C161: 0 | D161: -260735.4 | E161: 146414.2 | F161: 484408.2 | G161: 714031.4 | H161: 377070.3 | I161: -240591.6 | J161: 1156868.5 | K161: 316910.6 | L161: 1480780.3 | M161: 2267831.5 | N161: 2903956.6 | O161: 3318026.7 | P161: 2770201.6 | Q161: 1806895.6 | R161: 886936.5 | S161: 909885.9 | T161: 1676222.6 | U161: 3067671.9 | V161: 3526321.5 | W161: 4886034.8 | X161: 5740846.2 | Y161: 4820779.5 | Z161: 5834307.8 | AA161: 3816503.5 | AB161: 4072779.5 | AC161: 4144009.8 | AD161: 3228292.9 | AE161: 4010829.5 | AF161: 4303430.4 | AG161: 3735611.9 | AH161: 4880708 | AI161: 3839331.2 | AJ161: 4425864.7 | AK161: 3900573.7 | AL161: 1779773.3 | AM161: 3009356.3 | AN161: 2618982.2 | AO161: 2170124.3 | AP161: 2048033.9 | AQ161: 1465979.5 | AR161: 848574.9 | AS161: 254323.9 | AT161: 285264.9 | AU161: 182222.2 | AV161: -265086.1 | AW161: -387278.9 | AX161: -340122.1 | AY161: -276973 | AZ161: -185382.9 | BA161: -143022.6 | BB161: -149644 | BC161: 28009.6 | BD161: -62789.1 | BE161: -159091.8 | BF161: -250620.4 | BG161: -277534.5 | BH161: -349307.7 | BI161: -183686.9 | BJ161: -187541.7 | BK161: -192144.3 | BL161: -196705.4 | BM161: -199307.5 | BN161: -201500.9 | BO161: -205132.4
B162: Simulation 128 | C162: 0 | D162: -6837.2 | E162: -90720.5 | F162: -29644.3 | G162: -102058.7 | H162: -1113262.7 | I162: -1759857.5 | J162: -1898850.2 | K162: -1909119 | L162: -2272681.4 | M162: -1815774.9 | N162: -1379289.2 | O162: -1157245.1 | P162: -2206026.6 | Q162: -2496281.6 | R162: -2758373.7 | S162: -2053056.9 | T162: -2543922.7 | U162: -2621101.8 | V162: -2070530.4 | W162: -1556820.9 | X162: -2207900.5 | Y162: -1540726.6 | Z162: -1073217.2 | AA162: -1035630.8 | AB162: -1174411.6 | AC162: -1631015.1 | AD162: -2258908.4 | AE162: -1724884 | AF162: -1995589.3 | AG162: -2054950.8 | AH162: -2307496.7 | AI162: -2411343.7 | AJ162: -2475883.7 | AK162: -1822427.6 | AL162: -1812455.9 | AM162: -2115695.4 | AN162: -2325397 | AO162: -2372534 | AP162: -2309995.7 | AQ162: -1921936.3 | AR162: -1810779.3 | AS162: -1690902.6 | AT162: -1613641.5 | AU162: -1551705 | AV162: -1549714.8 | AW162: -1257051 | AX162: -1102428.8 | AY162: -978710.2 | AZ162: -866870.4 | BA162: -804359.4 | BB162: -807063.8 | BC162: -397030.7 | BD162: -452046.5 | BE162: -498584.9 | BF162: -552806.7 | BG162: -623411.1 | BH162: -681847.6 | BI162: -336443 | BJ162: -339968.6 | BK162: -343590.1 | BL162: -346251.6 | BM162: -349805.2 | BN162: -353097.8 | BO162: -354943.5
B163: Simulation 129 | C163: 0 | D163: -12916.2 | E163: -447010.5 | F163: -900429.9 | G163: -1581895.1 | H163: -1554994.7 | I163: -1250481.5 | J163: -960488.8 | K163: -545542 | L163: -1013938 | M163: 424214.9 | N163: 723165.4 | O163: 363506.8 | P163: -359174.1 | Q163: -1601329 | R163: -1918250.9 | S163: -1277869.3 | T163: -1606293.4 | U163: -2063926.7 | V163: -1414412.6 | W163: -827937.2 | X163: -984363.6 | Y163: -1167677 | Z163: -1192056.2 | AA163: -1068651.2 | AB163: -1527864 | AC163: -2022075 | AD163: -2013104.1 | AE163: -1822965.4 | AF163: -1928478.7 | AG163: -2441299.3 | AH163: -2318806.2 | AI163: -2372479.7 | AJ163: -2122771.3 | AK163: -1861132.3 | AL163: -1563249.9 | AM163: -1570675.2 | AN163: -1880550.9 | AO163: -1571915.3 | AP163: -1744842.9 | AQ163: -1558872.4 | AR163: -1389394.1 | AS163: -1271390.8 | AT163: -1081605.2 | AU163: -990657.3 | AV163: -948173.3 | AW163: -723471.7 | AX163: -593371.3 | AY163: -399175.9 | AZ163: -293752.5 | BA163: -237474.9 | BB163: -210931.2 | BC163: -51546.1 | BD163: -145183.3 | BE163: -211624.3 | BF163: -207863.1 | BG163: -207849.4 | BH163: -298533.7 | BI163: -135211 | BJ163: -138605 | BK163: -142340.1 | BL163: -145028.6 | BM163: -147557.7 | BN163: -150540.2 | BO163: -151898.4
B164: Simulation 130 | C164: 0 | D164: -192344.9 | E164: -586545.5 | F164: -622132.3 | G164: -641635.7 | H164: -1249525.1 | I164: -1188698 | J164: -1222813.8 | K164: -1324256.9 | L164: -594644.9 | M164: 29743.7 | N164: -523835.8 | O164: -486275.7 | P164: -1608959.2 | Q164: -1185726.1 | R164: -1236963.2 | S164: -875430.6 | T164: -1079438.2 | U164: -2032617.5 | V164: -2737488.2 | W164: -2956263.7 | X164: -2985650.6 | Y164: -2948982 | Z164: -2791496.7 | AA164: -3219300.1 | AB164: -3112336.2 | AC164: -3015430.5 | AD164: -2903915.2 | AE164: -2627213.6 | AF164: -2897746.9 | AG164: -2825386.4 | AH164: -2735351.6 | AI164: -2737158.3 | AJ164: -2728989.6 | AK164: -2677938.1 | AL164: -2729010 | AM164: -2574401.5 | AN164: -2482970.4 | AO164: -2399872.5 | AP164: -2329532.1 | AQ164: -2070772.4 | AR164: -1918832.8 | AS164: -1770981.9 | AT164: -1592044.4 | AU164: -1503987.9 | AV164: -1453329.1 | AW164: -1166283.1 | AX164: -1108470.1 | AY164: -920192.4 | AZ164: -791196.5 | BA164: -657642 | BB164: -566470.4 | BC164: -310494.1 | BD164: -386742.1 | BE164: -453003.1 | BF164: -511360.6 | BG164: -589073.1 | BH164: -650185.8 | BI164: -382183.8 | BJ164: -383994.6 | BK164: -385865.1 | BL164: -388897 | BM164: -391946.3 | BN164: -393779.8 | BO164: -395385.9
B165: Simulation 131 | C165: 0 | D165: 65779 | E165: -359810.3 | F165: -541099.9 | G165: -1128862.5 | H165: -723318.6 | I165: -702241 | J165: -85811.3 | K165: -1156125.2 | L165: -545940.9 | M165: -1763618.1 | N165: -1895209.5 | O165: -1781969.4 | P165: -2076314.4 | Q165: -1482878.1 | R165: -994817.8 | S165: -379654.9 | T165: 77470.5 | U165: -911998 | V165: -1265061.3 | W165: -1566617.3 | X165: -1809302.7 | Y165: -1196693.7 | Z165: -1592464.1 | AA165: -1843292.1 | AB165: -2017915.9 | AC165: -2187967.7 | AD165: -2392929.2 | AE165: -2366073.8 | AF165: -2158534.2 | AG165: -2618533.9 | AH165: -2535956.7 | AI165: -2475723.1 | AJ165: -2461155.9 | AK165: -2350353.3 | AL165: -2514052.1 | AM165: -2403991.3 | AN165: -2237921.2 | AO165: -2180292.7 | AP165: -2136038.3 | AQ165: -1920454.5 | AR165: -1803043.6 | AS165: -1607970.6 | AT165: -1455991.4 | AU165: -1341700.8 | AV165: -1216106.7 | AW165: -910316.7 | AX165: -781003.7 | AY165: -585272.1 | AZ165: -450249.5 | BA165: -341473.4 | BB165: -313463.6 | BC165: -86724.5 | BD165: -127941.5 | BE165: -195755.6 | BF165: -248489.4 | BG165: -313085.3 | BH165: -388460.6 | BI165: -201742.3 | BJ165: -203256.2 | BK165: -204462.9 | BL165: -206721.3 | BM165: -210075 | BN165: -213864.3 | BO165: -216029.6
B166: Simulation 132 | C166: 0 | D166: -19398.1 | E166: -583476.4 | F166: -993865.9 | G166: -922068.9 | H166: -735512.4 | I166: -459560.5 | J166: 428462.3 | K166: 767515.3 | L166: 425779 | M166: 1418593.4 | N166: 1092799.5 | O166: 1551007.5 | P166: -294836.4 | Q166: -1530903.9 | R166: -1155016 | S166: -1624347 | T166: -1424072.1 | U166: -1835018 | V166: -1996249.3 | W166: -1825393.9 | X166: -1687656.4 | Y166: -2014860.7 | Z166: -1635994.5 | AA166: -1774928.4 | AB166: -1930256.9 | AC166: -2197076.1 | AD166: -2180990.5 | AE166: -1689223.5 | AF166: -2011653.9 | AG166: -2013582.5 | AH166: -2023138.1 | AI166: -1916154.2 | AJ166: -2036916 | AK166: -1559049.5 | AL166: -1863909.1 | AM166: -1957885.3 | AN166: -1880277.5 | AO166: -1744155.8 | AP166: -1682645.5 | AQ166: -1480885 | AR166: -1319373.8 | AS166: -1249208.5 | AT166: -1082197.1 | AU166: -993728.6 | AV166: -867200.2 | AW166: -762898.5 | AX166: -688297.6 | AY166: -472019.6 | AZ166: -291403.5 | BA166: -170703.7 | BB166: -90628.8 | BC166: 49260.7 | BD166: -13505.8 | BE166: -52716 | BF166: -91297.8 | BG166: -112598.1 | BH166: -204988.1 | BI166: -105897.1 | BJ166: -110298.7 | BK166: -112300.8 | BL166: -113084 | BM166: -115388.5 | BN166: -119014.6 | BO166: -122748.9
B167: Simulation 133 | C167: 0 | D167: -257833.6 | E167: -302728.7 | F167: 492074.7 | G167: 823953.2 | H167: 149326 | I167: 299207.9 | J167: 652852.6 | K167: -190345.6 | L167: -580603.9 | M167: -1229656.9 | N167: -1727314.8 | O167: -1741185.7 | P167: -2181643.8 | Q167: -2083979.7 | R167: -2271793.4 | S167: -2095929.2 | T167: -2733881.8 | U167: -2629749.2 | V167: -3271579 | W167: -3312732.9 | X167: -3431857 | Y167: -3168253.5 | Z167: -3452924.8 | AA167: -3189280.1 | AB167: -2996988.5 | AC167: -3072278.4 | AD167: -3471934 | AE167: -3329770.9 | AF167: -3430479.9 | AG167: -3275895.5 | AH167: -3162516.2 | AI167: -3076151.7 | AJ167: -3102015.2 | AK167: -2965038.2 | AL167: -2815695.3 | AM167: -2769847.8 | AN167: -2676697.4 | AO167: -2611273.2 | AP167: -2545093.7 | AQ167: -2189726.5 | AR167: -1956672.8 | AS167: -1883071.8 | AT167: -1738522.1 | AU167: -1735649 | AV167: -1702351.9 | AW167: -1254593.3 | AX167: -1118209.7 | AY167: -903831.7 | AZ167: -839722 | BA167: -816263.1 | BB167: -759095.5 | BC167: -364605 | BD167: -357026.3 | BE167: -442239.7 | BF167: -515509.4 | BG167: -574283.5 | BH167: -620139.5 | BI167: -329095.1 | BJ167: -330113.3 | BK167: -331561.8 | BL167: -335449.7 | BM167: -338145.7 | BN167: -340865.1 | BO167: -342990.2
B168: Simulation 134 | C168: 0 | D168: -153869.5 | E168: -479430.4 | F168: -241218 | G168: 26024.5 | H168: -456578.1 | I168: 26201.2 | J168: -313218.6 | K168: -941154.5 | L168: 3835.8 | M168: 513367.3 | N168: 61056.8 | O168: -297926.4 | P168: -1388775.6 | Q168: -2090012.1 | R168: -2109507.7 | S168: -2412661 | T168: -2631568.2 | U168: -2848420.8 | V168: -2517055.6 | W168: -2780130 | X168: -2070192.2 | Y168: -1659932.8 | Z168: -1463767.6 | AA168: -2239359.9 | AB168: -1698657.4 | AC168: -1481200 | AD168: -1526253 | AE168: -907434.8 | AF168: 271621.7 | AG168: 605729.4 | AH168: -919386 | AI168: -570099.8 | AJ168: -506539.6 | AK168: 52475.5 | AL168: 182431.8 | AM168: 477422.8 | AN168: -925140.6 | AO168: -1348553.8 | AP168: -823174.4 | AQ168: -102214.7 | AR168: -12763.6 | AS168: -267761.5 | AT168: -677812.6 | AU168: -981201.9 | AV168: -1047042.4 | AW168: -702477.5 | AX168: -632276.4 | AY168: -602833.9 | AZ168: -513712.1 | BA168: -459116.3 | BB168: -467237.6 | BC168: -192318.6 | BD168: -237955.9 | BE168: -249458.4 | BF168: -357085 | BG168: -464064.3 | BH168: -544985.1 | BI168: -263509.2 | BJ168: -267162.1 | BK168: -268372.6 | BL168: -271563 | BM168: -275066.7 | BN168: -278771.8 | BO168: -281910.8
B169: Simulation 135 | C169: 0 | D169: 330718.7 | E169: 164707 | F169: -91404.6 | G169: 426603.3 | H169: 408467.9 | I169: -1495508.2 | J169: -2263807.4 | K169: -2270661.9 | L169: -2819365.4 | M169: -2872060.9 | N169: -2572464.1 | O169: -2467034.5 | P169: -2208759.7 | Q169: -2089408.1 | R169: -1880295.1 | S169: -246234.7 | T169: 371014 | U169: 1526550.7 | V169: 1835676.5 | W169: 187230.7 | X169: -10512.5 | Y169: 4783.6 | Z169: 107054.7 | AA169: 2185920.3 | AB169: 2330567.2 | AC169: 1240301.1 | AD169: 229190 | AE169: 284259.5 | AF169: -236229.4 | AG169: 12766.1 | AH169: 238060.4 | AI169: -162874.3 | AJ169: -265778.4 | AK169: -362840.6 | AL169: 677416.3 | AM169: 1976326.4 | AN169: 1632302.9 | AO169: 1077487.2 | AP169: 926458.4 | AQ169: 897529.7 | AR169: 49201.3 | AS169: 77463.8 | AT169: -163662.2 | AU169: -370694 | AV169: -821715.2 | AW169: -349914.6 | AX169: -454577.9 | AY169: -503538.4 | AZ169: -474255.1 | BA169: -517157.1 | BB169: -593154.3 | BC169: -267513.3 | BD169: -409745.1 | BE169: -506113.4 | BF169: -589410.5 | BG169: -705818 | BH169: -805276.1 | BI169: -426120.6 | BJ169: -432866.2 | BK169: -436778 | BL169: -440259.1 | BM169: -446344.1 | BN169: -450301.5 | BO169: -452018.5
B170: Simulation 136 | C170: 0 | D170: 23413.4 | E170: -224101.1 | F170: -7645.8 | G170: -634447.1 | H170: -382309.1 | I170: 333083.7 | J170: -439295.7 | K170: -420205 | L170: -949025.7 | M170: -628608.3 | N170: -1344277.4 | O170: -1856174.2 | P170: -1589789.5 | Q170: -1533907.6 | R170: -2133471.4 | S170: -2406788 | T170: -1975259 | U170: -2438489.2 | V170: -2303778.6 | W170: -2875144.2 | X170: -3071747.6 | Y170: -2754605.3 | Z170: -2812261.5 | AA170: -2927028.1 | AB170: -2889189.4 | AC170: -3082618.5 | AD170: -3014161.6 | AE170: -2784725 | AF170: -2621701.9 | AG170: -2527985.9 | AH170: -2539385.6 | AI170: -2457950.9 | AJ170: -2195497.8 | AK170: -2135411.8 | AL170: -2209924.8 | AM170: -2098873.1 | AN170: -1979897.9 | AO170: -1799212.8 | AP170: -1797161.8 | AQ170: -1573800.1 | AR170: -1301597.2 | AS170: -1200491 | AT170: -996837.1 | AU170: -926932 | AV170: -892903.2 | AW170: -701651.1 | AX170: -552172.4 | AY170: -342761.4 | AZ170: -199753.4 | BA170: -82631.7 | BB170: -30416.2 | BC170: 102139 | BD170: 71650.6 | BE170: 2409.5 | BF170: 24039.1 | BG170: 1037.9 | BH170: -74281.8 | BI170: -14440.3 | BJ170: -17797.2 | BK170: -20696.1 | BL170: -24922.3 | BM170: -24783 | BN170: -28629.8 | BO170: -32113.9
B171: Simulation 137 | C171: 0 | D171: 239971.9 | E171: 891733.1 | F171: 538345.5 | G171: 1003763.8 | H171: -513118.2 | I171: -1204855.2 | J171: -2124215.4 | K171: -2346532.4 | L171: -2843780.7 | M171: -2468184.2 | N171: -2060482.1 | O171: -2205904.2 | P171: -2493613.3 | Q171: -3402607.4 | R171: -3313949 | S171: -3595764.2 | T171: -3725051.8 | U171: -3769876.6 | V171: -3603627.6 | W171: -3640648.9 | X171: -3614525 | Y171: -3402196.5 | Z171: -3394285.8 | AA171: -3087310.9 | AB171: -3034514 | AC171: -2983531.3 | AD171: -2943097.8 | AE171: -2724297.3 | AF171: -2745887.5 | AG171: -2687492.6 | AH171: -2573661.6 | AI171: -2457019.5 | AJ171: -2327655.6 | AK171: -2270110.8 | AL171: -2137335.2 | AM171: -1980231.8 | AN171: -1816073.8 | AO171: -1781967 | AP171: -1730419.4 | AQ171: -1486367.4 | AR171: -1343140 | AS171: -1059104.8 | AT171: -976893.9 | AU171: -861877.4 | AV171: -747963.9 | AW171: -525824.7 | AX171: -202750 | AY171: -211232.7 | AZ171: -166676.5 | BA171: -123235 | BB171: -65504 | BC171: 121688.1 | BD171: 64399 | BE171: -32620.5 | BF171: -123126.8 | BG171: -240530.5 | BH171: -361210.4 | BI171: -180623 | BJ171: -185280.8 | BK171: -189600.6 | BL171: -193574.4 | BM171: -198955.2 | BN171: -204491.1 | BO171: -207274.1
B172: Simulation 138 | C172: 0 | D172: 37861.2 | E172: -495201.1 | F172: -1293353.1 | G172: -1820838.3 | H172: -389029.6 | I172: 635151 | J172: 981845 | K172: 1474748.4 | L172: -704695.6 | M172: -237086.3 | N172: 677322.8 | O172: 1475071.9 | P172: 3142366.2 | Q172: 3600351.9 | R172: 3072358.8 | S172: 3235330.2 | T172: 3433287.9 | U172: 3796194.6 | V172: 3260161.3 | W172: 2574137.2 | X172: 1949728.2 | Y172: 1974013.5 | Z172: 1328219.3 | AA172: -160307 | AB172: -1125037.4 | AC172: -429553.2 | AD172: -1559834.6 | AE172: -1327202 | AF172: -1544179.3 | AG172: -1466376.6 | AH172: -1603461.2 | AI172: -1774138 | AJ172: -1869729.9 | AK172: -1923606 | AL172: -1549548 | AM172: -1323542.3 | AN172: -1693406.2 | AO172: -2013198.5 | AP172: -1955471.6 | AQ172: -1704667.2 | AR172: -1594701 | AS172: -1445285.6 | AT172: -1349048.2 | AU172: -1237149.9 | AV172: -1071010.2 | AW172: -833685.9 | AX172: -673669 | AY172: -572194.7 | AZ172: -446286 | BA172: -429103.2 | BB172: -407171.3 | BC172: -88998.8 | BD172: -177346.4 | BE172: -234701.8 | BF172: -286565.2 | BG172: -371730.3 | BH172: -461010.7 | BI172: -236841 | BJ172: -240730.9 | BK172: -243647.1 | BL172: -246651.1 | BM172: -250364.5 | BN172: -253614.3 | BO172: -256606.2
B173: Simulation 139 | C173: 0 | D173: 88905.5 | E173: 480094 | F173: 51744.1 | G173: -789067.5 | H173: -337219.8 | I173: 1059289.2 | J173: 1008511.1 | K173: 423426.7 | L173: 836403 | M173: 97966.4 | N173: 1640489.7 | O173: 1647388.5 | P173: 2087069.2 | Q173: 652854 | R173: 587609.3 | S173: 1676612.4 | T173: 596501.4 | U173: -13328.4 | V173: -107282.4 | W173: -630411.2 | X173: -1343809.6 | Y173: -1323409.9 | Z173: -1984908.6 | AA173: -2265230.7 | AB173: -2506241.6 | AC173: -2693996.3 | AD173: -2900841.1 | AE173: -2095091.9 | AF173: -2363842.1 | AG173: -2311509.1 | AH173: -2660179.2 | AI173: -2595340.4 | AJ173: -2714025.3 | AK173: -2412231.8 | AL173: -1623504.2 | AM173: -1352460.4 | AN173: -1421940.4 | AO173: -1814994.4 | AP173: -2043215.1 | AQ173: -1796128.9 | AR173: -1707696.9 | AS173: -1661557.7 | AT173: -1635256.4 | AU173: -1634929.6 | AV173: -1673171.5 | AW173: -1202559.8 | AX173: -1061733.3 | AY173: -882190.9 | AZ173: -873215 | BA173: -845828.8 | BB173: -822436.7 | BC173: -454010.9 | BD173: -520171.7 | BE173: -597354.4 | BF173: -667501.4 | BG173: -743920.6 | BH173: -805332 | BI173: -440769.5 | BJ173: -443758.7 | BK173: -446301.6 | BL173: -449030.5 | BM173: -452331.9 | BN173: -455160.4 | BO173: -457693.6
B174: Simulation 140 | C174: 0 | D174: -128563.7 | E174: -589543.4 | F174: -487274.5 | G174: -555044.3 | H174: 615218.3 | I174: 95012 | J174: 322043.8 | K174: 2050587.5 | L174: 1880649.4 | M174: 1143802.9 | N174: 1575169.1 | O174: 1491520.8 | P174: -40908 | Q174: -80886.3 | R174: -157619.5 | S174: -152232.7 | T174: 361462 | U174: 325345.2 | V174: 580311.2 | W174: 1418412.4 | X174: 737287 | Y174: 429029.6 | Z174: 440591.6 | AA174: 215943 | AB174: -386064.7 | AC174: -518943.7 | AD174: 139981.8 | AE174: 177825.4 | AF174: -161722.6 | AG174: -1129932.1 | AH174: -1979920.1 | AI174: -1936536 | AJ174: -1952795.5 | AK174: -1722587.2 | AL174: -1840276.5 | AM174: -933675.6 | AN174: -414800.3 | AO174: -283793.3 | AP174: -1084528.6 | AQ174: -1053269.1 | AR174: -966216.2 | AS174: -473210.6 | AT174: -581316.8 | AU174: -321873.1 | AV174: -344783.2 | AW174: -202167.3 | AX174: -130441.9 | AY174: 54267.5 | AZ174: 97430.4 | BA174: 109314.6 | BB174: -106440.7 | BC174: 77817.8 | BD174: 30379.4 | BE174: -11735.9 | BF174: -52995.3 | BG174: -131511 | BH174: -239789.2 | BI174: -125526.2 | BJ174: -127281.7 | BK174: -131465.6 | BL174: -133399.1 | BM174: -137412.9 | BN174: -141095.4 | BO174: -143452.4
B175: Simulation 141 | C175: 0 | D175: -144062.7 | E175: -295833.7 | F175: -1024968.7 | G175: -398010.7 | H175: -460016.4 | I175: 42292.7 | J175: 815947.8 | K175: 1603478 | L175: 2019433.7 | M175: 723977.2 | N175: -143020.6 | O175: -1085569.3 | P175: -1546732.1 | Q175: -1126937.8 | R175: -2302387.3 | S175: -2274931.1 | T175: -2484526.5 | U175: -3153122.4 | V175: -3178303.8 | W175: -2940153.7 | X175: -2924913.4 | Y175: -2261623.2 | Z175: -2182184.4 | AA175: -2031404.3 | AB175: -1830105.2 | AC175: -2242424.4 | AD175: -2659706.4 | AE175: -2625549.5 | AF175: -2664092.4 | AG175: -2920418.4 | AH175: -2918618.4 | AI175: -2957724.5 | AJ175: -2967853.2 | AK175: -2795238.5 | AL175: -2952288.7 | AM175: -2855671.5 | AN175: -2740227.1 | AO175: -2659743.4 | AP175: -2675490.2 | AQ175: -2309583.5 | AR175: -2182156.5 | AS175: -2065158.1 | AT175: -1888187 | AU175: -1784041.2 | AV175: -1739774.7 | AW175: -1340173.7 | AX175: -1121294.6 | AY175: -1045393 | AZ175: -966752.5 | BA175: -918488.4 | BB175: -872697.5 | BC175: -488599.1 | BD175: -569879 | BE175: -629652.6 | BF175: -740919.5 | BG175: -794583 | BH175: -821851.1 | BI175: -443186.8 | BJ175: -448312.6 | BK175: -451295.9 | BL175: -454234.5 | BM175: -457742.3 | BN175: -460655.4 | BO175: -462056
B176: Simulation 142 | C176: 0 | D176: -84672.3 | E176: 270185.2 | F176: -135905.3 | G176: 350914.9 | H176: 1794240.7 | I176: 572020.6 | J176: 1410276.7 | K176: 1385156.8 | L176: 2091675.3 | M176: 3215520.5 | N176: 1594950.7 | O176: -188963.9 | P176: 221847.7 | Q176: 54068.2 | R176: 157099.2 | S176: 999682.2 | T176: 778550.1 | U176: 1215825.7 | V176: 1653430.8 | W176: 1065588.8 | X176: 886476.7 | Y176: 1917618.5 | Z176: 3036308.7 | AA176: 3225344 | AB176: 1958457.3 | AC176: 967872 | AD176: 866855.4 | AE176: 2052783.6 | AF176: 3185091.7 | AG176: 2843621.3 | AH176: 1658602 | AI176: 1228886.3 | AJ176: 281648.8 | AK176: 154220.6 | AL176: -6903.4 | AM176: 558284.6 | AN176: 219951.3 | AO176: 1039689.5 | AP176: 231206.8 | AQ176: 917047.7 | AR176: 319736.2 | AS176: 131897.5 | AT176: -390434.5 | AU176: -148958.8 | AV176: -305004.5 | AW176: 335709.4 | AX176: -119572.7 | AY176: -53114.9 | AZ176: 13819.7 | BA176: -328610.6 | BB176: -591922.8 | BC176: -385737.6 | BD176: -438223.8 | BE176: -522571.3 | BF176: -551620.9 | BG176: -614857.9 | BH176: -679159.6 | BI176: -328191.2 | BJ176: -331996.4 | BK176: -335157.9 | BL176: -338197.2 | BM176: -341203.5 | BN176: -344343.7 | BO176: -345700
B177: Simulation 143 | C177: 0 | D177: 182694.3 | E177: 350640.4 | F177: -402856.6 | G177: 113347.3 | H177: 1073259.7 | I177: 2660741 | J177: 3144869.6 | K177: 3456728.5 | L177: 3475061 | M177: 2947448 | N177: 4471584.7 | O177: 4989392.5 | P177: 4136128.5 | Q177: 4376344.2 | R177: 4914192.1 | S177: 4672488.2 | T177: 5022239.4 | U177: 4256325.5 | V177: 4038466.7 | W177: 6760813.6 | X177: 9885765.8 | Y177: 7637610.2 | Z177: 7453144.1 | AA177: 12503545 | AB177: 11775733.7 | AC177: 17961979 | AD177: 20923505.7 | AE177: 22227890 | AF177: 24969025.3 | AG177: 23056014.4 | AH177: 23779698.8 | AI177: 25259183 | AJ177: 20341606.7 | AK177: 17944700.9 | AL177: 20586405.5 | AM177: 21314017.3 | AN177: 26614217.5 | AO177: 27057961.1 | AP177: 23359078.8 | AQ177: 27715287.2 | AR177: 26752406.2 | AS177: 23144360.8 | AT177: 18360419.2 | AU177: 17917275.4 | AV177: 19273318.3 | AW177: 17722711.7 | AX177: 15298198.1 | AY177: 11717860.2 | AZ177: 7775525 | BA177: 5980738.4 | BB177: 2249772.3 | BC177: 818376.2 | BD177: 459979 | BE177: 323255.2 | BF177: 182219.6 | BG177: 53219.7 | BH177: -145099.9 | BI177: -37334.6 | BJ177: -39281.3 | BK177: -42754.4 | BL177: -43334.2 | BM177: -45429.2 | BN177: -49217.6 | BO177: -54111.6
B178: Simulation 144 | C178: 0 | D178: -135135.1 | E178: -206831.4 | F178: -149489.4 | G178: -357589.9 | H178: 133697.9 | I178: 2707735.2 | J178: 2851608.1 | K178: 1333125.5 | L178: 3788326.5 | M178: 6251632.5 | N178: 5972751.4 | O178: 5540878.4 | P178: 5961111 | Q178: 5354024.8 | R178: 3966488.9 | S178: 5628547.3 | T178: 5325715.5 | U178: 5455310.3 | V178: 6831702.2 | W178: 9235056.2 | X178: 8427195.8 | Y178: 6963164.5 | Z178: 5506774.9 | AA178: 7652599.5 | AB178: 6079946.9 | AC178: 4050177.4 | AD178: 2606180.1 | AE178: 3632951.8 | AF178: 2972037.2 | AG178: 2561046 | AH178: 2864300.5 | AI178: 4156881.3 | AJ178: 2654547.8 | AK178: 3697539.7 | AL178: 3885860.5 | AM178: 2635012.4 | AN178: 2289162.3 | AO178: 2654246.2 | AP178: 2431532.1 | AQ178: 2690907.5 | AR178: 2216668 | AS178: 1553516.2 | AT178: 1129876.3 | AU178: 439702.1 | AV178: 912700.4 | AW178: 1042251.9 | AX178: 803759 | AY178: 546901.3 | AZ178: 231268.7 | BA178: -64765.7 | BB178: -295014 | BC178: -138712.4 | BD178: -194069.5 | BE178: -244960.9 | BF178: -332240.8 | BG178: -404196.9 | BH178: -474524.6 | BI178: -249562.8 | BJ178: -249340.2 | BK178: -251814 | BL178: -255280.5 | BM178: -258244.2 | BN178: -261662 | BO178: -263235.3
B179: Simulation 145 | C179: 0 | D179: 195738.7 | E179: 458922.5 | F179: 677531.3 | G179: 930806.4 | H179: 301279.7 | I179: 995040.5 | J179: 1409732.9 | K179: 1532902.7 | L179: 1446902.8 | M179: 947096.2 | N179: 1357303.1 | O179: -35233.4 | P179: -836787.9 | Q179: -1453344 | R179: -1715786.3 | S179: -1978879.3 | T179: -1694453.5 | U179: -2555507.5 | V179: -2606875.3 | W179: -2787829.8 | X179: -3232659.7 | Y179: -2287704.6 | Z179: -2477779.9 | AA179: -3110377.9 | AB179: -2811474 | AC179: -2682367 | AD179: -2730137.2 | AE179: -1855635.7 | AF179: -1933146.9 | AG179: -1859115 | AH179: -1778584 | AI179: -2605821.3 | AJ179: -2391164.3 | AK179: -1996355.2 | AL179: -2223729.9 | AM179: -2082820.5 | AN179: -2278796.6 | AO179: -2117921.3 | AP179: -2015748.3 | AQ179: -1547756.4 | AR179: -1089819.9 | AS179: -1200630.4 | AT179: -1001772.1 | AU179: -817688.9 | AV179: -943331.6 | AW179: -740845.6 | AX179: -703440.9 | AY179: -608490.7 | AZ179: -567909.7 | BA179: -577276 | BB179: -564604.1 | BC179: -257711.8 | BD179: -301622.3 | BE179: -331087.7 | BF179: -373109.3 | BG179: -387786.6 | BH179: -440943.8 | BI179: -181734.5 | BJ179: -184314 | BK179: -187809.5 | BL179: -190177.5 | BM179: -192562.7 | BN179: -195888.3 | BO179: -198175.8
B180: Simulation 146 | C180: 0 | D180: 20103.8 | E180: -423992.5 | F180: -823656.6 | G180: -716121.4 | H180: -1561947.5 | I180: -782840.9 | J180: -511870.4 | K180: -330460.2 | L180: -451795.8 | M180: 274051.8 | N180: -545154.3 | O180: 658378.8 | P180: 1025949.9 | Q180: 68849.2 | R180: -732609 | S180: -899286.7 | T180: -192448.6 | U180: -811832.8 | V180: 1073783.4 | W180: 1015048.4 | X180: -1138348.9 | Y180: -547018.9 | Z180: -1888818.9 | AA180: -1788102.3 | AB180: -1713332.7 | AC180: -1477385.7 | AD180: -2125800.5 | AE180: -1497529.1 | AF180: -1988781.1 | AG180: -2229104.8 | AH180: -2279410.3 | AI180: -2435243.2 | AJ180: -2960526.6 | AK180: -2665359.6 | AL180: -2552471.7 | AM180: -2653134.1 | AN180: -2691176.2 | AO180: -2675025.1 | AP180: -2583564.7 | AQ180: -2131233.3 | AR180: -2013702.8 | AS180: -1856079.8 | AT180: -1759010.7 | AU180: -1693989.1 | AV180: -1728927.4 | AW180: -1176267.8 | AX180: -1035027.5 | AY180: -937171 | AZ180: -848069.1 | BA180: -840849.9 | BB180: -817300.6 | BC180: -323779.6 | BD180: -459819.1 | BE180: -524406.1 | BF180: -592381.8 | BG180: -674502 | BH180: -751268.6 | BI180: -370464.5 | BJ180: -372099.6 | BK180: -375546.4 | BL180: -379167.8 | BM180: -383011.9 | BN180: -386156.5 | BO180: -388307.3
B181: Simulation 147 | C181: 0 | D181: -71379.5 | E181: 508588 | F181: 826969.2 | G181: 1189573.4 | H181: 1590031.8 | I181: 1861448.9 | J181: 1244172.1 | K181: 20720.6 | L181: 382326.1 | M181: 1076627 | N181: 1696962.8 | O181: 3062529.8 | P181: 3194458.5 | Q181: 1151110.1 | R181: 851105.9 | S181: 45009 | T181: -738204 | U181: -714395 | V181: -1066125.6 | W181: -686664.6 | X181: -788647.1 | Y181: 311738.2 | Z181: -612965.8 | AA181: -896893.6 | AB181: -1433629.2 | AC181: -1159937.8 | AD181: -1358771.7 | AE181: -1646191.9 | AF181: -999995.3 | AG181: -1212402.3 | AH181: -1698989 | AI181: -1572468.7 | AJ181: -1602118.4 | AK181: -1850455.5 | AL181: -1879008.5 | AM181: -1816072.3 | AN181: -1917270.7 | AO181: -1862101.2 | AP181: -1880438.1 | AQ181: -1786842.7 | AR181: -1698691 | AS181: -1596609.9 | AT181: -1432081.8 | AU181: -1320577.5 | AV181: -1273889 | AW181: -1065528.1 | AX181: -868432.5 | AY181: -671565 | AZ181: -503912.7 | BA181: -383501.5 | BB181: -295430.5 | BC181: -41152.5 | BD181: 11868 | BE181: 24738.7 | BF181: 19846.7 | BG181: -30490.4 | BH181: -78555.1 | BI181: -22714.7 | BJ181: -21952 | BK181: -22160.6 | BL181: -21795.4 | BM181: -22048.8 | BN181: -25772.6 | BO181: -27677.7
B182: Simulation 148 | C182: 0 | D182: -161223.3 | E182: -129999.6 | F182: -24984.9 | G182: -413150.6 | H182: -969110.4 | I182: -861792.4 | J182: -1611649.7 | K182: -668620.8 | L182: -1695188.2 | M182: -2433105 | N182: -2536620.9 | O182: -2555300.4 | P182: -2429390.6 | Q182: -2748929.5 | R182: -1629328.5 | S182: -1295373.5 | T182: -429145.5 | U182: -1318323.6 | V182: -1585840.2 | W182: -2191443.3 | X182: -2025813.5 | Y182: -912218.6 | Z182: -1035456.4 | AA182: -754413.7 | AB182: -497029 | AC182: -960347 | AD182: -921998.2 | AE182: 160177.2 | AF182: 149718.1 | AG182: 837328.3 | AH182: 947010.1 | AI182: 721726.3 | AJ182: 68721.7 | AK182: 303914.3 | AL182: -99613.2 | AM182: -603255.3 | AN182: -336907.3 | AO182: -1204429.6 | AP182: -1107268 | AQ182: -782565.7 | AR182: -652077 | AS182: -720808.6 | AT182: -832091.2 | AU182: -701691.5 | AV182: -694802.4 | AW182: -528818.4 | AX182: -424632.6 | AY182: -328089.2 | AZ182: -375502.1 | BA182: -472119 | BB182: -475776 | BC182: -255755.3 | BD182: -311152.1 | BE182: -368900.7 | BF182: -447217.5 | BG182: -510476.4 | BH182: -595621.5 | BI182: -335538.5 | BJ182: -337836 | BK182: -340458.1 | BL182: -343225.2 | BM182: -345225.8 | BN182: -348667.5 | BO182: -350449.6
B183: Simulation 149 | C183: 0 | D183: 100269.7 | E183: 635858.8 | F183: 1433674.4 | G183: 883624.4 | H183: 19081.5 | I183: 21589.9 | J183: -750226.4 | K183: -214870.2 | L183: -610243.4 | M183: -364572.1 | N183: -729924.4 | O183: -1714030.9 | P183: -850967.3 | Q183: -882539.5 | R183: -1035689 | S183: -707347 | T183: -831366.7 | U183: -227266.9 | V183: 201005.9 | W183: -598289.1 | X183: -1629607.2 | Y183: -1494179.4 | Z183: -977879.4 | AA183: -654049.8 | AB183: -1667981.6 | AC183: -679487.5 | AD183: -1016203.1 | AE183: -426328.3 | AF183: -394771 | AG183: -511763.6 | AH183: 170304.1 | AI183: -66642.6 | AJ183: 1014953.2 | AK183: 1631041.3 | AL183: 1389154 | AM183: 969266.7 | AN183: 412655.9 | AO183: 425172.1 | AP183: 124270.6 | AQ183: -120641.7 | AR183: 349318 | AS183: -275397.8 | AT183: -475399.8 | AU183: -814541 | AV183: -702664.3 | AW183: -318601.8 | AX183: -311559.3 | AY183: -305949.9 | AZ183: -221222.5 | BA183: -415650.7 | BB183: -476894 | BC183: -258768.5 | BD183: -338630.3 | BE183: -367099.3 | BF183: -391304.6 | BG183: -447019.2 | BH183: -536081.9 | BI183: -267208.9 | BJ183: -270855.3 | BK183: -273176.2 | BL183: -274065 | BM183: -276155 | BN183: -277812.2 | BO183: -279959.8
B184: Simulation 150 | C184: 0 | D184: 50535.1 | E184: 355839.1 | F184: -36613.2 | G184: 19759.3 | H184: 540614.8 | I184: -375133.8 | J184: -1396893.5 | K184: -1735674 | L184: -2007874.9 | M184: -1345021.8 | N184: -1284617.5 | O184: -1229009.1 | P184: -367195 | Q184: -295764.7 | R184: -1303380.8 | S184: -585106.1 | T184: -1587237.7 | U184: -1828023.8 | V184: -1679925.4 | W184: -1141978.1 | X184: -245505.4 | Y184: -334237.4 | Z184: -391738.1 | AA184: -422131.5 | AB184: -478237.7 | AC184: -258095 | AD184: -720317.9 | AE184: -121299.9 | AF184: -888694.6 | AG184: -765735.9 | AH184: -1186533.7 | AI184: -1216253.4 | AJ184: -1090876.7 | AK184: -1185911.9 | AL184: -1260043.8 | AM184: -1756155.2 | AN184: -1424291.2 | AO184: -1131130.4 | AP184: -520754.4 | AQ184: -530577.3 | AR184: -374919.3 | AS184: -309521.5 | AT184: -354934.5 | AU184: -306919 | AV184: -352314.7 | AW184: -87874.9 | AX184: -37040.4 | AY184: 420579.8 | AZ184: 375923.9 | BA184: 322376.2 | BB184: 315582.5 | BC184: 365608 | BD184: 361901.6 | BE184: 379517.9 | BF184: 314776.4 | BG184: 238821 | BH184: 108277.9 | BI184: 69738.5 | BJ184: 70943.6 | BK184: 70910.8 | BL184: 68228 | BM184: 67541.7 | BN184: 62113.8 | BO184: 59001.1
B185: Simulation 151 | C185: 0 | D185: 84683.2 | E185: 372143.9 | F185: 1788266.4 | G185: 1367367.4 | H185: -20711.9 | I185: -20741.3 | J185: -445460.1 | K185: -509065.9 | L185: -1479694.2 | M185: -1696612.1 | N185: -1727251.7 | O185: -2229882.4 | P185: -3056552.1 | Q185: -2600900.1 | R185: -2346134.3 | S185: -2178063.8 | T185: -2147200 | U185: -1582513.5 | V185: -1848382.5 | W185: -1241913.6 | X185: -1397004.7 | Y185: -1156561.8 | Z185: -1139477.3 | AA185: -1620895 | AB185: -2102900.1 | AC185: -2331115.1 | AD185: -2678620.9 | AE185: -2641565.4 | AF185: -2194115 | AG185: -2637887.1 | AH185: -2445052.7 | AI185: -2521985.5 | AJ185: -1837129.1 | AK185: -1565543.5 | AL185: -2068776.9 | AM185: -1964595.3 | AN185: -2209167.9 | AO185: -1982441.3 | AP185: -1854655.1 | AQ185: -1481703.8 | AR185: -1673797 | AS185: -1665576.3 | AT185: -1616273.3 | AU185: -1561172.3 | AV185: -1428544.1 | AW185: -898234.4 | AX185: -873460.6 | AY185: -803047.3 | AZ185: -798827.5 | BA185: -701180.4 | BB185: -630428.5 | BC185: -308185 | BD185: -398753.7 | BE185: -456800.3 | BF185: -515090 | BG185: -559957.9 | BH185: -625120.1 | BI185: -295561.8 | BJ185: -298352.9 | BK185: -301942 | BL185: -304410.7 | BM185: -309011.2 | BN185: -312549.3 | BO185: -313896.2
B186: Simulation 152 | C186: 0 | D186: -132292.6 | E186: 5176.1 | F186: -14472.4 | G186: 615506 | H186: 125649.6 | I186: 238398.5 | J186: -342604.2 | K186: -1152663.2 | L186: -992657.3 | M186: -1344830.7 | N186: -1529822.7 | O186: -1924055.6 | P186: -2043077.5 | Q186: -1078357.3 | R186: -1743734.8 | S186: -977722.9 | T186: -1201516.6 | U186: -1115072.7 | V186: -1346930 | W186: -1619933.6 | X186: -2206930.6 | Y186: -2401152.2 | Z186: -2511060.2 | AA186: -2681133.7 | AB186: -2208721.7 | AC186: -1700003.9 | AD186: -2499671.1 | AE186: -1995297 | AF186: -1985279.4 | AG186: -1382409.3 | AH186: -1659649.5 | AI186: -1587517.5 | AJ186: -1544246.1 | AK186: -1120428.4 | AL186: -1145432.3 | AM186: -1159703.1 | AN186: -962980.7 | AO186: -1305169.2 | AP186: -759743.3 | AQ186: -1000974.6 | AR186: -915758.4 | AS186: -651004.8 | AT186: -785346.9 | AU186: -626986.1 | AV186: -384086.2 | AW186: -253263.8 | AX186: -106592.7 | AY186: 155550.2 | AZ186: 278874.8 | BA186: 212899.1 | BB186: 225051.8 | BC186: 276467 | BD186: 290232.4 | BE186: 285192.4 | BF186: 228865.3 | BG186: 161564.3 | BH186: 32080.9 | BI186: -6687.1 | BJ186: -5924.2 | BK186: -4575.8 | BL186: -7685 | BM186: -11461.5 | BN186: -16669.4 | BO186: -19725
B187: Simulation 153 | C187: 0 | D187: -75165.7 | E187: -259919.3 | F187: -877485.5 | G187: -1084608.9 | H187: -1407882 | I187: -2812500.9 | J187: -2829011.7 | K187: -2901519.2 | L187: -3316970.9 | M187: -2901304.1 | N187: -2685387.7 | O187: -2613980.9 | P187: -2771454.3 | Q187: -3063698.8 | R187: -2648995.2 | S187: -2761756.1 | T187: -2583718.6 | U187: -2978933.2 | V187: -3313491.8 | W187: -3554698.9 | X187: -3758339.4 | Y187: -3606449.3 | Z187: -3546072.7 | AA187: -3385107.4 | AB187: -3470678 | AC187: -3486342 | AD187: -3493380.2 | AE187: -2994070.5 | AF187: -2337454 | AG187: -2615487.6 | AH187: -2689578.5 | AI187: -2232636.7 | AJ187: -2101455.1 | AK187: -2253320.3 | AL187: -2237243.1 | AM187: -2069674.4 | AN187: -2011239.1 | AO187: -2402667 | AP187: -2397909.7 | AQ187: -1936313.2 | AR187: -1880852.7 | AS187: -1806659.8 | AT187: -1810251.1 | AU187: -1759165 | AV187: -1722284.8 | AW187: -1174280.3 | AX187: -1102003.9 | AY187: -962114.9 | AZ187: -890967 | BA187: -790663.2 | BB187: -707799.8 | BC187: -277935.8 | BD187: -317496.2 | BE187: -371609.5 | BF187: -429875.5 | BG187: -500016.7 | BH187: -549375.2 | BI187: -264388.6 | BJ187: -268299.6 | BK187: -271198.5 | BL187: -274441.6 | BM187: -277795.7 | BN187: -282081.5 | BO187: -283927.4
B188: Simulation 154 | C188: 0 | D188: 71128.2 | E188: 233561.4 | F188: 713950.7 | G188: 1056083.8 | H188: 457769.8 | I188: 791743 | J188: -389433.5 | K188: 392433.6 | L188: -327098.2 | M188: 502328.3 | N188: -1279551.1 | O188: 490384.4 | P188: 210572.1 | Q188: 1501871.1 | R188: 196379.2 | S188: 912413.6 | T188: 374729.4 | U188: 2323223.6 | V188: 2144283.8 | W188: 1556561.7 | X188: 1995703.6 | Y188: 4323671.3 | Z188: 3003013.1 | AA188: 3639381 | AB188: 2503642.6 | AC188: 2237120.1 | AD188: 1637432.1 | AE188: 538381.2 | AF188: 1581179.6 | AG188: 1793608.2 | AH188: 1199782.2 | AI188: 1110217.1 | AJ188: 754951.6 | AK188: 821704.6 | AL188: 883004.1 | AM188: 637914.9 | AN188: 380813.4 | AO188: 174439.9 | AP188: 117337.6 | AQ188: -39219.7 | AR188: 442659.3 | AS188: 286125 | AT188: 12904.6 | AU188: -436416.9 | AV188: -796479.7 | AW188: -491406.2 | AX188: -611276.6 | AY188: -612683.2 | AZ188: -749767.5 | BA188: -728208.5 | BB188: -729148.2 | BC188: -430183.1 | BD188: -549352.6 | BE188: -646771.8 | BF188: -717583.7 | BG188: -801555.9 | BH188: -868456.7 | BI188: -457933.3 | BJ188: -462295 | BK188: -465716.1 | BL188: -468193.1 | BM188: -471378.8 | BN188: -473286.7 | BO188: -476145.1
B189: Simulation 155 | C189: 0 | D189: -86656.5 | E189: 769187.1 | F189: 42983.8 | G189: 313563.1 | H189: 1490957.1 | I189: 2005360 | J189: 1794463.9 | K189: 941612.6 | L189: 1026263.8 | M189: 1988691.2 | N189: 2134516.3 | O189: 1704327.2 | P189: 3112129.6 | Q189: 3226831.4 | R189: 2850907.7 | S189: 3472480 | T189: 2554002.9 | U189: 3209580.5 | V189: 2200444.8 | W189: 2093183.2 | X189: 1991559.3 | Y189: 2645979.6 | Z189: 237965.7 | AA189: 603587.7 | AB189: 1260809.7 | AC189: 105231.3 | AD189: -482031.5 | AE189: -548978.5 | AF189: -884886.9 | AG189: -1140575.1 | AH189: 19937.9 | AI189: 821132.5 | AJ189: 490611.4 | AK189: 497473.6 | AL189: 1264667 | AM189: 1974429.4 | AN189: 2021243.9 | AO189: 1773284.7 | AP189: 966685.9 | AQ189: 1847421.2 | AR189: 1744500.2 | AS189: 599743.5 | AT189: 895366.6 | AU189: 792969 | AV189: 595544.9 | AW189: 608342.9 | AX189: 555226.5 | AY189: 388887.3 | AZ189: 343193.4 | BA189: 492344.1 | BB189: 561372.5 | BC189: 526909.1 | BD189: 528781.5 | BE189: 543027.1 | BF189: 536212.3 | BG189: 449538.9 | BH189: 395078.5 | BI189: 239779.6 | BJ189: 240080.1 | BK189: 239463.8 | BL189: 239249.1 | BM189: 237538.7 | BN189: 233837.1 | BO189: 229120.8
B190: Simulation 156 | C190: 0 | D190: 144127.4 | E190: 690662 | F190: 707880.2 | G190: -340809.1 | H190: -218629.2 | I190: 483072 | J190: 1594298.9 | K190: 1420161.3 | L190: 833384.2 | M190: 3207942.1 | N190: 1865466.6 | O190: 1128994.2 | P190: 466756.7 | Q190: 206226.5 | R190: 1716108.2 | S190: 2056561 | T190: 1779321.1 | U190: 2647931 | V190: 2656823.7 | W190: 3452585.7 | X190: 3370950.7 | Y190: 4995278.2 | Z190: 5534628.5 | AA190: 3349403.4 | AB190: 3233804.5 | AC190: 2458099.6 | AD190: 2147235.8 | AE190: 1255622.4 | AF190: 1935917.2 | AG190: 2184866.8 | AH190: 2451533.6 | AI190: 1080430.1 | AJ190: 1336577.3 | AK190: 2537060 | AL190: 1990258.4 | AM190: 3347580.3 | AN190: 3070207.9 | AO190: 3465509.1 | AP190: 2667708.4 | AQ190: 2763967.4 | AR190: 1643882 | AS190: 1315424.6 | AT190: 936574.8 | AU190: 1121520.9 | AV190: 861002.6 | AW190: 769415.5 | AX190: 861639.2 | AY190: 749238 | AZ190: 836793.1 | BA190: 751767.9 | BB190: 626411.4 | BC190: 485660.1 | BD190: 402813.1 | BE190: 391320.9 | BF190: 361435.6 | BG190: 219022.8 | BH190: 132933.4 | BI190: 60765.2 | BJ190: 58757.6 | BK190: 57117.8 | BL190: 55118.6 | BM190: 53480.7 | BN190: 49486 | BO190: 45748.7
B191: Simulation 157 | C191: 0 | D191: -55751.2 | E191: 331726.2 | F191: 745596.9 | G191: 819868.9 | H191: 523915.5 | I191: -84642.2 | J191: -967994.6 | K191: -924764.4 | L191: -2452464.5 | M191: -2428351.9 | N191: -2642540.1 | O191: -3309850.9 | P191: -3457457.3 | Q191: -3464094.7 | R191: -3226780 | S191: -2666591.8 | T191: -2505876.3 | U191: -2521319.5 | V191: -2988562.5 | W191: -2815147.8 | X191: -2715372.6 | Y191: -2605436.1 | Z191: -2563782 | AA191: -2293110.1 | AB191: -2188478.6 | AC191: -2035290.6 | AD191: -2211801.6 | AE191: -2411355 | AF191: -2690615.9 | AG191: -2482372.8 | AH191: -2282148.8 | AI191: -2084875.2 | AJ191: -2057612.7 | AK191: -2125012.2 | AL191: -1939431.1 | AM191: -1723134.2 | AN191: -1583627.3 | AO191: -1521306.1 | AP191: -1354716.8 | AQ191: -1030802.4 | AR191: -389021.8 | AS191: -133042.2 | AT191: -9927.7 | AU191: -189562.3 | AV191: 125811.9 | AW191: 215324.9 | AX191: 91948.9 | AY191: -19656.4 | AZ191: 171014.9 | BA191: 226252.8 | BB191: 102388.5 | BC191: 192569.3 | BD191: 159913.9 | BE191: 84998.4 | BF191: 31213.2 | BG191: -61094.7 | BH191: -185497.3 | BI191: -121522.4 | BJ191: -123006.2 | BK191: -125044.6 | BL191: -128351 | BM191: -130446.9 | BN191: -133972.2 | BO191: -136698.3
B192: Simulation 158 | C192: 0 | D192: -190436.3 | E192: 334487.5 | F192: 284215.9 | G192: 518555.8 | H192: 616549.4 | I192: -340488 | J192: -136276.5 | K192: -381852.9 | L192: -983923.2 | M192: -1174903.7 | N192: -1563894.2 | O192: -1900225.6 | P192: -1874308.5 | Q192: -2199368.1 | R192: -2216158.1 | S192: -1663274.3 | T192: -1456364.2 | U192: -1523447.7 | V192: -1683476.1 | W192: -2253039 | X192: -2688613.3 | Y192: -2933438.9 | Z192: -2543394.4 | AA192: -2963629.3 | AB192: -2971935.5 | AC192: -2771833.5 | AD192: -2832441.4 | AE192: -2666715.9 | AF192: -2554621.9 | AG192: -2295556.1 | AH192: -2025098.7 | AI192: -2203705.8 | AJ192: -2315867.3 | AK192: -2104856.8 | AL192: -2151192 | AM192: -2446992.3 | AN192: -2406519.1 | AO192: -2407088.6 | AP192: -2349059.5 | AQ192: -2025216.1 | AR192: -1857686.2 | AS192: -1723201.6 | AT192: -1587693.3 | AU192: -1506146.9 | AV192: -1402419.5 | AW192: -1051758.8 | AX192: -992239.6 | AY192: -796126.4 | AZ192: -631012.3 | BA192: -491990.9 | BB192: -383351.4 | BC192: -59299 | BD192: -103521.3 | BE192: -127206.4 | BF192: -143921.5 | BG192: -179468.1 | BH192: -249110.1 | BI192: -77410.4 | BJ192: -76651.8 | BK192: -77777 | BL192: -78833 | BM192: -81661.6 | BN192: -85322.3 | BO192: -87246.5
B193: Simulation 159 | C193: 0 | D193: -80508.6 | E193: -472525.2 | F193: 7911.9 | G193: -496217.3 | H193: -2113142.7 | I193: -2568816.4 | J193: -3108285.2 | K193: -3122993.4 | L193: -2950529 | M193: -2396724.6 | N193: -1504004 | O193: -826393.8 | P193: -685895.3 | Q193: -1836400.4 | R193: -2163016.4 | S193: -1875191.4 | T193: -1401989.3 | U193: -594146.3 | V193: -620237.2 | W193: -1130766.5 | X193: -864316.5 | Y193: -847839.5 | Z193: -315558.8 | AA193: 331267.1 | AB193: -264858.3 | AC193: 244457.7 | AD193: 2185618.1 | AE193: 3168923.2 | AF193: 3327782.3 | AG193: 1514514.2 | AH193: 1602419.4 | AI193: 87324.1 | AJ193: 230469 | AK193: 920489.2 | AL193: 322178.3 | AM193: -689313.8 | AN193: -1172757.1 | AO193: -1606839.8 | AP193: -1447284.2 | AQ193: -680289.7 | AR193: -351619 | AS193: -446810.5 | AT193: -418913.6 | AU193: -226155.5 | AV193: -441100 | AW193: 98180.1 | AX193: 56350.6 | AY193: -339331.3 | AZ193: -382255.3 | BA193: -320707.3 | BB193: -495319 | BC193: -156074.8 | BD193: -280920.4 | BE193: -351642.3 | BF193: -492433.1 | BG193: -608071.8 | BH193: -665570.6 | BI193: -321721.6 | BJ193: -325451.8 | BK193: -329939.4 | BL193: -331857.4 | BM193: -336199.8 | BN193: -339099.3 | BO193: -340952.7
B194: Simulation 160 | C194: 0 | D194: 11653.4 | E194: 88410.7 | F194: -244152.6 | G194: 337208.5 | H194: 994514.7 | I194: -375922.5 | J194: -378431.6 | K194: -499029.7 | L194: -577023.4 | M194: -288676 | N194: -1126496.9 | O194: -939926.7 | P194: -1458240.1 | Q194: -1718397.6 | R194: -1955665.8 | S194: -1529668.6 | T194: -2206860.5 | U194: -2310627 | V194: -2580500.4 | W194: -2727410 | X194: -2701510.5 | Y194: -2317577.5 | Z194: -3079000.5 | AA194: -3165134.8 | AB194: -3151654 | AC194: -3171878.8 | AD194: -3199090.9 | AE194: -3002709.4 | AF194: -3048960.6 | AG194: -2931790.2 | AH194: -2804585.5 | AI194: -2715773.6 | AJ194: -2643239.3 | AK194: -2490016.4 | AL194: -2427275.2 | AM194: -2366150.5 | AN194: -2168811.3 | AO194: -2050596.2 | AP194: -1959699.3 | AQ194: -1715665.8 | AR194: -1518066.9 | AS194: -1349687.2 | AT194: -1210190.5 | AU194: -1073161.6 | AV194: -923122.2 | AW194: -757387.5 | AX194: -617299.9 | AY194: -445233.5 | AZ194: -311980.1 | BA194: -191188.8 | BB194: -83551.8 | BC194: 85091 | BD194: 32693.1 | BE194: -45119.9 | BF194: -149905 | BG194: -220522 | BH194: -280533.6 | BI194: -142347.8 | BJ194: -143812.9 | BK194: -145242.9 | BL194: -149100.4 | BM194: -151495.9 | BN194: -154873.4 | BO194: -158350.4
B195: Simulation 161 | C195: 0 | D195: 142974.3 | E195: 581975.8 | F195: 220078.3 | G195: 424270.2 | H195: 183886.2 | I195: 156148.2 | J195: 637683.5 | K195: 1868556.1 | L195: 3254464.4 | M195: 3557989 | N195: 3760610.3 | O195: 3435355.4 | P195: 2543710.2 | Q195: 2098595.2 | R195: 674910.4 | S195: 2602567.4 | T195: 1505080.4 | U195: 2222260.3 | V195: 2876355.7 | W195: 2806006.5 | X195: 2323282.8 | Y195: 4873448 | Z195: 7025212.7 | AA195: 5417940.4 | AB195: 4626000.2 | AC195: 3665803.2 | AD195: 5008002.3 | AE195: 6917490.2 | AF195: 6509218.9 | AG195: 9298771 | AH195: 10627921.7 | AI195: 9909896.7 | AJ195: 7073994.4 | AK195: 9554443.8 | AL195: 6947705.5 | AM195: 7567784.5 | AN195: 7105195.7 | AO195: 3360808.4 | AP195: 3796278.7 | AQ195: 2240614.3 | AR195: 1124785.4 | AS195: 239724.5 | AT195: 62570.2 | AU195: -428693.5 | AV195: -440141.8 | AW195: -123644.5 | AX195: -87714.2 | AY195: -103677.3 | AZ195: -279228 | BA195: -568599.6 | BB195: -703076 | BC195: -403338.1 | BD195: -454623.9 | BE195: -494923.5 | BF195: -541682.9 | BG195: -623136.9 | BH195: -689771.9 | BI195: -350901.7 | BJ195: -352319 | BK195: -353638.7 | BL195: -356891.7 | BM195: -360167.2 | BN195: -361126.9 | BO195: -363159.9
B196: Simulation 162 | C196: 0 | D196: -126768.8 | E196: -324774.6 | F196: -628481.1 | G196: -739691.1 | H196: -1799511 | I196: -1297158.5 | J196: -2143952.3 | K196: -971903.4 | L196: -777881.1 | M196: -347139.4 | N196: 1272504.6 | O196: 813547.6 | P196: 727910.9 | Q196: 1740346.4 | R196: 1610152.6 | S196: 2649616.2 | T196: 2304612.5 | U196: 3070607 | V196: 3337934.5 | W196: 3423074.3 | X196: 2431126.2 | Y196: 2831815.8 | Z196: 3649154.4 | AA196: 3666282.8 | AB196: 4103392.8 | AC196: 3071980 | AD196: 2479221.3 | AE196: 4668534.9 | AF196: 3876373.7 | AG196: 5719614.7 | AH196: 5601344.9 | AI196: 5694072.1 | AJ196: 5236586.6 | AK196: 5458126.1 | AL196: 5106056 | AM196: 4016184.5 | AN196: 3738808 | AO196: 3613262 | AP196: 2360431.3 | AQ196: 2160145 | AR196: 2495498.2 | AS196: 1473845.5 | AT196: 644406.6 | AU196: 324697.1 | AV196: -454666 | AW196: -324910.7 | AX196: 70650.9 | AY196: -239040.9 | AZ196: -290911.8 | BA196: -365487.2 | BB196: -478585.6 | BC196: -291955.1 | BD196: -339950.9 | BE196: -388512.6 | BF196: -428712.3 | BG196: -452518.2 | BH196: -548525.4 | BI196: -288140.7 | BJ196: -290029.9 | BK196: -292327 | BL196: -294548.1 | BM196: -297205.8 | BN196: -300069.7 | BO196: -302169
B197: Simulation 163 | C197: 0 | D197: -51392.4 | E197: -534878.2 | F197: -533409.6 | G197: -341483.1 | H197: -1465623 | I197: -1293308 | J197: -1747095.8 | K197: -469984.9 | L197: 208726.5 | M197: 194681.2 | N197: 376200.6 | O197: 353193.1 | P197: -433425.5 | Q197: -789464.1 | R197: -295458.7 | S197: -303799.1 | T197: -623691.5 | U197: -481901.8 | V197: -212661.8 | W197: -562763.9 | X197: -707429.8 | Y197: -1241489.6 | Z197: -1923595.3 | AA197: -1603827.4 | AB197: -1890055.2 | AC197: -2129366.1 | AD197: -2534201.3 | AE197: -2416392.3 | AF197: -2241271.4 | AG197: -2124602.7 | AH197: -2087001.5 | AI197: -2141706.2 | AJ197: -2246951 | AK197: -1846995.7 | AL197: -1418617.3 | AM197: -1844264.6 | AN197: -1739794 | AO197: -1357102.3 | AP197: -1030028 | AQ197: -431448.4 | AR197: -833155.1 | AS197: -994810.6 | AT197: -803737 | AU197: -634328.9 | AV197: -499311 | AW197: -78239.9 | AX197: -25073.6 | AY197: 181799.1 | AZ197: 175346.6 | BA197: 51807.2 | BB197: -100760 | BC197: 163769.7 | BD197: -48027.7 | BE197: -212627.2 | BF197: -323787.6 | BG197: -477761.3 | BH197: -534518.4 | BI197: -271992.9 | BJ197: -280639.7 | BK197: -287301.5 | BL197: -292189.9 | BM197: -296424.2 | BN197: -300277.2 | BO197: -302212.3
B198: Simulation 164 | C198: 0 | D198: 22421.7 | E198: -356467.5 | F198: -103306.8 | G198: 441038.3 | H198: 245872 | I198: 686413 | J198: 856857.9 | K198: -12707.4 | L198: 185428 | M198: -1219737 | N198: -67983.9 | O198: -201045.1 | P198: -427002.1 | Q198: 276433.9 | R198: 116042.1 | S198: -4061.9 | T198: 465867.5 | U198: -84028.9 | V198: -37988.6 | W198: 975147.5 | X198: 418857.2 | Y198: 650875.1 | Z198: -103112.8 | AA198: 231841 | AB198: 1338150 | AC198: 1723654.3 | AD198: 1475628.3 | AE198: 1329513.1 | AF198: 847990.8 | AG198: 184364.7 | AH198: 1483223.4 | AI198: 2321091.1 | AJ198: 897201.3 | AK198: -9058.4 | AL198: -539378 | AM198: -1205227.1 | AN198: -774405.8 | AO198: -993298.7 | AP198: -998106.2 | AQ198: -301232.7 | AR198: 52675.1 | AS198: 673125.9 | AT198: 817248 | AU198: 339693.8 | AV198: 452305 | AW198: 604629.5 | AX198: 521780.4 | AY198: 423038.6 | AZ198: 225305.5 | BA198: -84489.8 | BB198: -190156.3 | BC198: -21118 | BD198: -101047.5 | BE198: -176157.6 | BF198: -236248.5 | BG198: -346810.5 | BH198: -409871 | BI198: -229790.9 | BJ198: -232728.6 | BK198: -234801 | BL198: -237550.9 | BM198: -239886.2 | BN198: -244815.4 | BO198: -246707.7
B199: Simulation 165 | C199: 0 | D199: 32589.1 | E199: 710012 | F199: 316600.5 | G199: -15720.5 | H199: -676326.2 | I199: -803072.6 | J199: -534645.8 | K199: -448103.9 | L199: -450311.3 | M199: 220094 | N199: -101551.7 | O199: -819463.7 | P199: -516192.9 | Q199: -1085217.2 | R199: -1482952.1 | S199: -1149535.5 | T199: -473144.5 | U199: -535425 | V199: -1824330.3 | W199: -1214399.9 | X199: -1300323 | Y199: -1187788.1 | Z199: -1335612.2 | AA199: -834431 | AB199: -497679.8 | AC199: -765329.2 | AD199: -1392339.5 | AE199: -807535 | AF199: -1735939.1 | AG199: -1249829 | AH199: -1346049.7 | AI199: -2032974 | AJ199: -2321497.8 | AK199: -2133472.4 | AL199: -2090323.4 | AM199: -2294092.4 | AN199: -2164663.8 | AO199: -2086839.5 | AP199: -1926824.2 | AQ199: -1596386 | AR199: -1498778.7 | AS199: -1283385.2 | AT199: -1126083.3 | AU199: -987918.5 | AV199: -913092.3 | AW199: -655874.4 | AX199: -451962.2 | AY199: -233010.2 | AZ199: 18128.4 | BA199: 202671.7 | BB199: 203662.1 | BC199: 310891.2 | BD199: 277450.1 | BE199: 273190.9 | BF199: 285651.6 | BG199: 211469 | BH199: 107983.4 | BI199: 60094 | BJ199: 57663.7 | BK199: 54097.9 | BL199: 52972.8 | BM199: 51286.2 | BN199: 48144 | BO199: 44394
B200: Simulation 166 | C200: 0 | D200: -245728.9 | E200: 713737.6 | F200: -337467.8 | G200: -203616.5 | H200: -617135 | I200: -151993.5 | J200: -421754.1 | K200: 473981.4 | L200: 1184516 | M200: 767795.4 | N200: 865431.3 | O200: 1902376.3 | P200: 97483.1 | Q200: -1050192.7 | R200: -939428.4 | S200: -876457 | T200: -634498.7 | U200: -882314.7 | V200: -1306371.9 | W200: -1003113.3 | X200: -268764.8 | Y200: 580808.9 | Z200: 1628807.6 | AA200: 3313440.6 | AB200: 3136340.4 | AC200: 3505807.8 | AD200: 3256580 | AE200: 3961646.1 | AF200: 3087468.5 | AG200: 2258733.9 | AH200: 1897022.5 | AI200: 1505895.3 | AJ200: 1251307.2 | AK200: 1995585.6 | AL200: 1132609.7 | AM200: 997280.6 | AN200: 1651110.2 | AO200: 2399331.5 | AP200: 1297385.5 | AQ200: 1025343.7 | AR200: 2196434.1 | AS200: 1695182.8 | AT200: 1489815 | AU200: 1158085.4 | AV200: 1506846.5 | AW200: 1218167 | AX200: 960094.9 | AY200: 817679.1 | AZ200: 517478.5 | BA200: 557639.1 | BB200: 465714.5 | BC200: 293836.5 | BD200: 220132.1 | BE200: 140666.1 | BF200: 112598.9 | BG200: 60868.3 | BH200: 6939.5 | BI200: 71799.7 | BJ200: 67978 | BK200: 61900.3 | BL200: 57765.2 | BM200: 58145.2 | BN200: 55482 | BO200: 51311.9
B201: Simulation 167 | C201: 0 | D201: -67596.5 | E201: -102641.6 | F201: 373592.3 | G201: 862459.3 | H201: 786287.8 | I201: -674030.1 | J201: -1469651.2 | K201: -2105708.9 | L201: -2722087.6 | M201: -2382124 | N201: -2495229.3 | O201: -2434914.6 | P201: -2465450 | Q201: -2548476.3 | R201: -3044846.6 | S201: -3145969.8 | T201: -3213377.9 | U201: -3286780.5 | V201: -3195621.8 | W201: -3091134.8 | X201: -2833226.3 | Y201: -2031432 | Z201: -2857872 | AA201: -2855607.3 | AB201: -3041852.4 | AC201: -2895155.9 | AD201: -2758379.5 | AE201: -2559422.9 | AF201: -2333034.1 | AG201: -2507986.6 | AH201: -2544190.4 | AI201: -2624741.8 | AJ201: -2731841.1 | AK201: -2521637.8 | AL201: -2554792.2 | AM201: -2571976 | AN201: -2439917.8 | AO201: -2335329.8 | AP201: -2374218.8 | AQ201: -1976093.6 | AR201: -1847297.8 | AS201: -1708189.5 | AT201: -1654735 | AU201: -1603072.9 | AV201: -1565118.6 | AW201: -1219367.3 | AX201: -1005559.1 | AY201: -850858.4 | AZ201: -832988 | BA201: -792398.4 | BB201: -773768 | BC201: -334554.4 | BD201: -423650.8 | BE201: -495279.4 | BF201: -586817.5 | BG201: -657314.4 | BH201: -724336.3 | BI201: -369617.3 | BJ201: -370302.3 | BK201: -372737.2 | BL201: -377009.1 | BM201: -380897.1 | BN201: -384115.2 | BO201: -385998
B202: Simulation 168 | C202: 0 | D202: -9675.8 | E202: -279300.7 | F202: 13333.7 | G202: -849358.8 | H202: 61908.6 | I202: -1940488.8 | J202: -2140675.9 | K202: -1425584.5 | L202: -401854.3 | M202: 749172.2 | N202: -657896.9 | O202: -112839.3 | P202: 1654456.5 | Q202: 1652223.1 | R202: 2391908.5 | S202: 2804009.5 | T202: 3194032 | U202: 2235783.8 | V202: 1949109.3 | W202: 3313823.4 | X202: 3702329.4 | Y202: 5847880.4 | Z202: 6434508 | AA202: 7974285.5 | AB202: 5713843.8 | AC202: 6226080.6 | AD202: 6617469.2 | AE202: 6535447 | AF202: 6547951.8 | AG202: 3709047.5 | AH202: 3217920.5 | AI202: 2905849.3 | AJ202: 1692945.6 | AK202: 2612205 | AL202: 3302082.5 | AM202: 3958418.8 | AN202: 3694825.4 | AO202: 4073212.2 | AP202: 4004536.5 | AQ202: 3441440 | AR202: 3367083.8 | AS202: 2123670.6 | AT202: 2915610.4 | AU202: 3008202 | AV202: 1635045.2 | AW202: 1963747.4 | AX202: 1951053.1 | AY202: 1834143.7 | AZ202: 1921012.6 | BA202: 1090455.3 | BB202: 699601.8 | BC202: 410180.4 | BD202: 254385.4 | BE202: 160691.7 | BF202: 80648 | BG202: -16750 | BH202: -215730.2 | BI202: -146093.6 | BJ202: -148597.3 | BK202: -153076.9 | BL202: -157456.4 | BM202: -159484.5 | BN202: -161059.8 | BO202: -162586.6
B203: Simulation 169 | C203: 0 | D203: -30591.6 | E203: -190489.5 | F203: -150999.9 | G203: -534470.1 | H203: -694262.7 | I203: -959339.5 | J203: 411428 | K203: 2479949.3 | L203: 4621208.5 | M203: 4347934.2 | N203: 4105186.4 | O203: 3266095.1 | P203: 3111704.6 | Q203: 3569530.4 | R203: 3801750 | S203: 4336678.8 | T203: 4973556.3 | U203: 3505703.2 | V203: 2111380.6 | W203: 639811.1 | X203: 1804180 | Y203: 2392776.7 | Z203: 918769.2 | AA203: 721814.3 | AB203: 2183964.2 | AC203: 2516510.3 | AD203: 2043931.7 | AE203: 1610676.1 | AF203: 1515822.6 | AG203: 1363207.7 | AH203: 1439836.8 | AI203: 878639 | AJ203: 242978.8 | AK203: -580434.6 | AL203: -747858.8 | AM203: -1116495.5 | AN203: -872059.3 | AO203: -738555.9 | AP203: -762666.2 | AQ203: -146092.1 | AR203: 65535.1 | AS203: 8939.5 | AT203: 300879.3 | AU203: 282490.2 | AV203: 218845.8 | AW203: 335594.6 | AX203: 434953.7 | AY203: 187258 | AZ203: 180615.7 | BA203: 99580.6 | BB203: 1001.6 | BC203: 47071.1 | BD203: -74745.5 | BE203: -99010.2 | BF203: -213203 | BG203: -229327.8 | BH203: -255865.1 | BI203: -149775.5 | BJ203: -152848 | BK203: -157644.3 | BL203: -161984.9 | BM203: -165606.2 | BN203: -167945.8 | BO203: -169982.6
B204: Simulation 170 | C204: 0 | D204: 186895.1 | E204: 1098884.5 | F204: 901169.7 | G204: 944956.9 | H204: 1174779.1 | I204: 407156.2 | J204: -789112.4 | K204: -1909864.1 | L204: -1637116.4 | M204: 15834.2 | N204: 39906.3 | O204: -937206.5 | P204: -960434.2 | Q204: -1337729.4 | R204: -1617575.6 | S204: -1524649.7 | T204: -1656915.1 | U204: -2062401.3 | V204: -1446882.4 | W204: -1994534.4 | X204: -1330372.3 | Y204: -1493445 | Z204: -1908129.6 | AA204: -2344776.6 | AB204: -2620287.5 | AC204: -2460905.9 | AD204: -2241301.5 | AE204: -2305559.6 | AF204: -1907513.8 | AG204: -2584285.4 | AH204: -2684768.9 | AI204: -2537855.4 | AJ204: -2626439.8 | AK204: -2520881.7 | AL204: -2671309.8 | AM204: -2558557.7 | AN204: -2317101.1 | AO204: -2264054.7 | AP204: -2178777.3 | AQ204: -1900596.2 | AR204: -1775136.9 | AS204: -1664774.1 | AT204: -1575973 | AU204: -1501035 | AV204: -1417802.3 | AW204: -1135933.9 | AX204: -1047129 | AY204: -891539.9 | AZ204: -787986.6 | BA204: -672984.5 | BB204: -587768.3 | BC204: -239507.5 | BD204: -326736.3 | BE204: -420539 | BF204: -463746.2 | BG204: -509174.9 | BH204: -574039.4 | BI204: -259193.6 | BJ204: -263354.7 | BK204: -265265.5 | BL204: -267435.5 | BM204: -269645.7 | BN204: -272825.3 | BO204: -274800.8
B205: Simulation 171 | C205: 0 | D205: 159547.2 | E205: 138279.3 | F205: 162064.1 | G205: 166160.8 | H205: 1721905.4 | I205: 2303012.9 | J205: 2881233.8 | K205: 2561310.2 | L205: 1465272.7 | M205: 939341.5 | N205: 2078491.7 | O205: 1772148.7 | P205: 2829273.4 | Q205: 2659840.1 | R205: 2795671.3 | S205: 3729508.7 | T205: 3221282.1 | U205: 4269027.9 | V205: 3663567.3 | W205: 2615205.9 | X205: 552664.4 | Y205: 1943038.3 | Z205: 1674273 | AA205: 1570376.2 | AB205: 881762.7 | AC205: 436413.3 | AD205: 428480.7 | AE205: 759087.1 | AF205: 614727.8 | AG205: 638881.2 | AH205: 358760.6 | AI205: 395572.7 | AJ205: -240681.5 | AK205: -172906.6 | AL205: 144056.5 | AM205: -129501 | AN205: -170780.1 | AO205: -607585.7 | AP205: -689251.7 | AQ205: -238224.2 | AR205: -225307 | AS205: -660241.9 | AT205: -421934.3 | AU205: -248805.9 | AV205: -255221.7 | AW205: 141307.8 | AX205: -188752.4 | AY205: -154380.3 | AZ205: -136204.2 | BA205: -185549 | BB205: -153636.6 | BC205: 33613.2 | BD205: -85747.9 | BE205: -200572.4 | BF205: -289936 | BG205: -385308.3 | BH205: -442894.1 | BI205: -258676.1 | BJ205: -262174.6 | BK205: -266984.9 | BL205: -271262.7 | BM205: -274881.1 | BN205: -277810.5 | BO205: -280241.5
B206: Simulation 172 | C206: 0 | D206: -71477 | E206: 1045733 | F206: 53290.4 | G206: -327058.7 | H206: -476765 | I206: -407783.9 | J206: -721530.9 | K206: -1188354.1 | L206: -1674248.9 | M206: -2237567.5 | N206: -1895680.7 | O206: -1193514.7 | P206: -2290013.6 | Q206: -3212376 | R206: -3475817.3 | S206: -3095543.3 | T206: -3075672.8 | U206: -2927559.7 | V206: -3163806.8 | W206: -3141382.8 | X206: -3339854.4 | Y206: -3649738.2 | Z206: -3858094.7 | AA206: -3778094.2 | AB206: -3629121 | AC206: -3353026.4 | AD206: -3400920.7 | AE206: -3102185 | AF206: -3111285.9 | AG206: -2989555.4 | AH206: -2917649.7 | AI206: -2857360.9 | AJ206: -2777119.6 | AK206: -2748638.2 | AL206: -2639114 | AM206: -2558255.9 | AN206: -2447864.4 | AO206: -2304222.6 | AP206: -2272499.6 | AQ206: -1938782.3 | AR206: -1710841.1 | AS206: -1495271.9 | AT206: -1365939.9 | AU206: -1238449 | AV206: -1197270.8 | AW206: -874758.7 | AX206: -666216.8 | AY206: -523836.5 | AZ206: -456019 | BA206: -262392 | BB206: -145644.3 | BC206: 117599.2 | BD206: 6556.1 | BE206: -85979.3 | BF206: -166626.9 | BG206: -262280.5 | BH206: -300474.4 | BI206: -159568.5 | BJ206: -162180.3 | BK206: -167072.9 | BL206: -170327.6 | BM206: -173720.9 | BN206: -178567.2 | BO206: -181444.8
B207: Simulation 173 | C207: 0 | D207: 128461.6 | E207: 775037.1 | F207: 122931 | G207: 41882.1 | H207: -726686.1 | I207: -600673.3 | J207: -1188807.1 | K207: -1724610.1 | L207: -2217578.3 | M207: -591903.1 | N207: -1033848.7 | O207: -1364691.7 | P207: -1604155.6 | Q207: -1719320.5 | R207: -1134857.9 | S207: -73251.5 | T207: -609923.1 | U207: -123058.4 | V207: -502586.2 | W207: -537045.2 | X207: -1232598.7 | Y207: -1077055.4 | Z207: -1566155.7 | AA207: -1365736.5 | AB207: -1877922.7 | AC207: -1776103.5 | AD207: -1425583.4 | AE207: -1167711.5 | AF207: -1074544.5 | AG207: -1220871.8 | AH207: -1050746.9 | AI207: -191811.2 | AJ207: -737827.2 | AK207: 622536.6 | AL207: 757039.1 | AM207: -5833 | AN207: 508600.4 | AO207: -83455.5 | AP207: 193069.4 | AQ207: 62213.2 | AR207: 231610.9 | AS207: 106389.5 | AT207: -210155.7 | AU207: 458553.1 | AV207: 886494.4 | AW207: 921025.9 | AX207: 744825.4 | AY207: 865091.9 | AZ207: 667894.7 | BA207: 468508.6 | BB207: 223102.7 | BC207: 231974.3 | BD207: 61757.2 | BE207: -37805.2 | BF207: -165232.8 | BG207: -253758 | BH207: -424498.9 | BI207: -264248.2 | BJ207: -270176.3 | BK207: -273666 | BL207: -277279.8 | BM207: -282068.6 | BN207: -286582.5 | BO207: -288461.8
B208: Simulation 174 | C208: 0 | D208: 37404 | E208: -114187.9 | F208: -319465.5 | G208: -717455.6 | H208: 54623.7 | I208: -1730950.7 | J208: -1334788.6 | K208: -1276658.8 | L208: -881611.2 | M208: 620355.7 | N208: 514250.6 | O208: 572734.3 | P208: 511758.9 | Q208: -807884.6 | R208: -791425.9 | S208: 101005 | T208: 90906 | U208: -542234 | V208: 1180852.7 | W208: 460459.2 | X208: -13720 | Y208: -189571 | Z208: -1729936 | AA208: -1002293.8 | AB208: -814413.4 | AC208: -129142.1 | AD208: -974678.4 | AE208: -1226538.5 | AF208: -1280916.6 | AG208: -1535456.4 | AH208: -2378568.3 | AI208: -2194403.1 | AJ208: -2303979.6 | AK208: -2300055.3 | AL208: -2436968 | AM208: -2549032.1 | AN208: -2490930.2 | AO208: -2512135.7 | AP208: -2474399.2 | AQ208: -2222459.9 | AR208: -2138759.6 | AS208: -2034266.8 | AT208: -1960638.1 | AU208: -1898805.8 | AV208: -1792398.5 | AW208: -1386027.8 | AX208: -1345121.7 | AY208: -1247292.3 | AZ208: -1181591.5 | BA208: -1122022.2 | BB208: -1023971.5 | BC208: -617869.6 | BD208: -691857.4 | BE208: -756010.3 | BF208: -815341.4 | BG208: -863949.6 | BH208: -918550.9 | BI208: -469783.9 | BJ208: -471922.1 | BK208: -475129.9 | BL208: -477811.2 | BM208: -480498.3 | BN208: -481631 | BO208: -482897
B209: Simulation 175 | C209: 0 | D209: 51997.2 | E209: -107266.6 | F209: 93105.5 | G209: 598275.7 | H209: 677949 | I209: 145152.7 | J209: 675894 | K209: 1140495.4 | L209: -219721.2 | M209: 164647.5 | N209: -553471.3 | O209: -901905.7 | P209: -1070617.9 | Q209: -1154283 | R209: -827095.6 | S209: -551591.7 | T209: -1112463.7 | U209: -1772439.8 | V209: -1318035.9 | W209: -1978534.2 | X209: -2072311.6 | Y209: -2157233.7 | Z209: -2308374.5 | AA209: -2238529.2 | AB209: -2005603.1 | AC209: -2251396.1 | AD209: -2375970 | AE209: -2314158.7 | AF209: -2189355.4 | AG209: -2168226.7 | AH209: -2189555.2 | AI209: -2130171.1 | AJ209: -2137737.7 | AK209: -2167816.8 | AL209: -2074095 | AM209: -1953704.6 | AN209: -1633293.7 | AO209: -1745203.1 | AP209: -1631989.6 | AQ209: -1371527.9 | AR209: -902899.6 | AS209: -233208.1 | AT209: -316288.4 | AU209: -344670.9 | AV209: -285980.2 | AW209: -267474.9 | AX209: 106415.8 | AY209: 118344.4 | AZ209: 229470.5 | BA209: 227243.4 | BB209: 277580.5 | BC209: 330422.7 | BD209: 308338 | BE209: 251520.1 | BF209: 227212.7 | BG209: 148551 | BH209: 49332.6 | BI209: -21023.4 | BJ209: -21081.7 | BK209: -20844 | BL209: -22224.3 | BM209: -23211.9 | BN209: -26897.2 | BO209: -28718.1
B210: Simulation 176 | C210: 0 | D210: 288375.1 | E210: 597631.9 | F210: 790844 | G210: 1108908.5 | H210: 1091162.7 | I210: 210646.6 | J210: -753383.9 | K210: -1196689.3 | L210: -1018329.8 | M210: -643736.4 | N210: -939027.2 | O210: 296995 | P210: -184018.2 | Q210: -585472.7 | R210: -1466111.4 | S210: -1771689 | T210: -1921889.4 | U210: -2245518.6 | V210: -1760185 | W210: -1866796.8 | X210: -2091800.8 | Y210: -2421388.5 | Z210: -2901462 | AA210: -2727387.5 | AB210: -2721740.3 | AC210: -2421137.2 | AD210: -2389037.4 | AE210: -2350859.2 | AF210: -2649822.8 | AG210: -2600239.1 | AH210: -2359050.8 | AI210: -2243498.4 | AJ210: -2377678.9 | AK210: -2306872.6 | AL210: -2360256 | AM210: -2414397.8 | AN210: -2332303.8 | AO210: -2234311.6 | AP210: -2180471.5 | AQ210: -1889466.5 | AR210: -1816676.1 | AS210: -1627539.5 | AT210: -1567826.2 | AU210: -1471571.8 | AV210: -1443533.7 | AW210: -1143321.1 | AX210: -1086607.7 | AY210: -996421.3 | AZ210: -833777.5 | BA210: -774323.1 | BB210: -750103.3 | BC210: -429116.5 | BD210: -531726.5 | BE210: -606535.5 | BF210: -674634 | BG210: -738919.9 | BH210: -783266.5 | BI210: -398072.9 | BJ210: -401073.5 | BK210: -406065.6 | BL210: -408854.3 | BM210: -411898.1 | BN210: -413475.2 | BO210: -415285
B211: Simulation 177 | C211: 0 | D211: 213284.1 | E211: 663030.1 | F211: 287468.6 | G211: 671510.2 | H211: 1366331.1 | I211: 1939546.7 | J211: 2673030.2 | K211: 4771809.6 | L211: 4528525.2 | M211: 5298272.7 | N211: 5271103.1 | O211: 5173397.1 | P211: 6068174 | Q211: 3791827.9 | R211: 3051147.3 | S211: 5323670.4 | T211: 7063801.1 | U211: 5446593.8 | V211: 3237006.4 | W211: 1270417.6 | X211: 696840.2 | Y211: 1164492.6 | Z211: 1523355.7 | AA211: 1829867.7 | AB211: 2079830.7 | AC211: 689501 | AD211: 1285514.1 | AE211: 1406594.9 | AF211: 816554.2 | AG211: 626343.9 | AH211: 1297614.6 | AI211: 965171.3 | AJ211: 1347808 | AK211: 809509.9 | AL211: 1515824.3 | AM211: 217570.4 | AN211: 227770.9 | AO211: 727708.3 | AP211: 305277.9 | AQ211: 2137609.7 | AR211: 2143121.9 | AS211: 991067.1 | AT211: 789308 | AU211: 1120300.5 | AV211: 1042080.3 | AW211: 1540656.4 | AX211: 1380519.9 | AY211: 794335.8 | AZ211: 769640.4 | BA211: 581663.7 | BB211: 497401.8 | BC211: 425074.9 | BD211: 314158.5 | BE211: 276447 | BF211: 224270.3 | BG211: 225787.5 | BH211: 105775.7 | BI211: 88372.1 | BJ211: 86673.3 | BK211: 83712.8 | BL211: 80888.1 | BM211: 77431.2 | BN211: 71779 | BO211: 67566.4
B212: Simulation 178 | C212: 0 | D212: -38207.4 | E212: 296521.3 | F212: 1135942.9 | G212: 332053.6 | H212: 806425.9 | I212: -91961.8 | J212: -439857.4 | K212: -360973.4 | L212: 208506.6 | M212: 5429 | N212: -291649 | O212: -565928.5 | P212: -319748.8 | Q212: -153929.6 | R212: -212378.3 | S212: 319883.2 | T212: 1064751.4 | U212: 2610441.1 | V212: 2567853.7 | W212: 2675069.9 | X212: 3049310.3 | Y212: 2469213.8 | Z212: 3161301.7 | AA212: 2148566.4 | AB212: 3399935.3 | AC212: 3644580.4 | AD212: 3389992.5 | AE212: 3746882.7 | AF212: 2581169.2 | AG212: 2816244.9 | AH212: 1221940 | AI212: 1193940.4 | AJ212: 1653584.6 | AK212: 2335228.8 | AL212: 2564114.3 | AM212: 2510871 | AN212: 1371852.5 | AO212: 1395733.6 | AP212: 1851590.3 | AQ212: 1518710.6 | AR212: 1212626.4 | AS212: 865120.7 | AT212: 772507.9 | AU212: 337988.2 | AV212: 106631.6 | AW212: 494256.9 | AX212: 59030.6 | AY212: 155948.9 | AZ212: -124929.8 | BA212: -282331.5 | BB212: -328980.9 | BC212: -143986.6 | BD212: -222013.9 | BE212: -291149.9 | BF212: -371613.3 | BG212: -423572.7 | BH212: -509794.1 | BI212: -270563.2 | BJ212: -273220 | BK212: -276206.9 | BL212: -277782.1 | BM212: -280277.9 | BN212: -282854.8 | BO212: -285063.9
B213: Simulation 179 | C213: 0 | D213: 346992.6 | E213: 121536.5 | F213: -321673.1 | G213: -717776.2 | H213: -310893.4 | I213: 1537416.8 | J213: 4101116.5 | K213: 3613599.6 | L213: 4704809.2 | M213: 3663013.3 | N213: 3381232.9 | O213: 1223316.4 | P213: 2100397.2 | Q213: 1094924.7 | R213: -332378.7 | S213: -1463217.2 | T213: -760894.8 | U213: -1048010.9 | V213: -399709 | W213: -1192772.6 | X213: 742701.4 | Y213: 523988.4 | Z213: 18680.6 | AA213: 953077 | AB213: -218201.6 | AC213: -365195.9 | AD213: -163993.6 | AE213: 919650.5 | AF213: 925568 | AG213: 1888804.4 | AH213: 1041706.4 | AI213: 630441.2 | AJ213: -671894.9 | AK213: -334001.1 | AL213: -690646.6 | AM213: -923271.4 | AN213: -839544.3 | AO213: -1158428.2 | AP213: -952619.6 | AQ213: -518853.1 | AR213: -336172.1 | AS213: 111730.1 | AT213: 395648.7 | AU213: 580429.5 | AV213: 375975.5 | AW213: 400039.3 | AX213: 550819.8 | AY213: 498194.5 | AZ213: 339404.3 | BA213: 319903.5 | BB213: 396719.7 | BC213: 406610 | BD213: 383196 | BE213: 295505.5 | BF213: 238092.1 | BG213: 207940.4 | BH213: 46571.6 | BI213: 14551.8 | BJ213: 12710 | BK213: 8394.1 | BL213: 6833.1 | BM213: 5469.7 | BN213: -800.7 | BO213: -3965.6
... 349 more rows

Sheet Spreadsheet9.3
B9: Parameters
C10: Trade 1 | D10: Trade 2 | E10: Trade 3
B11: Mean | C11: 6 | D11: -10 | E11: 0
B12: Std Dev | C12: 10 | D12: 30 | E12: 0
B13: Correlation | C13: 0
B15: Stand-alone calculations
C16: Trade 1 | D16: Trade 2 | E16: Trade 3
B17: EE | C17: =C11*NORMSDIST(C11/C12)+C12*NORMDIST(C11/C12,0,1,FALSE) -> 7.686727322 | D17: =D11*NORMSDIST(D11/D12)+D12*NORMDIST(D11/D12,0,1,FALSE) -> 7.627083429 | E17: =E11*NORMSDIST(E11/E12)+E12*NORMDIST(E11/E12,0,1,FALSE) -> 
B18: EE1 + EE2 | C18: =C17+D17 -> 15.31381075
B20: Portfolio
B21: Mean | C21: =C11+D11+E11 -> -4
B22: Std Dev | C22: =SQRT(C12^2+D12^2+E12^2+2*Correlation*(C12*D12+C12*E12+D12*E12)) -> 31.6227766
B23: EE (total) | C23: =C21*NORMSDIST(C21/C22)+C22*NORMDIST(C21/C22,0,1,FALSE) -> 10.71645356
B25: EE Allocation
C26: Trade 1 | D26: Trade 2 | E26: Trade 3
B27: Correlation | C27: =C12/C22+Correlation*D12/C22 -> 0.316227766 | D27: =D12/C22+Correlation*C12/C22 -> 0.9486832981 | E27: =E12/C22+Correlation*D12/C22 -> 0
B28: Marginal EE | C28: =C11*NORMSDIST(C21/C22)+C12*C27*NORMDIST(C21/C22,0,1,FALSE) -> 3.949543559 | D28: =D11*NORMSDIST(C21/C22)+D12*D27*NORMDIST(C21/C22,0,1,FALSE) -> 6.76691 | E28: =E11*NORMSDIST(C21/C22)+E12*E27*NORMDIST(C21/C22,0,1,FALSE) -> 0
B29: Total EE | C29: =C28+D28+E28 -> 10.71645356
B30: Percentage | C30: =C28/TotalMargEPE -> 0.3685494961 | D30: =D28/TotalMargEPE -> 0.6314505039 | E30: =E28/TotalMargEPE -> 0
C34: Trade 1 | D34: Trade 2
B35: -100 | C35: =NORMDIST(B35,$C$11,$C$12,FALSE) -> 1.593111133e-26 | D35: =NORMDIST(B35,$D$11,$D$12,FALSE) -> 0.0001477282804
B36: =B35+5 -> -95 | C36: 2.816566544e-24 | D36: 0.0002402033255
B37: =B36+5 -> -90 | C37: 3.878111932e-22 | D37: 0.0003798662008
B38: -85 | C38: 4.158598979e-20 | D38: 0.0005842766831
B39: -80 | C39: 3.472962749e-18 | D39: 0.0008740629698
B40: -75 | C40: 2.258809403e-16 | D40: 0.001271754117
B41: -70 | C41: 1.14415649e-14 | D41: 0.001799698884
B42: -65 | C42: 4.513543677e-13 | D42: 0.002477038785 | F42: 0 | G42: =C28 -> 3.949543559 | H42: =D28 -> 6.76691 | I42: =C17 -> 7.686727322 | J42: =D17 -> 7.627083429
B43: -60 | C43: 1.386679994e-11 | D43: 0.003315904626 | F43: =MAX(C35:D95) -> 0.03969525475 | G43: =G42 -> 3.949543559 | H43: =H42 -> 6.76691 | I43: =I42 -> 7.686727322 | J43: =J42 -> 7.627083429
B44: -55 | C44: 3.317884244e-10 | D44: 0.004317253189
B45: -50 | C45: 6.1826205e-09 | D45: 0.005467002489
B46: -45 | C46: 8.972435162e-08 | D46: 0.006733289518
B47: -40 | C47: 1.014085207e-06 | D47: 0.008065690817
B48: -35 | C48: 8.926165718e-06 | D48: 0.009397062514
B49: -30 | C49: 6.119019301e-05 | D49: 0.01064826685
B50: -25 | C50: 0.0003266819056 | D50: 0.01173551089
B51: -20 | C51: 0.001358296923 | D51: 0.01257944092
B52: -15 | C52: 0.004398359598 | D52: 0.0131146572
B53: -10 | C53: 0.01109208347 | D53: 0.01329807601
B54: -5 | C54: 0.0217852177 | D54: 0.0131146572
B55: 0 | C55: 0.03332246029 | D55: 0.01257944092
B56: 5 | C56: 0.03969525475 | D56: 0.01173551089
B57: 10 | C57: 0.03682701403 | D57: 0.01064826685
B58: 15 | C58: 0.02660852499 | D58: 0.009397062514
B59: 20 | C59: 0.01497274656 | D59: 0.008065690817
B60: 25 | C60: 0.006561581477 | D60: 0.006733289518
B61: 30 | C61: 0.002239453029 | D61: 0.005467002489
B62: 35 | C62: 0.000595253242 | D62: 0.004317253189
B63: 40 | C63: 0.0001232219168 | D63: 0.003315904626
B64: 45 | C64: 1.986554714e-05 | D64: 0.002477038785
B65: 50 | C65: 2.494247129e-06 | D65: 0.001799698884
B66: 55 | C66: 2.438960746e-07 | D66: 0.001271754117
B67: 60 | C67: =NORMDIST(B67,$C$11,$C$12,FALSE) -> 1.857361845e-08 | D67: =NORMDIST(B67,$D$11,$D$12,FALSE) -> 0.0008740629698
B68: 65 | C68: 1.101576362e-09 | D68: 0.0005842766831
B69: 70 | C69: 5.088140282e-11 | D69: 0.0003798662008
B70: 75 | C70: 1.830332217e-12 | D70: 0.0002402033255
B71: 80 | C71: 5.127753637e-14 | D71: 0.0001477282804
B72: 85 | C72: 1.118795621e-15 | D72: 8.836586515e-05
B73: 90 | C73: 1.901081538e-17 | D73: 5.140929988e-05
B74: 95 | C74: 2.515805777e-19 | D74: 2.908942317e-05
B75: 100 | C75: 2.592864701e-21 | D75: 1.600902172e-05
B76: 105 | C76: 2.08117682e-23 | D76: 8.569011835e-06
B77: 110 | C77: 1.30096162e-25 | D77: 4.461007525e-06
B78: 115 | C78: 6.333537822e-28 | D78: 2.258766996e-06
B79: 120 | C79: 2.4013454e-30 | D79: 1.11236208e-06
B80: 125 | C80: 7.090702668e-33 | D80: 5.327913702e-07
B81: 130 | C81: 1.630610735e-35 | D81: 2.48201529e-07
B82: 135 | C82: 2.920368794e-38 | D82: 1.124573869e-07
B83: 140 | C83: 4.073347678e-41 | D83: 4.955731716e-08
B84: 145 | C84: 4.424779583e-44 | D84: 2.124045674e-08
B85: 150 | C85: 3.74333058e-47 | D85: 8.854339695e-09
B86: 155 | C86: 2.466329526e-50 | D86: 3.589920014e-09
B87: 160 | C87: 1.265524047e-53 | D87: 1.415629582e-09
B88: 165 | C88: 5.057269304e-57 | D88: 5.429386403e-10
B89: 170 | C89: 1.57393988e-60 | D89: 2.025294283e-10
B90: 175 | C90: 3.814930036e-64 | D90: 7.347875466e-11
B91: 180 | C91: 7.201308153e-68 | D91: 2.592816023e-11
B92: 185 | C92: 1.058674841e-71 | D92: 8.898522049e-12
B93: 190 | C93: 1.212104795e-75 | D93: 2.970300062e-12
B94: 195 | C94: 1.080796987e-79 | D94: 9.643152441e-13
B95: 200 | C95: 7.505410686e-84 | D95: 3.044906803e-13

Sheet Spreadsheet9.4
B9: Trade Details
B10: New trade | C10: 100m IRS Payer GBP 5Y
B11: Trade 1 | C11: 100m IRS Payer GBP 6Y | E11: FALSE
B12: Trade 2 | C12: 100m IRS Payer EUR 5Y | E12: TRUE
B13: Trade 3 | C13: 100m IRS Receiver EUR 5Y | E13: FALSE
B14: Trade 4 | C14: 25m CCS GBPUSD 5Y | E14: FALSE
B15: Trade 5 | C15: 100m IRS Payer GBP 5Y (off market) | E15: FALSE
B17: EE | C17: 0 | D17: 0.002747252747 | E17: 0.02747252747 | F17: 0.05494505495 | G17: 0.08241758242 | H17: 0.1648351648 | I17: 0.2472527473 | J17: 0.3296703297 | K17: 0.4120879121 | L17: 0.4945054945 | M17: 0.5769230769 | N17: 0.6593406593 | O17: 0.7417582418 | P17: 0.8241758242 | Q17: 0.9065934066 | R17: 0.989010989 | S17: 1.071428571 | T17: 1.153846154 | U17: 1.236263736 | V17: 1.318681319 | W17: 1.401098901 | X17: 1.483516484 | Y17: 1.565934066 | Z17: 1.648351648 | AA17: 1.730769231 | AB17: 1.813186813 | AC17: 1.895604396 | AD17: 1.978021978 | AE17: 2.06043956 | AF17: 2.142857143 | AG17: 2.225274725 | AH17: 2.307692308 | AI17: 2.39010989 | AJ17: 2.472527473 | AK17: 2.554945055 | AL17: 2.637362637 | AM17: 2.71978022 | AN17: 2.802197802 | AO17: 2.884615385 | AP17: 2.967032967 | AQ17: 3.049450549 | AR17: 3.131868132 | AS17: 3.214285714 | AT17: 3.296703297 | AU17: 3.379120879 | AV17: 3.461538462 | AW17: 3.543956044 | AX17: 3.626373626 | AY17: 3.708791209 | AZ17: 3.791208791 | BA17: 3.873626374 | BB17: 3.956043956 | BC17: 4.038461538 | BD17: 4.120879121 | BE17: 4.203296703 | BF17: 4.285714286 | BG17: 4.368131868 | BH17: 4.450549451 | BI17: 4.532967033 | BJ17: 4.615384615 | BK17: 4.697802198 | BL17: 4.78021978 | BM17: 4.862637363 | BN17: 4.945054945 | BO17: 5
B18: 100m IRS Payer GBP 5Y (stand-alone) | C18: 0 | D18: =SUMIF(Spreadsheet9.2!D35:D1034,">0")/1000 -> 59010.0624 | E18: =SUMIF(Spreadsheet9.2!E35:E1034,">0")/1000 -> 177226.7561 | F18: =SUMIF(Spreadsheet9.2!F35:F1034,">0")/1000 -> 243779.1054 | G18: =SUMIF(Spreadsheet9.2!G35:G1034,">0")/1000 -> 282573.5507 | H18: =SUMIF(Spreadsheet9.2!H35:H1034,">0")/1000 -> 365844.8589 | I18: =SUMIF(Spreadsheet9.2!I35:I1034,">0")/1000 -> 396985.5586 | J18: =SUMIF(Spreadsheet9.2!J35:J1034,">0")/1000 -> 425266.9343 | K18: =SUMIF(Spreadsheet9.2!K35:K1034,">0")/1000 -> 468766.1378 | L18: =SUMIF(Spreadsheet9.2!L35:L1034,">0")/1000 -> 474727.5954 | M18: =SUMIF(Spreadsheet9.2!M35:M1034,">0")/1000 -> 592890.9878 | N18: =SUMIF(Spreadsheet9.2!N35:N1034,">0")/1000 -> 608683.4963 | O18: =SUMIF(Spreadsheet9.2!O35:O1034,">0")/1000 -> 588225.2716 | P18: =SUMIF(Spreadsheet9.2!P35:P1034,">0")/1000 -> 609065.2635 | Q18: =SUMIF(Spreadsheet9.2!Q35:Q1034,">0")/1000 -> 583600.4593 | R18: =SUMIF(Spreadsheet9.2!R35:R1034,">0")/1000 -> 550812.2625 | S18: =SUMIF(Spreadsheet9.2!S35:S1034,">0")/1000 -> 640739.0275 | T18: =SUMIF(Spreadsheet9.2!T35:T1034,">0")/1000 -> 631950.0945 | U18: =SUMIF(Spreadsheet9.2!U35:U1034,">0")/1000 -> 654252.3079 | V18: =SUMIF(Spreadsheet9.2!V35:V1034,">0")/1000 -> 660782.2386 | W18: =SUMIF(Spreadsheet9.2!W35:W1034,">0")/1000 -> 678056.1411 | X18: =SUMIF(Spreadsheet9.2!X35:X1034,">0")/1000 -> 686624.7191 | Y18: =SUMIF(Spreadsheet9.2!Y35:Y1034,">0")/1000 -> 782327.102 | Z18: =SUMIF(Spreadsheet9.2!Z35:Z1034,">0")/1000 -> 797259.609 | AA18: =SUMIF(Spreadsheet9.2!AA35:AA1034,">0")/1000 -> 795533.0994 | AB18: =SUMIF(Spreadsheet9.2!AB35:AB1034,">0")/1000 -> 784195.0631 | AC18: =SUMIF(Spreadsheet9.2!AC35:AC1034,">0")/1000 -> 784195.3239 | AD18: =SUMIF(Spreadsheet9.2!AD35:AD1034,">0")/1000 -> 783748.63 | AE18: =SUMIF(Spreadsheet9.2!AE35:AE1034,">0")/1000 -> 844533.8463 | AF18: =SUMIF(Spreadsheet9.2!AF35:AF1034,">0")/1000 -> 858732.3994 | AG18: =SUMIF(Spreadsheet9.2!AG35:AG1034,">0")/1000 -> 862139.168 | AH18: =SUMIF(Spreadsheet9.2!AH35:AH1034,">0")/1000 -> 867607.4399 | AI18: =SUMIF(Spreadsheet9.2!AI35:AI1034,">0")/1000 -> 807474.9201 | AJ18: =SUMIF(Spreadsheet9.2!AJ35:AJ1034,">0")/1000 -> 762892.5951 | AK18: =SUMIF(Spreadsheet9.2!AK35:AK1034,">0")/1000 -> 800793.5899 | AL18: =SUMIF(Spreadsheet9.2!AL35:AL1034,">0")/1000 -> 803561.6757 | AM18: =SUMIF(Spreadsheet9.2!AM35:AM1034,">0")/1000 -> 797131.554 | AN18: =SUMIF(Spreadsheet9.2!AN35:AN1034,">0")/1000 -> 784725.562 | AO18: =SUMIF(Spreadsheet9.2!AO35:AO1034,">0")/1000 -> 739187.3674 | AP18: =SUMIF(Spreadsheet9.2!AP35:AP1034,">0")/1000 -> 693290.8596 | AQ18: =SUMIF(Spreadsheet9.2!AQ35:AQ1034,">0")/1000 -> 709449.9934 | AR18: =SUMIF(Spreadsheet9.2!AR35:AR1034,">0")/1000 -> 662723.7567 | AS18: =SUMIF(Spreadsheet9.2!AS35:AS1034,">0")/1000 -> 581227.1266 | AT18: =SUMIF(Spreadsheet9.2!AT35:AT1034,">0")/1000 -> 507464.0201 | AU18: =SUMIF(Spreadsheet9.2!AU35:AU1034,">0")/1000 -> 446027.0619 | AV18: =SUMIF(Spreadsheet9.2!AV35:AV1034,">0")/1000 -> 366332.6592 | AW18: =SUMIF(Spreadsheet9.2!AW35:AW1034,">0")/1000 -> 363976.4848 | AX18: =SUMIF(Spreadsheet9.2!AX35:AX1034,">0")/1000 -> 301814.4897 | AY18: =SUMIF(Spreadsheet9.2!AY35:AY1034,">0")/1000 -> 246492.0099 | AZ18: =SUMIF(Spreadsheet9.2!AZ35:AZ1034,">0")/1000 -> 185009.9266 | BA18: =SUMIF(Spreadsheet9.2!BA35:BA1034,">0")/1000 -> 134877.1863 | BB18: =SUMIF(Spreadsheet9.2!BB35:BB1034,">0")/1000 -> 85146.5379 | BC18: =SUMIF(Spreadsheet9.2!BC35:BC1034,">0")/1000 -> 92727.4613 | BD18: =SUMIF(Spreadsheet9.2!BD35:BD1034,">0")/1000 -> 69202.9191 | BE18: =SUMIF(Spreadsheet9.2!BE35:BE1034,">0")/1000 -> 50657.4796 | BF18: =SUMIF(Spreadsheet9.2!BF35:BF1034,">0")/1000 -> 37811.952 | BG18: =SUMIF(Spreadsheet9.2!BG35:BG1034,">0")/1000 -> 26630.8285 | BH18: =SUMIF(Spreadsheet9.2!BH35:BH1034,">0")/1000 -> 14925.1836 | BI18: =SUMIF(Spreadsheet9.2!BI35:BI1034,">0")/1000 -> 7925.4485 | BJ18: =SUMIF(Spreadsheet9.2!BJ35:BJ1034,">0")/1000 -> 7817.1039 | BK18: =SUMIF(Spreadsheet9.2!BK35:BK1034,">0")/1000 -> 7667.4475 | BL18: =SUMIF(Spreadsheet9.2!BL35:BL1034,">0")/1000 -> 7534.8761 | BM18: =SUMIF(Spreadsheet9.2!BM35:BM1034,">0")/1000 -> 7347.8597 | BN18: =SUMIF(Spreadsheet9.2!BN35:BN1034,">0")/1000 -> 7024.9434 | BO18: =SUMIF(Spreadsheet9.2!BO35:BO1034,">0")/1000 -> 6756.4947
B19: Netting Set | C19: =SUMIF(C30:C1029,">0")/1000 -> 0 | D19: 58797.0668 | E19: 157230.8242 | F19: 220567.8335 | G19: 263869.8907 | H19: 346611.1423 | I19: 374879.3133 | J19: 449226.3341 | K19: 485547.5696 | L19: 503550.7463 | M19: 538825.0149 | N19: 519345.7757 | O19: 497786.3753 | P19: 521552.4769 | Q19: 528224.9401 | R19: 529024.6718 | S19: 575246.1186 | T19: 565218.178 | U19: 559351.7692 | V19: 581368.0069 | W19: 561355.1945 | X19: 561087.2305 | Y19: 605509.7771 | Z19: 602123.1022 | AA19: 605538.504 | AB19: 628297.0194 | AC19: 609852.8546 | AD19: 606290.2702 | AE19: 618676.3035 | AF19: 623538.6214 | AG19: 608693.9972 | AH19: 609872.6203 | AI19: =SUMIF(AI30:AI1029,">0")/1000 -> 599996.3807 | AJ19: 584637.2197 | AK19: 591139.6063 | AL19: 584682.4128 | AM19: 563888.4845 | AN19: 572823.4442 | AO19: 564425.805 | AP19: 565026.0365 | AQ19: 561425.6451 | AR19: 525836.7544 | AS19: 487606.8224 | AT19: 467891.8291 | AU19: 431767.3877 | AV19: 384110.2431 | AW19: 360761.7951 | AX19: 317276.0953 | AY19: 280117.163 | AZ19: 262525.4073 | BA19: 246570.5502 | BB19: 230682.9545 | BC19: 234422.7456 | BD19: 171049.7342 | BE19: 115802.3088 | BF19: 90952.2737 | BG19: 63386.3257 | BH19: 42215.241 | BI19: 27222.0109 | BJ19: 21460.3073 | BK19: 18737.1097 | BL19: 9524.4119 | BM19: 9540.5734 | BN19: 9558.0637 | BO19: 9570.0848
B20: Netting Set + New Trade | C20: =SUMIF(C1032:C2031,">0")/1000 -> 0 | D20: 101393.7021 | E20: 281963.3427 | F20: 397349.5322 | G20: 463297.8557 | H20: 606390.1135 | I20: 629100.271 | J20: 718723.1745 | K20: 780214.6535 | L20: 785259.9906 | M20: 940062.6388 | N20: 927129.3365 | O20: 887388.5099 | P20: 942260.1191 | Q20: 917082.8275 | R20: 867634.5608 | S20: 991659.0963 | T20: 971206.3664 | U20: 999083.9254 | V20: 1017159.856 | W20: 1009964.302 | X20: 1029488.669 | Y20: 1166983.66 | Z20: 1185996.217 | AA20: 1185941.068 | AB20: 1200043.99 | AC20: 1177157.889 | AD20: 1176399.99 | AE20: 1242445.738 | AF20: 1268001.96 | AG20: 1251982.127 | AH20: 1259544.388 | AI20: =SUMIF(AI1032:AI2031,">0")/1000 -> 1189737.853 | AJ20: 1135038.904 | AK20: 1188885.401 | AL20: 1186574.037 | AM20: 1155224.488 | AN20: 1156867.469 | AO20: 1101251.717 | AP20: 1048771.736 | AQ20: 1073619.149 | AR20: 1008559.965 | AS20: 906048.7524 | AT20: 828212.1692 | AU20: 746252.115 | AV20: 631246.068 | AW20: 630955.6806 | AX20: 539563.2928 | AY20: 454427.1631 | AZ20: 379975.913 | BA20: 307225.7039 | BB20: 229414.3618 | BC20: 269171.497 | BD20: 183276.0046 | BE20: 116735.6162 | BF20: 78121.5156 | BG20: 48930.5669 | BH20: 27063.8986 | BI20: 16508.2734 | BJ20: 14530.5465 | BK20: 13424.9402 | BL20: 8662.2564 | BM20: 8493.7481 | BN20: 8203.6304 | BO20: 7951.8907
B21: 100m IRS Payer GBP 5Y (incremental) | C21: =C20-C19 -> 0 | D21: 42596.6353 | E21: 124732.5185 | F21: 176781.6987 | G21: 199427.965 | H21: 259778.9712 | I21: 254220.9577 | J21: 269496.8404 | K21: 294667.0839 | L21: 281709.2443 | M21: 401237.6239 | N21: 407783.5608 | O21: 389602.1346 | P21: 420707.6422 | Q21: 388857.8874 | R21: 338609.889 | S21: 416412.9777 | T21: 405988.1884 | U21: 439732.1562 | V21: 435791.8489 | W21: 448609.1074 | X21: 468401.4384 | Y21: 561473.8827 | Z21: 583873.1149 | AA21: 580402.5636 | AB21: 571746.9704 | AC21: 567305.034 | AD21: 570109.7198 | AE21: 623769.4341 | AF21: 644463.3391 | AG21: 643288.1295 | AH21: 649671.7676 | AI21: =AI20-AI19 -> 589741.4724 | AJ21: 550401.6839 | AK21: 597745.7952 | AL21: 601891.6244 | AM21: 591336.0031 | AN21: 584044.0252 | AO21: 536825.912 | AP21: 483745.6992 | AQ21: 512193.5039 | AR21: 482723.2108 | AS21: 418441.93 | AT21: 360320.3401 | AU21: 314484.7273 | AV21: 247135.8249 | AW21: 270193.8855 | AX21: 222287.1975 | AY21: 174310.0001 | AZ21: 117450.5057 | BA21: 60655.1537 | BB21: -1268.5927 | BC21: 34748.7514 | BD21: 12226.2704 | BE21: 933.3074 | BF21: -12830.7581 | BG21: -14455.7588 | BH21: -15151.3424 | BI21: -10713.7375 | BJ21: -6929.7608 | BK21: -5312.1695 | BL21: -862.1555 | BM21: -1046.8253 | BN21: -1354.4333 | BO21: =BO20-BO19 -> -1618.1941
B23: NEE
B24: Stand-alone | C24: =SUMIF(Spreadsheet9.2!C35:C1034,"<0")/1000 -> 0 | D24: =SUMIF(Spreadsheet9.2!D35:D1034,"<0")/1000 -> -57887.8213 | E24: =SUMIF(Spreadsheet9.2!E35:E1034,"<0")/1000 -> -188199.7293 | F24: =SUMIF(Spreadsheet9.2!F35:F1034,"<0")/1000 -> -276216.7743 | G24: =SUMIF(Spreadsheet9.2!G35:G1034,"<0")/1000 -> -353598.8616 | H24: =SUMIF(Spreadsheet9.2!H35:H1034,"<0")/1000 -> -494582.8329 | I24: =SUMIF(Spreadsheet9.2!I35:I1034,"<0")/1000 -> -647326.5257 | J24: =SUMIF(Spreadsheet9.2!J35:J1034,"<0")/1000 -> -783631.0906 | K24: =SUMIF(Spreadsheet9.2!K35:K1034,"<0")/1000 -> -929204.1053 | L24: =SUMIF(Spreadsheet9.2!L35:L1034,"<0")/1000 -> -1045824.55 | M24: =SUMIF(Spreadsheet9.2!M35:M1034,"<0")/1000 -> -941814.715 | N24: =SUMIF(Spreadsheet9.2!N35:N1034,"<0")/1000 -> -1025800.408 | O24: =SUMIF(Spreadsheet9.2!O35:O1034,"<0")/1000 -> -1132470.312 | P24: =SUMIF(Spreadsheet9.2!P35:P1034,"<0")/1000 -> -1212253.57 | Q24: =SUMIF(Spreadsheet9.2!Q35:Q1034,"<0")/1000 -> -1295452.85 | R24: =SUMIF(Spreadsheet9.2!R35:R1034,"<0")/1000 -> -1356457.941 | S24: =SUMIF(Spreadsheet9.2!S35:S1034,"<0")/1000 -> -1218967.749 | T24: =SUMIF(Spreadsheet9.2!T35:T1034,"<0")/1000 -> -1260741.883 | U24: =SUMIF(Spreadsheet9.2!U35:U1034,"<0")/1000 -> -1345095.235 | V24: =SUMIF(Spreadsheet9.2!V35:V1034,"<0")/1000 -> -1407224.091 | W24: =SUMIF(Spreadsheet9.2!W35:W1034,"<0")/1000 -> -1457366.359 | X24: =SUMIF(Spreadsheet9.2!X35:X1034,"<0")/1000 -> -1505900.681 | Y24: =SUMIF(Spreadsheet9.2!Y35:Y1034,"<0")/1000 -> -1388468.161 | Z24: =SUMIF(Spreadsheet9.2!Z35:Z1034,"<0")/1000 -> -1442317.457 | AA24: =SUMIF(Spreadsheet9.2!AA35:AA1034,"<0")/1000 -> -1461684.367 | AB24: =SUMIF(Spreadsheet9.2!AB35:AB1034,"<0")/1000 -> -1493965.454 | AC24: =SUMIF(Spreadsheet9.2!AC35:AC1034,"<0")/1000 -> -1522258.036 | AD24: =SUMIF(Spreadsheet9.2!AD35:AD1034,"<0")/1000 -> -1559444.547 | AE24: =SUMIF(Spreadsheet9.2!AE35:AE1034,"<0")/1000 -> -1410826.312 | AF24: =SUMIF(Spreadsheet9.2!AF35:AF1034,"<0")/1000 -> -1403653.631 | AG24: =SUMIF(Spreadsheet9.2!AG35:AG1034,"<0")/1000 -> -1402686.648 | AH24: =SUMIF(Spreadsheet9.2!AH35:AH1034,"<0")/1000 -> -1401174.094 | AI24: =SUMIF(Spreadsheet9.2!AI35:AI1034,"<0")/1000 -> -1391894.724 | AJ24: =SUMIF(Spreadsheet9.2!AJ35:AJ1034,"<0")/1000 -> -1411478.501 | AK24: =SUMIF(Spreadsheet9.2!AK35:AK1034,"<0")/1000 -> -1279512.715 | AL24: =SUMIF(Spreadsheet9.2!AL35:AL1034,"<0")/1000 -> -1276262.084 | AM24: =SUMIF(Spreadsheet9.2!AM35:AM1034,"<0")/1000 -> -1269530.879 | AN24: =SUMIF(Spreadsheet9.2!AN35:AN1034,"<0")/1000 -> -1248093.408 | AO24: =SUMIF(Spreadsheet9.2!AO35:AO1034,"<0")/1000 -> -1236253.933 | AP24: =SUMIF(Spreadsheet9.2!AP35:AP1034,"<0")/1000 -> -1235003.542 | AQ24: =SUMIF(Spreadsheet9.2!AQ35:AQ1034,"<0")/1000 -> -1010415.365 | AR24: =SUMIF(Spreadsheet9.2!AR35:AR1034,"<0")/1000 -> -930269.6373 | AS24: =SUMIF(Spreadsheet9.2!AS35:AS1034,"<0")/1000 -> -866957.4984 | AT24: =SUMIF(Spreadsheet9.2!AT35:AT1034,"<0")/1000 -> -807238.2963 | AU24: =SUMIF(Spreadsheet9.2!AU35:AU1034,"<0")/1000 -> -757989.4358 | AV24: =SUMIF(Spreadsheet9.2!AV35:AV1034,"<0")/1000 -> -728544.6956 | AW24: =SUMIF(Spreadsheet9.2!AW35:AW1034,"<0")/1000 -> -509204.742 | AX24: =SUMIF(Spreadsheet9.2!AX35:AX1034,"<0")/1000 -> -444337.1097 | AY24: =SUMIF(Spreadsheet9.2!AY35:AY1034,"<0")/1000 -> -376745.7826 | AZ24: =SUMIF(Spreadsheet9.2!AZ35:AZ1034,"<0")/1000 -> -330362.2899 | BA24: =SUMIF(Spreadsheet9.2!BA35:BA1034,"<0")/1000 -> -306422.7592 | BB24: =SUMIF(Spreadsheet9.2!BB35:BB1034,"<0")/1000 -> -313117.8817 | BC24: =SUMIF(Spreadsheet9.2!BC35:BC1034,"<0")/1000 -> -137879.8494 | BD24: =SUMIF(Spreadsheet9.2!BD35:BD1034,"<0")/1000 -> -182589.0864 | BE24: =SUMIF(Spreadsheet9.2!BE35:BE1034,"<0")/1000 -> -233949.1771 | BF24: =SUMIF(Spreadsheet9.2!BF35:BF1034,"<0")/1000 -> -292048.1503 | BG24: =SUMIF(Spreadsheet9.2!BG35:BG1034,"<0")/1000 -> -354890.2752 | BH24: =SUMIF(Spreadsheet9.2!BH35:BH1034,"<0")/1000 -> -427395.6229 | BI24: =SUMIF(Spreadsheet9.2!BI35:BI1034,"<0")/1000 -> -222940.0948 | BJ24: =SUMIF(Spreadsheet9.2!BJ35:BJ1034,"<0")/1000 -> -225778.3187 | BK24: =SUMIF(Spreadsheet9.2!BK35:BK1034,"<0")/1000 -> -228638.4945 | BL24: =SUMIF(Spreadsheet9.2!BL35:BL1034,"<0")/1000 -> -231491.2305 | BM24: =SUMIF(Spreadsheet9.2!BM35:BM1034,"<0")/1000 -> -234311.7469 | BN24: =SUMIF(Spreadsheet9.2!BN35:BN1034,"<0")/1000 -> -237389.6513 | BO24: =SUMIF(Spreadsheet9.2!BO35:BO1034,"<0")/1000 -> -239604.5015
B25: Netting Set | C25: =SUMIF(C30:C1029,"<0")/1000 -> 0 | D25: =SUMIF(D30:D1029,"<0")/1000 -> -54500.1924 | E25: -180726.7752 | F25: -261840.329 | G25: -348769.7349 | H25: -514273.3284 | I25: -623526.5062 | J25: -657123.339 | K25: -776426.9538 | L25: -843395.7639 | M25: -892056.5449 | N25: -978929.2349 | O25: -1046250.564 | P25: -1072399.967 | Q25: -1149312.029 | R25: -1204100.765 | S25: -1197956.472 | T25: -1257882.086 | U25: -1261420.893 | V25: -1258888.432 | W25: -1290338.259 | X25: -1304491.099 | Y25: -1291850.553 | Z25: -1328678.897 | AA25: -1322190.35 | AB25: -1283809.916 | AC25: -1319049.683 | AD25: -1306797.672 | AE25: -1281963.548 | AF25: -1281811.945 | AG25: -1256141.417 | AH25: -1199992.427 | AI25: -1221891.508 | AJ25: -1193120.838 | AK25: -1146752.882 | AL25: -1155554.381 | AM25: -1136348.746 | AN25: -1068240.074 | AO25: -1066396.538 | AP25: -1045299.357 | AQ25: -925958.0956 | AR25: -827437.8139 | AS25: -756684.6948 | AT25: -633377.3992 | AU25: -541918.9771 | AV25: -472856.4111 | AW25: -353745.4027 | AX25: -272058.3047 | AY25: -213547.1265 | AZ25: -118341.307 | BA25: -72758.4824 | BB25: -50656.6101 | BC25: -20525.2115 | BD25: -37699.2172 | BE25: -72122.6582 | BF25: -48961.5514 | BG25: -72949.0116 | BH25: -113988.5879 | BI25: -80324.0741 | BJ25: -107097.5139 | BK25: -143110.4198 | BL25: -85694.8658 | BM25: -85802.0318 | BN25: -85886.2596 | BO25: -85930.0421
B26: Netting Set + New Trade | C26: =SUMIF(C1032:C2031,"<0")/1000 -> 0 | D26: =SUMIF(D1032:D2031,"<0")/1000 -> -95974.5866 | E26: -316432.2669 | F26: -471059.6966 | G26: -619223.0108 | H26: -902790.2736 | I26: -1128088.431 | J26: -1284984.336 | K26: -1531532.005 | L26: -1696201.963 | M26: -1642217.896 | N26: -1803829.707 | O26: -1980097.739 | P26: -2096295.915 | Q26: -2250022.308 | R26: -2348356.332 | S26: -2192598.172 | T26: -2292662.063 | U26: -2391995.976 | V26: -2441122.134 | W26: -2518257.584 | X26: -2592168.499 | Y26: -2459465.495 | Z26: -2557609.86 | AA26: -2568744.181 | AB26: -2565327.277 | AC26: -2624417.429 | AD26: -2652603.309 | AE26: -2472025.448 | AF26: -2471196.516 | AG26: -2439977.026 | AH26: -2383230.848 | AI26: -2396052.784 | AJ26: -2392108.427 | AK26: -2223217.802 | AL26: -2230146.414 | AM26: -2200084.074 | AN26: -2115651.945 | AO26: -2100289.016 | AP26: -2070757.739 | AQ26: -1739116.971 | AR26: -1577706.905 | AS26: -1460856.997 | AT26: -1293472.016 | AU26: -1168366.078 | AV26: -1082204.272 | AW26: -769167.5454 | AX26: -636868.1222 | AY26: -518110.8993 | AZ26: -381144.176 | BA26: -304959.209 | BB26: -277359.3612 | BC26: -100426.351 | BD26: -163311.6549 | BE26: -256347.6631 | BF26: -290366.9916 | BG26: -386752.6995 | BH26: -511307.6848 | BI26: -284624.9829 | BJ26: -318128.9679 | BK26: -358769.2973 | BL26: -308789.0647 | BM26: -311719.0937 | BN26: -314896.5342 | BO26: -317159.8548
B27: Incremental | C27: =C26-C25 -> 0 | D27: =D26-D25 -> -41474.3942 | E27: -135705.4917 | F27: -209219.3676 | G27: -270453.2759 | H27: -388516.9452 | I27: -504561.9248 | J27: -627860.9967 | K27: -755105.0514 | L27: -852806.1989 | M27: -750161.3511 | N27: -824900.4721 | O27: -933847.175 | P27: -1023895.948 | Q27: -1100710.279 | R27: -1144255.568 | S27: -994641.6992 | T27: -1034779.977 | U27: -1130575.083 | V27: -1182233.701 | W27: -1227919.325 | X27: -1287677.4 | Y27: -1167614.942 | Z27: -1228930.963 | AA27: -1246553.831 | AB27: -1281517.361 | AC27: -1305367.746 | AD27: -1345805.637 | AE27: -1190061.9 | AF27: -1189384.571 | AG27: -1183835.609 | AH27: -1183238.422 | AI27: -1174161.276 | AJ27: -1198987.59 | AK27: -1076464.92 | AL27: -1074592.033 | AM27: -1063735.328 | AN27: -1047411.871 | AO27: -1033892.477 | AP27: -1025458.381 | AQ27: -813158.8755 | AR27: -750269.0914 | AS27: -704172.3018 | AT27: -660094.6163 | AU27: -626447.1012 | AV27: -609347.8613 | AW27: -415422.1427 | AX27: -364809.8175 | AY27: -304563.7728 | AZ27: -262802.869 | BA27: -232200.7266 | BB27: -226702.7511 | BC27: -79901.1395 | BD27: -125612.4377 | BE27: -184225.0049 | BF27: -241405.4402 | BG27: -313803.6879 | BH27: -397319.0969 | BI27: -204300.9088 | BJ27: -211031.454 | BK27: -215658.8775 | BL27: -223094.1989 | BM27: -225917.0619 | BN27: -229010.2746 | BO27: -231229.8127
B29: Netting set
B30: Simulation 1 | C30: =IF(IncludeDeal1,Spreadsheet9.2!C1037,0)+IF(IncludeDeal2,Spreadsheet9.2!C2039,0)+IF(IncludeDeal3,-Spreadsheet9.2!C2039,0)+IF(IncludeDeal4,Spreadsheet9.2!C3041,0)+IF(IncludeDeal5,Spreadsheet9.2!C4043,0) -> 0 | D30: =IF(IncludeDeal1,Spreadsheet9.2!D1037,0)+IF(IncludeDeal2,Spreadsheet9.2!D2039,0)+IF(IncludeDeal3,-Spreadsheet9.2!D2039,0)+IF(IncludeDeal4,Spreadsheet9.2!D3041,0)+IF(IncludeDeal5,Spreadsheet9.2!D4043,0) -> 18033.7 | E30: =IF(IncludeDeal1,Spreadsheet9.2!E1037,0)+IF(IncludeDeal2,Spreadsheet9.2!E2039,0)+IF(IncludeDeal3,-Spreadsheet9.2!E2039,0)+IF(IncludeDeal4,Spreadsheet9.2!E3041,0)+IF(IncludeDeal5,Spreadsheet9.2!E4043,0) -> 382335.5 | F30: =IF(IncludeDeal1,Spreadsheet9.2!F1037,0)+IF(IncludeDeal2,Spreadsheet9.2!F2039,0)+IF(IncludeDeal3,-Spreadsheet9.2!F2039,0)+IF(IncludeDeal4,Spreadsheet9.2!F3041,0)+IF(IncludeDeal5,Spreadsheet9.2!F4043,0) -> 1116943.6 | G30: =IF(IncludeDeal1,Spreadsheet9.2!G1037,0)+IF(IncludeDeal2,Spreadsheet9.2!G2039,0)+IF(IncludeDeal3,-Spreadsheet9.2!G2039,0)+IF(IncludeDeal4,Spreadsheet9.2!G3041,0)+IF(IncludeDeal5,Spreadsheet9.2!G4043,0) -> 1330188 | H30: =IF(IncludeDeal1,Spreadsheet9.2!H1037,0)+IF(IncludeDeal2,Spreadsheet9.2!H2039,0)+IF(IncludeDeal3,-Spreadsheet9.2!H2039,0)+IF(IncludeDeal4,Spreadsheet9.2!H3041,0)+IF(IncludeDeal5,Spreadsheet9.2!H4043,0) -> 2258270.2 | I30: =IF(IncludeDeal1,Spreadsheet9.2!I1037,0)+IF(IncludeDeal2,Spreadsheet9.2!I2039,0)+IF(IncludeDeal3,-Spreadsheet9.2!I2039,0)+IF(IncludeDeal4,Spreadsheet9.2!I3041,0)+IF(IncludeDeal5,Spreadsheet9.2!I4043,0) -> 734527.4 | J30: =IF(IncludeDeal1,Spreadsheet9.2!J1037,0)+IF(IncludeDeal2,Spreadsheet9.2!J2039,0)+IF(IncludeDeal3,-Spreadsheet9.2!J2039,0)+IF(IncludeDeal4,Spreadsheet9.2!J3041,0)+IF(IncludeDeal5,Spreadsheet9.2!J4043,0) -> 927597.2 | K30: =IF(IncludeDeal1,Spreadsheet9.2!K1037,0)+IF(IncludeDeal2,Spreadsheet9.2!K2039,0)+IF(IncludeDeal3,-Spreadsheet9.2!K2039,0)+IF(IncludeDeal4,Spreadsheet9.2!K3041,0)+IF(IncludeDeal5,Spreadsheet9.2!K4043,0) -> 224057.6 | L30: =IF(IncludeDeal1,Spreadsheet9.2!L1037,0)+IF(IncludeDeal2,Spreadsheet9.2!L2039,0)+IF(IncludeDeal3,-Spreadsheet9.2!L2039,0)+IF(IncludeDeal4,Spreadsheet9.2!L3041,0)+IF(IncludeDeal5,Spreadsheet9.2!L4043,0) -> -123230 | M30: =IF(IncludeDeal1,Spreadsheet9.2!M1037,0)+IF(IncludeDeal2,Spreadsheet9.2!M2039,0)+IF(IncludeDeal3,-Spreadsheet9.2!M2039,0)+IF(IncludeDeal4,Spreadsheet9.2!M3041,0)+IF(IncludeDeal5,Spreadsheet9.2!M4043,0) -> -203867.8 | N30: =IF(IncludeDeal1,Spreadsheet9.2!N1037,0)+IF(IncludeDeal2,Spreadsheet9.2!N2039,0)+IF(IncludeDeal3,-Spreadsheet9.2!N2039,0)+IF(IncludeDeal4,Spreadsheet9.2!N3041,0)+IF(IncludeDeal5,Spreadsheet9.2!N4043,0) -> -220309.3 | O30: =IF(IncludeDeal1,Spreadsheet9.2!O1037,0)+IF(IncludeDeal2,Spreadsheet9.2!O2039,0)+IF(IncludeDeal3,-Spreadsheet9.2!O2039,0)+IF(IncludeDeal4,Spreadsheet9.2!O3041,0)+IF(IncludeDeal5,Spreadsheet9.2!O4043,0) -> 390340.7 | P30: =IF(IncludeDeal1,Spreadsheet9.2!P1037,0)+IF(IncludeDeal2,Spreadsheet9.2!P2039,0)+IF(IncludeDeal3,-Spreadsheet9.2!P2039,0)+IF(IncludeDeal4,Spreadsheet9.2!P3041,0)+IF(IncludeDeal5,Spreadsheet9.2!P4043,0) -> -637447.1 | Q30: =IF(IncludeDeal1,Spreadsheet9.2!Q1037,0)+IF(IncludeDeal2,Spreadsheet9.2!Q2039,0)+IF(IncludeDeal3,-Spreadsheet9.2!Q2039,0)+IF(IncludeDeal4,Spreadsheet9.2!Q3041,0)+IF(IncludeDeal5,Spreadsheet9.2!Q4043,0) -> -733979.2 | R30: =IF(IncludeDeal1,Spreadsheet9.2!R1037,0)+IF(IncludeDeal2,Spreadsheet9.2!R2039,0)+IF(IncludeDeal3,-Spreadsheet9.2!R2039,0)+IF(IncludeDeal4,Spreadsheet9.2!R3041,0)+IF(IncludeDeal5,Spreadsheet9.2!R4043,0) -> -961410.2 | S30: =IF(IncludeDeal1,Spreadsheet9.2!S1037,0)+IF(IncludeDeal2,Spreadsheet9.2!S2039,0)+IF(IncludeDeal3,-Spreadsheet9.2!S2039,0)+IF(IncludeDeal4,Spreadsheet9.2!S3041,0)+IF(IncludeDeal5,Spreadsheet9.2!S4043,0) -> -1203534.1 | T30: =IF(IncludeDeal1,Spreadsheet9.2!T1037,0)+IF(IncludeDeal2,Spreadsheet9.2!T2039,0)+IF(IncludeDeal3,-Spreadsheet9.2!T2039,0)+IF(IncludeDeal4,Spreadsheet9.2!T3041,0)+IF(IncludeDeal5,Spreadsheet9.2!T4043,0) -> -80422.6 | U30: =IF(IncludeDeal1,Spreadsheet9.2!U1037,0)+IF(IncludeDeal2,Spreadsheet9.2!U2039,0)+IF(IncludeDeal3,-Spreadsheet9.2!U2039,0)+IF(IncludeDeal4,Spreadsheet9.2!U3041,0)+IF(IncludeDeal5,Spreadsheet9.2!U4043,0) -> -509359.6 | V30: =IF(IncludeDeal1,Spreadsheet9.2!V1037,0)+IF(IncludeDeal2,Spreadsheet9.2!V2039,0)+IF(IncludeDeal3,-Spreadsheet9.2!V2039,0)+IF(IncludeDeal4,Spreadsheet9.2!V3041,0)+IF(IncludeDeal5,Spreadsheet9.2!V4043,0) -> -813451.9 | W30: =IF(IncludeDeal1,Spreadsheet9.2!W1037,0)+IF(IncludeDeal2,Spreadsheet9.2!W2039,0)+IF(IncludeDeal3,-Spreadsheet9.2!W2039,0)+IF(IncludeDeal4,Spreadsheet9.2!W3041,0)+IF(IncludeDeal5,Spreadsheet9.2!W4043,0) -> -1079886.8 | X30: =IF(IncludeDeal1,Spreadsheet9.2!X1037,0)+IF(IncludeDeal2,Spreadsheet9.2!X2039,0)+IF(IncludeDeal3,-Spreadsheet9.2!X2039,0)+IF(IncludeDeal4,Spreadsheet9.2!X3041,0)+IF(IncludeDeal5,Spreadsheet9.2!X4043,0) -> -1083362.4 | Y30: =IF(IncludeDeal1,Spreadsheet9.2!Y1037,0)+IF(IncludeDeal2,Spreadsheet9.2!Y2039,0)+IF(IncludeDeal3,-Spreadsheet9.2!Y2039,0)+IF(IncludeDeal4,Spreadsheet9.2!Y3041,0)+IF(IncludeDeal5,Spreadsheet9.2!Y4043,0) -> -880121.9 | Z30: =IF(IncludeDeal1,Spreadsheet9.2!Z1037,0)+IF(IncludeDeal2,Spreadsheet9.2!Z2039,0)+IF(IncludeDeal3,-Spreadsheet9.2!Z2039,0)+IF(IncludeDeal4,Spreadsheet9.2!Z3041,0)+IF(IncludeDeal5,Spreadsheet9.2!Z4043,0) -> -948682.5 | AA30: =IF(IncludeDeal1,Spreadsheet9.2!AA1037,0)+IF(IncludeDeal2,Spreadsheet9.2!AA2039,0)+IF(IncludeDeal3,-Spreadsheet9.2!AA2039,0)+IF(IncludeDeal4,Spreadsheet9.2!AA3041,0)+IF(IncludeDeal5,Spreadsheet9.2!AA4043,0) -> -743390.8 | AB30: =IF(IncludeDeal1,Spreadsheet9.2!AB1037,0)+IF(IncludeDeal2,Spreadsheet9.2!AB2039,0)+IF(IncludeDeal3,-Spreadsheet9.2!AB2039,0)+IF(IncludeDeal4,Spreadsheet9.2!AB3041,0)+IF(IncludeDeal5,Spreadsheet9.2!AB4043,0) -> -533876.7 | AC30: =IF(IncludeDeal1,Spreadsheet9.2!AC1037,0)+IF(IncludeDeal2,Spreadsheet9.2!AC2039,0)+IF(IncludeDeal3,-Spreadsheet9.2!AC2039,0)+IF(IncludeDeal4,Spreadsheet9.2!AC3041,0)+IF(IncludeDeal5,Spreadsheet9.2!AC4043,0) -> -563182.8 | AD30: =IF(IncludeDeal1,Spreadsheet9.2!AD1037,0)+IF(IncludeDeal2,Spreadsheet9.2!AD2039,0)+IF(IncludeDeal3,-Spreadsheet9.2!AD2039,0)+IF(IncludeDeal4,Spreadsheet9.2!AD3041,0)+IF(IncludeDeal5,Spreadsheet9.2!AD4043,0) -> -904113.8 | AE30: =IF(IncludeDeal1,Spreadsheet9.2!AE1037,0)+IF(IncludeDeal2,Spreadsheet9.2!AE2039,0)+IF(IncludeDeal3,-Spreadsheet9.2!AE2039,0)+IF(IncludeDeal4,Spreadsheet9.2!AE3041,0)+IF(IncludeDeal5,Spreadsheet9.2!AE4043,0) -> -1048586.6 | AF30: =IF(IncludeDeal1,Spreadsheet9.2!AF1037,0)+IF(IncludeDeal2,Spreadsheet9.2!AF2039,0)+IF(IncludeDeal3,-Spreadsheet9.2!AF2039,0)+IF(IncludeDeal4,Spreadsheet9.2!AF3041,0)+IF(IncludeDeal5,Spreadsheet9.2!AF4043,0) -> -1022631.3 | AG30: =IF(IncludeDeal1,Spreadsheet9.2!AG1037,0)+IF(IncludeDeal2,Spreadsheet9.2!AG2039,0)+IF(IncludeDeal3,-Spreadsheet9.2!AG2039,0)+IF(IncludeDeal4,Spreadsheet9.2!AG3041,0)+IF(IncludeDeal5,Spreadsheet9.2!AG4043,0) -> -1120885.1 | AH30: =IF(IncludeDeal1,Spreadsheet9.2!AH1037,0)+IF(IncludeDeal2,Spreadsheet9.2!AH2039,0)+IF(IncludeDeal3,-Spreadsheet9.2!AH2039,0)+IF(IncludeDeal4,Spreadsheet9.2!AH3041,0)+IF(IncludeDeal5,Spreadsheet9.2!AH4043,0) -> -1456675.6 | AI30: =IF(IncludeDeal1,Spreadsheet9.2!AI1037,0)+IF(IncludeDeal2,Spreadsheet9.2!AI2039,0)+IF(IncludeDeal3,-Spreadsheet9.2!AI2039,0)+IF(IncludeDeal4,Spreadsheet9.2!AI3041,0)+IF(IncludeDeal5,Spreadsheet9.2!AI4043,0) -> -1603118.8 | AJ30: =IF(IncludeDeal1,Spreadsheet9.2!AJ1037,0)+IF(IncludeDeal2,Spreadsheet9.2!AJ2039,0)+IF(IncludeDeal3,-Spreadsheet9.2!AJ2039,0)+IF(IncludeDeal4,Spreadsheet9.2!AJ3041,0)+IF(IncludeDeal5,Spreadsheet9.2!AJ4043,0) -> -1539447.4 | AK30: =IF(IncludeDeal1,Spreadsheet9.2!AK1037,0)+IF(IncludeDeal2,Spreadsheet9.2!AK2039,0)+IF(IncludeDeal3,-Spreadsheet9.2!AK2039,0)+IF(IncludeDeal4,Spreadsheet9.2!AK3041,0)+IF(IncludeDeal5,Spreadsheet9.2!AK4043,0) -> -1405898.5 | AL30: =IF(IncludeDeal1,Spreadsheet9.2!AL1037,0)+IF(IncludeDeal2,Spreadsheet9.2!AL2039,0)+IF(IncludeDeal3,-Spreadsheet9.2!AL2039,0)+IF(IncludeDeal4,Spreadsheet9.2!AL3041,0)+IF(IncludeDeal5,Spreadsheet9.2!AL4043,0) -> -1531840.6 | AM30: =IF(IncludeDeal1,Spreadsheet9.2!AM1037,0)+IF(IncludeDeal2,Spreadsheet9.2!AM2039,0)+IF(IncludeDeal3,-Spreadsheet9.2!AM2039,0)+IF(IncludeDeal4,Spreadsheet9.2!AM3041,0)+IF(IncludeDeal5,Spreadsheet9.2!AM4043,0) -> -1286687.2 | AN30: =IF(IncludeDeal1,Spreadsheet9.2!AN1037,0)+IF(IncludeDeal2,Spreadsheet9.2!AN2039,0)+IF(IncludeDeal3,-Spreadsheet9.2!AN2039,0)+IF(IncludeDeal4,Spreadsheet9.2!AN3041,0)+IF(IncludeDeal5,Spreadsheet9.2!AN4043,0) -> -1207714.2 | AO30: =IF(IncludeDeal1,Spreadsheet9.2!AO1037,0)+IF(IncludeDeal2,Spreadsheet9.2!AO2039,0)+IF(IncludeDeal3,-Spreadsheet9.2!AO2039,0)+IF(IncludeDeal4,Spreadsheet9.2!AO3041,0)+IF(IncludeDeal5,Spreadsheet9.2!AO4043,0) -> -1020220.4 | AP30: =IF(IncludeDeal1,Spreadsheet9.2!AP1037,0)+IF(IncludeDeal2,Spreadsheet9.2!AP2039,0)+IF(IncludeDeal3,-Spreadsheet9.2!AP2039,0)+IF(IncludeDeal4,Spreadsheet9.2!AP3041,0)+IF(IncludeDeal5,Spreadsheet9.2!AP4043,0) -> -993116.9 | AQ30: =IF(IncludeDeal1,Spreadsheet9.2!AQ1037,0)+IF(IncludeDeal2,Spreadsheet9.2!AQ2039,0)+IF(IncludeDeal3,-Spreadsheet9.2!AQ2039,0)+IF(IncludeDeal4,Spreadsheet9.2!AQ3041,0)+IF(IncludeDeal5,Spreadsheet9.2!AQ4043,0) -> -584777.9 | AR30: =IF(IncludeDeal1,Spreadsheet9.2!AR1037,0)+IF(IncludeDeal2,Spreadsheet9.2!AR2039,0)+IF(IncludeDeal3,-Spreadsheet9.2!AR2039,0)+IF(IncludeDeal4,Spreadsheet9.2!AR3041,0)+IF(IncludeDeal5,Spreadsheet9.2!AR4043,0) -> -951570.2 | AS30: =IF(IncludeDeal1,Spreadsheet9.2!AS1037,0)+IF(IncludeDeal2,Spreadsheet9.2!AS2039,0)+IF(IncludeDeal3,-Spreadsheet9.2!AS2039,0)+IF(IncludeDeal4,Spreadsheet9.2!AS3041,0)+IF(IncludeDeal5,Spreadsheet9.2!AS4043,0) -> -510732.8 | AT30: =IF(IncludeDeal1,Spreadsheet9.2!AT1037,0)+IF(IncludeDeal2,Spreadsheet9.2!AT2039,0)+IF(IncludeDeal3,-Spreadsheet9.2!AT2039,0)+IF(IncludeDeal4,Spreadsheet9.2!AT3041,0)+IF(IncludeDeal5,Spreadsheet9.2!AT4043,0) -> -76334.1 | AU30: =IF(IncludeDeal1,Spreadsheet9.2!AU1037,0)+IF(IncludeDeal2,Spreadsheet9.2!AU2039,0)+IF(IncludeDeal3,-Spreadsheet9.2!AU2039,0)+IF(IncludeDeal4,Spreadsheet9.2!AU3041,0)+IF(IncludeDeal5,Spreadsheet9.2!AU4043,0) -> -35676.8 | AV30: =IF(IncludeDeal1,Spreadsheet9.2!AV1037,0)+IF(IncludeDeal2,Spreadsheet9.2!AV2039,0)+IF(IncludeDeal3,-Spreadsheet9.2!AV2039,0)+IF(IncludeDeal4,Spreadsheet9.2!AV3041,0)+IF(IncludeDeal5,Spreadsheet9.2!AV4043,0) -> 343194.9 | AW30: =IF(IncludeDeal1,Spreadsheet9.2!AW1037,0)+IF(IncludeDeal2,Spreadsheet9.2!AW2039,0)+IF(IncludeDeal3,-Spreadsheet9.2!AW2039,0)+IF(IncludeDeal4,Spreadsheet9.2!AW3041,0)+IF(IncludeDeal5,Spreadsheet9.2!AW4043,0) -> 493418.2 | AX30: =IF(IncludeDeal1,Spreadsheet9.2!AX1037,0)+IF(IncludeDeal2,Spreadsheet9.2!AX2039,0)+IF(IncludeDeal3,-Spreadsheet9.2!AX2039,0)+IF(IncludeDeal4,Spreadsheet9.2!AX3041,0)+IF(IncludeDeal5,Spreadsheet9.2!AX4043,0) -> 590372 | AY30: =IF(IncludeDeal1,Spreadsheet9.2!AY1037,0)+IF(IncludeDeal2,Spreadsheet9.2!AY2039,0)+IF(IncludeDeal3,-Spreadsheet9.2!AY2039,0)+IF(IncludeDeal4,Spreadsheet9.2!AY3041,0)+IF(IncludeDeal5,Spreadsheet9.2!AY4043,0) -> 515730.9 | AZ30: =IF(IncludeDeal1,Spreadsheet9.2!AZ1037,0)+IF(IncludeDeal2,Spreadsheet9.2!AZ2039,0)+IF(IncludeDeal3,-Spreadsheet9.2!AZ2039,0)+IF(IncludeDeal4,Spreadsheet9.2!AZ3041,0)+IF(IncludeDeal5,Spreadsheet9.2!AZ4043,0) -> 530738.9 | BA30: =IF(IncludeDeal1,Spreadsheet9.2!BA1037,0)+IF(IncludeDeal2,Spreadsheet9.2!BA2039,0)+IF(IncludeDeal3,-Spreadsheet9.2!BA2039,0)+IF(IncludeDeal4,Spreadsheet9.2!BA3041,0)+IF(IncludeDeal5,Spreadsheet9.2!BA4043,0) -> 542176.2 | BB30: =IF(IncludeDeal1,Spreadsheet9.2!BB1037,0)+IF(IncludeDeal2,Spreadsheet9.2!BB2039,0)+IF(IncludeDeal3,-Spreadsheet9.2!BB2039,0)+IF(IncludeDeal4,Spreadsheet9.2!BB3041,0)+IF(IncludeDeal5,Spreadsheet9.2!BB4043,0) -> 506579.6 | BC30: =IF(IncludeDeal1,Spreadsheet9.2!BC1037,0)+IF(IncludeDeal2,Spreadsheet9.2!BC2039,0)+IF(IncludeDeal3,-Spreadsheet9.2!BC2039,0)+IF(IncludeDeal4,Spreadsheet9.2!BC3041,0)+IF(IncludeDeal5,Spreadsheet9.2!BC4043,0) -> 445045.5 | BD30: =IF(IncludeDeal1,Spreadsheet9.2!BD1037,0)+IF(IncludeDeal2,Spreadsheet9.2!BD2039,0)+IF(IncludeDeal3,-Spreadsheet9.2!BD2039,0)+IF(IncludeDeal4,Spreadsheet9.2!BD3041,0)+IF(IncludeDeal5,Spreadsheet9.2!BD4043,0) -> 332596.9 | BE30: =IF(IncludeDeal1,Spreadsheet9.2!BE1037,0)+IF(IncludeDeal2,Spreadsheet9.2!BE2039,0)+IF(IncludeDeal3,-Spreadsheet9.2!BE2039,0)+IF(IncludeDeal4,Spreadsheet9.2!BE3041,0)+IF(IncludeDeal5,Spreadsheet9.2!BE4043,0) -> 234454.8 | BF30: =IF(IncludeDeal1,Spreadsheet9.2!BF1037,0)+IF(IncludeDeal2,Spreadsheet9.2!BF2039,0)+IF(IncludeDeal3,-Spreadsheet9.2!BF2039,0)+IF(IncludeDeal4,Spreadsheet9.2!BF3041,0)+IF(IncludeDeal5,Spreadsheet9.2!BF4043,0) -> 173133.9 | BG30: =IF(IncludeDeal1,Spreadsheet9.2!BG1037,0)+IF(IncludeDeal2,Spreadsheet9.2!BG2039,0)+IF(IncludeDeal3,-Spreadsheet9.2!BG2039,0)+IF(IncludeDeal4,Spreadsheet9.2!BG3041,0)+IF(IncludeDeal5,Spreadsheet9.2!BG4043,0) -> 141378.3 | BH30: =IF(IncludeDeal1,Spreadsheet9.2!BH1037,0)+IF(IncludeDeal2,Spreadsheet9.2!BH2039,0)+IF(IncludeDeal3,-Spreadsheet9.2!BH2039,0)+IF(IncludeDeal4,Spreadsheet9.2!BH3041,0)+IF(IncludeDeal5,Spreadsheet9.2!BH4043,0) -> 59870.3 | BI30: =IF(IncludeDeal1,Spreadsheet9.2!BI1037,0)+IF(IncludeDeal2,Spreadsheet9.2!BI2039,0)+IF(IncludeDeal3,-Spreadsheet9.2!BI2039,0)+IF(IncludeDeal4,Spreadsheet9.2!BI3041,0)+IF(IncludeDeal5,Spreadsheet9.2!BI4043,0) -> -2110.1 | BJ30: =IF(IncludeDeal1,Spreadsheet9.2!BJ1037,0)+IF(IncludeDeal2,Spreadsheet9.2!BJ2039,0)+IF(IncludeDeal3,-Spreadsheet9.2!BJ2039,0)+IF(IncludeDeal4,Spreadsheet9.2!BJ3041,0)+IF(IncludeDeal5,Spreadsheet9.2!BJ4043,0) -> -18433.4 | BK30: =IF(IncludeDeal1,Spreadsheet9.2!BK1037,0)+IF(IncludeDeal2,Spreadsheet9.2!BK2039,0)+IF(IncludeDeal3,-Spreadsheet9.2!BK2039,0)+IF(IncludeDeal4,Spreadsheet9.2!BK3041,0)+IF(IncludeDeal5,Spreadsheet9.2!BK4043,0) -> -63747.5 | BL30: =IF(IncludeDeal1,Spreadsheet9.2!BL1037,0)+IF(IncludeDeal2,Spreadsheet9.2!BL2039,0)+IF(IncludeDeal3,-Spreadsheet9.2!BL2039,0)+IF(IncludeDeal4,Spreadsheet9.2!BL3041,0)+IF(IncludeDeal5,Spreadsheet9.2!BL4043,0) -> -39122.3 | BM30: =IF(IncludeDeal1,Spreadsheet9.2!BM1037,0)+IF(IncludeDeal2,Spreadsheet9.2!BM2039,0)+IF(IncludeDeal3,-Spreadsheet9.2!BM2039,0)+IF(IncludeDeal4,Spreadsheet9.2!BM3041,0)+IF(IncludeDeal5,Spreadsheet9.2!BM4043,0) -> -39185.5 | BN30: =IF(IncludeDeal1,Spreadsheet9.2!BN1037,0)+IF(IncludeDeal2,Spreadsheet9.2!BN2039,0)+IF(IncludeDeal3,-Spreadsheet9.2!BN2039,0)+IF(IncludeDeal4,Spreadsheet9.2!BN3041,0)+IF(IncludeDeal5,Spreadsheet9.2!BN4043,0) -> -39231.1 | BO30: =IF(IncludeDeal1,Spreadsheet9.2!BO1037,0)+IF(IncludeDeal2,Spreadsheet9.2!BO2039,0)+IF(IncludeDeal3,-Spreadsheet9.2!BO2039,0)+IF(IncludeDeal4,Spreadsheet9.2!BO3041,0)+IF(IncludeDeal5,Spreadsheet9.2!BO4043,0) -> -39257.1
